Workbook

Sheet Startseite
A2: Arbeitshilfe zur Berechnung von Kompensations- und Deckelungsbeträgen für entstehenden
A3: Erfüllungsaufwand auf Basis umweltrelevanter Effekte in der Gesetzesfolgenabschätzung (GFA)
A4: Bitte aktivieren Sie zuerst Makros für dieses Tool: 1. Klicken Sie auf die Microsoft Office-Schaltfläche (Kreis mit Office-Symbol, links oben), und klicken Sie dann auf Excel-Optionen (Feld, unten in der Mitte). 2. Klicken Sie auf Vertrauensstellungscenter (links), auf Einstellungen für das Vertrauensstellungscenter (Feld, rechts) und anschließend auf Einstellungen für Makros (links). 3. Klicken Sie auf die gewünschte Option: "Alle Makros aktivieren (nicht empfohlen, potenziell gefährlicher Code kann ausgeführt werden)" 4. Klicken Sie auf OK. Damit haben Sie die benötigten Makros aktiviert. Durch anklicken der grau unterlegten Textfelder werden weiterführende Informationen angezeigt.

Sheet Definition Maßnahme
B2: Schritt 1: Definition der Maßnahme
B4: a. Rechtlicher Status Quo, aktuelle Rechtspraxis/Rechtsstatus
B9: b. Geplante Änderung (Gesetz, Maßnahme)
B14: c. Betroffene Gruppen (Bedeutung der Maßnahme für verschiedene Gruppen)
B16: Gruppe (Name der Gruppe) | C16: Art der Betroffenheit, mögliche Reaktionen der Gruppen
A17: 1.
A18: 2.
A19: 3.
A20: 4.
A21: 5.
A22: 6.
A23: 7.
A24: 8.
B27: d. Systemgrenzen
B29: Betrachtungszeitraum
B30: Relevanter Raum (geografisch, örtlich)
B31: Inhaltlich (was ist NICHT Teil der Betrachtungen)
B32: Weiteres
B35: e. Vergleichsmaßstab, Referenzentwicklung
B37: Aufzeigen des Vergleichsmaßstabs bzw. der Referenzentwicklung (oder Referenzzustand) ohne Einführung des Gesetzes bzw. der Maßnahme:

Sheet Identifikation Wirkunskateg.
A2: Schritt 2: Identifikation relevanter Wirkungskategorien
A4: 1 Veränderung wirtschaftlicher Wirkung
B6: Fragen zur Prüfung der Relevanz verschiedener Aktivitäten
A7: 1. Wirtschaftliche Wirkungen | B7: Identifikationsfragen | F7: Falls zutreffend ankreuzen | I7: (Die Spalten I - K dienen nur der Hintergrundberechnung)
B8: 1. | C8: Hat das Gesetz Auswirkungen auf die Produktionskosten von Wirtschaftsunternehmen? | I8: FALSE | J8: =IF(I8=TRUE,1,0) -> 0
B9: 2. | C9: Hat das Gesetz Auswirkungen auf die Umsätze von Unternehmen oder Gruppen von Unternehmen? | I9: FALSE | J9: 0
B10: 3. | C10: Hat das Gesetz Auswirkungen auf die Lebenshaltungskosten oder Ausgabenstruktur von Bürgern? | I10: FALSE | J10: 0 | K10: =IF((($J$9+$J$10)>0), TRUE, FALSE) -> FALSE
B11: 4. | C11: Hat das Gesetz Auswirkungen auf den Verbrauch von Treibstoff? | I11: FALSE | J11: 0
B12: 5. | C12: Hat das Gesetz Auswirkungen auf die Ausgaben oder Einnahmen staatlicher Stellen? | I12: FALSE | J12: 0
J13: =SUM(J8:J12) -> 0 | K13: =IF(($J$13>0), TRUE, FALSE) -> FALSE
A14: 2 Veränderung wichtiger umweltrelevanter Aktivitäten (Verkehr, Energie, Landwirtschaft)
A16: Aktivität | B16: Fragen zur Prüfung der Relevanz verschiedener Aktivitäten
A17: 2a. Verkehr | B17: Identifikationsfragen | F17: Falls zutreffend ankreuzen
C18: Führt das Gesetz zu spürbaren Veränderungen im Verkehrsbereich? - Verkehrsmenge: Führt das Gesetz zu einer Veränderung des Verkehrsaufkommens? - Fahrzeugflotte: Führt das Gesetz zu einer veränderten Zusammensetzung der Fahrzeugflotte im Land-, Luft- oder Schiffsverkehr? - Kraftstoffverbrauch: Führt das Gesetz zu einer Veränderung des Verbrauchs von Kraftstoffen (Benzin, Diesel, Erdgas etc.)?
B19: 1. | C19: Änderungen im Straßenverkehr? | I19: FALSE | J19: =IF(I19=TRUE,1,0) -> 0
B20: 2. | C20: Änderungen im Schienenverkehr? | I20: FALSE | J20: =IF(I20=TRUE,1,0) -> 0
B21: 3. | C21: Änderungen im Schiffsverkehr? | I21: FALSE | J21: =IF(I21=TRUE,1,0) -> 0
B22: 4. | C22: Änderungen im Luftverkehr? | I22: FALSE | J22: =IF(I22=TRUE,1,0) -> 0
J23: =SUM(J19:J22) -> 0 | K23: =IF((J23>0), TRUE, FALSE) -> FALSE
A25: 2b. Energie | B25: Identifikationsfragen | F25: Falls zutreffend ankreuzen
C26: Führt das Gesetz zu spürbaren Veränderungen im Bereich des Energieverbrauchs (Menge) oder des Energie-Mix (Strom-Mix, eingesetzte Brennstoffe)?
B27: Vertiefungsfragen
B28: 1. | C28: Strommenge: Führt das Gesetz zu einer Veränderungen des Stromverbrauchs von Haushalten, Unternehmen oder der öffentlichen Hand? | I28: FALSE | J28: =IF(I28=TRUE,1,0) -> 0
B29: 2. | C29: Strom-Mix: Verändert sich durch das Gesetzes der von den Konsumenten genutzte oder von Energieunternehmen produzierte Strom-Mix? | I29: FALSE | J29: =IF(I29=TRUE,1,0) -> 0 | K29: =IF((($J$28+$J$29+$J$92)>0), TRUE, FALSE) -> FALSE
B30: 3. | C30: Wärmeenergieverbrauch: Führt das Gesetz zu einer Veränderung des Wärmeenergieverbrauchs (Energiemenge)? | I30: FALSE | J30: =IF(I30=TRUE,1,0) -> 0
B31: 4. | C31: Wärmeenergieproduktion: Verändert sich die Zusammensetzung der Energieträger zur Wärmeproduktion? | I31: FALSE | J31: =IF(I31=TRUE,1,0) -> 0
B32: 5. | C32: Brennstoffe: Führt das Gesetz zu einer Veränderung des Verbrauchs von Brennstoffen bzw. deren Zusammensetzung? | I32: FALSE | J32: =IF(I32=TRUE,1,0) -> 0 | K32: =IF((($J$30+$J$31+$J$32+$J$93)>0), TRUE, FALSE) -> FALSE
J33: =SUM($J$28:$J$32)+$J$92+$J$93 -> 0 | K33: =IF(($J$33>0), TRUE, FALSE) -> FALSE
A35: 2c. Landwirtschaft | B35: Identifikationsfragen | F35: Falls zutreffend ankreuzen
C36: Führt das Gesetz zu einer Veränderung der landwirtschaftlichen Aktivität?
B37: Vertiefungsfragen
B38: 1. | C38: Führt das Gesetz zu einer Nutzungsintensivierung durch Veränderung der land- / forstwirtschaftlichen Bewirtschaftungsform? | I38: FALSE | J38: =IF(I38=TRUE,1,0) -> 0
B39: 2. | C39: Führt das Gesetz zu einer Flächenumwandlung oder einer veränderten Landnutzung, d.h. einer Veränderung des Ökosystemtyps? | I39: FALSE | J39: 0 | K39: =IF((($J$38+$J$39+$J$56+$J$71+$J$72+$J$73+$J$45)>0), TRUE, FALSE) -> FALSE
B40: 3. | C40: Führt das Gesetz zu einer Veränderung der Emission von Nährstoffen aus der Landwirtschaft (v.a. Stickstoffverbindungen)? | I40: FALSE | J40: 0 | K40: =IF((($J$40+$J$76+$J$45)>0), TRUE, FALSE) -> FALSE
B41: 4. | C41: Führt das Gesetz zu einer Veränderung der Treibhausgasemissionen aus der Landwirtschaft? | I41: FALSE | J41: 0
B42: 5. | C42: Führt das Gesetz zu einer Zu- oder Abnahme der landwirtschaftlichen Produktionsmenge? | I42: FALSE | J42: 0
J43: =SUM(J36:J42) -> 0 | K43: =IF((($J$43+$J$56+$J$70+$J$71+$J$72+$J$73+$J$74+$J$75+$J$76+$J$94+$J$95)>0), TRUE, FALSE) -> FALSE
A44: 3 Veränderung wichtiger Wirkungskategorien | I44: alle_LW | J44: =SUM($J$38:$J$40)+$J$42+$J$56+SUM($J$71:$J$73)+$J$76+$J$78 -> 0 | K44: =IF((J44>0), TRUE, FALSE) -> FALSE
I45: alle_LW_Oekos | J45: =J42+J78 -> 0 | K45: =IF((J45>0), TRUE, FALSE) -> FALSE
A46: Wirkungskategorie | B46: Fragen zur Prüfung der Relevanz verschiedener Aktivitäten
A47: 3. Luftschadstoffemissionen | B47: Identifikationsfragen | F47: Falls zutreffend ankreuzen
B48: 1. | C48: Führt das Gesetz zu einer Erhöhung oder Verminderung von Luftschadstoffemissionen, bzw. zu einer Veränderung der Luftqualität? | I48: FALSE | J48: =IF(I48=TRUE,1,0) -> 0
B49: 2. | C49: Führt das Gesetz zu einer Veränderung der Anzahl von Luftschadstoffen betroffener Personen (Immissionen)? | I49: FALSE | J49: =IF(I49=TRUE,1,0) -> 0
B50: Vertiefungsfragen (soweit nicht bereits bei den Aktivitäten/Treibern abgedeckt)
B51: 3. | C51: Verändert sich der Emissionsort (z.B. außerorts statt innerorts)? | I51: FALSE | J51: 0
J52: =SUM(J48:J51)+$J$96 -> 0 | K52: =IF((($J$52+$J$96)>0), TRUE, FALSE) -> FALSE
A53: 4. Treibhausgasemissionen | B53: Identifikationsfragen | F53: Falls zutreffend ankreuzen
B54: 1. | C54: Führt das Gesetz zu einer Erhöhung oder Verminderung von Treibhausgasemissionen? | I54: FALSE | J54: =IF(I54=TRUE,1,0) -> 0
B55: 2. | C55: Hat das Gesetz Folgen für das Klima, d.h. führt es zu einer Verstärkung oder Verminderung des Klimawandels und dessen Schäden? | I55: FALSE | J55: =IF(I55=TRUE,1,0) -> 0 | K55: =IF((($J$41+$J$54+$J$55+$J$96)>0), TRUE, FALSE) -> FALSE
B56: 3. | C56: Führt das Gesetz zu einer Landnutzungsänderung von Ökosystemen oder einer Veränderung der landwirtschaftlichen Bewirtschaftungsform mit Folgen für den CO2-Haushalt? | I56: FALSE | J56: 0
J57: =SUM(J54:J56)+J96 -> 0 | K57: =IF((J57>0), TRUE, FALSE) -> FALSE
A58: 5. Lärmemissionen | B58: Identifikationsfragen | F58: Falls zutreffend ankreuzen
B59: 1. | C59: Führt das Gesetz zu einer Veränderung der Lärmemissionen, der Anzahl Lärmbetroffener oder der Schäden übermäßiger Lärmbelastung? | I59: FALSE | J59: =IF(I59=TRUE,1,0) -> 0
B60: Vertiefungsfragen (soweit nicht bereits bei den Aktivitäten/Treibern abgedeckt)
B61: 2. | C61: Führt das Gesetz zu einer Lärmreduktion bzw. -zunahme an der Quelle durch technische Maßnahmen? | I61: FALSE | J61: =IF(I61=TRUE,1,0) -> 0
B62: 3. | C62: Führt das Gesetz zu neuen oder weniger Lärmemissionen, z.B. durch zusätzliche oder reduzierte lärmverursachende Aktivitäten? | I62: FALSE | J62: 0
B63: 4. | C63: Führt das Gesetz dazu, dass mit Lärmemissionen zeitlich anders anfallen, z.B. tagsüber statt nachts? | I63: FALSE | J63: 0
B64: 5. | C64: Führt das Gesetz dazu, dass Lärmemissionen räumlich anders anfallen? | I64: FALSE | J64: 0
B65: 6. | C65: Führen Veränderungen im Siedlungsbereich dazu, dass die Anzahl von Lärm betroffenen Personen zu- oder abnimmt? | I65: FALSE | J65: 0
J66: =SUM($J$59:$J$65) -> 0 | K66: =IF((J66>0), TRUE, FALSE) -> FALSE
A67: 6. Beeinträchtigung von Ökosystemen | B67: Identifikationsfragen | F67: Falls zutreffend ankreuzen | I67: Oeko_all | J67: =J70+J74+J75+J77+J78+J94+J95 -> 0 | K67: =IF((J67>0), TRUE, FALSE) -> FALSE
C68: Führt das Gesetz zu einer verstärkten oder verringerten Beeinträchtigung (bzw. zum Schutz) natürlicher Ökosysteme oder Landschaften und/oder hat es Folgen für die Biodiversität?
B69: Vertiefungsfragen (soweit nicht bereits bei den Aktivitäten/Treibern abgedeckt)
B70: 1. | C70: Führt das Gesetz zur Verbauung / Versiegelung natürlicher Flächen, Landschaften bzw. Ökosystemen? | I70: FALSE | J70: =IF(I70=TRUE,1,0) -> 0 | K70: =IF((($J$70+$J$94+$J$95+$J$45)>0), TRUE, FALSE) -> FALSE
B71: 2. | C71: Führt das Gesetz zu einer Flächenumwandlung oder einer veränderten Landnutzung, d.h. einer Veränderung des Ökosystemtyps? | I71: FALSE | J71: 0
B72: 3. | C72: Führt das Gesetz zu einer Nutzungsintensivierung durch Veränderung der land- / forstwirtschaftlichen Bewirtschaftungsform? | I72: FALSE | J72: 0
B73: 4. | C73: Führt das Gesetz zum Verschwinden oder zur Entstehung ökologisch wichtiger Ökosystemtypen? | I73: FALSE | J73: 0
B74: 5. | C74: Führt das Gesetz zu einer Zerschneidung (Fragmentierung) natürlicher Ökosysteme? | I74: FALSE | J74: 0
B75: 6. | C75: Führt das Gesetz zum Bau zusätzlicher Verkehrsinfrastrukturen (oder dem Rückbau von Infrastrukturen)? | I75: FALSE | J75: 0 | K75: =IF((($J$74+$J$75)>0), TRUE, FALSE) -> FALSE
B76: 7. | C76: Führt das Gesetz eine Zu- oder Abnahme der Emission von Nährstoffen (v.a. Stickstoffverbindungen)? | I76: FALSE | J76: 0
B77: 8. | C77: Führt das Gesetz zu einer Zu- oder Abnahme des Eintrags von Schadstoffen ins Meer? | I77: FALSE | J77: 0 | K77: =IF((($J$77)>0), TRUE, FALSE) -> FALSE
B78: 9. | C78: Führt das Gesetz zu einer Veränderung der Ökosystemdienstleistungen? | I78: FALSE | J78: 0
J79: =SUM(J68:J78) -> 0
A80: 7. Emission toxischer Stoffe | B80: Identifikationsfragen | F80: Falls zutreffend ankreuzen
B81: 1. | C81: Führt das Gesetz zu einer Erhöhung oder Verminderung von Emission toxischer Schadstoffe (Schwermetalle, Pestizide, POP)? | I81: FALSE | J81: 0
B82: 2. | C82: Führt das Gesetz zu einer Veränderung der Luft, Wasser- oder Bodenqualität bzw. Schäden infolge toxischer Emissionen? | I82: FALSE | J82: 0
B83: Vertiefungsfragen (soweit nicht bereits bei den Aktivitäten/Treibern abgedeckt)
B84: 3. | C84: Führt das Gesetz zu einer Zu- oder Abnahme von Gesundheitsschäden infolge der veränderten Emissionsmenge toxischer Stoffe? | I84: FALSE | J84: 0
B85: 4. | C85: Führt das Gesetz zu einer Veränderung der (Trink-) Wasserverfügbarkeit, durch eine Veränderung der Emission toxischer Stoffe? | I85: FALSE | J85: 0
B86: 5. | C86: Führt das Gesetz zu einer Veränderung der Nahrungsmittelverfügbarkeit bzw. der Möglichkeit Nahrungsmittel zu produzieren? | I86: FALSE | J86: 0
J87: =SUM(J81:J86) -> 0 | K87: =IF((J87>0), TRUE, FALSE) -> FALSE
A88: 8. Indirekte Effekte durch vor- und nachgelagerte Prozesse | B88: Identifikationsfragen | F88: Falls zutreffend ankreuzen
C89: Führt das Gesetz zu einer Erhöhung oder Verminderung von indirekten Umweltbelastungen? Relevant sind insbesondere Emissionen, die im Laufe des Lebenszyklus‘ bei vor- oder nachgelagerten Prozessen (Bau, Unterhalt, Entsorgung, Energieproduktion und -verteilung) anfallen.
B90: Vertiefungsfragen (soweit nicht bereits bei den Aktivitäten/Treibern abgedeckt)
B91: 1. | C91: Führt das Gesetz zu einer Veränderung des Verkehrsaufkommens, bzw. des Kraftstoffverbrauchs? (Falls ja, bitte die betroffenen Verkehrsträger unter 2a Verkehr (oben) ankreuzen.)
B92: 2. | C92: Führt das Gesetz zu einer Veränderung des Stromverbrauchs oder des produzierten Strom-Mix? | I92: FALSE | J92: 0
B93: 3. | C93: Führt das Gesetz zu einer Veränderung des Wärmeenergieverbrauchs oder der Zusammensetzung der Energieträger? | I93: FALSE | J93: 0
B94: 4. | C94: Führt das Gesetz zum Bau neuer Infrastrukturen oder Gebäude (Verkehrswege, Produktionsstätten, Immobilien, Kraftwerken etc.)? | I94: FALSE | J94: 0
B95: 5. | C95: Führt das Gesetz zu einer Zu- oder Abnahme des Ressourcenverbrauchs (Bodenversiegelung, landwirtschaftliche Produktion etc.)? | I95: FALSE | J95: 0
B96: 6. | C96: Führt das Gesetz zu einer Zu- oder Abnahme der Produktionsmenge von Gütern mit hohem Ressourcenverbrauch? | I96: FALSE | J96: 0
J97: =SUM(J92:J96) -> 0 | K97: =IF((J97>0), TRUE, FALSE) -> FALSE
A98: 9. Unfälle | B98: Identifikationsfragen | F98: Falls zutreffend ankreuzen
C99: Führt das Gesetz zu einer Veränderung des Unfallrisikos im Verkehrsbereich oder zu einer direkten Veränderung der Anzahl der Unfälle?
B100: Vertiefungsfragen (soweit nicht bereits bei den Aktivitäten/Treibern abgedeckt)
B101: 1. | C101: Führt das Gesetz zu einer Veränderung der Anzahl der Getöteten oder der Verletzten bei Verkehrsunfällen? | I101: FALSE | J101: =IF(I101=TRUE,1,0) -> 0
B102: 2. | C102: Führt das Gesetz zu einer Veränderung des Schweregrads der Verkehrsunfälle? | I102: FALSE | J102: 0 | K102: =IF((($J$101+$J$102)>0), TRUE, FALSE) -> FALSE
B103: 3. | C103: Hat das Gesetz eine Zu- oder Abnahme der Anzahl der Verkehrsunfälle zur Folge? | I103: FALSE | J103: 0
J104: =SUM(J98:J103) -> 0 | K104: =IF((J104>0), TRUE, FALSE) -> FALSE

Sheet Eingabevariablen
A4: Inputfelder für Eingabevariablen
A6: Wahl der Betrachtungsjahre | B6: Zeitraum 1 | C6: Zeitraum 2 | D6: Zeitraum 3 | G6: Wahl CO2-Kostensatz (Basis Empfehlung UBA-Methodenkonvention) | V6: Mittel: 80 € / t CO2 (Stand 2010)
A7: Betrachtungsjahre | G7: Mittel: 80 € / t CO2 (Stand 2010) | Q7: 0 | V7: Tief: 40 € / t CO2 (Stand 2010)
V8: Hoch: 120 € / t CO2 (Stand 2010)
I10: Der gewählte CO2-Kostensatz wird für alle relevanten Berechnungen der Klimafolgekosten angewandt.
A11: Übersicht der relevanten wirtschaftlichen Wirkungskategorien (Ergebnis, siehe vorheriges Arbeitsblatt)
A13: 1 Wirtschaftliche Wirkungen | B13: Relevant
A14: a. Wirkung auf Produktionskosten | B14: =IF('Identifikation Wirkunskateg.'!$J$8>0,"Ja","―") -> ―
A15: b. Wirkung auf Unternehmsumsätze | B15: =IF('Identifikation Wirkunskateg.'!$J$9>0,"Ja","―") -> ―
A16: c. Wirkung auf Ausgaben von Bürgern | B16: =IF('Identifikation Wirkunskateg.'!$J$10>0,"Ja","―") -> ―
A17: d. Wirkung auf Ausgaben für Treibstoff | B17: =IF('Identifikation Wirkunskateg.'!$J$11>0,"Ja","―") -> ―
A18: e. Wirkung auf Ausgaben des Staates | B18: =IF('Identifikation Wirkunskateg.'!$J$12>0,"Ja","―") -> ―
Q20: 0.2
A21: Veränderung der Produktionskosten | B21: Branche (Produkt-/Dienstleistung) (Auswahl-Menü) | C21: Menge in € | D21: Menge in € | E21: Menge in € | F21: Überwälzung auf Konsumenten in % | Q21: 1
C22: =IF(B$7="","",B$7) ->  | D22: =IF(C$7="","",C$7) ->  | E22: =IF(D$7="","",D$7) -> 
A23: Branche 1 | F23: 1
A24: Branche 2 | F24: 1
A25: Branche 3 | F25: 1
A26: Branche 4 | F26: 1
A27: Branche 5 | F27: 1
A29: Veränderung der Nachfrage (Bürger oder Unternehmen) | B29: Branche (Produkt-/Dienstleistung) (Auswahl-Menü) | C29: Menge in € | D29: Menge in € | E29: Menge in €
C30: =IF(B$7="","",B$7) ->  | D30: =IF(C$7="","",C$7) ->  | E30: =IF(D$7="","",D$7) -> 
A31: Branche 6
A32: Branche 7
A33: Branche 8
A34: Branche 9
A35: Branche 10
Q36: 0.4
A37: Veränderung von Treibstoffverbrauch | B37: =IF(B$7="","",B$7) ->  | C37: =IF(C$7="","",C$7) ->  | D37: =IF(D$7="","",D$7) ->  | E37: Preis pro Liter in € | Q37: 0.6
A38: Verbrauchter Treibstoff (Diesel oder Benzin, in Liter)
A39: Verbrauchtes Benzin (in Liter) | Q39: 0.7
A40: Verbrauchtes Diesel (in Liter) | Q40: 0.8
A41: Geleistete Verkehrsmenge PKW (in km) | Q41: 0.9
A43: Veränderung des Staatshaushalts | B43: Menge in € | C43: Menge in € | D43: Menge in €
B44: =IF(B$7="","",B$7) ->  | C44: =IF(C$7="","",C$7) ->  | D44: =IF(D$7="","",D$7) -> 
A45: Änderung der Staatseinnahmen oder -ausgaben
J48: Die Bezugsgröße der Eingabevariablen ist pro Jahr
J49: Jahr
A51: 2a. Verkehr | B51: =IF('Identifikation Wirkunskateg.'!$J$23>0,"Ja","―") -> ― | C51: =IF(B51="Ja","Relevant", "Nicht relevant") -> Nicht relevant
A53: ="Straßenverkehr "&B$7 -> Straßenverkehr | B53: i. Verkehr: Fahrzeug-km nach Fahrzeugkategorie | C53: =B$7&": Verkehrsmenge in Fahrzeug-km, nach Ort" -> : Verkehrsmenge in Fahrzeug-km, nach Ort | H53: Umrechnungshilfe pkm (tkm) > Fzkm:
B54: ="Straßenverkehr "&B$7 -> Straßenverkehr | C54: Ort unbekannt (Ø alle Strecken) | D54: Innerorts | E54: Außerorts | F54: Autobahn | I54: Auslastung Personen (Pers./Fz = pkm/Fzkm) | J54: Auslastung Güter (t/Fz = tkm/Fzkm)
B55: PKW, Diesel | H55: PKW, Diesel | I55: 1.47
B56: PKW, Benzin | H56: PKW, Benzin | I56: 1.47
B57: Leichte Nutzfahrzeuge, Diesel | H57: Leichte Nutzfahrzeuge, Diesel | J57: 0.8
B58: Leichte Nutzfahrzeuge, Benzin | H58: Leichte Nutzfahrzeuge, Benzin | J58: 0.8
B59: Schwere Nutzfahrzeuge, Diesel | H59: Schwere Nutzfahrzeuge, Diesel | J59: 10.52
B60: Bus, Diesel | H60: Bus, Diesel | I60: 17.1
B61: Krafträder, Benzin 4-Takt | H61: Krafträder, Benzin 4-Takt | I61: 1.11
B62: Krafträder, Benzin 2-Takt | H62: Krafträder, Benzin 2-Takt | I62: 1.11
A64: ="Straßenverkehr "&C$7 -> Straßenverkehr | B64: i. Verkehr: Fahrzeug-km nach Fahrzeugkategorie | C64: =C$7&": Verkehrsmenge in Fahrzeug-km, nach Ort" -> : Verkehrsmenge in Fahrzeug-km, nach Ort
B65: ="Straßenverkehr "&C$7 -> Straßenverkehr | C65: Ort unbekannt (Ø alle Strecken) | D65: Innerorts | E65: Außerorts | F65: Autobahn
B66: PKW, Diesel
B67: PKW, Benzin
B68: Leichte Nutzfahrzeuge, Diesel
B69: Leichte Nutzfahrzeuge, Benzin
B70: Schwere Nutzfahrzeuge, Diesel
B71: Bus, Diesel
B72: Krafträder, Benzin 4-Takt | N72: =IF(($N$71>0), TRUE, FALSE) -> FALSE
B73: Krafträder, Benzin 2-Takt | N73: =IF(($N$72),IF(('Identifikation Wirkunskateg.'!$K$24),TRUE,FALSE),TRUE) -> TRUE
A75: =B76 -> Straßenverkehr | B75: i. Verkehr: Fahrzeug-km nach Fahrzeugkategorie | C75: =D$7&": Verkehrsmenge in Fahrzeug-km, nach Ort" -> : Verkehrsmenge in Fahrzeug-km, nach Ort
B76: ="Straßenverkehr "&D$7 -> Straßenverkehr | C76: Ort unbekannt (Ø alle Strecken) | D76: Innerorts | E76: Außerorts | F76: Autobahn
B77: PKW, Diesel
B78: PKW, Benzin
B79: Leichte Nutzfahrzeuge, Diesel
B80: Leichte Nutzfahrzeuge, Benzin
B81: Schwere Nutzfahrzeuge, Diesel
B82: Bus, Diesel
B83: Krafträder, Benzin 4-Takt
B84: Krafträder, Benzin 2-Takt
A86: ="Schienenverkehr "&B$7 -> Schienenverkehr | B86: ii. Verkehr: Fahrzeug-km (Zug-km) | C86: =B$7&": Verkehrsmenge in Zug-km, nach Ort" -> : Verkehrsmenge in Zug-km, nach Ort | H86: Umrechnungshilfe pkm (tkm) > Fzkm:
B87: ="Schienenverkehr "&B$7 -> Schienenverkehr | C87: Ort unbekannt (Ø alle Strecken) | D87: Innerorts | E87: Außerorts | I87: Auslastung Personen (Pers./Fz = pkm/Fzkm) | J87: Auslastung Güter (t/Fz = tkm/Fzkm)
B88: Personenzug, Diesel | H88: Personenzug, Diesel | I88: 69.6
B89: Personenzug, elektrisch | H89: Personenzug, elektrisch | I89: 108
B90: Güterzug, Diesel | H90: Güterzug, Diesel | J90: 821.5
B91: Güterzug, elektrisch | H91: Güterzug, elektrisch | J91: 597
A93: ="Schienenverkehr "&C$7 -> Schienenverkehr | B93: ii. Verkehr: Fahrzeug-km (Zug-km) nach Fahrzeugkategorie | C93: =C$7&": Verkehrsmenge in Zug-km, nach Ort" -> : Verkehrsmenge in Zug-km, nach Ort
B94: ="Schienenverkehr "&C$7 -> Schienenverkehr | C94: Ort unbekannt (Ø alle Strecken) | D94: Innerorts | E94: Außerorts
B95: Personenzug, Diesel
B96: Personenzug, elektrisch
B97: Güterzug, Diesel
B98: Güterzug, elektrisch
A100: ="Schienenverkehr "&D$7 -> Schienenverkehr | B100: ii. Verkehr: Fahrzeug-km (Zug-km) nach Fahrzeugkategorie | C100: =D$7&": Verkehrsmenge in Zug-km, nach Ort" -> : Verkehrsmenge in Zug-km, nach Ort
B101: ="Schienenverkehr "&D$7 -> Schienenverkehr | C101: Ort unbekannt (Ø alle Strecken) | D101: Innerorts | E101: Außerorts
B102: Personenzug, Diesel
B103: Personenzug, elektrisch
B104: Güterzug, Diesel
B105: Güterzug, elektrisch
H107: Umrechnungshilfe pkm (tkm) > Fzkm:
B108: iii. Verkehr: Fahrzeug-km (Schiffs-km) Schiffsverkehr | C108: =IF(B$7="","",B$7&" (in Schiffs-km)") ->  | D108: =IF(C$7="","",C$7&" (in Schiffs-km)") ->  | E108: =IF(D$7="","",D$7&" (in Schiffs-km)") ->  | I108: Auslastung Personen (Pers./Fz = pkm/Fzkm) | J108: Auslastung Güter (t/Fz = tkm/Fzkm)
B109: Binnengüterschiff | H109: Binnengüterschiff | J109: 1023
H111: Umrechnungshilfe pkm (tkm) > Fzkm:
B112: iv. Verkehr: Fahrzeug-km (Flugzeug-km) Luftverkehr | C112: =IF(B$7="","",B$7&" (in Flugzeug-km)") ->  | D112: =IF(C$7="","",C$7&" (in Flugzeug-km)") ->  | E112: =IF(D$7="","",D$7&" (in Flugzeug-km)") ->  | I112: Auslastung Personen (Pers./Fz = pkm/Fzkm)
B113: Luftverkehr, Europa-/Kontinentalflug | H113: Luftverkehr, Europa-/Kontinentalflug | I113: 83.9
C116: =IF(B$7="","",B$7) ->  | D116: =IF(C$7="","",C$7) ->  | E116: =IF(D$7="","",D$7) -> 
B117: Betrachtungszeitpunkt: Auswahlmenü (für Verbrauchsminderung Krafstoff, Energie) | F117: Standardwert: 2015
B118: Verbrauchsminderung (Kraftstoff, Energie) in % gegenüber 2015 | C118: =IF(C117="",0,VLOOKUP(C117,'Hilfsblatt Kostensätze Umwelt'!$BT$44:$BU$47,2,FALSE)) -> 0 | D118: =IF(D117="",0,VLOOKUP(D117,'Hilfsblatt Kostensätze Umwelt'!$BT$44:$BU$47,2,FALSE)) -> 0 | E118: =IF(E117="",0,VLOOKUP(E117,'Hilfsblatt Kostensätze Umwelt'!$BT$44:$BU$47,2,FALSE)) -> 0 | F118: vgl. mit Standardwert 2015
A121: 2b. Energie | B121: =IF('Identifikation Wirkunskateg.'!$J$33>0,"Ja","―") -> ― | C121: =IF(B121="Ja","Relevant", "Nicht relevant") -> Nicht relevant
B123: i. Energie: Strommenge in kWhel nach Art der Stromerzeugung (Energieträger, Strommix) | C123: =IF(B$7="","",B$7&" (in kWh)") ->  | D123: =IF(C$7="","",C$7&" (in kWh)") ->  | E123: =IF(D$7="","",D$7&" (in kWh)") -> 
B124: Strommix Deutschland (ohne Kernkraft) | H124: Umrechnungshilfe von MJ, GJ, TJ, PJ in kWh:
B125: Strommix Deutschland (mit Kernkraft) | H125: 1 MJ | I125: 0.2777777778 | J125: kWh
B126: Strommix Bahn DB | H126: 1 GJ | I126: 277.7777778 | J126: kWh
B127: Strommix Europa (ohne Kernkraft) | H127: 1 TJ | I127: 277777.7778 | J127: kWh
B128: Strommix Europa (mit Kernkraft) | H128: 1 PJ | I128: 277777777.8 | J128: kWh
B129: Braunkohle
B130: Steinkohle
B131: Erdgas
B132: Öl
B133: Kernenergie
B134: Wasserkraft
B135: Windenergie
B136: Photovoltaik
B137: Geothermie
B138: Feste Biomasse (v.a. Holz)
B139: Flüssige Biomasse
B140: Biogas
B141: Klär- / Deponiegas
B143: ii. Energie: Wärmemenge in kWhEndenergie nach Art der Wärmeerzeugung (Energieträger, Wärmemix) | C143: =IF(B$7="","",B$7&" (in kWh)") ->  | D143: =IF(C$7="","",C$7&" (in kWh)") ->  | E143: =IF(D$7="","",D$7&" (in kWh)") -> 
B144: Wärmemix Haushalte (D)
B145: Wärmemix Industrie (D)
B147: Heizöl / Öl
B148: Erdgas
B149: Braunkohle, Steinkohle
B150: Fernwärme
B151: Holzpellets, feste Biomasse (Haushalte)
B152: Feste Biomasse / Holz (Industrie)
B153: Solarthermie
B154: Geothermie
B155: Biogas-Mix (v.a. BHKW)
B156: Flüssige Biomasse (diverse Nutzungen)
B157: Flüssige Biomasse (Industrie)
B159: iii. Brennstoffmenge in Tonnen nach Art des Brennstoffs | C159: =IF(B$7="","",B$7&" (in Tonnen)") ->  | D159: =IF(C$7="","",C$7&" (in Tonnen)") ->  | E159: =IF(D$7="","",D$7&" (in Tonnen)") -> 
B160: Braunkohle
B161: Steinkohle
B162: Erdgas
B163: Öl, Heizöl
B164: Holz (Stück)
B165: Holz (Pellets)
B167: iv. Kraftstoffmenge in Tonnen nach Art des Kraftstoffs | C167: =IF(B$7="","",B$7&" (in Tonnen)") ->  | D167: =IF(C$7="","",C$7&" (in Tonnen)") ->  | E167: =IF(D$7="","",D$7&" (in Tonnen)") -> 
B168: Mittl. Kraftstoffmix PW (Benzin, Diesel)
B169: Benzin
B170: Diesel
B171: Erdgas
A173: 2c. Landwirtschaft | B173: =IF(('Identifikation Wirkunskateg.'!$J$43+'Identifikation Wirkunskateg.'!$J$45+'Identifikation Wirkunskateg.'!$J$56+'Identifikation Wirkunskateg.'!$J$71+'Identifikation Wirkunskateg.'!$J$72+'Identifikation Wirkunskateg.'!$J$73+'Identifikation Wirkunskateg.'!$J$76)>0,"Ja","―") -> ― | C173: =IF(B173="Ja","Relevant", "Nicht relevant") -> Nicht relevant
B175: a. Landnutzungsänderung, Nutzungsintenvisierung
B176: Größe der Fläche, deren Bewirtschaftungs-, Nutzungsform verändert wird. Zudem Angabe der Nutzung vorher und nachher.
C177: =IF(B$7="","",B$7&" (in km2)") ->  | D177: =IF(C$7="","",C$7&" (in km2)") ->  | E177: =IF(D$7="","",D$7&" (in km2)") -> 
B178: Größe der anders genutzten Fläche (km2) | F178: in km2
B179: bisherige Nutzungsform (Auswahl) | C179: Durchschnitt Deutschland (alle Biotoptypen) | F179: Nutzungsart, Ökosystemtyp
B180: neue Nutzungsform (Auswahl) | C180: Ackerland | F180: Nutzungsart, Ökosystemtyp
B182: b. Nährstoffeintrag
B183: Ausgestoßene oder eingesparte Menge an Stickstoff (N), in Tonnen | C183: =IF(B$7="","",B$7&" (in Tonnen)") ->  | D183: =IF(C$7="","",C$7&" (in Tonnen)") ->  | E183: =IF(D$7="","",D$7&" (in Tonnen)") -> 
B184: Stickstoff-Verbindungen | F184: in t Stickstoff (N)
A188: Übersicht der relevanten Wirkungskategorien (Ergebnis, siehe vorheriges Arbeitsblatt)
A190: Umweltwirkungen | B190: Relevant
A191: 3. Luftschadstoffemissionen | B191: =IF('Identifikation Wirkunskateg.'!$J$52>0,"Ja",(IF('Identifikation Wirkunskateg.'!$J$52>0,"Ja","―"))) -> ―
A192: 4. Treibhausgasemissionen | B192: =(IF('Identifikation Wirkunskateg.'!$J$57>0,"Ja","―")) -> ―
A193: 5. Lärmemissionen | B193: =IF('Identifikation Wirkunskateg.'!$J$66>0,"Ja","―") -> ―
A194: 6. Beeinträchtigung von Ökosystemen | B194: =IF('Identifikation Wirkunskateg.'!$J$67>0,"Ja","―") -> ―
A195: 7. Emission toxischer Stoffe | B195: =IF('Identifikation Wirkunskateg.'!$J$87>0,"Ja","―") -> ―
A196: 8. Indirekte Effekte durch vor- und nachgelagerte Prozesse | B196: =IF('Identifikation Wirkunskateg.'!$J$97>0,"Ja","―") -> ―
A197: 9. Unfälle | B197: =IF('Identifikation Wirkunskateg.'!$J$104>0,"Ja","―") -> ―
A200: 3. Luftschadstoffemissionen | B200: =$B$191 -> ― | C200: =IF(B200="Ja","Relevant", "Nicht relevant") -> Nicht relevant
A203: =IF(B$7="","",B$7) ->  | B203: ="Menge Luftschadstoffemissionen "&B$7&" nach Art/Quelle der Emissionen" -> Menge Luftschadstoffemissionen nach Art/Quelle der Emissionen | C203: =B$7&" in Tonnen" -> in Tonnen
B204: Quelle: | C204: Quelle unbekannt | D204: Verkehr | F204: Kraftwerk/Energie | G204: Industrie | H204: Kleinfeuerung
B205: Schadstoffmenge in Tonnen | D205: Innerorts (Durchschnitt) | E205: Außerorts | H205: Innerorts | I205: Außerorts
B206: Partikel (Feinstaub) PM10
B207: Partikel (Feinstaub) fein PM2.5
B208: Stickoxide NOx
B209: Schwefeldioxid SO2
B210: Flüchtige Kohlenwasserstoffe NMVOC
B211: Ammoniak NH3
A213: =IF(C$7="","",C$7) ->  | B213: ="Menge Luftschadstoffemissionen "&C$7&" nach Art/Quelle der Emissionen" -> Menge Luftschadstoffemissionen nach Art/Quelle der Emissionen | C213: =C$7&" in Tonnen" -> in Tonnen
B214: Quelle: | C214: Quelle unbekannt | D214: Verkehr | F214: Kraftwerk/Energie | G214: Industrie | H214: Kleinfeuerung
B215: Schadstoffmenge in Tonnen | D215: Innerorts (Durchschnitt) | E215: Außerorts | H215: Innerorts | I215: Außerorts
B216: Partikel (Feinstaub) PM10
B217: Partikel (Feinstaub) fein PM2.5
B218: Stickoxide NOx
B219: Schwefeldioxid SO2
B220: Flüchtige Kohlenwasserstoffe NMVOC
B221: Ammoniak NH3
A223: =IF(D$7="","",D$7) ->  | B223: ="Menge Luftschadstoffemissionen "&D$7&" nach Art/Quelle der Emissionen" -> Menge Luftschadstoffemissionen nach Art/Quelle der Emissionen | C223: =D$7&" in Tonnen" -> in Tonnen
B224: Quelle: | C224: Quelle unbekannt | D224: Verkehr | F224: Kraftwerk/Energie | G224: Industrie | H224: Kleinfeuerung
B225: Schadstoffmenge in Tonnen | D225: Innerorts (Durchschnitt) | E225: Außerorts | H225: Innerorts | I225: Außerorts
B226: Partikel (Feinstaub) PM10
B227: Partikel (Feinstaub) fein PM2.5
B228: Stickoxide NOx
B229: Schwefeldioxid SO2
B230: Flüchtige Kohlenwasserstoffe NMVOC
B231: Ammoniak NH3
A234: 4. Treibhausgasemissionen | B234: =$B$192 -> ― | C234: =IF(B234="Ja","Relevant", "Nicht relevant") -> Nicht relevant
B237: Menge Treibhausgasemissionen, in t | C237: =IF(B$7="","",B$7&" (in Tonnen)") ->  | D237: =IF(C$7="","",C$7&" (in Tonnen)") ->  | E237: =IF(D$7="","",D$7&" (in Tonnen)") -> 
B238: Kohlendioxid (CO2)
B239: Methan (CH4)
B240: Lachgas (N2O)
B241: Treibhausgase total (in CO2-Äquivalent)
A244: 5. Lärmemissionen | B244: =$B$193 -> ― | C244: =IF(B244="Ja","Relevant", "Nicht relevant") -> Nicht relevant
A248: =IF(B$7="","",B$7) ->  | B248: ="Anzahl von Lärm belastete Personen je Lärmklasse (Dezibel-Klasse) "&B$7 -> Anzahl von Lärm belastete Personen je Lärmklasse (Dezibel-Klasse) | C248: Quelle: Verkehr | F248: Quelle: unbekannt
B249: Lärmbelastung (Lden (dB(A)) | C249: Strassenverkehr | D249: Schienenverkehr | E249: Luftverkehr
B250: 45 dB
B251: 50 dB
... 91 more rows

Sheet Kompensation_Deckelung
A2: Schritt: Kompensation und Deckelung | M2: FALSE
A5: Kompensation und Deckelung
A7: Kompensation und Deckelung
C8: =IF(Eingabevariablen!B$7="","",Eingabevariablen!B$7) ->  | D8: =IF(Eingabevariablen!C$7="","",Eingabevariablen!C$7) ->  | E8: =IF(Eingabevariablen!D$7="","",Eingabevariablen!D$7) ->  | F8: Einheit
A9: Summe Kompensation | C9: =C20 -> 0 | D9: =D20 -> 0 | E9: =E20 -> 0 | F9: 1.000 € pro Jahr
A10: Summe Deckelung (Wirtschaftliche Wirkung) | C10: =C49 -> 0 | D10: =D49 -> 0 | E10: 0 | F10: 1.000 € pro Jahr
A11: Summe Deckelung (Umweltwirkung & Unfälle) | C11: =C50 -> 0 | D11: 0 | E11: 0 | F11: 1.000 € pro Jahr
A14: Kompensation
A16: Kompensation: Direkte Umsatzgewinne- und Verluste der Wirtschaft
C17: =IF(Eingabevariablen!B$7="","",Eingabevariablen!B$7) ->  | D17: =IF(Eingabevariablen!C$7="","",Eingabevariablen!C$7) ->  | E17: =IF(Eingabevariablen!D$7="","",Eingabevariablen!D$7) ->  | F17: Einheit
A18: Durch Produktionskostenveränderung | C18: =C30 -> 0 | D18: =D30 -> 0 | E18: =E30 -> 0 | F18: 1.000 € pro Jahr
A19: Durch Nachfrageverlagerung | C19: =C40 -> 0 | D19: =D40 -> 0 | E19: =E40 -> 0 | F19: 1.000 € pro Jahr
A20: Summe Kompensation | C20: =SUM(C18:C19) -> 0 | D20: =SUM(D18:D19) -> 0 | E20: =SUM(E18:E19) -> 0 | F20: 1.000 € pro Jahr
A23: Durch Produktionskostenveränderung: Umsatzgewinne- und Verluste der Wirtschaft nach Branche
A24: Wirkungen je Einzelbranche (Name der Branche) | C24: =IF(Eingabevariablen!B$7="","",Eingabevariablen!B$7) ->  | D24: =IF(Eingabevariablen!C$7="","",Eingabevariablen!C$7) ->  | E24: =IF(Eingabevariablen!D$7="","",Eingabevariablen!D$7) ->  | F24: Einheit
A25: =IF(Eingabevariablen!$B$23=0,"-",VLOOKUP(Eingabevariablen!$B$23,'Hilfsblatt Ber. Wirtsch Wirk 4'!$A$23:$B$107,2,FALSE)) -> - | C25: =IFERROR((ROUND('Hilfsblatt Ber. Wirtsch Wirk 1'!D6,-3)/1000),"") -> 0 | D25: =IFERROR((ROUND('Hilfsblatt Ber. Wirtsch Wirk 1'!D106,-3)/1000),"") -> 0 | E25: =IFERROR((ROUND('Hilfsblatt Ber. Wirtsch Wirk 1'!D206,-3)/1000),"") -> 0 | F25: 1.000 € pro Jahr
A26: =IF(Eingabevariablen!$B$24=0,"-",VLOOKUP(Eingabevariablen!$B$24,'Hilfsblatt Ber. Wirtsch Wirk 4'!$A$23:$B$107,2,FALSE)) -> - | C26: =IFERROR((ROUND('Hilfsblatt Ber. Wirtsch Wirk 1'!E6,-3)/1000),"") -> 0 | D26: =IFERROR((ROUND('Hilfsblatt Ber. Wirtsch Wirk 1'!E106,-3)/1000),"") -> 0 | E26: =IFERROR((ROUND('Hilfsblatt Ber. Wirtsch Wirk 1'!E206,-3)/1000),"") -> 0 | F26: 1.000 € pro Jahr | M26: =IF((ABS(C26)+ABS(C27)+ABS(C28)+ABS(D26)+ABS(D27)+ABS(D28)+ABS(E26)+ABS(E27)+ABS(E28))>0, TRUE, FALSE) -> FALSE
A27: =IF(Eingabevariablen!$B$25=0,"-",VLOOKUP(Eingabevariablen!$B$25,'Hilfsblatt Ber. Wirtsch Wirk 4'!$A$23:$B$107,2,FALSE)) -> - | C27: =IFERROR((ROUND('Hilfsblatt Ber. Wirtsch Wirk 1'!F6,-3)/1000),"") -> 0 | D27: =IFERROR((ROUND('Hilfsblatt Ber. Wirtsch Wirk 1'!F106,-3)/1000),"") -> 0 | E27: =IFERROR((ROUND('Hilfsblatt Ber. Wirtsch Wirk 1'!F206,-3)/1000),"") -> 0 | F27: 1.000 € pro Jahr
A28: =IF(Eingabevariablen!$B$26=0,"-",VLOOKUP(Eingabevariablen!$B$26,'Hilfsblatt Ber. Wirtsch Wirk 4'!$A$23:$B$107,2,FALSE)) -> - | C28: =IFERROR((ROUND('Hilfsblatt Ber. Wirtsch Wirk 1'!G6,-3)/1000),"") -> 0 | D28: =IFERROR((ROUND('Hilfsblatt Ber. Wirtsch Wirk 1'!G106,-3)/1000),"") -> 0 | E28: =IFERROR((ROUND('Hilfsblatt Ber. Wirtsch Wirk 1'!G206,-3)/1000),"") -> 0 | F28: 1.000 € pro Jahr
A29: =IF(Eingabevariablen!$B$27=0,"-",VLOOKUP(Eingabevariablen!$B$27,'Hilfsblatt Ber. Wirtsch Wirk 4'!$A$23:$B$107,2,FALSE)) -> - | C29: =IFERROR((ROUND('Hilfsblatt Ber. Wirtsch Wirk 1'!H6,-3)/1000),"") -> 0 | D29: =IFERROR((ROUND('Hilfsblatt Ber. Wirtsch Wirk 1'!H106,-3)/1000),"") -> 0 | E29: =IFERROR((ROUND('Hilfsblatt Ber. Wirtsch Wirk 1'!H206,-3)/1000),"") -> 0 | F29: 1.000 € pro Jahr
A30: Summe (Branche 1 bis 5) | C30: =SUM(C25:C29) -> 0 | D30: =SUM(D25:D29) -> 0 | E30: =SUM(E25:E29) -> 0 | F30: 1.000 € pro Jahr
A33: Durch Nachfrageverlagerung: Umsatzgewinne- und Verluste der Wirtschaft nach Branche
A34: Wirkungen je Einzelbranche (Name der Branche) | C34: =IF(Eingabevariablen!B$7="","",Eingabevariablen!B$7) ->  | D34: =IF(Eingabevariablen!C$7="","",Eingabevariablen!C$7) ->  | E34: =IF(Eingabevariablen!D$7="","",Eingabevariablen!D$7) ->  | F34: Einheit
A35: =IF(Eingabevariablen!$B$31=0,"-",VLOOKUP(Eingabevariablen!$B$31,'Hilfsblatt Ber. Wirtsch Wirk 4'!$A$23:$B$107,2,FALSE)) -> - | C35: =IFERROR((ROUND('Hilfsblatt Ber. Wirtsch Wirk 1'!I6,-3)/1000),"") -> 0 | D35: =IFERROR((ROUND('Hilfsblatt Ber. Wirtsch Wirk 1'!I106,-3)/1000),"") -> 0 | E35: =IFERROR((ROUND('Hilfsblatt Ber. Wirtsch Wirk 1'!I206,-3)/1000),"") -> 0 | F35: 1.000 € pro Jahr | M35: =IF((ABS(C35)+ABS(C36)+ABS(C37)+ABS(D35)+ABS(D36)+ABS(D37)+ABS(E35)+ABS(E36)+ABS(E37))>0, TRUE, FALSE) -> FALSE
A36: =IF(Eingabevariablen!$B$32=0,"-",VLOOKUP(Eingabevariablen!$B$32,'Hilfsblatt Ber. Wirtsch Wirk 4'!$A$23:$B$107,2,FALSE)) -> - | C36: =IFERROR((ROUND('Hilfsblatt Ber. Wirtsch Wirk 1'!J6,-3)/1000),"") -> 0 | D36: =IFERROR((ROUND('Hilfsblatt Ber. Wirtsch Wirk 1'!J106,-3)/1000),"") -> 0 | E36: =IFERROR((ROUND('Hilfsblatt Ber. Wirtsch Wirk 1'!J206,-3)/1000),"") -> 0 | F36: 1.000 € pro Jahr
A37: =IF(Eingabevariablen!$B$33=0,"-",VLOOKUP(Eingabevariablen!$B$33,'Hilfsblatt Ber. Wirtsch Wirk 4'!$A$23:$B$107,2,FALSE)) -> - | C37: =IFERROR((ROUND('Hilfsblatt Ber. Wirtsch Wirk 1'!K6,-3)/1000),"") -> 0 | D37: =IFERROR((ROUND('Hilfsblatt Ber. Wirtsch Wirk 1'!K106,-3)/1000),"") -> 0 | E37: =IFERROR((ROUND('Hilfsblatt Ber. Wirtsch Wirk 1'!K206,-3)/1000),"") -> 0 | F37: 1.000 € pro Jahr
A38: =IF(Eingabevariablen!$B$34=0,"-",VLOOKUP(Eingabevariablen!$B$34,'Hilfsblatt Ber. Wirtsch Wirk 4'!$A$23:$B$107,2,FALSE)) -> - | C38: =IFERROR((ROUND('Hilfsblatt Ber. Wirtsch Wirk 1'!L6,-3)/1000),"") -> 0 | D38: =IFERROR((ROUND('Hilfsblatt Ber. Wirtsch Wirk 1'!L106,-3)/1000),"") -> 0 | E38: =IFERROR((ROUND('Hilfsblatt Ber. Wirtsch Wirk 1'!L206,-3)/1000),"") -> 0 | F38: 1.000 € pro Jahr
A39: =IF(Eingabevariablen!$B$35=0,"-",VLOOKUP(Eingabevariablen!$B$35,'Hilfsblatt Ber. Wirtsch Wirk 4'!$A$23:$B$107,2,FALSE)) -> - | C39: =IFERROR((ROUND('Hilfsblatt Ber. Wirtsch Wirk 1'!M6,-3)/1000),"") -> 0 | D39: =IFERROR((ROUND('Hilfsblatt Ber. Wirtsch Wirk 1'!M106,-3)/1000),"") -> 0 | E39: =IFERROR((ROUND('Hilfsblatt Ber. Wirtsch Wirk 1'!M206,-3)/1000),"") -> 0 | F39: 1.000 € pro Jahr
A40: Summe (Branche 6 bis 10) | C40: =SUM(C35:C39) -> 0 | D40: =SUM(D35:D39) -> 0 | E40: =SUM(E35:E39) -> 0 | F40: 1.000 € pro Jahr
A45: Deckelung
A47: Deckelung (Wertschöpfung plus Umweltwirkung)
A48: Deckelung | C48: =IF(Eingabevariablen!B$7="","",Eingabevariablen!B$7) ->  | D48: =IF(Eingabevariablen!C$7="","",Eingabevariablen!C$7) ->  | E48: =IF(Eingabevariablen!D$7="","",Eingabevariablen!D$7) ->  | F48: Einheit
A49: Deckelung (Wertschöpfung) | C49: =ROUND('Hilfsblatt Ber. Wirtsch Wirk 1'!S9/1000000,0)*1000 -> 0 | D49: =ROUND('Hilfsblatt Ber. Wirtsch Wirk 1'!S109/1000000,0)*1000 -> 0 | E49: =ROUND('Hilfsblatt Ber. Wirtsch Wirk 1'!S209/1000000,0)*1000 -> 0 | F49: ="1.000 € pro "&Eingabevariablen!$J$49 -> 1.000 € pro Jahr
A50: Deckelung (Umweltwirkung) | C50: =C72 -> 0 | D50: =D72 -> 0 | E50: 0 | F50: ="1.000 € pro "&Eingabevariablen!$J$49 -> 1.000 € pro Jahr
A51: Summe Deckelung | C51: =C49+C50 -> 0 | D51: =D49+D50 -> 0 | E51: =E49+E50 -> 0 | F51: ="1.000 € pro "&Eingabevariablen!$J$49 -> 1.000 € pro Jahr
A54: Branchen mit der größten absoluten Veränderung - Wirtschaftliche Wirkung (Fünf größten Veränderungen im ersten Zeitraum)
A55: Wirkungen je Einzelbranche (Name der Branche) | C55: =IF(Eingabevariablen!B$7="","",Eingabevariablen!B$7) ->  | D55: =IF(Eingabevariablen!C$7="","",Eingabevariablen!C$7) ->  | E55: =IF(Eingabevariablen!D$7="","",Eingabevariablen!D$7) ->  | F55: Einheit
A56: =INDEX('Hilfsblatt Ber. Wirtsch Wirk 1'!$C$10:$C$80,MATCH(LARGE('Hilfsblatt Ber. Wirtsch Wirk 1'!$Y$10:$Y$81,1),'Hilfsblatt Ber. Wirtsch Wirk 1'!$Y$10:$Y$80,0)) -> Erzeugnisse der Landwirtschaft, Jagd und Dienstleistungen | C56: =VLOOKUP(A56,'Hilfsblatt Ber. Wirtsch Wirk 1'!$C$10:$S$81,17,FALSE)/1000 -> 0 | D56: =VLOOKUP(A56,'Hilfsblatt Ber. Wirtsch Wirk 1'!$C$110:$S$181,17,FALSE)/1000 -> 0 | E56: =VLOOKUP(A56,'Hilfsblatt Ber. Wirtsch Wirk 1'!$C$210:$S$281,17,FALSE)/1000 -> 0 | F56: 1.000 € pro Jahr
A57: =INDEX('Hilfsblatt Ber. Wirtsch Wirk 1'!$C$10:$C$80,MATCH(LARGE('Hilfsblatt Ber. Wirtsch Wirk 1'!$Y$10:$Y$81,2),'Hilfsblatt Ber. Wirtsch Wirk 1'!$Y$10:$Y$80,0)) -> Erzeugnisse der Landwirtschaft, Jagd und Dienstleistungen | C57: =VLOOKUP(A57,'Hilfsblatt Ber. Wirtsch Wirk 1'!$C$10:$S$81,17,FALSE)/1000 -> 0 | D57: =VLOOKUP(A57,'Hilfsblatt Ber. Wirtsch Wirk 1'!$C$110:$S$181,17,FALSE)/1000 -> 0 | E57: =VLOOKUP(A57,'Hilfsblatt Ber. Wirtsch Wirk 1'!$C$210:$S$281,17,FALSE)/1000 -> 0 | F57: 1.000 € pro Jahr
A58: =INDEX('Hilfsblatt Ber. Wirtsch Wirk 1'!$C$10:$C$80,MATCH(LARGE('Hilfsblatt Ber. Wirtsch Wirk 1'!$Y$10:$Y$81,3),'Hilfsblatt Ber. Wirtsch Wirk 1'!$Y$10:$Y$80,0)) -> Erzeugnisse der Landwirtschaft, Jagd und Dienstleistungen | C58: =VLOOKUP(A58,'Hilfsblatt Ber. Wirtsch Wirk 1'!$C$10:$S$81,17,FALSE)/1000 -> 0 | D58: =VLOOKUP(A58,'Hilfsblatt Ber. Wirtsch Wirk 1'!$C$110:$S$181,17,FALSE)/1000 -> 0 | E58: =VLOOKUP(A58,'Hilfsblatt Ber. Wirtsch Wirk 1'!$C$210:$S$281,17,FALSE)/1000 -> 0 | F58: 1.000 € pro Jahr
A59: =INDEX('Hilfsblatt Ber. Wirtsch Wirk 1'!$C$10:$C$80,MATCH(LARGE('Hilfsblatt Ber. Wirtsch Wirk 1'!$Y$10:$Y$81,4),'Hilfsblatt Ber. Wirtsch Wirk 1'!$Y$10:$Y$80,0)) -> Erzeugnisse der Landwirtschaft, Jagd und Dienstleistungen | C59: =VLOOKUP(A59,'Hilfsblatt Ber. Wirtsch Wirk 1'!$C$10:$S$81,17,FALSE)/1000 -> 0 | D59: =VLOOKUP(A59,'Hilfsblatt Ber. Wirtsch Wirk 1'!$C$110:$S$181,17,FALSE)/1000 -> 0 | E59: =VLOOKUP(A59,'Hilfsblatt Ber. Wirtsch Wirk 1'!$C$210:$S$281,17,FALSE)/1000 -> 0 | F59: 1.000 € pro Jahr
A60: =INDEX('Hilfsblatt Ber. Wirtsch Wirk 1'!$C$10:$C$80,MATCH(LARGE('Hilfsblatt Ber. Wirtsch Wirk 1'!$Y$10:$Y$81,5),'Hilfsblatt Ber. Wirtsch Wirk 1'!$Y$10:$Y$80,0)) -> Erzeugnisse der Landwirtschaft, Jagd und Dienstleistungen | C60: =VLOOKUP(A60,'Hilfsblatt Ber. Wirtsch Wirk 1'!$C$10:$S$81,17,FALSE)/1000 -> 0 | D60: =VLOOKUP(A60,'Hilfsblatt Ber. Wirtsch Wirk 1'!$C$110:$S$181,17,FALSE)/1000 -> 0 | E60: =VLOOKUP(A60,'Hilfsblatt Ber. Wirtsch Wirk 1'!$C$210:$S$281,17,FALSE)/1000 -> 0 | F60: 1.000 € pro Jahr
A63: Ergebnis Nutzen/Kosten aus Umweltwirkungen für die Wirtschaft (inkl. Unfällen)
A64: Nutzen (+) / Kosten (-) aus: | C64: =IF(Eingabevariablen!B$7="","",Eingabevariablen!B$7) ->  | D64: =IF(Eingabevariablen!C$7="","",Eingabevariablen!C$7) ->  | E64: =IF(Eingabevariablen!D$7="","",Eingabevariablen!D$7) ->  | F64: Einheit
A65: 3 Luftschadstoffemissionen | C65: ='Hilfsblatt Ber. Umweltkosten 1'!I371 -> 0 | D65: ='Hilfsblatt Ber. Umweltkosten 2'!I371 -> 0 | E65: ='Hilfsblatt Ber. Umweltkosten 3'!I371 -> 0 | F65: ="1.000 € pro "&Eingabevariablen!$J$49 -> 1.000 € pro Jahr
A66: 4 Treibhausgasemissionen | C66: ='Hilfsblatt Ber. Umweltkosten 1'!I372 -> 0 | D66: ='Hilfsblatt Ber. Umweltkosten 2'!I372 -> 0 | E66: ='Hilfsblatt Ber. Umweltkosten 3'!I372 -> 0 | F66: ="1.000 € pro "&Eingabevariablen!$J$49 -> 1.000 € pro Jahr
A67: 5 Lärmemissionen | C67: ='Hilfsblatt Ber. Umweltkosten 1'!I373 -> 0 | D67: ='Hilfsblatt Ber. Umweltkosten 2'!I373 -> 0 | E67: ='Hilfsblatt Ber. Umweltkosten 3'!I373 -> 0 | F67: ="1.000 € pro "&Eingabevariablen!$J$49 -> 1.000 € pro Jahr
A68: 6 Beeinträchtigung von Ökosystemen | C68: ='Hilfsblatt Ber. Umweltkosten 1'!I374 -> 0 | D68: ='Hilfsblatt Ber. Umweltkosten 2'!I374 -> 0 | E68: ='Hilfsblatt Ber. Umweltkosten 3'!I374 -> 0 | F68: ="1.000 € pro "&Eingabevariablen!$J$49 -> 1.000 € pro Jahr
A69: 7 Emission toxischer Stoffe | C69: ='Hilfsblatt Ber. Umweltkosten 1'!I375 -> 0 | D69: ='Hilfsblatt Ber. Umweltkosten 2'!I375 -> 0 | E69: ='Hilfsblatt Ber. Umweltkosten 3'!I375 -> 0 | F69: ="1.000 € pro "&Eingabevariablen!$J$49 -> 1.000 € pro Jahr
A70: 8 Indirekte Effekte durch vor- und nachgelagerte Prozesse | C70: ='Hilfsblatt Ber. Umweltkosten 1'!I376 -> 0 | D70: ='Hilfsblatt Ber. Umweltkosten 2'!I376 -> 0 | E70: ='Hilfsblatt Ber. Umweltkosten 3'!I376 -> 0 | F70: ="1.000 € pro "&Eingabevariablen!$J$49 -> 1.000 € pro Jahr
A71: 9 Unfälle | C71: ='Hilfsblatt Ber. Umweltkosten 1'!I378 -> 0 | D71: ='Hilfsblatt Ber. Umweltkosten 2'!I378 -> 0 | E71: ='Hilfsblatt Ber. Umweltkosten 3'!I378 -> 0 | F71: 1.000 € pro Jahr
A72: Gesamtnutzen (-kosten) Umwelt & Unfälle | C72: =SUM(C65:C71) -> 0 | D72: =SUM(D65:D71) -> 0 | E72: 0 | F72: 1.000 € pro Jahr
A73: Bemerkung: positives Vorzeichen = Nutzen = Reduktion von Kosten; negatives Vorzeichen = zusätzliche Kosten

Sheet Andere Kosten_Nutzen
A2: Schritt: Andere Kosten/Nutzen
A4: Zusätzliche Wirtschaftliche Wirkungen
B5: =IF(Eingabevariablen!B$7="","",Eingabevariablen!B$7) ->  | C5: =IF(Eingabevariablen!C$7="","",Eingabevariablen!C$7) ->  | D5: =IF(Eingabevariablen!D$7="","",Eingabevariablen!D$7) ->  | E5: Einheit
A6: Arbeitnehmerentgelte | B6: =ROUND('Hilfsblatt Ber. Wirtsch Wirk 1'!T$9/1000000,0)*1000 -> 0 | C6: =ROUND('Hilfsblatt Ber. Wirtsch Wirk 1'!T$109/1000000,0)*1000 -> 0 | D6: =ROUND('Hilfsblatt Ber. Wirtsch Wirk 1'!T$209/1000000,0)*1000 -> 0 | E6: ="1.000 € pro "&Eingabevariablen!$J$49 -> 1.000 € pro Jahr
A7: Beschäftigung | B7: =ROUND('Hilfsblatt Ber. Wirtsch Wirk 1'!U$9/1000,0)*1000 -> 0 | C7: =ROUND('Hilfsblatt Ber. Wirtsch Wirk 1'!U$109/1000,0)*1000 -> 0 | D7: =ROUND('Hilfsblatt Ber. Wirtsch Wirk 1'!U$209/1000,0)*1000 -> 0 | E7: ="Anzahl Erwerbstätige pro "&Eingabevariablen!$J$49 -> Anzahl Erwerbstätige pro Jahr
A8: Sozialversicherungseinnahmen | B8: =ROUND('Hilfsblatt Ber. Wirtsch Wirk 1'!V$9/1000000,0)*1000 -> 0 | C8: =ROUND('Hilfsblatt Ber. Wirtsch Wirk 1'!V$109/1000000,0)*1000 -> 0 | D8: =ROUND('Hilfsblatt Ber. Wirtsch Wirk 1'!V$209/1000000,0)*1000 -> 0 | E8: ="1.000 € pro "&Eingabevariablen!$J$49 -> 1.000 € pro Jahr
A9: Produktsteuern | B9: =ROUND(('Hilfsblatt Ber. Wirtsch Wirk 1'!W$9+SUM('Hilfsblatt Ber. Wirtsch Wirk 1'!E7:Q7))/1000000,0)*1000 -> 0 | C9: =ROUND(('Hilfsblatt Ber. Wirtsch Wirk 1'!W$109+SUM('Hilfsblatt Ber. Wirtsch Wirk 1'!E107:Q107))/1000000,0)*1000 -> 0 | D9: =ROUND(('Hilfsblatt Ber. Wirtsch Wirk 1'!W$209+SUM('Hilfsblatt Ber. Wirtsch Wirk 1'!E207:Q207))/1000000,0)*1000 -> 0 | E9: ="1.000 € pro "&Eingabevariablen!$J$49 -> 1.000 € pro Jahr
A12: Nutzen/Kosten aus Umweltwirkungen für den Staat oder Private (inkl. Unfällen)
A13: Nutzen (+) / Kosten (-) aus: | B13: =IF(Eingabevariablen!B$7="","",Eingabevariablen!B$7) ->  | C13: =IF(Eingabevariablen!C$7="","",Eingabevariablen!C$7) ->  | D13: =IF(Eingabevariablen!D$7="","",Eingabevariablen!D$7) ->  | E13: Einheit
A14: 3 Luftschadstoffemissionen | B14: ='Hilfsblatt Ber. Umweltkosten 1'!J371 -> 0 | C14: ='Hilfsblatt Ber. Umweltkosten 2'!J371 -> 0 | D14: ='Hilfsblatt Ber. Umweltkosten 3'!J371 -> 0 | E14: ="1.000 € pro "&Eingabevariablen!$J$49 -> 1.000 € pro Jahr
A15: 4 Treibhausgasemissionen | B15: ='Hilfsblatt Ber. Umweltkosten 1'!J372 -> 0 | C15: ='Hilfsblatt Ber. Umweltkosten 2'!J372 -> 0 | D15: ='Hilfsblatt Ber. Umweltkosten 3'!J372 -> 0 | E15: ="1.000 € pro "&Eingabevariablen!$J$49 -> 1.000 € pro Jahr
A16: 5 Lärmemissionen | B16: ='Hilfsblatt Ber. Umweltkosten 1'!J373 -> 0 | C16: ='Hilfsblatt Ber. Umweltkosten 2'!J373 -> 0 | D16: ='Hilfsblatt Ber. Umweltkosten 3'!J373 -> 0 | E16: ="1.000 € pro "&Eingabevariablen!$J$49 -> 1.000 € pro Jahr
A17: 6 Beeinträchtigung von Ökosystemen | B17: ='Hilfsblatt Ber. Umweltkosten 1'!J374 -> 0 | C17: ='Hilfsblatt Ber. Umweltkosten 2'!J374 -> 0 | D17: ='Hilfsblatt Ber. Umweltkosten 3'!J374 -> 0 | E17: ="1.000 € pro "&Eingabevariablen!$J$49 -> 1.000 € pro Jahr
A18: 7 Emission toxischer Stoffe | B18: ='Hilfsblatt Ber. Umweltkosten 1'!J375 -> 0 | C18: ='Hilfsblatt Ber. Umweltkosten 2'!J375 -> 0 | D18: ='Hilfsblatt Ber. Umweltkosten 3'!J375 -> 0 | E18: ="1.000 € pro "&Eingabevariablen!$J$49 -> 1.000 € pro Jahr
A19: 8 Indirekte Effekte durch vor- und nachgelagerte Prozesse | B19: ='Hilfsblatt Ber. Umweltkosten 1'!J376 -> 0 | C19: ='Hilfsblatt Ber. Umweltkosten 2'!J376 -> 0 | D19: ='Hilfsblatt Ber. Umweltkosten 3'!J376 -> 0 | E19: ="1.000 € pro "&Eingabevariablen!$J$49 -> 1.000 € pro Jahr
A20: 9 Unfälle | B20: ='Hilfsblatt Ber. Umweltkosten 1'!J378 -> 0 | C20: ='Hilfsblatt Ber. Umweltkosten 2'!J378 -> 0 | D20: ='Hilfsblatt Ber. Umweltkosten 3'!J378 -> 0 | E20: ="1.000 € pro "&Eingabevariablen!$J$49 -> 1.000 € pro Jahr
A21: Gesamtnutzen (-kosten) Umwelt & Unfälle | B21: =SUM(B14:B20) -> 0 | C21: =SUM(C14:C20) -> 0 | D21: 0 | E21: 1.000 € pro Jahr
A22: Bemerkung: positives Vorzeichen = Nutzen = Reduktion von Kosten; negatives Vorzeichen = zusätzliche Kosten

Sheet Gesamtwirkung
A2: Schritt: Berücksichtigte Gesamtwirkung
A4: Berücksichtigte Gesamtwirkung | B4: =IF(Eingabevariablen!B$7="","",Eingabevariablen!B$7) ->  | C4: =IF(Eingabevariablen!C$7="","",Eingabevariablen!C$7) ->  | D4: =IF(Eingabevariablen!D$7="","",Eingabevariablen!D$7) ->  | E4: Einheit
A5: 1 Kompensation | B5: =Kompensation_Deckelung!C20 -> 0 | C5: =Kompensation_Deckelung!D20 -> 0 | D5: =Kompensation_Deckelung!E20 -> 0 | E5: 1000
A6: 2 Deckelung | B6: =Kompensation_Deckelung!C51 -> 0 | C6: =Kompensation_Deckelung!D51 -> 0 | D6: =Kompensation_Deckelung!E51 -> 0 | E6: 1000
A7: 3 Andere Kosten/Nutzen | B7: ='Andere Kosten_Nutzen'!B21 -> 0 | C7: ='Andere Kosten_Nutzen'!C21 -> 0 | D7: ='Andere Kosten_Nutzen'!D21 -> 0 | E7: 1000
A10: Gesamtwirkung Volkswirtschaft (alle Branchen)
B11: =IF(Eingabevariablen!B$7="","",Eingabevariablen!B$7) ->  | C11: =IF(Eingabevariablen!C$7="","",Eingabevariablen!C$7) ->  | D11: =IF(Eingabevariablen!D$7="","",Eingabevariablen!D$7) ->  | E11: Einheit
A12: Wertschöpfung | B12: =ROUND('Hilfsblatt Ber. Wirtsch Wirk 1'!S9/1000000,0)*1000 -> 0 | C12: =ROUND('Hilfsblatt Ber. Wirtsch Wirk 1'!S109/1000000,0)*1000 -> 0 | D12: =ROUND('Hilfsblatt Ber. Wirtsch Wirk 1'!S209/1000000,0)*1000 -> 0 | E12: ="1.000 € pro "&Eingabevariablen!$J$49 -> 1.000 € pro Jahr
A13: Arbeitnehmerentgelte | B13: =ROUND('Hilfsblatt Ber. Wirtsch Wirk 1'!T$9/1000000,0)*1000 -> 0 | C13: =ROUND('Hilfsblatt Ber. Wirtsch Wirk 1'!T$109/1000000,0)*1000 -> 0 | D13: =ROUND('Hilfsblatt Ber. Wirtsch Wirk 1'!T$209/1000000,0)*1000 -> 0 | E13: ="1.000 € pro "&Eingabevariablen!$J$49 -> 1.000 € pro Jahr
A14: Beschäftigung | B14: =ROUND('Hilfsblatt Ber. Wirtsch Wirk 1'!U$9/1000,0)*1000 -> 0 | C14: =ROUND('Hilfsblatt Ber. Wirtsch Wirk 1'!U$109/1000,0)*1000 -> 0 | D14: =ROUND('Hilfsblatt Ber. Wirtsch Wirk 1'!U$209/1000,0)*1000 -> 0 | E14: ="Anzahl Erwerbstätige pro "&Eingabevariablen!$J$49 -> Anzahl Erwerbstätige pro Jahr
A15: Sozialversicherungseinnahmen | B15: =ROUND('Hilfsblatt Ber. Wirtsch Wirk 1'!V$9/1000000,0)*1000 -> 0 | C15: =ROUND('Hilfsblatt Ber. Wirtsch Wirk 1'!V$109/1000000,0)*1000 -> 0 | D15: =ROUND('Hilfsblatt Ber. Wirtsch Wirk 1'!V$209/1000000,0)*1000 -> 0 | E15: ="1.000 € pro "&Eingabevariablen!$J$49 -> 1.000 € pro Jahr
A16: Produktsteuern | B16: =ROUND(('Hilfsblatt Ber. Wirtsch Wirk 1'!W$9+SUM('Hilfsblatt Ber. Wirtsch Wirk 1'!E7:Q7))/1000000,0)*1000 -> 0 | C16: =ROUND(('Hilfsblatt Ber. Wirtsch Wirk 1'!W$109+SUM('Hilfsblatt Ber. Wirtsch Wirk 1'!E107:Q107))/1000000,0)*1000 -> 0 | D16: =ROUND(('Hilfsblatt Ber. Wirtsch Wirk 1'!W$209+SUM('Hilfsblatt Ber. Wirtsch Wirk 1'!E207:Q207))/1000000,0)*1000 -> 0 | E16: ="1.000 € pro "&Eingabevariablen!$J$49 -> 1.000 € pro Jahr
A19: Umweltwirkung insgesamt (inkl. Unfällen)
A20: Nutzen (+) / Kosten (-) aus: | B20: =IF(Eingabevariablen!B$7="","",Eingabevariablen!B$7) ->  | C20: =IF(Eingabevariablen!C$7="","",Eingabevariablen!C$7) ->  | D20: =IF(Eingabevariablen!D$7="","",Eingabevariablen!D$7) ->  | E20: Einheit
A21: 3 Luftschadstoffemissionen | B21: ='Hilfsblatt Ber. Umweltkosten 1'!K371 -> 0 | C21: ='Hilfsblatt Ber. Umweltkosten 2'!K371 -> 0 | D21: ='Hilfsblatt Ber. Umweltkosten 3'!K371 -> 0 | E21: ="1.000 € pro "&Eingabevariablen!$J$49 -> 1.000 € pro Jahr
A22: 4 Treibhausgasemissionen | B22: ='Hilfsblatt Ber. Umweltkosten 1'!K372 -> 0 | C22: ='Hilfsblatt Ber. Umweltkosten 2'!K372 -> 0 | D22: ='Hilfsblatt Ber. Umweltkosten 3'!K372 -> 0 | E22: ="1.000 € pro "&Eingabevariablen!$J$49 -> 1.000 € pro Jahr
A23: 5 Lärmemissionen | B23: ='Hilfsblatt Ber. Umweltkosten 1'!K373 -> 0 | C23: ='Hilfsblatt Ber. Umweltkosten 2'!K373 -> 0 | D23: ='Hilfsblatt Ber. Umweltkosten 3'!K373 -> 0 | E23: ="1.000 € pro "&Eingabevariablen!$J$49 -> 1.000 € pro Jahr
A24: 6 Beeinträchtigung von Ökosystemen | B24: ='Hilfsblatt Ber. Umweltkosten 1'!K374 -> 0 | C24: ='Hilfsblatt Ber. Umweltkosten 2'!K374 -> 0 | D24: ='Hilfsblatt Ber. Umweltkosten 3'!K374 -> 0 | E24: ="1.000 € pro "&Eingabevariablen!$J$49 -> 1.000 € pro Jahr
A25: 7 Emission toxischer Stoffe | B25: ='Hilfsblatt Ber. Umweltkosten 1'!K375 -> 0 | C25: ='Hilfsblatt Ber. Umweltkosten 2'!K375 -> 0 | D25: ='Hilfsblatt Ber. Umweltkosten 3'!K375 -> 0 | E25: ="1.000 € pro "&Eingabevariablen!$J$49 -> 1.000 € pro Jahr
A26: 8 Indirekte Effekte durch vor- und nachgelagerte Prozesse | B26: ='Hilfsblatt Ber. Umweltkosten 1'!K376 -> 0 | C26: ='Hilfsblatt Ber. Umweltkosten 2'!K376 -> 0 | D26: ='Hilfsblatt Ber. Umweltkosten 3'!K376 -> 0 | E26: ="1.000 € pro "&Eingabevariablen!$J$49 -> 1.000 € pro Jahr
A27: 9 Unfälle | B27: ='Hilfsblatt Ber. Umweltkosten 1'!K378 -> 0 | C27: ='Hilfsblatt Ber. Umweltkosten 2'!K378 -> 0 | D27: ='Hilfsblatt Ber. Umweltkosten 3'!K378 -> 0 | E27: ="1.000 € pro "&Eingabevariablen!$J$49 -> 1.000 € pro Jahr
A28: Gesamtnutzen (-kosten) Umwelt & Unfälle | B28: =SUM(B21:B27) -> 0 | C28: =SUM(C21:C27) -> 0 | D28: =SUM(D21:D27) -> 0 | E28: 1.000 € pro Jahr
A29: Bemerkung: positives Vorzeichen = Nutzen = Reduktion von Kosten; negatives Vorzeichen = zusätzliche Kosten

Sheet Gesamtübersicht (für Druck)
A3: Übersicht (für Ausdruck): Ergebnisse, Grundlageninfos, Eingabevariablen
A4: Diese Übersicht kann direkt ausgedruckt werden. Der Ausdruck erfolgt am besten im Querformat auf A4.
A6: Arbeitshilfe Nutzen-Kosten-Abschätzung umweltrelevanter Effekte in der Gesetzesfolgenabschätzung
A8: Kompensation und Deckelung
A10: Kompensation und Deckelung
C11: =IF(Eingabevariablen!B$7="","",Eingabevariablen!B$7) ->  | D11: =IF(Eingabevariablen!C$7="","",Eingabevariablen!C$7) ->  | E11: =IF(Eingabevariablen!D$7="","",Eingabevariablen!D$7) ->  | F11: Einheit
A12: Summe Kompensation | C12: =Kompensation_Deckelung!$C$9 -> 0 | D12: =Kompensation_Deckelung!$D$9 -> 0 | E12: =Kompensation_Deckelung!$E$9 -> 0 | F12: 1.000 € pro Jahr
A13: Summe Deckelung (Wertschöpfung) | C13: =Kompensation_Deckelung!$C$10 -> 0 | D13: =Kompensation_Deckelung!$D$10 -> 0 | E13: =Kompensation_Deckelung!$E$10 -> 0 | F13: 1.000 € pro Jahr
A14: Summe Deckelung (Umweltwirkung & Unfälle) | C14: =Kompensation_Deckelung!$C$11 -> 0 | D14: =Kompensation_Deckelung!$D$11 -> 0 | E14: =Kompensation_Deckelung!$E$11 -> 0 | F14: 1.000 € pro Jahr
A17: Kompensation: Umsatzgewinne- und Verluste der Wirtschaft
C18: =IF(Eingabevariablen!B$7="","",Eingabevariablen!B$7) ->  | D18: =IF(Eingabevariablen!C$7="","",Eingabevariablen!C$7) ->  | E18: =IF(Eingabevariablen!D$7="","",Eingabevariablen!D$7) ->  | F18: Einheit
A19: Durch Produktionskostenveränderung | C19: =Kompensation_Deckelung!$C$18 -> 0 | D19: =Kompensation_Deckelung!$D$18 -> 0 | E19: =Kompensation_Deckelung!$E$18 -> 0 | F19: 1.000 € pro Jahr
A20: Durch Nachfrageverlagerung | C20: =Kompensation_Deckelung!$C$19 -> 0 | D20: =Kompensation_Deckelung!$D$19 -> 0 | E20: =Kompensation_Deckelung!$E$19 -> 0 | F20: 1.000 € pro Jahr
A21: Summe Kompensation | C21: =Kompensation_Deckelung!$C$20 -> 0 | D21: =Kompensation_Deckelung!$D$20 -> 0 | E21: =Kompensation_Deckelung!$E$20 -> 0 | F21: 1.000 € pro Jahr
A24: Deckelung (Wertschöpfung plus Umweltwirkung)
A25: Deckelung | C25: =IF(Eingabevariablen!B$7="","",Eingabevariablen!B$7) ->  | D25: =IF(Eingabevariablen!C$7="","",Eingabevariablen!C$7) ->  | E25: =IF(Eingabevariablen!D$7="","",Eingabevariablen!D$7) ->  | F25: Einheit
A26: Volkswirtschaftliche Wertschöpfung | C26: =Kompensation_Deckelung!$C$49 -> 0 | D26: =Kompensation_Deckelung!$D$49 -> 0 | E26: =Kompensation_Deckelung!$E$49 -> 0 | F26: ="1.000 € pro "&Eingabevariablen!$J$49 -> 1.000 € pro Jahr
A27: Umweltwirkung | C27: =Kompensation_Deckelung!$C$50 -> 0 | D27: =Kompensation_Deckelung!$D$50 -> 0 | E27: =Kompensation_Deckelung!$E$50 -> 0 | F27: ="1.000 € pro "&Eingabevariablen!$J$49 -> 1.000 € pro Jahr
A28: Summe Deckelung | C28: =Kompensation_Deckelung!$C$51 -> 0 | D28: =Kompensation_Deckelung!$D$51 -> 0 | E28: =Kompensation_Deckelung!$E$51 -> 0 | F28: ="1.000 € pro "&Eingabevariablen!$J$49 -> 1.000 € pro Jahr
A31: Deckelung: Nutzen/Kosten aus Umweltwirkungen (inkl. Unfällen) für die Wirtschaft
A32: Nutzen (+) / Kosten (-) aus: | C32: =IF(Eingabevariablen!B$7="","",Eingabevariablen!B$7) ->  | D32: =IF(Eingabevariablen!C$7="","",Eingabevariablen!C$7) ->  | E32: =IF(Eingabevariablen!D$7="","",Eingabevariablen!D$7) ->  | F32: Einheit
A33: 3 Luftschadstoffemissionen | C33: =Kompensation_Deckelung!C$65 -> 0 | D33: =Kompensation_Deckelung!D$65 -> 0 | E33: =Kompensation_Deckelung!E$65 -> 0 | F33: ="1.000 € pro "&Eingabevariablen!$J$49 -> 1.000 € pro Jahr
A34: 4 Treibhausgasemissionen | C34: =Kompensation_Deckelung!C$66 -> 0 | D34: =Kompensation_Deckelung!D$66 -> 0 | E34: =Kompensation_Deckelung!E$66 -> 0 | F34: ="1.000 € pro "&Eingabevariablen!$J$49 -> 1.000 € pro Jahr
A35: 5 Lärmemissionen | C35: =Kompensation_Deckelung!C$67 -> 0 | D35: =Kompensation_Deckelung!D$67 -> 0 | E35: =Kompensation_Deckelung!E$67 -> 0 | F35: ="1.000 € pro "&Eingabevariablen!$J$49 -> 1.000 € pro Jahr
A36: 6 Beeinträchtigung von Ökosystemen | C36: =Kompensation_Deckelung!C$68 -> 0 | D36: =Kompensation_Deckelung!D$68 -> 0 | E36: =Kompensation_Deckelung!E$68 -> 0 | F36: ="1.000 € pro "&Eingabevariablen!$J$49 -> 1.000 € pro Jahr
A37: 7 Emission toxischer Stoffe | C37: =Kompensation_Deckelung!C$69 -> 0 | D37: =Kompensation_Deckelung!D$69 -> 0 | E37: =Kompensation_Deckelung!E$69 -> 0 | F37: ="1.000 € pro "&Eingabevariablen!$J$49 -> 1.000 € pro Jahr
A38: 8 Indirekte Effekte durch vor- und nachgelagerte Prozesse | C38: =Kompensation_Deckelung!C$70 -> 0 | D38: =Kompensation_Deckelung!D$70 -> 0 | E38: =Kompensation_Deckelung!E$70 -> 0 | F38: ="1.000 € pro "&Eingabevariablen!$J$49 -> 1.000 € pro Jahr
A39: 9 Unfälle | C39: =Kompensation_Deckelung!C$71 -> 0 | D39: =Kompensation_Deckelung!D$71 -> 0 | E39: =Kompensation_Deckelung!E$71 -> 0 | F39: 1.000 € pro Jahr
A40: Gesamtnutzen (-kosten) Umwelt & Unfälle | C40: =Kompensation_Deckelung!C$72 -> 0 | D40: =Kompensation_Deckelung!D$72 -> 0 | E40: =Kompensation_Deckelung!E$72 -> 0 | F40: 1.000 € pro Jahr
A43: Gesamtübersicht Kosten und Nutzen
A45: Umweltnutzen / Umweltkosten (inkl. Unfällen) insgesamt
A46: Nutzen (+) / Kosten (-) aus: | C46: =IF(Eingabevariablen!B$7="","",Eingabevariablen!B$7) ->  | D46: =IF(Eingabevariablen!C$7="","",Eingabevariablen!C$7) ->  | E46: =IF(Eingabevariablen!D$7="","",Eingabevariablen!D$7) ->  | F46: Einheit
A47: Luftschadstoffemissionen | C47: ='Hilfsblatt Ber. Umweltkosten 1'!K371 -> 0 | D47: ='Hilfsblatt Ber. Umweltkosten 2'!K371 -> 0 | E47: ='Hilfsblatt Ber. Umweltkosten 3'!K371 -> 0 | F47: ="1.000 € pro "&Eingabevariablen!$J$49 -> 1.000 € pro Jahr
A48: Treibhausgasemissionen | C48: ='Hilfsblatt Ber. Umweltkosten 1'!K372 -> 0 | D48: ='Hilfsblatt Ber. Umweltkosten 2'!K372 -> 0 | E48: ='Hilfsblatt Ber. Umweltkosten 3'!K372 -> 0 | F48: ="1.000 € pro "&Eingabevariablen!$J$49 -> 1.000 € pro Jahr
A49: Lärmemissionen | C49: ='Hilfsblatt Ber. Umweltkosten 1'!K373 -> 0 | D49: ='Hilfsblatt Ber. Umweltkosten 2'!K373 -> 0 | E49: ='Hilfsblatt Ber. Umweltkosten 3'!K373 -> 0 | F49: ="1.000 € pro "&Eingabevariablen!$J$49 -> 1.000 € pro Jahr
A50: Beeinträchtigung von Ökosystemen | C50: ='Hilfsblatt Ber. Umweltkosten 1'!K374 -> 0 | D50: ='Hilfsblatt Ber. Umweltkosten 2'!K374 -> 0 | E50: ='Hilfsblatt Ber. Umweltkosten 3'!K374 -> 0 | F50: ="1.000 € pro "&Eingabevariablen!$J$49 -> 1.000 € pro Jahr
A51: Emission toxischer Stoffe | C51: ='Hilfsblatt Ber. Umweltkosten 1'!K375 -> 0 | D51: ='Hilfsblatt Ber. Umweltkosten 2'!K375 -> 0 | E51: ='Hilfsblatt Ber. Umweltkosten 3'!K375 -> 0 | F51: ="1.000 € pro "&Eingabevariablen!$J$49 -> 1.000 € pro Jahr
A52: Indirekte Effekte durch vor- und nachgelagerte Prozesse | C52: ='Hilfsblatt Ber. Umweltkosten 1'!K376 -> 0 | D52: ='Hilfsblatt Ber. Umweltkosten 2'!K376 -> 0 | E52: ='Hilfsblatt Ber. Umweltkosten 3'!K376 -> 0 | F52: ="1.000 € pro "&Eingabevariablen!$J$49 -> 1.000 € pro Jahr
A53: Unfälle | C53: ='Hilfsblatt Ber. Umweltkosten 1'!K378 -> 0 | D53: ='Hilfsblatt Ber. Umweltkosten 2'!K378 -> 0 | E53: ='Hilfsblatt Ber. Umweltkosten 3'!K378 -> 0 | F53: ="1.000 € pro "&Eingabevariablen!$J$49 -> 1.000 € pro Jahr
A54: Gesamtnutzen (-kosten) Umwelt & Unfälle | C54: =SUM(C47:C53) -> 0 | D54: =SUM(D47:D53) -> 0 | E54: =SUM(E47:E53) -> 0 | F54: 1.000 € pro Jahr
A57: Ergebnisse Wirtschaftliche Wirkungen insgesamt
A58: Gesamtwirkung Volkswirtschaft (alle Branchen)
B59: =IF(Eingabevariablen!B$7="","",Eingabevariablen!B$7) ->  | C59: =IF(Eingabevariablen!C$7="","",Eingabevariablen!C$7) ->  | D59: =IF(Eingabevariablen!D$7="","",Eingabevariablen!D$7) ->  | E59: Einheit
A60: Wertschöpfung | B60: =ROUND('Hilfsblatt Ber. Wirtsch Wirk 1'!S9/1000000,0)*1000 -> 0 | C60: =ROUND('Hilfsblatt Ber. Wirtsch Wirk 1'!S109/1000000,0)*1000 -> 0 | D60: =ROUND('Hilfsblatt Ber. Wirtsch Wirk 1'!S209/1000000,0)*1000 -> 0 | E60: ="1.000 € pro "&Eingabevariablen!$J$49 -> 1.000 € pro Jahr
A61: Arbeitnehmerentgelte | B61: =ROUND('Hilfsblatt Ber. Wirtsch Wirk 1'!T$9/1000000,0)*1000 -> 0 | C61: =ROUND('Hilfsblatt Ber. Wirtsch Wirk 1'!T$109/1000000,0)*1000 -> 0 | D61: =ROUND('Hilfsblatt Ber. Wirtsch Wirk 1'!T$209/1000000,0)*1000 -> 0 | E61: ="1.000 € pro "&Eingabevariablen!$J$49 -> 1.000 € pro Jahr
A62: Beschäftigung | B62: =ROUND('Hilfsblatt Ber. Wirtsch Wirk 1'!U$9/1000,0)*1000 -> 0 | C62: =ROUND('Hilfsblatt Ber. Wirtsch Wirk 1'!U$109/1000,0)*1000 -> 0 | D62: =ROUND('Hilfsblatt Ber. Wirtsch Wirk 1'!U$209/1000,0)*1000 -> 0 | E62: ="Anz. Erwerbstätige pro "&Eingabevariablen!$J$49 -> Anz. Erwerbstätige pro Jahr
A63: Sozialversicherungseinnahmen | B63: =ROUND('Hilfsblatt Ber. Wirtsch Wirk 1'!V$9/1000000,0)*1000 -> 0 | C63: =ROUND('Hilfsblatt Ber. Wirtsch Wirk 1'!V$109/1000000,0)*1000 -> 0 | D63: =ROUND('Hilfsblatt Ber. Wirtsch Wirk 1'!V$209/1000000,0)*1000 -> 0 | E63: ="1.000 € pro "&Eingabevariablen!$J$49 -> 1.000 € pro Jahr
A64: Produktsteuern | B64: =ROUND(('Hilfsblatt Ber. Wirtsch Wirk 1'!W$9+SUM('Hilfsblatt Ber. Wirtsch Wirk 1'!E7:Q7))/1000000,0)*1000 -> 0 | C64: =ROUND(('Hilfsblatt Ber. Wirtsch Wirk 1'!W$109+SUM('Hilfsblatt Ber. Wirtsch Wirk 1'!E107:Q107))/1000000,0)*1000 -> 0 | D64: =ROUND(('Hilfsblatt Ber. Wirtsch Wirk 1'!W$209+SUM('Hilfsblatt Ber. Wirtsch Wirk 1'!E207:Q207))/1000000,0)*1000 -> 0 | E64: ="1.000 € pro "&Eingabevariablen!$J$49 -> 1.000 € pro Jahr
A65: Ergebnisse je Branche siehe Blatt Kompensation_Deckelung
A68: Grundlageninformationen zur Maßnahme
A70: a. Rechtlicher Status Quo, aktuelle Rechtspraxis/Rechtsstatus
A71: =IF('Definition Maßnahme'!B6=0,"-",'Definition Maßnahme'!B6) -> - | M71: =IF(A71="-", FALSE,TRUE) -> FALSE
A73: b. Geplante Änderung (Gesetz, Maßnahme)
A74: =IF('Definition Maßnahme'!B11=0,"-",'Definition Maßnahme'!B11) -> - | M74: =IF(A74="-", FALSE,TRUE) -> FALSE
A76: c. Betroffene Gruppen | M76: =IF((M78=FALSE)*AND(M79=FALSE)*AND(M80=FALSE)*AND(M81=FALSE)*AND(M82=FALSE)*AND(M83=FALSE)*AND(M84=FALSE)*AND(M85=FALSE),FALSE,TRUE) -> FALSE
A77: Gruppe | B77: Art der Betroffenheit, mögliche Reaktionen der Gruppen
A78: =IF('Definition Maßnahme'!$B$17=0,"-","1. "&'Definition Maßnahme'!$B$17) -> - | B78: =IF('Definition Maßnahme'!C17=0,"-",'Definition Maßnahme'!C17) -> - | M78: =IF((A78="-")*AND(B78="-"),FALSE,TRUE) -> FALSE
A79: =IF('Definition Maßnahme'!$B$18=0,"-","2. "&'Definition Maßnahme'!$B$18) -> - | B79: =IF('Definition Maßnahme'!C18=0,"-",'Definition Maßnahme'!C18) -> - | M79: =IF((A79="-")*AND((B79="-")),FALSE,TRUE) -> FALSE
A80: =IF('Definition Maßnahme'!$B$19=0,"-","3. "&'Definition Maßnahme'!$B$19) -> - | B80: =IF('Definition Maßnahme'!C19=0,"-",'Definition Maßnahme'!C19) -> - | M80: =IF((A80="-")*AND((B80="-")),FALSE,TRUE) -> FALSE
A81: =IF('Definition Maßnahme'!$B$20=0,"-","4. "&'Definition Maßnahme'!$B$20) -> - | B81: =IF('Definition Maßnahme'!C20=0,"-",'Definition Maßnahme'!C20) -> - | M81: FALSE
A82: =IF('Definition Maßnahme'!$B$21=0,"-","5. "&'Definition Maßnahme'!$B$21) -> - | B82: =IF('Definition Maßnahme'!C21=0,"-",'Definition Maßnahme'!C21) -> - | M82: FALSE
A83: =IF('Definition Maßnahme'!$B$22=0,"-","6. "&'Definition Maßnahme'!$B$22) -> - | B83: =IF('Definition Maßnahme'!C22=0,"-",'Definition Maßnahme'!C22) -> - | M83: FALSE
A84: =IF('Definition Maßnahme'!$B$23=0,"-","7. "&'Definition Maßnahme'!$B$23) -> - | B84: =IF('Definition Maßnahme'!C23=0,"-",'Definition Maßnahme'!C23) -> - | M84: FALSE
A85: =IF('Definition Maßnahme'!$B$24=0,"-","8. "&'Definition Maßnahme'!$B$24) -> - | B85: =IF('Definition Maßnahme'!C24=0,"-",'Definition Maßnahme'!C24) -> - | M85: FALSE
A87: d. Systemgrenzen | M87: =IF((M88=FALSE)*AND(M89=FALSE)*AND(M90=FALSE)*AND(M91=FALSE),FALSE,TRUE) -> FALSE
A88: Betrachtungszeitraum | B88: =IF('Definition Maßnahme'!C29=0,"-",'Definition Maßnahme'!C29) -> - | M88: =IF(B88="-", FALSE,TRUE) -> FALSE
A89: Relevanter Raum (geografisch, örtlich) | B89: =IF('Definition Maßnahme'!C30=0,"-",'Definition Maßnahme'!C30) -> - | M89: =IF(B89="-", FALSE,TRUE) -> FALSE
A90: Inhaltlich (was ist NICHT Teil der Betrachtungen) | B90: =IF('Definition Maßnahme'!C31=0,"-",'Definition Maßnahme'!C31) -> - | M90: =IF(B90="-", FALSE,TRUE) -> FALSE
A91: Weiteres | B91: =IF('Definition Maßnahme'!C32=0,"-",'Definition Maßnahme'!C32) -> - | M91: =IF(B91="-", FALSE,TRUE) -> FALSE
A93: e. Vergleichsmaßstab, Referenzentwicklung
A94: =IF('Definition Maßnahme'!B38=0,"-",'Definition Maßnahme'!B38) -> - | M94: =IF(A94="-", FALSE,TRUE) -> FALSE
A97: Übersicht Eingabevariablen Wirtschaft
A99: Veränderung Produktionskosten
B100: Branche (Produkt-/Dienstleistung) | E100: Menge in 1000 € | H100: Überwälzung auf Konsummenten in %
E101: =Eingabevariablen!C30 ->  | F101: =Eingabevariablen!D30 ->  | G101: =Eingabevariablen!E30 -> 
A102: =Eingabevariablen!A23 -> Branche 1 | B102: =IF(Eingabevariablen!B23="","-",Eingabevariablen!B23) -> - | E102: =Eingabevariablen!C23/1000 -> 0 | F102: =Eingabevariablen!D23/1000 -> 0 | G102: =Eingabevariablen!E23/1000 -> 0 | H102: =Eingabevariablen!F23 -> 1
A103: =Eingabevariablen!A24 -> Branche 2 | B103: =IF(Eingabevariablen!B24="","-",Eingabevariablen!B24) -> - | E103: =Eingabevariablen!C24/1000 -> 0 | F103: =Eingabevariablen!D24/1000 -> 0 | G103: =Eingabevariablen!E24/1000 -> 0 | H103: =Eingabevariablen!F24 -> 1
A104: =Eingabevariablen!A25 -> Branche 3 | B104: =IF(Eingabevariablen!B25="","-",Eingabevariablen!B25) -> - | E104: =Eingabevariablen!C25/1000 -> 0 | F104: =Eingabevariablen!D25/1000 -> 0 | G104: =Eingabevariablen!E25/1000 -> 0 | H104: =Eingabevariablen!F25 -> 1
A105: =Eingabevariablen!A26 -> Branche 4 | B105: =IF(Eingabevariablen!B26="","-",Eingabevariablen!B26) -> - | E105: =Eingabevariablen!C26/1000 -> 0 | F105: =Eingabevariablen!D26/1000 -> 0 | G105: =Eingabevariablen!E26/1000 -> 0 | H105: =Eingabevariablen!F26 -> 1
A106: =Eingabevariablen!A27 -> Branche 5 | B106: =IF(Eingabevariablen!B27="","-",Eingabevariablen!B27) -> - | E106: =Eingabevariablen!C27/1000 -> 0 | F106: =Eingabevariablen!D27/1000 -> 0 | G106: =Eingabevariablen!E27/1000 -> 0 | H106: =Eingabevariablen!F27 -> 1 | M106: =IF((ABS(E102)+ABS(F102)+ABS(G102)+ABS(E103)+ABS(F103)+ABS(G103)+ABS(E104)+ABS(F104)+ABS(G104)+ ABS(E105)+ ABS(F105)+ABS(G105)+ABS(E106)+ABS(F106)+ABS(G106))>0, TRUE, FALSE) -> FALSE
A108: Veränderung der Nachfrage (Bürger oder Unternehmen)
B109: Branche (Produkt-/Dienstleistung) | E109: Menge in 1000 €
E110: =Eingabevariablen!C30 ->  | F110: =Eingabevariablen!D30 ->  | G110: =Eingabevariablen!E30 -> 
A111: =Eingabevariablen!A31 -> Branche 6 | B111: =IF(Eingabevariablen!B31="","-",Eingabevariablen!B31) -> - | E111: =Eingabevariablen!C31/1000 -> 0 | F111: =Eingabevariablen!D31/1000 -> 0 | G111: =Eingabevariablen!E31/1000 -> 0
A112: =Eingabevariablen!A32 -> Branche 7 | B112: =IF(Eingabevariablen!B32="","-",Eingabevariablen!B32) -> - | E112: =Eingabevariablen!C32/1000 -> 0 | F112: =Eingabevariablen!D32/1000 -> 0 | G112: =Eingabevariablen!E32/1000 -> 0
A113: =Eingabevariablen!A33 -> Branche 8 | B113: =IF(Eingabevariablen!B33="","-",Eingabevariablen!B33) -> - | E113: =Eingabevariablen!C33/1000 -> 0 | F113: =Eingabevariablen!D33/1000 -> 0 | G113: =Eingabevariablen!E33/1000 -> 0
A114: =Eingabevariablen!A34 -> Branche 9 | B114: =IF(Eingabevariablen!B34="","-",Eingabevariablen!B34) -> - | E114: =Eingabevariablen!C34/1000 -> 0 | F114: =Eingabevariablen!D34/1000 -> 0 | G114: =Eingabevariablen!E34/1000 -> 0
A115: =Eingabevariablen!A35 -> Branche 10 | B115: =IF(Eingabevariablen!B35="","-",Eingabevariablen!B35) -> - | E115: =Eingabevariablen!C35/1000 -> 0 | F115: =Eingabevariablen!D35/1000 -> 0 | G115: =Eingabevariablen!E35/1000 -> 0 | M115: =IF((ABS(E111)+ABS(F111)+ABS(G111)+ABS(E112)+ABS(F112)+ABS(G112)+ABS(E113)+ABS(F113)+ABS(G113)+ ABS(E114)+ ABS(F114)+ABS(G114)+ABS(E115)+ABS(F115)+ABS(G115))>0, TRUE, FALSE) -> FALSE
A117: Veränderung von Treibstoffverbrauch
B118: =Eingabevariablen!B44 ->  | C118: =Eingabevariablen!C44 ->  | D118: =Eingabevariablen!D44 ->  | E118: Einheit | F118: Preis pro Liter
A119: Verbrauchter Treibstoff (Diesel oder Benzin in Liter) | B119: =IF(Eingabevariablen!$B$38="","0",Eingabevariablen!$B$38) -> 0 | C119: =IF(Eingabevariablen!$C$38="","0",Eingabevariablen!$C$38) -> 0 | D119: =IF(Eingabevariablen!$D$38="","0",Eingabevariablen!$D$38) -> 0 | E119: in Liter | F119: =IF(Eingabevariablen!$E$38="","-",Eingabevariablen!$E$38) -> -
A120: Verbrauchtes Benzin (in Liter) | B120: =IF(Eingabevariablen!$B$39="","0",Eingabevariablen!$B$39) -> 0 | C120: =IF(Eingabevariablen!$C$39="","0",Eingabevariablen!$C$39) -> 0 | D120: =IF(Eingabevariablen!$D$39="","0",Eingabevariablen!$D$39) -> 0 | E120: in Liter | F120: =IF(Eingabevariablen!$E$39="","-",Eingabevariablen!$E$39) -> -
A121: Verbrauchtes Diesel (in Liter) | B121: =IF(Eingabevariablen!$B$40="","0",Eingabevariablen!$B$40) -> 0 | C121: =IF(Eingabevariablen!$C$40="","0",Eingabevariablen!$C$40) -> 0 | D121: =IF(Eingabevariablen!$D$40="","0",Eingabevariablen!$D$40) -> 0 | E121: in Liter | F121: =IF(Eingabevariablen!$E$40="","-",Eingabevariablen!$E$40) -> -
A122: Geleistete Verkehrsmenge (PKW; in km) | B122: =IF(Eingabevariablen!$B$41="","0",Eingabevariablen!$B$41) -> 0 | C122: =IF(Eingabevariablen!$C$41="","0",Eingabevariablen!$C$41) -> 0 | D122: =IF(Eingabevariablen!$D$41="","0",Eingabevariablen!$D$41) -> 0 | E122: in km | F122: =IF(Eingabevariablen!$E$40="","-",Eingabevariablen!$E$40) -> - | M122: =IF((ABS(B119)+ABS(C119)+ABS(D119)+ABS(B120)+ABS(C120)+ABS(D120)+ABS(B121)+ABS(C121)+ABS(D121)+ABS(B122)+ABS(C122)+ABS(D122))>0, TRUE, FALSE) -> FALSE
A124: Veränderung des Staatshaushalts
C125: Menge in 1000 €
C126: =Eingabevariablen!B44 ->  | D126: =Eingabevariablen!C44 ->  | E126: =Eingabevariablen!D44 -> 
A127: Änderung der Staatseinnahmen oder -ausgaben | C127: =Eingabevariablen!B45/1000 -> 0 | D127: =Eingabevariablen!C45/1000 -> 0 | E127: =Eingabevariablen!D45/1000 -> 0 | M127: =IF((ABS(C127)+ABS(D127)+ABS(E127))>0, TRUE, FALSE) -> FALSE
A131: Übersicht Eingabevariablen Umwelt | M131: =IF((M135=FALSE)*AND(M153=FALSE)*AND(M170=FALSE)*AND(M147=FALSE),FALSE,TRUE) -> FALSE
A133: A. Eingabevariablen Umwelt: Nach Aktivitäten, Treiber
A135: 2a. Verkehr | M135: =IF((M139=FALSE)*AND(M143=FALSE)*AND(M147=FALSE)*AND(M151=FALSE),FALSE,TRUE) -> FALSE
A136: Verkehrsmenge (in Fahrzeug-km)
A137: Ort unbekannt (Ø alle Strecken)
A138: =Eingabevariablen!$B$44 ->  | C138: =Eingabevariablen!$C$44 ->  | F138: =Eingabevariablen!$D$44 -> 
A139: =IF('Hilfsblatt Output'!G29="","--",'Hilfsblatt Output'!G29) -> -- | C139: =IF('Hilfsblatt Output'!G189="","--",'Hilfsblatt Output'!G189) -> -- | F139: =IF('Hilfsblatt Output'!G338="","--",'Hilfsblatt Output'!G338) -> -- | M139: =IF((A139="--")*AND(C139="--")*AND(F139="--"),FALSE,TRUE) -> FALSE
A141: Innerorts
A142: =Eingabevariablen!$B$44 ->  | C142: =Eingabevariablen!$C$44 ->  | F142: =Eingabevariablen!$D$44 -> 
A143: =IF('Hilfsblatt Output'!H29="","--",'Hilfsblatt Output'!H29) -> -- | C143: =IF('Hilfsblatt Output'!H189="","--",'Hilfsblatt Output'!H189) -> -- | F143: =IF('Hilfsblatt Output'!H338="","--",'Hilfsblatt Output'!H338) -> -- | M143: =IF((A143="--")*AND(C143="--")*AND(F143="--"),FALSE,TRUE) -> FALSE
A145: Außerorts
A146: =Eingabevariablen!$B$44 ->  | C146: =Eingabevariablen!$C$44 ->  | F146: =Eingabevariablen!$D$44 -> 
A147: =IF('Hilfsblatt Output'!I29="","--",'Hilfsblatt Output'!I29) -> -- | C147: =IF('Hilfsblatt Output'!I189="","--",'Hilfsblatt Output'!I189) -> -- | F147: =IF('Hilfsblatt Output'!I338="","--",'Hilfsblatt Output'!I338) -> -- | M147: =IF((A147="--")*AND(C147="--")*AND(F147="--"),FALSE,TRUE) -> FALSE
A149: Autobahn
A150: =Eingabevariablen!$B$44 ->  | C150: =Eingabevariablen!$C$44 ->  | F150: =Eingabevariablen!$D$44 -> 
A151: =IF('Hilfsblatt Output'!J29="","--",'Hilfsblatt Output'!J29) -> -- | C151: =IF('Hilfsblatt Output'!J189="","--",'Hilfsblatt Output'!J189) -> -- | F151: =IF('Hilfsblatt Output'!J338="","--",'Hilfsblatt Output'!J338) -> -- | M151: =IF((A151="--")*AND(C151="--")*AND(F151="--"),FALSE,TRUE) -> FALSE
A153: 2b. Energie | M153: =IF((M156=FALSE)*AND(M160=FALSE)*AND(M164=FALSE)*AND(M168=FALSE),FALSE,TRUE) -> FALSE
A154: i. Strommenge
A155: =Eingabevariablen!$B$44 ->  | C155: =Eingabevariablen!$C$44 ->  | F155: =Eingabevariablen!$D$44 -> 
A156: =IF('Hilfsblatt Output'!D6="","--",'Hilfsblatt Output'!D6) -> -- | C156: =IF('Hilfsblatt Output'!D166="","--",'Hilfsblatt Output'!D166) -> -- | F156: =IF('Hilfsblatt Output'!D315="","--",'Hilfsblatt Output'!D315) -> -- | M156: =IF((A156="--")*AND(C156="--")*AND(F156="--"),FALSE,TRUE) -> FALSE
A158: ii. Energie: Wärmemenge
A159: =Eingabevariablen!$B$44 ->  | C159: =Eingabevariablen!$C$44 ->  | F159: =Eingabevariablen!$D$44 -> 
A160: =IF('Hilfsblatt Output'!J6="","--",'Hilfsblatt Output'!J6) -> -- | C160: =IF('Hilfsblatt Output'!J166="","--",'Hilfsblatt Output'!J166) -> -- | F160: =IF('Hilfsblatt Output'!J315="","--",'Hilfsblatt Output'!J315) -> -- | M160: =IF((A160="--")*AND(C160="--")*AND(F160="--"),FALSE,TRUE) -> FALSE
A162: iii. Brennstoffmenge
A163: =Eingabevariablen!$B$44 ->  | C163: =Eingabevariablen!$C$44 ->  | F163: =Eingabevariablen!$D$44 -> 
A164: =IF('Hilfsblatt Output'!O6="","--",'Hilfsblatt Output'!O6) -> -- | C164: =IF('Hilfsblatt Output'!O166="","--",'Hilfsblatt Output'!O166) -> -- | F164: =IF('Hilfsblatt Output'!O315="","--",'Hilfsblatt Output'!O315) -> -- | M164: =IF((A164="--")*AND(C164="--")*AND(F164="--"),FALSE,TRUE) -> FALSE
A166: iv. Kraftstoffmenge
A167: =Eingabevariablen!$B$44 ->  | C167: =Eingabevariablen!$C$44 ->  | F167: =Eingabevariablen!$D$44 -> 
A168: =IF('Hilfsblatt Output'!T6="","--",'Hilfsblatt Output'!T6) -> -- | C168: =IF('Hilfsblatt Output'!T166="","--",'Hilfsblatt Output'!T166) -> -- | F168: =IF('Hilfsblatt Output'!T315="","--",'Hilfsblatt Output'!T315) -> -- | M168: =IF((A168="--")*AND(C168="--")*AND(F168="--"),FALSE,TRUE) -> FALSE
A170: 2c. Landwirtschaft | M170: =IF((M173=FALSE)*AND(M177=FALSE),FALSE,TRUE) -> FALSE
A171: a. Landnutzungsänderung, Nutzungsintenvisierung
A172: =Eingabevariablen!$B$44 ->  | C172: =Eingabevariablen!$C$44 ->  | F172: =Eingabevariablen!$D$44 -> 
A173: =IF('Hilfsblatt Output'!D84="","--",'Hilfsblatt Output'!D84) -> -- | C173: =IF('Hilfsblatt Output'!D244="","--",'Hilfsblatt Output'!D244) -> -- | F173: =IF('Hilfsblatt Output'!D393="","--",'Hilfsblatt Output'!D393) -> -- | M173: =IF((A173="--")*AND(C173="--")*AND(F173="--"),FALSE,TRUE) -> FALSE
A175: b. Nährstoffeintrag
A176: =Eingabevariablen!$B$44 ->  | C176: =Eingabevariablen!$C$44 ->  | F176: =Eingabevariablen!$D$44 -> 
A177: =IF('Hilfsblatt Output'!D87="","--",'Hilfsblatt Output'!D87) -> -- | C177: =IF('Hilfsblatt Output'!D247="","--",'Hilfsblatt Output'!D247) -> -- | F177: =IF('Hilfsblatt Output'!D396="","--",'Hilfsblatt Output'!D396) -> -- | M177: =IF((A177="--")*AND(C177="--")*AND(F177="--"),FALSE,TRUE) -> FALSE
A180: B. Eingabevariablen Umwelt: nach Umweltwirkung | M180: =IF((M182=FALSE)*AND(M213=FALSE)*AND(M215=FALSE)*AND(M232=FALSE)*AND(M245=FALSE)*AND(M254=FALSE)*AND(M263=FALSE),FALSE,TRUE) -> FALSE
A182: 3. Luftschadstoffemissionen | M182: =IF((M185=FALSE)*AND(M190=FALSE)*AND(M193=FALSE)*AND(M197=FALSE)*AND(M201=FALSE)*AND(M206=FALSE)*AND(M209=FALSE),FALSE,TRUE) -> FALSE
A183: Quelle unbekannt
A184: =Eingabevariablen!$B$44 ->  | C184: =Eingabevariablen!$C$44 ->  | F184: =Eingabevariablen!$D$44 -> 
A185: =IF('Hilfsblatt Output'!J49="","--",'Hilfsblatt Output'!J49) -> -- | C185: =IF('Hilfsblatt Output'!J209="","--",'Hilfsblatt Output'!J209) -> -- | F185: =IF('Hilfsblatt Output'!J358="","--",'Hilfsblatt Output'!J358) -> -- | M185: =IF((A185="--")*AND(C185="--")*AND(F185="--"),FALSE,TRUE) -> FALSE
A187: Verkehr | M187: =IF((M190=FALSE)*AND(M193=FALSE),FALSE,TRUE) -> FALSE
A188: Innerorts (Durchschnitt)
A189: =Eingabevariablen!$B$44 ->  | C189: =Eingabevariablen!$C$44 ->  | F189: =Eingabevariablen!$D$44 -> 
A190: =IF('Hilfsblatt Output'!K49="","--",'Hilfsblatt Output'!K49) -> -- | C190: =IF('Hilfsblatt Output'!K209="","--",'Hilfsblatt Output'!K209) -> -- | F190: =IF('Hilfsblatt Output'!K358="","--",'Hilfsblatt Output'!K358) -> -- | M190: =IF((A190="--")*AND(C190="--")*AND(F190="--"),FALSE,TRUE) -> FALSE
A191: Außerorts
A192: =Eingabevariablen!$B$44 ->  | C192: =Eingabevariablen!$C$44 ->  | F192: =Eingabevariablen!$D$44 -> 
A193: =IF('Hilfsblatt Output'!L49="","--",'Hilfsblatt Output'!L49) -> -- | C193: =IF('Hilfsblatt Output'!L209="","--",'Hilfsblatt Output'!L209) -> -- | F193: =IF('Hilfsblatt Output'!L358="","--",'Hilfsblatt Output'!L358) -> -- | M193: =IF((A193="--")*AND(C193="--")*AND(F193="--"),FALSE,TRUE) -> FALSE
A195: Kraftwerk/Energie
A196: =Eingabevariablen!$B$44 ->  | C196: =Eingabevariablen!$C$44 ->  | F196: =Eingabevariablen!$D$44 -> 
A197: =IF('Hilfsblatt Output'!M49="","--",'Hilfsblatt Output'!M49) -> -- | C197: =IF('Hilfsblatt Output'!M209="","--",'Hilfsblatt Output'!M209) -> -- | F197: =IF('Hilfsblatt Output'!M358="","--",'Hilfsblatt Output'!M358) -> -- | M197: =IF((A197="--")*AND(C197="--")*AND(F197="--"),FALSE,TRUE) -> FALSE
A199: Industrie
A200: =Eingabevariablen!$B$44 ->  | C200: =Eingabevariablen!$C$44 ->  | F200: =Eingabevariablen!$D$44 -> 
A201: =IF('Hilfsblatt Output'!N49="","--",'Hilfsblatt Output'!N49) -> -- | C201: =IF('Hilfsblatt Output'!N209="","--",'Hilfsblatt Output'!N209) -> -- | F201: =IF('Hilfsblatt Output'!N358="","--",'Hilfsblatt Output'!N358) -> -- | M201: =IF((A201="--")*AND(C201="--")*AND(F201="--"),FALSE,TRUE) -> FALSE
A203: Kleinfeuerung | M203: =IF((M206=FALSE)*AND(M209=FALSE),FALSE,TRUE) -> FALSE
A204: Innerorts
A205: =Eingabevariablen!$B$44 ->  | C205: =Eingabevariablen!$C$44 ->  | F205: =Eingabevariablen!$D$44 -> 
A206: =IF('Hilfsblatt Output'!O49="","--",'Hilfsblatt Output'!O49) -> -- | C206: =IF('Hilfsblatt Output'!O209="","--",'Hilfsblatt Output'!O209) -> -- | F206: =IF('Hilfsblatt Output'!O358="","--",'Hilfsblatt Output'!O358) -> -- | M206: =IF((A206="--")*AND(C206="--")*AND(F206="--"),FALSE,TRUE) -> FALSE
A207: Außerorts
A208: =Eingabevariablen!$B$44 ->  | C208: =Eingabevariablen!$C$44 ->  | F208: =Eingabevariablen!$D$44 -> 
A209: =IF('Hilfsblatt Output'!P49="","--",'Hilfsblatt Output'!P49) -> -- | C209: =IF('Hilfsblatt Output'!P209="","--",'Hilfsblatt Output'!P209) -> -- | F209: =IF('Hilfsblatt Output'!P358="","--",'Hilfsblatt Output'!P358) -> -- | M209: =IF((A209="--")*AND(C209="--")*AND(F209="--"),FALSE,TRUE) -> FALSE
A211: 4. Treibhausgasemissionen
A212: =Eingabevariablen!$B$44 ->  | C212: =Eingabevariablen!$C$44 ->  | F212: =Eingabevariablen!$D$44 -> 
A213: =IF('Hilfsblatt Output'!D58="","--",'Hilfsblatt Output'!D58) -> -- | C213: =IF('Hilfsblatt Output'!D218="","--",'Hilfsblatt Output'!D218) -> -- | F213: =IF('Hilfsblatt Output'!D367="","--",'Hilfsblatt Output'!D367) -> -- | M213: =IF((A213="--")*AND(C213="--")*AND(F213="--"),FALSE,TRUE) -> FALSE
A215: 5. Lärmemissionen | M215: =IF((M218=FALSE)*AND(M222=FALSE)*AND(M226=FALSE)*AND(M230=FALSE),FALSE,TRUE) -> FALSE
A216: Strassenverkehr
A217: =Eingabevariablen!$B$44 ->  | C217: =Eingabevariablen!$C$44 ->  | F217: =Eingabevariablen!$D$44 -> 
A218: =IF('Hilfsblatt Output'!G67="","--",'Hilfsblatt Output'!G67) -> -- | C218: =IF('Hilfsblatt Output'!G227="","--",'Hilfsblatt Output'!G227) -> -- | F218: =IF('Hilfsblatt Output'!G376="","--",'Hilfsblatt Output'!G376) -> -- | M218: =IF((A218="--")*AND(C218="--")*AND(F218="--"),FALSE,TRUE) -> FALSE
A220: Schienenverkehr
A221: =Eingabevariablen!$B$44 ->  | C221: =Eingabevariablen!$C$44 ->  | F221: =Eingabevariablen!$D$44 -> 
A222: =IF('Hilfsblatt Output'!H67="","--",'Hilfsblatt Output'!H67) -> -- | C222: =IF('Hilfsblatt Output'!H227="","--",'Hilfsblatt Output'!H227) -> -- | F222: =IF('Hilfsblatt Output'!H376="","--",'Hilfsblatt Output'!H376) -> -- | M222: =IF((A222="--")*AND(C222="--")*AND(F222="--"),FALSE,TRUE) -> FALSE
A224: Luftverkehr
A225: =Eingabevariablen!$B$44 ->  | C225: =Eingabevariablen!$C$44 ->  | F225: =Eingabevariablen!$D$44 -> 
A226: =IF('Hilfsblatt Output'!I67="","--",'Hilfsblatt Output'!I67) -> -- | C226: =IF('Hilfsblatt Output'!I227="","--",'Hilfsblatt Output'!I227) -> -- | F226: =IF('Hilfsblatt Output'!I376="","--",'Hilfsblatt Output'!I376) -> -- | M226: =IF((A226="--")*AND(C226="--")*AND(F226="--"),FALSE,TRUE) -> FALSE
A228: Quelle: unbekannt
A229: =Eingabevariablen!$B$44 ->  | C229: =Eingabevariablen!$C$44 ->  | F229: =Eingabevariablen!$D$44 -> 
A230: =IF('Hilfsblatt Output'!J67="","--",'Hilfsblatt Output'!J67) -> -- | C230: =IF('Hilfsblatt Output'!J227="","--",'Hilfsblatt Output'!J227) -> -- | F230: =IF('Hilfsblatt Output'!J376="","--",'Hilfsblatt Output'!J376) -> -- | M230: =IF((A230="--")*AND(C230="--")*AND(F230="--"),FALSE,TRUE) -> FALSE
A232: 6. Beeinträchtigung von Ökosystemen | M232: =IF((M235=FALSE)*AND(M239=FALSE)*AND(M243=FALSE)*AND(M248=FALSE)*AND(M252=FALSE),FALSE,TRUE) -> FALSE
A233: a. Schadstoffeinträge ins Meer
A234: =Eingabevariablen!$B$44 ->  | C234: =Eingabevariablen!$C$44 ->  | F234: =Eingabevariablen!$D$44 -> 
A235: =IF('Hilfsblatt Output'!D90="","--",'Hilfsblatt Output'!D90) -> -- | C235: =IF('Hilfsblatt Output'!D250="","--",'Hilfsblatt Output'!D250) -> -- | F235: =IF('Hilfsblatt Output'!D399="","--",'Hilfsblatt Output'!D399) -> -- | M235: =IF((A235="--")*AND(C235="--")*AND(F235="--"),FALSE,TRUE) -> FALSE
A237: b. Zerschneidung der Landschaft durch Verkehrswege
A238: =Eingabevariablen!$B$44 ->  | C238: =Eingabevariablen!$C$44 ->  | F238: =Eingabevariablen!$D$44 -> 
A239: =IF('Hilfsblatt Output'!D95="","--",'Hilfsblatt Output'!D95) -> -- | C239: =IF('Hilfsblatt Output'!D255="","--",'Hilfsblatt Output'!D255) -> -- | F239: =IF('Hilfsblatt Output'!D404="","--",'Hilfsblatt Output'!D404) -> -- | M239: =IF((A239="--")*AND(C239="--")*AND(F239="--"),FALSE,TRUE) -> FALSE
A241: c. Flächenumwandlung, Verbauung natürlicher Flächen, Versiegelung
A242: =Eingabevariablen!$B$44 ->  | C242: =Eingabevariablen!$C$44 ->  | F242: =Eingabevariablen!$D$44 -> 
A243: =IF('Hilfsblatt Output'!D81="","--",'Hilfsblatt Output'!D81) -> -- | C243: =IF('Hilfsblatt Output'!D241="","--",'Hilfsblatt Output'!D241) -> -- | F243: =IF('Hilfsblatt Output'!D390="","--",'Hilfsblatt Output'!D390) -> -- | M243: =IF((A243="--")*AND(C243="--")*AND(F243="--"),FALSE,TRUE) -> FALSE
A245: 7. Emission toxischer Stoffe | M245: =IF((M248=FALSE)*AND(M252=FALSE),FALSE,TRUE) -> FALSE
A246: Schwermetalle
A247: =Eingabevariablen!$B$44 ->  | C247: =Eingabevariablen!$C$44 ->  | F247: =Eingabevariablen!$D$44 -> 
A248: =IF('Hilfsblatt Output'!D104="","--",'Hilfsblatt Output'!D104) -> -- | C248: =IF('Hilfsblatt Output'!D264="","--",'Hilfsblatt Output'!D264) -> -- | F248: =IF('Hilfsblatt Output'!D413="","--",'Hilfsblatt Output'!D413) -> -- | M248: =IF((A248="--")*AND(C248="--")*AND(F248="--"),FALSE,TRUE) -> FALSE
A250: Organische Schadstoffe (POPs)
A251: =Eingabevariablen!$B$44 ->  | C251: =Eingabevariablen!$C$44 ->  | F251: =Eingabevariablen!$D$44 -> 
A252: =IF('Hilfsblatt Output'!E104="","--",'Hilfsblatt Output'!E104) -> -- | C252: =IF('Hilfsblatt Output'!E264="","--",'Hilfsblatt Output'!E264) -> -- | F252: =IF('Hilfsblatt Output'!E413="","--",'Hilfsblatt Output'!E413) -> -- | M252: =IF((A252="--")*AND(C252="--")*AND(F252="--"),FALSE,TRUE) -> FALSE
A254: 8. Indirekte Effekte vor- und nachgelagerte Prozesse | M254: =IF((M258=FALSE)*AND(M261=FALSE),FALSE,TRUE) -> FALSE
A255: Menge indirekter Emissionen
A256: Luftschadstoffe
A257: =Eingabevariablen!$B$44 ->  | C257: =Eingabevariablen!$C$44 ->  | F257: =Eingabevariablen!$D$44 -> 
A258: =IF('Hilfsblatt Output'!D119="","--",'Hilfsblatt Output'!D119) -> -- | C258: =IF('Hilfsblatt Output'!D279="","--",'Hilfsblatt Output'!D279) -> -- | F258: =IF('Hilfsblatt Output'!D428="","--",'Hilfsblatt Output'!D428) -> -- | M258: =IF((A258="--")*AND(C258="--")*AND(F258="--"),FALSE,TRUE) -> FALSE
A259: Treibhausgase und Stickstoff-Verbindungen
A260: =Eingabevariablen!$B$44 ->  | C260: =Eingabevariablen!$C$44 ->  | F260: =Eingabevariablen!$D$44 -> 
A261: =IF('Hilfsblatt Output'!E119="","--",'Hilfsblatt Output'!E119) -> -- | C261: =IF('Hilfsblatt Output'!E279="","--",'Hilfsblatt Output'!E279) -> -- | F261: =IF('Hilfsblatt Output'!E428="","--",'Hilfsblatt Output'!E428) -> -- | M261: =IF((A261="--")*AND(C261="--")*AND(F261="--"),FALSE,TRUE) -> FALSE
... 7 more rows

Sheet Rechenblatt
A1: Rechenblatt
A3: Dieses Rechenblatt kann für separate Berechnungen genutzt werden und ist unabhängig von den anderen Blättern.

Sheet -->> Hilfsblätter
A2: Die folgenden Blätter sind für die Anwender des Excel Werkzeugs zwar sichtbar, aber für die Bearbeitung nicht nötig.
A4: Damit keine unabsichtlichen Fehler bei den Berechnungen vorgenommen werden, sind die folgenden Blätter geschützt.

Sheet Hilfsblatt Kostensätze Umwelt
A2: Hilfsblatt: Berechnung/Schätzung der Wirkungen: Kostensätze, Kenngrößen etc.
A4: Für den Nutzer nur zur Info. In diesem Blatt sind alle Kostensätze dargestellt
A7: Kostensätze Umweltwirkungen
A9: A. Nach Aktivitäten, Treiber
A12: 1. Energie | B12: i.) Total Umweltkosten | N12: ii.) Kosten Luftschadstoffemissionen | Z12: iii.) Kosten Treibhausgase | AL12: iv.) Kosten Lärm | AX12: v.) Kosten Beeinträchtigung von Ökosystemen | BJ12: vi.) Indirekte Kosten aus vor- und nachgelagerte Prozessen
N14: aktualisiert DS, 8.9.15 | Z14: aktualisiert DS, 8.9.15 | BJ14: aktualisiert DS, 8.9.15
A15: aktualisiert DS, 8.9.15 | B15: Kostensätze | C15: in Ct2015/kWhel | E15: Kostensätze | F15: in Ct2015 / kWhEndenergie | H15: Kostensätze | I15: in EUR2015 / Tonne | K15: Kostensätze | L15: in EUR2015 / Tonne | N15: Kostensätze | O15: in Ct2015/kWhel | Q15: Kostensätze | R15: in Ct2015 / kWhEndenergie | T15: Kostensätze | U15: in EUR2015 / Tonne | W15: Kostensätze | X15: in EUR2015 / Tonne | Z15: Kostensätze | AA15: in Ct2015/kWhel | AC15: Kostensätze | AD15: in Ct2015 / kWhEndenergie | AF15: Kostensätze | AG15: in EUR2015 / Tonne | AI15: Kostensätze | AJ15: in EUR2015 / Tonne | AL15: Kostensätze | AM15: in Ct2015/kWhel | AO15: Kostensätze | AP15: in Ct2015 / kWhEndenergie | AR15: Kostensätze | AS15: in EUR2015 / Tonne | AU15: Kostensätze | AV15: in EUR2015 / Tonne | AX15: Kostensätze | AY15: in Ct2015/kWhel | BA15: Kostensätze | BB15: in Ct2015 / kWhEndenergie | BD15: Kostensätze | BE15: in EUR2015 / Tonne | BG15: Kostensätze | BH15: in EUR2015 / Tonne | BJ15: Kostensätze | BK15: in Ct2015/kWhel | BM15: Kostensätze | BN15: in Ct2015 / kWhEndenergie | BP15: Kostensätze | BQ15: in EUR2015 / Tonne | BS15: Kostensätze | BT15: in EUR2015 / Tonne
B16: Strommix Deutschland (ohne Kernkraft) | C16: =O16+AA16+AM16+AY16+BK16 -> 7.848352807 | D16: =O16+AA16+AM16+AY16+BK16-C16 -> 0 | E16: Wärmemix Haushalte (D) | F16: =R16+AD16+AP16+BB16+BN16 -> 3.220290249 | G16: =R16+AD16+AP16+BB16+BN16-F16 -> 0 | H16: Braunkohle | I16: =F21/$G32*$H32/100 -> 484.0678312 | J16: =U16+AG16+AS16+BE16+BQ16-I16 -> 0 | K16: Mittl. Kraftstoffmix PW (Benzin, Diesel) | L16: =SUM(X16,AJ16,AV16,BH16,BT16) -> 517.0364551 | M16: =X16+AJ16+AV16+BH16+BT16-L16 -> 0 | N16: Strommix Deutschland (ohne Kernkraft) | O16: 1.307341587 | Q16: Wärmemix Haushalte (D) | R16: 0.4935088747 | T16: Braunkohle | U16: =R21/$G32*$H32/100 -> 180.1735907 | W16: Mittl. Kraftstoffmix PW (Benzin, Diesel) | X16: =0.75*X17+0.25*X18 -> 83.36839857 | Z16: Strommix Deutschland (ohne Kernkraft) | AA16: =$F$263*5.98329556048643 -> 5.98329556 | AC16: Wärmemix Haushalte (D) | AD16: =$F$263*2.11139566987204 -> 2.11139567 | AF16: Braunkohle | AG16: =$F$263*AD21/$G32*$H32/100 -> 238.272393 | AI16: Mittl. Kraftstoffmix PW (Benzin, Diesel) | AJ16: =0.75*AJ17+0.25*AJ18 -> 231.3605578 | AL16: Strommix Deutschland (ohne Kernkraft) | AO16: Wärmemix Haushalte (D) | AR16: Braunkohle | AU16: Mittl. Kraftstoffmix PW (Benzin, Diesel) | AX16: Strommix Deutschland (ohne Kernkraft) | BA16: Wärmemix Haushalte (D) | BD16: Braunkohle | BG16: Mittl. Kraftstoffmix PW (Benzin, Diesel) | BJ16: Strommix Deutschland (ohne Kernkraft) | BK16: 0.5577156593 | BM16: Wärmemix Haushalte (D) | BN16: =$R78*BN19/$R81 -> 0.6153857043 | BP16: Braunkohle | BQ16: =BN21/$G32*$H32/100 -> 65.62184748 | BS16: Mittl. Kraftstoffmix PW (Benzin, Diesel) | BT16: =0.75*BT17+0.25*BT18 -> 202.3074987
B17: Strommix Deutschland (mit Kernkraft) | C17: =O17+AA17+AM17+AY17+BK17 -> 8.753928293 | D17: =O17+AA17+AM17+AY17+BK17-C17 -> 0 | E17: Wärmemix Industrie (D) | F17: 4.34591535 | G17: =R17+AD17+AP17+BB17+BN17-F17 -> 0 | H17: Steinkohle | I17: =F21/$G33*$H33/100 -> 700.6244925 | J17: 0 | K17: Benzin | L17: =SUM(X17,AJ17,AV17,BH17,BT17) -> 471.9464613 | M17: =X17+AJ17+AV17+BH17+BT17-L17 -> 0 | N17: Strommix Deutschland (mit Kernkraft) | O17: 1.454060389 | Q17: Wärmemix Industrie (D) | R17: 0.2310054888 | T17: Steinkohle | U17: =R21/$G33*$H33/100 -> 260.7775654 | W17: Benzin | X17: =O44/$L26*10^6/100 -> 69.23809686 | Z17: Strommix Deutschland (mit Kernkraft) | AA17: =$F$263*6.81105715448427 -> 6.811057154 | AC17: Wärmemix Industrie (D) | AD17: =$F$263*3.13364054519936 -> 3.133640545 | AF17: Steinkohle | AG17: =$F$263*AD21/$G33*$H33/100 -> 344.8679373 | AI17: Benzin | AJ17: =$F$263*AA44/$L26*10^6/100 -> 227.5609987 | AL17: Strommix Deutschland (mit Kernkraft) | AO17: Wärmemix Industrie (D) | AR17: Steinkohle | AU17: Benzin | AX17: Strommix Deutschland (mit Kernkraft) | BA17: Wärmemix Industrie (D) | BD17: Steinkohle | BG17: Benzin | BJ17: Strommix Deutschland (mit Kernkraft) | BK17: 0.4888107493 | BM17: Wärmemix Industrie (D) | BN17: =$R79*BN20/$R82 -> 0.9812693157 | BP17: Steinkohle | BQ17: =BN21/$G33*$H33/100 -> 94.97898977 | BS17: Benzin | BT17: =BK44/$L26*10^6/100*2/3 -> 175.1473657 | BU17: > nur 2/3 der indirekten Effekte sind auf Kraftstoffbereitstellung zurückzuführen, Rest Infrastruktur & Fahrzeug
B18: Strommix Bahn DB | C18: 7.836209623 | D18: =O18+AA18+AM18+AY18+BK18-C18 -> 0 | H18: Erdgas | I18: =F20/$G34*$H34/100 -> 364.0068533 | J18: 0 | K18: Diesel | L18: =SUM(X18,AJ18,AV18,BH18,BT18) -> 652.3064367 | M18: =X18+AJ18+AV18+BH18+BT18-L18 -> 0 | N18: Strommix Bahn DB | O18: 1.236681246 | T18: Erdgas | U18: =R20/$G34*$H34/100 -> 19.34864679 | W18: Diesel | X18: =O43/$L27*10^6/100 -> 125.7593037 | Z18: Strommix Bahn DB | AA18: =$F$263*6.06597858018234 -> 6.06597858 | AF18: Erdgas | AG18: =$F$263*AD20/$G34*$H34/100 -> 262.4686729 | AI18: Diesel | AJ18: =$F$263*AA43/$L27*10^6/100 -> 242.759235 | AL18: Strommix Bahn DB | AR18: Erdgas | AU18: Diesel | AX18: Strommix Bahn DB | BD18: Erdgas | BG18: Diesel | BJ18: Strommix Bahn DB | BK18: 0.5335497968 | BP18: Erdgas | BQ18: =BN20/$G34*$H34/100 -> 82.18953366 | BS18: Diesel | BT18: =BK43/$L27*10^6/100*2/3 -> 283.7878979 | BU18: > nur 2/3 der indirekten Effekte sind auf Kraftstoffbereitstellung zurückzuführen, Rest Infrastruktur & Fahrzeug
B19: Strommix Europa (ohne Kernkraft) | C19: 5.079030627 | D19: 0 | E19: Heizöl / Öl | F19: =R19+AD19+AP19+BB19+BN19 -> 3.685362084 | G19: =R19+AD19+AP19+BB19+BN19-F19 -> 0 | H19: Öl, Heizöl | I19: =F19/$G35*$H35/100 -> 516.1571546 | J19: 0 | K19: Erdgas | L19: =SUM(X19,AJ19,AV19,BH19,BT19) -> 439.7791949 | M19: =X19+AJ19+AV19+BH19+BT19-L19 -> 0 | N19: Strommix Europa (ohne Kernkraft) | O19: 1.804147512 | Q19: Heizöl / Öl | R19: 0.5647810459 | T19: Öl, Heizöl | U19: =R19/$G35*$H35/100 -> 79.10098682 | W19: Erdgas | X19: =($L$31*M69+$L$32*M70+$L$33*M71+$L$34*M72+$L$35*M73)/$L$28 -> 41.32014094 | Z19: Strommix Europa (ohne Kernkraft) | AA19: =$F$263*2.96268288446365 -> 2.962682884 | AC19: Heizöl / Öl | AD19: =$F$263*2.416321804725 -> 2.416321805 | AF19: Öl, Heizöl | AG19: =$F$263*AD19/$G35*$H35/100 -> 338.4204208 | AI19: Erdgas | AJ19: =$F$263*($L$30*C85)/$L$28 -> 223.3116883 | AL19: Strommix Europa (ohne Kernkraft) | AO19: Heizöl / Öl | AR19: Öl, Heizöl | AU19: Erdgas | AX19: Strommix Europa (ohne Kernkraft) | BA19: Heizöl / Öl | BD19: Öl, Heizöl | BG19: Erdgas | BJ19: Strommix Europa (ohne Kernkraft) | BK19: 0.3122002298 | BM19: Heizöl / Öl | BN19: 0.7042592333 | BP19: Öl, Heizöl | BQ19: =BN19/$G35*$H35/100 -> 98.63574696 | BS19: Erdgas | BT19: =BT17 -> 175.1473657 | BU19: Default-Wert Benzin (mangels anderer Datengrundlagen)
B20: Strommix Europa (mit Kernkraft) | C20: 7.425483372 | D20: 0 | E20: Erdgas | F20: 2.536305817 | G20: 0 | H20: Holz (Stück) | I20: =F23/$G36*$H36/100 -> 99.12128445 | J20: 0 | N20: Strommix Europa (mit Kernkraft) | O20: 2.637642562 | Q20: Erdgas | R20: 0.1348163776 | T20: Holz (Stück) | U20: =R23/$G36*$H36/100 -> 90.41120693 | Z20: Strommix Europa (mit Kernkraft) | AA20: =$F$263*4.33140772582404 -> 4.331407726 | AC20: Erdgas | AD20: =$F$263*1.828813978935 -> 1.828813979 | AF20: Holz (Stück) | AG20: =$F$263*AD23/$G36*$H36/100 -> 0.8905300668 | AL20: Strommix Europa (mit Kernkraft) | AO20: Erdgas | AR20: Holz (Stück) | AV20: nicht relevant | AX20: Strommix Europa (mit Kernkraft) | BA20: Erdgas | BD20: Holz (Stück) | BH20: nicht relevant | BJ20: Strommix Europa (mit Kernkraft) | BK20: 0.4564330845 | BM20: Erdgas | BN20: 0.5726754603 | BP20: Holz (Stück) | BQ20: =BN23/$G36*$H36/100 -> 7.819547451
B21: Braunkohle | C21: 12.02500459 | D21: 0 | E21: Braunkohle, Steinkohle | F21: 6.793934472 | G21: 0 | H21: Holz (Pellets) | I21: =F23/$G37*$H37/100 -> 96.90757576 | J21: 0 | N21: Braunkohle | O21: 2.187719925 | Q21: Braunkohle, Steinkohle | R21: 2.52875215 | T21: Holz (Pellets) | U21: =R23/$G37*$H37/100 -> 88.39202331 | Z21: Braunkohle | AA21: =$F$263*9.59659175302494 -> 9.596591753 | AC21: Braunkohle, Steinkohle | AD21: =$F$263*3.3441739371 -> 3.344173937 | AF21: Holz (Pellets) | AG21: =$F$263*AD23/$G37*$H37/100 -> 0.8706415619 | AL21: Braunkohle | AO21: Braunkohle, Steinkohle | AR21: Holz (Pellets) | AX21: Braunkohle | BA21: Braunkohle, Steinkohle | BD21: Holz (Pellets) | BJ21: Braunkohle | BK21: 0.2406929123 | BM21: Braunkohle, Steinkohle | BN21: 0.9210083857 | BP21: Holz (Pellets) | BQ21: =BN23/$G37*$H37/100 -> 7.644910891
B22: Steinkohle | C22: 9.966734443 | D22: 0 | E22: Fernwärme | F22: 3.87030085 | G22: 0 | N22: Steinkohle | O22: 1.551994633 | Q22: Fernwärme | R22: 0.737695304 | Z22: Steinkohle | AA22: =$F$263*7.33303891951459 -> 7.33303892 | AC22: Fernwärme | AD22: =$F$263*2.60412752252445 -> 2.604127523 | AL22: Steinkohle | AO22: Fernwärme | AS22: nicht relevant | AX22: Steinkohle | BA22: Fernwärme | BE22: nicht relevant | BJ22: Steinkohle | BK22: 1.08170089 | BM22: Fernwärme | BN22: 0.5284780237
B23: Erdgas | C23: 5.466052855 | D23: 0 | E23: Holzpellets, feste Biomasse (Haushalte) | F23: 1.845858586 | G23: 0 | N23: Erdgas | O23: 0.6950660347 | Q23: Holzpellets, feste Biomasse (Haushalte) | R23: 1.683657587 | Z23: Erdgas | AA23: =$F$263*3.75100278302572 -> 3.751002783 | AC23: Holzpellets, feste Biomasse (Haushalte) | AD23: =$F$263*0.0165836487989764 -> 0.0165836488 | AL23: Erdgas | AO23: Holzpellets, feste Biomasse (Haushalte) | AX23: Erdgas | BA23: Holzpellets, feste Biomasse (Haushalte) | BJ23: Erdgas | BK23: 1.019984038 | BM23: Holzpellets, feste Biomasse (Haushalte) | BN23: 0.1456173503
B24: Öl | C24: 8.934665956 | D24: 0 | E24: Feste Biomasse / Holz (Industrie) | F24: 0.603024249 | G24: 0 | K24: Treibstoffverbrauch PKW | N24: Öl | O24: 1.917256556 | Q24: Feste Biomasse / Holz (Industrie) | R24: 0.3665148111 | Z24: Öl | AA24: =$F$263*5.49202152584589 -> 5.492021526 | AC24: Feste Biomasse / Holz (Industrie) | AD24: =$F$263*0.00173481176171645 -> 0.001734811762 | AL24: Öl | AO24: Feste Biomasse / Holz (Industrie) | AX24: Öl | BA24: Feste Biomasse / Holz (Industrie) | BJ24: Öl | BK24: 1.525387874 | BM24: Feste Biomasse / Holz (Industrie) | BN24: 0.2347746262
B25: Kernenergie | C25: 12.02500459 | D25: 0 | E25: Solarthermie | F25: 1.179353537 | G25: 0 | K25: l/100 km | L25: g/Fzkm | N25: Kernenergie | O25: 2.187719925 | Q25: Solarthermie | R25: 0 | Z25: Kernenergie | AA25: =$F$263*9.59659175302494 -> 9.596591753 | AC25: Solarthermie | AD25: =$F$263*0 -> 0 | AL25: Kernenergie | AO25: Solarthermie | AX25: Kernenergie | BA25: Solarthermie | BJ25: Kernenergie | BK25: 0.2406929123 | BM25: Solarthermie | BN25: 1.179353537
B26: Wasserkraft | C26: 0.1899333699 | D26: 0 | E26: Geothermie | F26: 2.290344832 | G26: 0 | J26: Benzin | K26: 8.626666667 | L26: 64.7 | N26: Wasserkraft | O26: 0 | Q26: Geothermie | R26: 0 | Z26: Wasserkraft | AA26: =$F$263*0 -> 0 | AC26: Geothermie | AD26: =$F$263*0 -> 0 | AL26: Wasserkraft | AO26: Geothermie | AX26: Wasserkraft | BA26: Geothermie | BJ26: Wasserkraft | BK26: 0.1899333699 | BM26: Geothermie | BN26: 2.290344832
B27: Windenergie | C27: 0.2785420455 | D27: 0 | E27: Biogas-Mix (v.a. BHKW) | F27: 3.454795375 | G27: 0 | J27: Diesel | K27: 6.373493976 | L27: 52.9 | N27: Windenergie | O27: 0 | Q27: Biogas-Mix (v.a. BHKW) | R27: 1.937296494 | Z27: Windenergie | AA27: =$F$263*0 -> 0 | AC27: Biogas-Mix (v.a. BHKW) | AD27: =$F$263*0.327704186700874 -> 0.3277041867 | AL27: Windenergie | AO27: Biogas-Mix (v.a. BHKW) | AX27: Windenergie | BA27: Biogas-Mix (v.a. BHKW) | BJ27: Windenergie | BK27: 0.2785420455 | BM27: Biogas-Mix (v.a. BHKW) | BN27: 1.189794694
B28: Photovoltaik | C28: 1.266678726 | D28: 0 | E28: Flüssige Biomasse (diverse Nutzungen) | F28: 2.703305189 | G28: 0 | J28: Erdgas | L28: 53.9 | N28: Photovoltaik | O28: 0 | Q28: Flüssige Biomasse (diverse Nutzungen) | R28: 0.8213360266 | Z28: Photovoltaik | AA28: =$F$263*0 -> 0 | AC28: Flüssige Biomasse (diverse Nutzungen) | AD28: =$F$263*0.034324362117727 -> 0.03432436212 | AL28: Photovoltaik | AO28: Flüssige Biomasse (diverse Nutzungen) | AX28: Photovoltaik | BA28: Flüssige Biomasse (diverse Nutzungen) | BJ28: Photovoltaik | BK28: 1.266678726 | BM28: Flüssige Biomasse (diverse Nutzungen) | BN28: 1.8476448
B29: Geothermie | C29: 3.96482693 | D29: 0 | E29: Flüssige Biomasse (Industrie) | F29: 1.806026855 | G29: 0 | J29: Emissionen Erdgas | L29: g/Fzkm | N29: Geothermie | O29: 0 | Q29: Flüssige Biomasse (Industrie) | R29: 1.784064761 | Z29: Geothermie | AA29: =$F$263*0 -> 0 | AC29: Flüssige Biomasse (Industrie) | AD29: =$F$263*0.020033442 -> 0.020033442 | AL29: Geothermie | AO29: Flüssige Biomasse (Industrie) | AX29: Geothermie | BA29: Flüssige Biomasse (Industrie) | BJ29: Geothermie | BK29: 3.96482693 | BM29: Flüssige Biomasse (Industrie) | BN29: 0.001928652271
B30: Feste Biomasse (v.a. Holz) | C30: 2.004870887 | D30: 0 | J30: CO2 | L30: 133 | N30: Feste Brennstoffe/Biomasse (z.B. Holz) | O30: 1.794871916 | Z30: Feste Biomasse (v.a. Holz) | AA30: =$F$263*0.0969505316923646 -> 0.09695053169 | AL30: Feste Brennstoffe/Biomasse (z.B. Holz) | AP30: nicht relevant | AX30: Feste Brennstoffe/Biomasse (z.B. Holz) | BB30: nicht relevant | BJ30: Feste Biomasse (v.a. Holz) | BK30: 0.1130484399
B31: Flüssige Biomasse | C31: 7.773598893 | D31: 0 | G31: Wirkungsgrad | H31: Heizwert (kWh/t) | J31: PM10 | L31: 0.038 | N31: Flüssige Biomasse | O31: 1.53585284 | Z31: Flüssige Biomasse | AA31: =$F$263*0.0710773425 -> 0.0710773425 | AL31: Flüssige Biomasse | AX31: Flüssige Biomasse | BJ31: Flüssige Biomasse | BK31: 6.16666871
B32: Biogas | C32: 5.757190781 | D32: 0 | F32: Braunkohle | G32: 0.8 | H32: =4275/0.75 -> 5700 | I32: =20*$G$38 -> 5555.555556 | J32: PM2.5 | L32: 0.002 | N32: Biogas | O32: 3.228378038 | Z32: Biogas | AA32: =$F$263*0.546097617328925 -> 0.5460976173 | AL32: Biogas | AX32: Biogas | BJ32: Biogas | BK32: 1.982715125
B33: Klär- / Deponiegas | C33: 3.774475655 | D33: 0 | F33: Steinkohle | G33: 0.8 | H33: =6600/0.8 -> 8250 | I33: =30*$G$38 -> 8333.333333 | J33: NOx | L33: 0.056 | N33: Klär- / Deponiegas | O33: 3.228378038 | Z33: Klär- / Deponiegas | AA33: =$F$263*0.546097617328925 -> 0.5460976173 | AL33: Klär- / Deponiegas | AX33: Klär- / Deponiegas | BJ33: Klär- / Deponiegas | BK33: 0
C34: Quelle: UBA Methodenkonvention (UBA, IER 2013) | F34: Erdgas | G34: 0.9 | H34: =46.5*$G$38 -> 12916.66667 | I34: =9.4/0.0008 -> 11750 | J34: SO2 | L34: 0.001 | O34: Quelle: UBA Methodenkonvention (UBA, IER 2013) | AA34: Quelle: UBA Methodenkonvention (UBA, IER 2013) | AM34: nicht relevant | AY34: nicht relevant | BK34: Quelle: UBA Methodenkonvention (UBA, IER 2013)
F35: Öl | G35: 0.85 | H35: =10000/0.84 -> 11904.7619 | I35: =41.8*$G$38 -> 11611.11111 | J35: NMVOC | L35: 0.015 | O35: Aktualisiert auf 2015: Teuerung | AA35: Aktualisiert auf 2015: Entwicklung CO2-Kostensatz (80 -> 90.5 EUR/t) | BK35: Aktualisiert auf 2015: Teuerung
A36: 2. Verkehr | F36: Holz (Stück) | G36: 0.8 | H36: =1800/0.419 -> 4295.942721 | J36: NH3 | L36: 0
F37: Holz (Pellets) | G37: 0.9 | H37: =2835/0.6 -> 4725 | J37: Quelle: Handbuch Emissionsfaktoren Strassenverkehr (Infras 2010)
F38: 1GJ | G38: =1000/3.6 -> 277.7777778 | H38: kWh
N40: aktualisiert DS, 8.9.15 | Z40: aktualisiert DS, 8.9.15 | AL40: aktualisiert DS, 8.9.15 | AX40: aktualisiert DS, 8.9.15 | BJ40: aktualisiert DS, 8.9.15
C41: in Cent2015/Fahrzeug-km | O41: in Cent2015/Fahrzeug-km | AA41: in Cent2015/Fahrzeug-km | AM41: in Cent2015/Fahrzeug-km | AY41: in Cent2015/Fahrzeug-km | BK41: in Cent2015/Fahrzeug-km
A42: aktualisiert DS, 8.9.15 | C42: Ort unbekannt (Ø alle Strecken) | D42: Innerorts | E42: Außerorts | F42: Autobahn | O42: Ort unbekannt (Ø alle Strecken) | P42: Innerorts | Q42: Außerorts | R42: Autobahn | U42: Ort unbekannt (Ø alle Strecken) | V42: Innerorts | W42: Außerorts | X42: Autobahn | AA42: Ort unbekannt (Ø alle Strecken) | AB42: Innerorts | AC42: Außerorts | AD42: Autobahn | AG42: Ort unbekannt (Ø alle Strecken) | AH42: Innerorts | AI42: Außerorts | AJ42: Autobahn | AM42: Ort unbekannt (Ø alle Strecken) | AN42: Innerorts | AO42: Außerorts | AP42: Autobahn | AY42: Ort unbekannt (Ø alle Strecken) | AZ42: Innerorts | BA42: Außerorts | BB42: Autobahn | BK42: Ort unbekannt (Ø alle Strecken) | BL42: Innerorts | BM42: Außerorts | BN42: Autobahn | BT42: Effizienzsteigerung (Senkung Treibstoffverbrauch) gegenüber 2015
B43: PKW, Diesel | C43: =O43+AA43+AM43+AY43+BK43 -> 5.078602084 | D43: =P43+AB43+AN43+AZ43+BL43 -> 6.756809732 | E43: =Q43+AC43+AO43+BA43+BM43 -> 3.880430601 | F43: =R43+AD43+AP43+BB43+BN43 -> 4.224828496 | H43: =C43/O62-1 -> -0.1265080977 | I43: =D43/P62-1 -> -0.1225250912 | J43: -0.1013015614 | K43: -0.15476138 | N43: PKW, Diesel | O43: 0.6652667167 | P43: 0.9246140031 | Q43: 0.4368117941 | R43: 0.5881594925 | U43: -0.6134615714 | V43: -0.5971716096 | W43: -0.6056996339 | X43: -0.639272815 | Z43: PKW, Diesel | AA43: =$F$263*1.28419635326846 -> 1.284196353 | AB43: =$F$263*1.43018236000343 -> 1.43018236 | AC43: =$F$263*1.09173923048717 -> 1.09173923 | AD43: =$F$263*1.29246119028056 -> 1.29246119 | AG43: -0.05937433722 | AH43: -0.06879720988 | AI43: -0.05175055998 | AJ43: -0.05665857119 | AL43: PKW, Diesel | AM43: 0.7891762436 | AN43: 2.076779588 | AO43: 0 | AP43: 0 | AX43: PKW, Diesel | AY43: 0.08810580072 | AZ43: 0.08810580072 | BA43: 0.08810580072 | BB43: 0.08810580072 | BJ43: PKW, Diesel | BK43: 2.25185697 | BL43: 2.23712798 | BM43: 2.263773775 | BN43: 2.256102012 | BT43: Basis Emissionsfaktoren PKW aus dem Handbuch Emissionsfaktoren für den Strassenverkehr (INFRAS, UBA 2012)
B44: PKW, Benzin | C44: =O44+AA44+AM44+AY44+BK44 -> 4.497377377 | D44: 5.889027568 | E44: 3.331660279 | F44: 3.919233646 | H44: =C44/O63-1 -> -0.001509695747 | I44: =D44/P63-1 -> -0.001259364819 | J44: =E44/Q63-1 -> -0.005156183371 | K44: =F44/R63-1 -> -0.008483190387 | N44: PKW, Benzin | O44: 0.4479704867 | P44: 0.5158564698 | Q44: 0.3168793905 | R44: 0.4664771115 | U44: -0.3071445473 | V44: -0.3423741786 | W44: -0.3206811714 | X44: -0.2906919892 | Z44: PKW, Benzin | AA44: =$F$263*1.47231966174756 -> 1.472319662 | AB44: =$F$263*1.52107582877005 -> 1.521075829 | AC44: =$F$263*1.21871985782722 -> 1.218719858 | AD44: =$F$263*1.66032565494197 -> 1.660325655 | AG44: -0.07836611035 | AH44: -0.08890020588 | AI44: -0.07154981084 | AJ44: -0.07458589137 | AL44: PKW, Benzin | AM44: 0.7891762436 | AN44: 2.076779588 | AO44: 0 | AP44: 0 | AX44: PKW, Benzin | AY44: 0.08810580072 | AZ44: 0.08810580072 | BA44: 0.08810580072 | BB44: 0.08810580072 | BJ44: PKW, Benzin | BK44: 1.699805184 | BL44: 1.687209881 | BM44: 1.70795523 | BN44: 1.704325079 | BT44: 2015 | BU44: 0
B45: Leichte Nutzfahrzeuge, Diesel | C45: 10.22481065 | D45: 17.07934398 | E45: 5.355379897 | F45: 6.430394189 | H45: -0.1386279901 | I45: -0.08137372793 | J45: -0.194882126 | K45: -0.2296698315 | N45: Leichte Nutzfahrzeuge, Diesel | O45: 2.236388284 | P45: 2.661913566 | Q45: 1.49628954 | R45: 2.173632668 | U45: -0.5007818256 | V45: -0.4975652212 | W45: -0.5035567134 | X45: -0.5029681937 | Z45: Leichte Nutzfahrzeuge, Diesel | AA45: =$F$263*1.76202744781419 -> 1.762027448 | AB45: =$F$263*1.73831337951466 -> 1.73831338 | AC45: =$F$263*1.58166103734748 -> 1.581661037 | AD45: =$F$263*1.99385746635502 -> 1.993857466 | AG45: -0.1049795347 | AH45: -0.09545857446 | AI45: -0.1069765073 | AJ45: -0.1163808458 | AL45: Leichte Nutzfahrzeuge, Diesel | AM45: 3.945881218 | AN45: 10.38389794 | AO45: 0 | AP45: 0 | AX45: Leichte Nutzfahrzeuge, Diesel | AY45: 0.1258654296 | AZ45: 0.1258654296 | BA45: 0.1258654296 | BB45: 0.1258654296 | BJ45: Leichte Nutzfahrzeuge, Diesel | BK45: 2.15464827 | BL45: 2.16935366 | BM45: 2.15156389 | BN45: 2.137038625 | BT45: 2020 | BU45: -0.08206701214
B46: Leichte Nutzfahrzeuge, Benzin | C46: 8.630716608 | D46: 15.29644264 | E46: 4.219048963 | F46: 4.70589102 | H46: -0.0003704605832 | I46: 0.02647320393 | J46: -0.04109851003 | K46: -0.05855479616 | N46: Leichte Nutzfahrzeuge, Benzin | O46: 0.9636820534 | P46: 1.080226648 | Q46: 0.7332499826 | R46: 0.958974175 | U46: -0.2961395607 | V46: -0.3037060235 | W46: -0.2820597054 | X46: -0.2983456586 | Z46: Leichte Nutzfahrzeuge, Benzin | AA46: =$F$263*1.55468750378347 -> 1.554687504 | AB46: =$F$263*1.66059427804766 -> 1.660594278 | AC46: =$F$263*1.31881890680447 -> 1.318818907 | AD46: =$F$263*1.58939405907998 -> 1.589394059 | AG46: -0.09928356939 | AH46: -0.09567439476 | AI46: -0.09893058225 | AJ46: -0.1054222891 | AL46: Leichte Nutzfahrzeuge, Benzin | AM46: 3.945881218 | AN46: 10.38389794 | AO46: 0 | AP46: 0 | AX46: Leichte Nutzfahrzeuge, Benzin | AY46: 0.1258654296 | AZ46: 0.1258654296 | BA46: 0.1258654296 | BB46: 0.1258654296 | BJ46: Leichte Nutzfahrzeuge, Benzin | BK46: 2.040600404 | BL46: 2.045858344 | BM46: 2.041114644 | BN46: 2.031657356 | BT46: 2025 | BU46: -0.1572550557
B47: Schwere Nutzfahrzeuge, Diesel | C47: 24.17635152 | D47: 39.9082383 | E47: 16.17393543 | F47: 15.90960467 | H47: -0.1128493589 | I47: -0.1054253451 | J47: -0.1138441879 | K47: -0.1298956445 | N47: Schwere Nutzfahrzeuge, Diesel | O47: 3.626098818 | P47: 7.422343338 | Q47: 3.145212937 | R47: 2.33202084 | U47: -0.6011614291 | V47: -0.5330101958 | W47: -0.5480706823 | X47: -0.6380941507 | Z47: Schwere Nutzfahrzeuge, Diesel | AA47: =$F$263*6.14252658056603 -> 6.142526581 | AB47: =$F$263*6.19966912378469 -> 6.199669124 | AC47: =$F$263*5.86341234426653 -> 5.863412344 | AD47: =$F$263*6.42803805554259 -> 6.428038056 | AG47: 0.008518531463 | AH47: 0.01929424201 | AI47: 0.01040704293 | AJ47: 0.00687952053 | AL47: Schwere Nutzfahrzeuge, Diesel | AM47: 7.250855668 | AN47: 19.08119913 | AO47: 0 | AP47: 0 | AX47: Schwere Nutzfahrzeuge, Diesel | AY47: 0.4153559177 | AZ47: 0.4153559177 | BA47: 0.4153559177 | BB47: 0.4153559177 | BJ47: Schwere Nutzfahrzeuge, Diesel | BK47: 6.741514539 | BL47: 6.789670798 | BM47: 6.749954228 | BN47: 6.734189858 | BT47: 2030 | BU47: -0.2232379496
B48: Bus, Diesel | C48: 30.77930329 | D48: 46.09333605 | E48: 22.62791444 | F48: 20.72935344 | H48: -0.1537457053 | I48: -0.1529340511 | J48: -0.1267733796 | K48: -0.1147332219 | N48: Bus, Diesel | O48: 11.23970777 | P48: 18.29565166 | Q48: 7.823767544 | R48: 6.857324471 | U48: -0.4463279477 | V48: -0.4179572361 | W48: -0.4350979221 | X48: -0.4240701334 | Z48: Bus, Diesel | AA48: =$F$263*8.19085141451596 -> 8.190851415 | AB48: =$F$263*10.0517681113118 -> 10.05176811 | AC48: =$F$263*7.35833158279168 -> 7.358331583 | AD48: =$F$263*6.47942609972911 -> 6.4794261 | AG48: 0.03230464265 | AH48: 0.02364416101 | AI48: 0.0414120715 | AJ48: 0.03012915875 | AL48: Bus, Diesel | AM48: 3.945881218 | AN48: 10.38389794 | AO48: 0 | AP48: 0 | AX48: Bus, Diesel | AY48: 0.1762116014 | AZ48: 0.1762116014 | BA48: 0.1762116014 | BB48: 0.1762116014 | BJ48: Bus, Diesel | BK48: 7.226651278 | BL48: 7.185806736 | BM48: 7.269603711 | BN48: 7.216391266
B49: Krafträder, Benzin 4-Takt | C49: 4.207592956 | D49: 6.592921949 | E49: 2.174223993 | F49: 3.26526554 | H49: 0.05855491229 | I49: 0.06420279588 | J49: 0.04524240338 | K49: 0.06455489177 | N49: Krafträder, Benzin 4-Takt | O49: 0.9629094326 | P49: 0.8419929924 | Q49: 0.663909846 | R49: 1.426697884 | U49: -0.09972008025 | V49: -0.1251072962 | W49: -0.1255063437 | X49: -0.02501020652 | Z49: Krafträder, Benzin 4-Takt | AA49: =$F$263*1.03162069993415 -> 1.0316207 | AB49: =$F$263*0.956308825448628 -> 0.9563088254 | AC49: =$F$263*0.876997353364731 -> 0.8769973534 | AD49: =$F$263*1.21579563782872 -> 1.215795638 | AG49: -0.002534930203 | AH49: 0.01339574846 | AI49: -0.006030663612 | AJ49: -0.03248248384 | AL49: Krafträder, Benzin 4-Takt | AM49: 1.578352487 | AN49: 4.153559177 | AO49: 0 | AP49: 0 | AX49: Krafträder, Benzin 4-Takt | AY49: 0.03775962888 | AZ49: 0.03775962888 | BA49: 0.03775962888 | BB49: 0.03775962888 | BJ49: Krafträder, Benzin 4-Takt | BK49: 0.5969507071 | BL49: 0.6033013259 | BM49: 0.595557165 | BN49: 0.5850123897
B50: Krafträder, Benzin 2-Takt | C50: 4.383160676 | D50: 6.805812357 | E50: 2.413931019 | F50: 3.288613624 | H50: 0.08354671649 | I50: 0.07982169195 | J50: 0.08721231571 | K50: 0.08218844829 | N50: Krafträder, Benzin 2-Takt | O50: 1.100760845 | P50: 1.134975159 | Q50: 0.8577175636 | R50: 1.334671581 | U50: 0.02566225249 | V50: 0.01465227558 | W50: 0.02191125812 | X50: 0.04941208167 | Z50: Krafträder, Benzin 2-Takt | AA50: =$F$263*0.780373348102188 -> 0.7803733481 | AB50: =$F$263*0.584130577438738 -> 0.5841305774 | AC50: =$F$263*0.631121137970146 -> 0.631121138 | AD50: =$F$263*1.05151153682054 -> 1.051511537 | AG50: -0.0182295103 | AH50: -0.002384325421 | AI50: -0.01585724044 | AJ50: -0.05376113296 | AL50: Krafträder, Benzin 2-Takt | AM50: 1.578352487 | AN50: 4.153559177 | AO50: 0 | AP50: 0 | AX50: Krafträder, Benzin 2-Takt | AY50: 0.03775962888 | AZ50: 0.03775962888 | BA50: 0.03775962888 | BB50: 0.03775962888 | BJ50: Krafträder, Benzin 2-Takt | BK50: 0.8859143663 | BL50: 0.8953878151 | BM50: 0.8873326885 | BN50: 0.8646708774 | BT50: Effizienzsteigerung (Senkung Treibstoffverbrauch) gegenüber 2010
B51: Personenzug, Diesel | C51: 265.3952869 | D51: 370.7626357 | E51: 227.2526217 | H51: -0.002411306243 | I51: -0.002767665934 | J51: -0.005888888623 | N51: Personenzug, Diesel | O51: 166.6127994 | P51: 239.462311 | Q51: 148.4004215 | U51: -0.1 | V51: -0.1 | W51: -0.1 | Z51: Personenzug, Diesel | AA51: =$F$263*31.3901567887406 -> 31.39015679 | AB51: =$F$263*31.3901567887406 -> 31.39015679 | AC51: =$F$263*31.3901567887406 -> 31.39015679 | AG51: -0.05 | AH51: -0.05 | AI51: -0.05 | AJ51: -0.05 | AL51: Personenzug, Diesel | AM51: 19.93028731 | AN51: 52.44812451 | AO51: 0 | AX51: Personenzug, Diesel | AY51: 1.950914159 | AZ51: 1.950914159 | BA51: 1.950914159 | BJ51: Personenzug, Diesel | BK51: 45.51112921 | BL51: 45.51112921 | BM51: 45.51112921 | BT51: Basis Emissionsfaktoren PKW aus dem Handbuch Emissionsfaktoren für den Strassenverkehr (INFRAS, UBA 2012)
B52: Personenzug, elektrisch | C52: 134.8378741 | D52: 171.2594502 | E52: 113.9316521 | H52: 0.06989156476 | I52: 0.06924471003 | J52: 0.06982663411 | N52: Personenzug, elektrisch | O52: 12.31544144 | P52: 16.21918033 | Q52: 11.33950672 | U52: -0.05 | V52: -0.05 | W52: -0.05 | Z52: Personenzug, elektrisch | AA52: =$F$263*54.5023622471616 -> 54.50236225 | AB52: =$F$263*54.5023622471616 -> 54.50236225 | AC52: =$F$263*54.5023622471616 -> 54.50236225 | AG52: -0.03 | AH52: -0.03 | AI52: -0.03 | AJ52: -0.03 | AL52: Personenzug, elektrisch | AM52: 19.93028731 | AN52: 52.44812451 | AO52: 0 | AX52: Personenzug, elektrisch | AY52: 1.950914159 | AZ52: 1.950914159 | BA52: 1.950914159 | BJ52: Personenzug, elektrisch | BK52: 46.13886893 | BL52: 46.13886893 | BM52: 46.13886893 | BT52: 2010 | BU52: 0
B53: Güterzug, Diesel | C53: 721.0023583 | D53: 1023.329035 | E53: 619.8763003 | H53: -0.009979785834 | I53: -0.01039840745 | J53: -0.01294868433 | N53: Güterzug, Diesel | O53: 530.459333 | P53: 762.3970266 | Q53: 472.4749096 | U53: -0.1 | V53: -0.1 | W53: -0.1 | Z53: Güterzug, Diesel | AA53: =$F$263*99.9393472639414 -> 99.93934726 | AB53: =$F$263*99.9393472639414 -> 99.93934726 | AC53: =$F$263*99.9393472639414 -> 99.93934726 | AG53: -0.05 | AH53: -0.05 | AI53: -0.05 | AJ53: -0.05 | AL53: Güterzug, Diesel | AM53: 43.14163465 | AN53: 113.5306175 | AO53: 0 | AX53: Güterzug, Diesel | AY53: 1.950914159 | AZ53: 1.950914159 | BA53: 1.950914159 | BJ53: Güterzug, Diesel | BK53: 45.51112921 | BL53: 45.51112921 | BM53: 45.51112921 | BT53: 2015 | BU53: -0.082
B54: Güterzug, elektrisch | C54: 224.2125829 | D54: 302.3707297 | E54: 179.1286573 | H54: 0.07375651142 | I54: 0.07207785191 | J54: 0.07459246973 | N54: Güterzug, elektrisch | O54: 24.51020514 | P54: 32.27936909 | Q54: 22.56791416 | U54: -0.05 | V54: -0.05 | W54: -0.05 | Z54: Güterzug, elektrisch | AA54: =$F$263*108.47096002965 -> 108.47096 | AB54: =$F$263*108.47096002965 -> 108.47096 | AC54: =$F$263*108.47096002965 -> 108.47096 | AG54: -0.03 | AH54: -0.03 | AI54: -0.03 | AJ54: -0.03 | AL54: Güterzug, elektrisch | AM54: 43.14163465 | AN54: 113.5306175 | AO54: 0 | AX54: Güterzug, elektrisch | AY54: 1.950914159 | AZ54: 1.950914159 | BA54: 1.950914159 | BJ54: Güterzug, elektrisch | BK54: 46.13886893 | BL54: 46.13886893 | BM54: 46.13886893 | BT54: 2020 | BU54: -0.151
B55: Binnengüterschiff | C55: 908.1829974 | H55: -0.003878731472 | N55: Binnengüterschiff | O55: 601.6832682 | U55: -0.1 | Z55: Binnengüterschiff | AA55: =$F$263*190.382733410719 -> 190.3827334 | AG55: -0.05 | AH55: -0.05 | AI55: -0.05 | AJ55: -0.05 | AL55: Binnengüterschiff | AM55: 0 | AX55: Binnengüterschiff | AY55: 16.20337323 | BJ55: Binnengüterschiff | BK55: 99.91362263 | BT55: 2025 | BU55: -0.214
B56: Luftverkehr, Europa-/Kontinentalflug | C56: 323.5935712 | H56: 0.06196228936 | N56: Luftverkehr, Europa-/Kontinentalflug | O56: 14.29304198 | U56: -0.1 | Z56: Luftverkehr, Europa-/Kontinentalflug | AA56: =$F$263*236.312201271017 -> 236.3122013 | AG56: -0.05 | AH56: -0.05 | AI56: -0.05 | AJ56: -0.05 | AL56: Luftverkehr, Europa-/Kontinentalflug | AM56: 6.935515945 | AX56: Luftverkehr, Europa-/Kontinentalflug | AY56: 4.118028265 | BJ56: Luftverkehr, Europa-/Kontinentalflug | BK56: 61.93478375 | BT56: 2030 | BU56: -0.271
C57: Quelle: Strassen-/Schienenverkehr: UBA Methodenkonvention (UBA, IER 2013) | O57: Quelle: Strassen-/Schienenverkehr: UBA Methodenkonvention (UBA, IER 2013) | AA57: Quelle: Strassen-/Schienenverkehr: UBA Methodenkonvention (UBA, IER 2013) | AM57: Quelle: Strassen-/Schienenverkehr: UBA Methodenkonvention (UBA, IER 2013) | AY57: Quelle: Strassen-/Schienenverkehr: UBA Methodenkonvention (UBA, IER 2013) | BK57: Quelle: Strassen-/Schienenverkehr: UBA Methodenkonvention (UBA, IER 2013)
C58: Schiff-/Luftverkehr: CE, INFRAS, ISI 2011 | O58: Schiff-/Luftverkehr: CE, INFRAS, ISI 2011 | AA58: Schiff-/Luftverkehr: CE, INFRAS, ISI 2011 | AM58: Schiff-/Luftverkehr: CE, INFRAS, ISI 2011 | AY58: Schiff-/Luftverkehr: CE, INFRAS, ISI 2011 | BK58: Schiff-/Luftverkehr: CE, INFRAS, ISI 2011
C59: Aktualisiert auf 2015: Emissionsfaktoren PM (Feinstaub), CO2, etc.; Teuerung | O59: Aktualisiert auf 2015: Emissionsfaktoren PM (Feinstaub), Teuerung | AA59: Aktualisiert auf 2015: Emissionsfaktoren CO2, Entwicklung CO2-Kostensatz (80 -> 90.5 EUR/t) | AM59: Aktualisiert auf 2015: Teuerung | AY59: Aktualisiert auf 2015: Teuerung | BK59: Aktualisiert auf 2015: Teuerung, Emissionsfaktoren CO2 (Treibstoffverbrauch) auf 2/3 der Kosten. (> nur 2/3 der indirekten Effekte sind auf Kraftstoffbereitstellung zurückzuführen, Rest Infrastruktur & Fahrzeug)
A60: B. Nach Wirkungskategorien
O61: alte Totals 2010 (C43 bis F56)
A62: 1. Luftschadstoffemissionen | O62: 5.814137568 | P62: 7.700288252 | Q62: 4.317833919 | R62: 4.998385539
O63: 4.504177314 | P63: 5.896453354 | Q63: 3.348927965 | R63: 3.95276571
O64: 11.87037718 | P64: 18.59226597 | Q64: 6.651671848 | R64: 8.347581922
O65: 8.633915133 | P65: 14.90194053 | Q65: 4.399877368 | R65: 4.998581968
B66: in Euro2015 / Tonne | O66: 27.25168692 | P66: 44.61141179 | Q66: 18.25179636 | R66: 18.28470869
A67: aktualisiert DS, 8.9.15 | B67: Quelle: | C67: Quelle unbekannt | D67: Verkehr | F67: Kraftwerk/Energie | G67: Industrie | H67: Kleinfeuerung | O67: 36.37122255 | P67: 54.41528621 | Q67: 25.91299201 | R67: 23.41593964
B68: Schadstoff | D68: Innerorts (Durchschnitt) | E68: Außerorts | H68: Innerorts | I68: Außerorts | M68: Verkehr Mittelwert | O68: 3.974846186 | P68: 6.19517443 | Q68: 2.080114609 | R68: 3.06725897
B69: Partikel (Feinstaub) grob PM10 | C69: 42593.14004 | D69: 36155.88966 | E69: 11801.6257 | F69: 23388.6764 | G69: 43022.29007 | H69: 99240.94343 | I69: 44846.17768 | K69: =C69*100/1000 -> 4259.314004 | L69: Ct/kg | M69: =0.38*D69+0.62*E69 -> 21056.24601 | N69: EUR/t | O69: 4.045197691 | P69: 6.302718688 | Q69: 2.220294035 | R69: 3.038854858
B70: Partikel (Feinstaub) fein PM2.5 | C70: 59437.27855 | D70: 390633.8108 | E70: 131749.0579 | F70: 32829.97696 | G70: 60081.00359 | H70: 136469.7082 | I70: 62763.19125 | K70: =C70*100/1000 -> 5943.727855 | L70: Ct/kg | M70: =0.38*D70+0.62*E70 -> 230125.264 | N70: EUR/t | O70: 266.036783 | P70: 371.7916307 | Q70: 228.5988146
B71: Stickoxide NOx | C71: 16522.27599 | D71: 16522.27599 | E71: 16522.27599 | F71: 13196.36329 | G71: 16522.27599 | H71: 16522.27599 | I71: 16522.27599 | K71: 1652.227599 | L71: Ct/kg | M71: 16522.27599 | N71: EUR/t | O71: 126.0294768 | P71: 160.1686205 | Q71: 106.4954343
B72: Schwefeldioxid SO2 | C72: 14161.95085 | D72: 14161.95085 | E72: 14161.95085 | F72: 13303.65079 | G72: 14161.95085 | H72: 14161.95085 | I72: 14161.95085 | K72: 1416.195085 | L72: Ct/kg | M72: 14161.95085 | N72: EUR/t | O72: 728.2703403 | P72: 1034.081839 | Q72: 628.0081799
B73: Flüchtige Kohlenwasserstoffe NMVOC | C73: 1716.600103 | D73: 1823.887609 | E73: 1823.887609 | F73: 1823.887609 | G73: 1823.887609 | H73: 1823.887609 | I73: 1823.887609 | K73: 171.6600103 | L73: Ct/kg | M73: 1823.887609 | N73: EUR/t | O73: 208.8113837 | P73: 282.0417651 | Q73: 166.6945026
B74: Ammoniak NH3 | C74: 28753.05172 | D74: 28753.05172 | E74: 28753.05172 | F74: 28753.05172 | G74: 28753.05172 | H74: 28753.05172 | I74: 28753.05172 | K74: 2875.305172 | L74: Ct/kg | M74: 28753.05172 | N74: EUR/t | O74: 911.7193118
B75: Quelle: UBA Methodenkonvention (UBA, IER 2013), aktualisiert auf 2015 (teuerungsbasiert) | O75: 304.7128645
A77: 2. Treibhausgasemissionen
N78: Strommix Deutschland (ohne Kernkraft) | O78: 7.027474237 | Q78: Wärmemix Haushalte (D) | R78: 2.9
N79: Strommix Deutschland (mit Kernkraft) | O79: 7.831725574 | Q79: Wärmemix Industrie (D) | R79: 3.9
B80: in Euro2015 / Tonne | N80: Strommix Bahn DB | O80: 7.012179068
A81: aktualisiert DS, 8.9.15 | B81: Schadstoff | C81: =Eingabevariablen!B7 -> 0 | D81: =Eingabevariablen!C7 -> 0 | E81: =Eingabevariablen!D7 -> 0 | N81: Strommix Europa (ohne Kernkraft) | O81: 4.591540968 | Q81: Heizöl / Öl | R81: 3.318815764
B82: Kohlendioxid (CO2) | C82: =B263 -> 90.5 | D82: =C263 -> 90.5 | E82: 90.5 | N82: Strommix Europa (mit Kernkraft) | O82: 6.712779193 | Q82: Erdgas | R82: 2.27606658
B83: Methan (CH4) | C83: =B264 -> 2262.5 | D83: 2262.5 | E83: 2262.5 | F83: 25 | N83: Braunkohle | O83: 10.74663787 | Q83: Braunkohle, Steinkohle | R83: 6.171611325
B84: Lachgas (N2O) | C84: =B265 -> 26969 | D84: 26969 | E84: 26969 | F84: 298 | N84: Steinkohle | O84: 8.937046041 | Q84: Fernwärme | R84: 3.482159655
B85: Treibhausgase total (in CO2-Äquivalent) | C85: =B266 -> 90.5 | D85: 90.5 | E85: 90.5 | F85: 1 | N85: Erdgas | O85: 4.914358821 | Q85: Holzpellets, feste Biomasse (Haushalte) | R85: 1.719680973
B86: Quelle: UBA Methodenkonvention (UBA, IER 2013), aktualisiert auf 2015 (Basis Studie Kuik et al. 2009) | N86: Öl | O86: 8.063628384 | Q86: Feste Biomasse / Holz (Industrie) | R86: 0.5619803733
N87: Kernenergie | O87: 10.74663787 | Q87: Solarthermie | R87: 1.09924592
N88: Wasserkraft | O88: 0.1770321412 | Q88: Geothermie | R88: 2.134773105
A89: 3. Lärmemissionen | N89: Windenergie | O89: 0.2596220705 | Q89: Biogas-Mix (v.a. BHKW) | R89: 3.204366704
N90: Photovoltaik | O90: 1.180639544 | Q90: Flüssige Biomasse (diverse Nutzungen) | R90: 2.518032219
N91: Geothermie | O91: 3.695515967 | Q91: Flüssige Biomasse (Industrie) | R91: 1.682388889
B92: in EUR2015/Person | N92: Feste Biomasse (v.a. Holz) | O92: 1.864026948
A93: aktualisiert DS, 8.9.15 | B93: Kosten pro belastete Personen je Lärmklasse (Dezibel-Klasse) | C93: Quelle: Verkehr | F93: Quelle: unbekannt | N93: Flüssige Biomasse | O93: 7.242158392
B94: Lärmbelastung (Lden (dB(A)) | C94: Strassenverkehr | D94: Schienenverkehr | E94: Luftverkehr | N94: Biogas | O94: 5.339867762
B95: 45 dB | C95: 0 | D95: 0 | E95: 0 | F95: =C95 -> 0 | N95: Klär- / Deponiegas | O95: 3.491828609
B96: 50 dB | C96: 10.72875064 | D96: 0 | E96: 17.16600103 | F96: =C96 -> 10.72875064
B97: 55 dB | C97: 54.71662827 | D97: 10.72875064 | E97: 83.684255 | F97: 54.71662827
B98: 60 dB | C98: 108.3603815 | D98: 54.71662827 | E98: 168.4413851 | F98: 108.3603815
B99: 65 dB | C99: 163.0770097 | D99: 108.3603815 | E99: 252.1256401 | F99: 163.0770097
B100: 70 dB | C100: 217.793638 | D100: 163.0770097 | E100: 336.8827701 | F100: 217.793638
B101: 75 dB | C101: 361.5588966 | D101: 306.8422683 | E101: 511.7614056 | F101: 361.5588966
B102: 80 dB | C102: 452.753277 | D102: 399.1095238 | E102: 631.9234127 | F102: 452.753277
B103: ≥81 dB | C103: 470.9921531 | D103: 416.2755249 | E103: 656.5995392 | F103: 470.9921531
B104: Quelle: UBA Methodenkonvention (UBA, IER 2013), aktualisiert auf 2015 (teuerungsbasiert)
A106: 4. Beeinträchtigung von Ökosystemen
A110: a. Flächenumwandlung, Verbauung natürlicher Flächen, Versiegelung
A112: aktualisiert DS, 8.9.15 | B112: Kosten der versiegelten Fläche (total) | C112: 30.10153584 | D112: in EUR2015 / m2 | E112: > Setzt sich zusammen aus Entsiegelungskosten aus NEEDS (2006, S. 70) plus den mittleren Ökosystem-Wiederherstellungs-kosten aus NEEDS für den Durchschnitt Deutschlands. Aktualisiert auf 2015 (teuerungsbasiert).
B113: Zins für Berechnung Jahreskosten (Annuität) | C113: 0.03 | D113: > Jahreskosten: Berechnung aus den Gesamtkosten mit 'unendlicher' Annuität, unter der Annahme, dass Flächenumwandlung dauerhaft ist. Konkret umgesetzt wird es mit einer Annuität von 100 Jahren.
B114: Kosten pro Jahr | C114: =-PMT($C$113,100,$C$112) -> 0.9526132478 | D114: EUR2015 pro m2 pro Jahr (über 100 Jahre annuisiert; siehe oben)
A116: b. Landnutzungsänderung, Nutzungsintensivierung
B118: Kosten Vollverlust eines Ökosystems bzw. einer Nutzungsform in EUR2015 / m2 | F118: > Jahreskosten: Berechnung aus den Gesamtkosten mit 'unendlicher' Annuität, unter der Annahme, dass Flächenumwandlung dauerhaft ist. Konkret umgesetzt wird es mit einer Annuität von 100 Jahren.
A119: aktualisiert DS, 8.9.15 | C119: Vollverlust, in EUR2015/m2 | D119: Sensitivitäts-werte NEEDS, in EUR2015/m2 | F119: Kosten pro Jahr, in EUR2015 pro m2 pro Jahr
B120: Durchschnitt Deutschland (alle Biotoptypen) | C120: 5.506083202 | D120: 1.337084166 | F120: =-PMT($C$113,100,$C120) -> 0.1742491755
B121: Ackerland | C121: 0.6241979764 | D121: 0 | F121: =-PMT($C$113,100,$C121) -> 0.01975378481
B122: Intensives Grünland | C122: 0.9724347422 | D122: 0.4228385824 | F122: 0.03077431739
B123: Extensiv frisches Grünland | C123: 3.423233113 | D123: 2.354182378 | F123: 0.1083339146
B124: Magerrasen, Halbtrockenrasen | C124: 10.36168641 | F124: 0.3279128279
B125: Streuwiesen | C125: 23.79179866 | F125: 0.7529311033
B126: Grünflächen Siedlungsbereich | C126: 2.378522815 | F126: 0.07527231687
B127: Obstanlagen | C127: 2.891022206 | D127: 5.03977878 | F127: 0.09149121387
B128: Reife Streuobstbestände | C128: 12.52995306 | F128: 0.3965312383
B129: Rebkultur (intensiv) | C129: 17.10302455 | F129: 0.5412537039
B130: Laubholzforste | C130: 6.182845219 | D130: 3.302712171 | F130: 0.1956664369
B131: Fichten-/Nadelforste | C131: 3.817463414 | D131: 3.302712171 | F131: 0.1208099892
B132: Nieder- /Mittelwälder | C132: 5.736050878 | D132: 3.302712171 | F132: 0.1815268857
B133: Naturnaher Wald inkl. Bruchwald | C133: 23.69324108 | F133: 0.7498120846
B134: Auewälder | C134: 69.81161578 | F134: 2.20930488
B135: Waldränder nicht natürlich | C135: 7.582362787 | F135: 0.2399565018
B136: Waldränder natürlich | C136: 17.48411384 | D136: 10.42239965 | F136: 0.5533139094
B137: Hecken Feldgehölze | C137: 20.92048797 | F137: 0.6620636931
B138: Hochmoor natürlich / naturnah | C138: 251.1772657 | F138: 7.948923009
B139: Niedermoore, Sümpfe, Großseggenrieder | C139: 12.58908761 | F139: 0.3984026495
B140: Zwergstrauchheiden | C140: 53.75330153 | F140: 1.701112774
B141: natürliche & naturnahe alpine Biotope | C141: 29.40300994 | F141: 0.930507232
C142: Quelle: Schweppe-Kraft 1998 (Daten aus Investitionsmodell, auf 2015 umgerechnet, teuerungsbasiert von 2010 auf 2015 umgerechnet)
D143: Quelle: NEEDS 2006 (Daten auf 2010 umgerechnet), aktualisiert auf 2015 (teuerungsbasiert)
A148: c. Nährstoffeintrag
A150: aktualisiert DS, 8.9.15 | B150: Kosten pro kg Stickstoff (N) | C150: in EUR2015 / kg
B151: Stickstoff-Verbindungen | C151: 7.684336859 | D151: in EUR / kg N
C152: Quelle: IER/UBA 2012 (basierend auf NEEDS 2006, Kosten pro t NH3, umgerechnet auf Tonnen N), aktualisiert auf 2015 (teuerungsbasiert)
A153: d. Schadstoffeinträge ins Meer
A155: aktualisiert DS, 8.9.15 | B155: Kosten Schadstoffeinträge ins Meer | C155: in EUR2015 pro t
B156: Stickstoffeintrag ins Meer | C156: 901.2150538 | D156: in EUR / t
B157: Abfallmenge, ins Meer | C157: 11.8016257 | D157: in EUR / t
B158: Ölmenge, ins Meer | C158: 804.6562981 | D158: 3085.588684 | E158: in EUR / t | J158: Minimalwert (805 €/t)
C159: Quelle: Interwies et al. 2012 (Arbeiten zur Meeresschutz-Rahmenrichtlinie, MSRL), aktualisiert auf 2015 (teuerungsbasiert) | J159: Maximalwert (3086 €/t)
A160: e. Zerschneidung der Landschaft durch Verkehrswege
C161: total | D161: pro Jahr
A162: aktualisiert DS, 8.9.15 (Teuerung) | B162: Kosten (zusätzlicher) Verkehrsinfrastrukturen | C162: in EUR2015 / km (km2) | D162: in EUR2015 / (km*a)
B163: Straße: Autobahn, Bundesstraße | C163: 729555.0436 | D163: =C163/60 -> 12159.25073 | E163: in EUR / km
B164: Straße: Hauptstraße | C164: 68234.85408 | D164: =C164/60 -> 1137.247568 | E164: in EUR / km
B165: Straße: Nebenstraße | C165: 48923.10292 | D165: 815.3850487 | E165: in EUR / km
B166: Schiene: mehrspurig | C166: 40876.53994 | D166: 681.2756657 | E166: in EUR / km
B167: Schiene: einspurig | C167: 22315.80133 | D167: 371.9300222 | E167: in EUR / km
B168: Flugplatz, Flughafen | C168: 31113376.86 | D168: 518556.281 | E168: in EUR / km2
C169: Quelle: CE/INFRAS/ISI 2012 (Ergebnisse für Deutschland), aktualisiert auf 2015 (teuerungsbasiert)
D170: Umgerechnet mit einer Lebensdauer von 60 Jahren
A171: 5. Emission toxischer Stoffe
A175: aktualisiert DS, 8.9.15 (Teuerung) | B175: Kosten der Emission toxischer Stoffe | C175: in EUR2015 / t | E175: Quelle:
B176: Schwermetalle:
B177: Arsen (As) | C177: 884039.4212 | D177: in EUR / t | E177: NEEDS (2008)
B178: Cadmium (Cd) | C178: 138531.138 | D178: in EUR / t | E178: NEEDS (2008)
B179: Chrom (Cr) | C179: 29361.17214 | D179: in EUR / t | E179: NEEDS (2008)
B180: Nickel (Ni) | C180: 4705.65917 | D180: in EUR / t | E180: NEEDS (2008)
B181: Quecksilber (Hg) | C181: 4156219.542 | D181: in EUR / t | E181: NEEDS (2008)
B182: Blei (Pb) | C182: 455476.0786 | D182: in EUR / t | E182: NEEDS (2008)
B183: Langlebige organische Schadstoffe (POPs):
B184: Dioxine | C184: 58250046.81 | D184: in EUR / kg | E184: NEEDS (2008)
B185: Furane | C185: 58250046.81 | D185: in EUR / kg | E185: NEEDS (2008)
B186: Formaldehyd | C186: 314.8651168 | D186: in EUR / t | E186: NEEDS (2008)
B187: Pflanzenschutzmittel | C187: 118.016257 | D187: in EUR / t | E187: Quelle: EXIOPOL (2011)
B188: Insektizide | C188: 1180.16257 | D188: in EUR / t | E188: Quelle: EXIOPOL (2011) bzw. IER (2012): Sachstandspapier toxische Stoffe für UBA-Methodenkonvention
C189: Quelle: NEEDS 2008 (Preiss, Friedrich & Klotz, 2008) & EXIOPOL (2011), aktualisiert auf 2015 (teuerungsbasiert)
A191: 6. Indirekte Effekte vor- und nachgelagerte Prozesse
A195: aktualisiert DS, 8.9.15 | B195: Kosten der Schadstoffemissionen | C195: in EUR2015 / t
B196: Partikel (Feinstaub) PM10 | C196: 25427.13902
B197: Partikel (Feinstaub) fein PM2.5 | C197: 35404.87711
B198: Stickoxide NOx | C198: 11265.18817
B199: Schwefeldioxid SO2 | C199: 10836.03815
B200: Flüchtige Kohlenwasserstoffe NMVOC | C200: 1609.312596
B201: Ammoniak NH3 | C201: 20491.91372 | D201: =D81 -> 0 | E201: =E81 -> 0
B202: Kohlendioxid (CO2) | C202: =C82 -> 90.5 | D202: =D82 -> 90.5 | E202: 90.5
B203: Methan (CH4) | C203: =C83 -> 2262.5 | D203: 2262.5 | E203: 2262.5
B204: Lachgas (N2O) | C204: 26969 | D204: 26969 | E204: 26969
B205: Treibhausgase total (in CO2-Äquivalent) | C205: 90.5 | D205: 90.5 | E205: 90.5
B206: Stickstoff-Verbindungen | C206: =$C$151*1000 -> 7684.336859
C207: Quellen:
C208: Luftschadstoffe: UBA Methodenkonvention (UBA, IER 2013), Daten für Emissionen EU-27, Quelle Industrie (Ausserorts), aktualisiert auf 2015 (teuerungsbasiert)
C209: Klimagase: UBA Methodenkonvention (UBA, IER 2013), s. oben
C210: Stickstoff: IER, UBA 2012, s. oben
A213: 9. Unfälle
B215: Soziale Unfallkosten zu Marktpreisen
C217: Werte Deutschland
B218: Kosten pro Person | C218: in EUR2010 | D218: in EUR2015
B219: Leichtverletzte | C219: 24800 | D219: =C219*$F$220 -> 26607.30159 | F219: Entwicklung HVPI Deutschland 2010 bis 2015:
B220: Schwerverletzte | C220: 307100 | D220: =C220*$F$220 -> 329479.9322 | F220: 1.072875064
B221: Todesopfer | C221: 2220000 | D221: 2381782.642 | F221: Quelle: Destatis
C222: Quelle: Update of EU handbook on external costs of transport 2014, basierend auf HEATCO D5; Kostensätze aktualisiert auf 2015 (teuerungsbasiert)
B224: Kosten pro Unfall | C224: in CHF2010 | D224: in EUR2010 | E224: in EUR2015 | G224: Umrechnung Schweiz -> Deutschland: GDP/cap PPP adjusted
B225: Strassenverkehrsunfälle generell | C225: 203748 | D225: =C225*$H$233*$H$229 -> 115822.1937 | E225: =ROUND(D225*$F$220,-2) -> 124300 | G225: GDP pro Kopf in PPP
B226: Unfälle mit Personenwagen | C226: 113445 | D226: =C226*$H$233*$H$229 -> 64488.72513 | E226: =ROUND(D226*$F$220,-2) -> 69200 | H226: 2010 | I226: 2013
B227: Unfälle mit Motorrädern | C227: 436217 | D227: =C227*$H$233*$H$229 -> 247971.0715 | E227: =ROUND(D227*$F$220,-2) -> 266000 | G227: Deutschland | H227: 29200 | I227: 32000
B228: Unfälle mit Güterschwerverkehr | C228: 76472 | D228: 43471.12511 | E228: 46600 | G228: Schweiz | H228: 37200 | I228: 40600
B229: Unfälle mit öffentl. Personenverkehr | C229: 442914 | D229: 251778.0352 | E229: 270100 | G229: D/CH | H229: =H227/H228 -> 0.7849462366 | I229: =I227/I228 -> 0.7881773399
B230: Unfälle mit Fahrrädern | C230: 950205 | D230: 540151.6952 | E230: 579500 | G230: Quelle: Eurostat 2015
B231: Unfälle mit Fussgängern | C231: 2255542 | D231: 1282181.04 | E231: 1375600
B232: Schienenverkehrsunfälle: Personenverkehr | C232: 156841 | D232: 89157.5313 | E232: 95700 | G232: Euro-Kurs | H232: Mittelwert 2010
B233: Schienenverkehrsunfälle: Güterverkehr | C233: 169759 | D233: 96500.87257 | E233: 103500 | G233: EUR/CHF | H233: 0.7242
B234: Luftverkehrsunfälle (ohne Grossereignisse) | C234: 2374997 | D234: 1350086.198 | E234: 1448500 | G234: Quelle: www.oanda.com
A238: Variation des Klimakostensatzes
... 25 more rows

Sheet Hilfsblatt Ber. Umweltkosten 1
A2: Hilfsblatt: Berechnung Umweltkosten 1 (Umweltwirkung x Kostensatz)
A4: Nicht veränderbar für Anwender. | B4: Jahr: | C4: =Eingabevariablen!$B$7 -> 0
A7: Umweltwirkungen
A9: A. Nach Aktivitäten, Treiber
A12: 1. Energie | B12: i.) Total Umweltkosten | O12: ii.) Kosten Luftschadstoffemissionen | AA12: iii.) Kosten Treibhausgase | AM12: iv.) Kosten Lärm | AY12: v.) Kosten Beeinträchtigung von Ökosystemen | BK12: vi.) Indirekte Kosten aus vor- und nachgelagerte Prozessen
B15: Kosten | C15: in EUR | E15: Kosten | F15: in EUR | H15: Kosten | I15: in EUR | K15: Kosten | M15: in EUR | O15: Kosten | P15: in EUR | R15: Kosten | S15: in EUR | U15: Kosten | V15: in EUR | X15: Kosten | Y15: in EUR | AA15: Kosten | AB15: in EUR | AD15: Kosten | AE15: in EUR | AG15: Kosten | AH15: in EUR | AJ15: Kosten | AK15: in EUR | AM15: Kosten | AN15: in EUR | AP15: Kosten | AQ15: in EUR | AS15: Kosten | AT15: in EUR | AV15: Kosten | AW15: in EUR | AY15: Kosten | AZ15: in EUR | BB15: Kosten | BC15: in EUR | BE15: Kosten | BF15: in EUR | BH15: Kosten | BI15: in EUR | BK15: Kosten | BL15: in EUR | BN15: Kosten | BO15: in EUR | BQ15: Kosten | BR15: in EUR | BT15: Kosten | BU15: in EUR
B16: Strommix Deutschland (ohne Kernkraft) | C16: =P16+AB16+AN16+AZ16+BL16 -> 0 | D16: =Eingabevariablen!$C124*'Hilfsblatt Kostensätze Umwelt'!C16/100-C16 -> 0 | E16: Wärmemix Haushalte (D) | F16: =Eingabevariablen!$C144*'Hilfsblatt Kostensätze Umwelt'!F16/100 -> 0 | G16: =S16+AE16+AQ16+BC16+BO16-F16 -> 0 | H16: Braunkohle | I16: =Eingabevariablen!$C160*'Hilfsblatt Kostensätze Umwelt'!I16 -> 0 | J16: =V16+AH16+AT16+BF16+BR16-I16 -> 0 | K16: Mittl. Kraftstoffmix PW (Benzin, Diesel) | M16: =Eingabevariablen!$C168*'Hilfsblatt Kostensätze Umwelt'!L16 -> 0 | N16: =Y16+AK16+AW16+BI16+BU16-M16 -> 0 | O16: Strommix Deutschland (ohne Kernkraft) | P16: =Eingabevariablen!$C124*'Hilfsblatt Kostensätze Umwelt'!O16/100 -> 0 | R16: Wärmemix Haushalte (D) | S16: =Eingabevariablen!$C144*'Hilfsblatt Kostensätze Umwelt'!R16/100 -> 0 | U16: Braunkohle | V16: =Eingabevariablen!$C160*'Hilfsblatt Kostensätze Umwelt'!U16 -> 0 | X16: Mittl. Kraftstoffmix PW (Benzin, Diesel) | Y16: =Eingabevariablen!$C168*'Hilfsblatt Kostensätze Umwelt'!X16 -> 0 | AA16: Strommix Deutschland (ohne Kernkraft) | AB16: =Eingabevariablen!$C124*'Hilfsblatt Kostensätze Umwelt'!AA16/100 -> 0 | AD16: Wärmemix Haushalte (D) | AE16: =Eingabevariablen!$C144*'Hilfsblatt Kostensätze Umwelt'!AD16/100 -> 0 | AG16: Braunkohle | AH16: =Eingabevariablen!$C160*'Hilfsblatt Kostensätze Umwelt'!AG16 -> 0 | AJ16: Mittl. Kraftstoffmix PW (Benzin, Diesel) | AK16: =Eingabevariablen!$C168*'Hilfsblatt Kostensätze Umwelt'!AJ16 -> 0 | AM16: Strommix Deutschland (ohne Kernkraft) | AP16: Wärmemix Haushalte (D) | AS16: Braunkohle | AV16: Mittl. Kraftstoffmix PW (Benzin, Diesel) | AY16: Strommix Deutschland (ohne Kernkraft) | BB16: Wärmemix Haushalte (D) | BE16: Braunkohle | BH16: Mittl. Kraftstoffmix PW (Benzin, Diesel) | BK16: Strommix Deutschland (ohne Kernkraft) | BL16: =Eingabevariablen!$C124*'Hilfsblatt Kostensätze Umwelt'!BK16/100 -> 0 | BN16: Wärmemix Haushalte (D) | BO16: =Eingabevariablen!$C144*'Hilfsblatt Kostensätze Umwelt'!BN16/100 -> 0 | BQ16: Braunkohle | BR16: =Eingabevariablen!$C160*'Hilfsblatt Kostensätze Umwelt'!BQ16 -> 0 | BT16: Mittl. Kraftstoffmix PW (Benzin, Diesel) | BU16: =Eingabevariablen!$C168*'Hilfsblatt Kostensätze Umwelt'!BT16 -> 0
B17: Strommix Deutschland (mit Kernkraft) | C17: =P17+AB17+AN17+AZ17+BL17 -> 0 | D17: =Eingabevariablen!$C125*'Hilfsblatt Kostensätze Umwelt'!C17/100-C17 -> 0 | E17: Wärmemix Industrie (D) | F17: =Eingabevariablen!$C145*'Hilfsblatt Kostensätze Umwelt'!F17/100 -> 0 | G17: 0 | H17: Steinkohle | I17: =Eingabevariablen!$C161*'Hilfsblatt Kostensätze Umwelt'!I17 -> 0 | J17: 0 | K17: Benzin | M17: =Eingabevariablen!$C169*'Hilfsblatt Kostensätze Umwelt'!L17 -> 0 | N17: 0 | O17: Strommix Deutschland (mit Kernkraft) | P17: =Eingabevariablen!$C125*'Hilfsblatt Kostensätze Umwelt'!O17/100 -> 0 | R17: Wärmemix Industrie (D) | S17: =Eingabevariablen!$C145*'Hilfsblatt Kostensätze Umwelt'!R17/100 -> 0 | U17: Steinkohle | V17: =Eingabevariablen!$C161*'Hilfsblatt Kostensätze Umwelt'!U17 -> 0 | X17: Benzin | Y17: =Eingabevariablen!$C169*'Hilfsblatt Kostensätze Umwelt'!X17 -> 0 | AA17: Strommix Deutschland (mit Kernkraft) | AB17: =Eingabevariablen!$C125*'Hilfsblatt Kostensätze Umwelt'!AA17/100 -> 0 | AD17: Wärmemix Industrie (D) | AE17: =Eingabevariablen!$C145*'Hilfsblatt Kostensätze Umwelt'!AD17/100 -> 0 | AG17: Steinkohle | AH17: =Eingabevariablen!$C161*'Hilfsblatt Kostensätze Umwelt'!AG17 -> 0 | AJ17: Benzin | AK17: =Eingabevariablen!$C169*'Hilfsblatt Kostensätze Umwelt'!AJ17 -> 0 | AM17: Strommix Deutschland (mit Kernkraft) | AP17: Wärmemix Industrie (D) | AS17: Steinkohle | AV17: Benzin | AY17: Strommix Deutschland (mit Kernkraft) | BB17: Wärmemix Industrie (D) | BE17: Steinkohle | BH17: Benzin | BK17: Strommix Deutschland (mit Kernkraft) | BL17: =Eingabevariablen!$C125*'Hilfsblatt Kostensätze Umwelt'!BK17/100 -> 0 | BN17: Wärmemix Industrie (D) | BO17: =Eingabevariablen!$C145*'Hilfsblatt Kostensätze Umwelt'!BN17/100 -> 0 | BQ17: Steinkohle | BR17: =Eingabevariablen!$C161*'Hilfsblatt Kostensätze Umwelt'!BQ17 -> 0 | BT17: Benzin | BU17: =Eingabevariablen!$C169*'Hilfsblatt Kostensätze Umwelt'!BT17 -> 0
B18: Strommix Bahn DB | C18: 0 | D18: =Eingabevariablen!$C126*'Hilfsblatt Kostensätze Umwelt'!C18/100-C18 -> 0 | H18: Erdgas | I18: =Eingabevariablen!$C162*'Hilfsblatt Kostensätze Umwelt'!I18 -> 0 | J18: 0 | K18: Diesel | M18: =Eingabevariablen!$C170*'Hilfsblatt Kostensätze Umwelt'!L18 -> 0 | N18: 0 | O18: Strommix Bahn DB | P18: =Eingabevariablen!$C126*'Hilfsblatt Kostensätze Umwelt'!O18/100 -> 0 | U18: Erdgas | V18: =Eingabevariablen!$C162*'Hilfsblatt Kostensätze Umwelt'!U18 -> 0 | X18: Diesel | Y18: =Eingabevariablen!$C170*'Hilfsblatt Kostensätze Umwelt'!X18 -> 0 | AA18: Strommix Bahn DB | AB18: =Eingabevariablen!$C126*'Hilfsblatt Kostensätze Umwelt'!AA18/100 -> 0 | AE18: =Eingabevariablen!$C146*'Hilfsblatt Kostensätze Umwelt'!AD18/100 -> 0 | AG18: Erdgas | AH18: =Eingabevariablen!$C162*'Hilfsblatt Kostensätze Umwelt'!AG18 -> 0 | AJ18: Diesel | AK18: =Eingabevariablen!$C170*'Hilfsblatt Kostensätze Umwelt'!AJ18 -> 0 | AM18: Strommix Bahn DB | AS18: Erdgas | AV18: Diesel | AY18: Strommix Bahn DB | BE18: Erdgas | BH18: Diesel | BK18: Strommix Bahn DB | BL18: =Eingabevariablen!$C126*'Hilfsblatt Kostensätze Umwelt'!BK18/100 -> 0 | BO18: =Eingabevariablen!$C146*'Hilfsblatt Kostensätze Umwelt'!BN18/100 -> 0 | BQ18: Erdgas | BR18: =Eingabevariablen!$C162*'Hilfsblatt Kostensätze Umwelt'!BQ18 -> 0 | BT18: Diesel | BU18: =Eingabevariablen!$C170*'Hilfsblatt Kostensätze Umwelt'!BT18 -> 0
B19: Strommix Europa (ohne Kernkraft) | C19: 0 | D19: =Eingabevariablen!$C127*'Hilfsblatt Kostensätze Umwelt'!C19/100-C19 -> 0 | E19: Heizöl / Öl | F19: =Eingabevariablen!$C147*'Hilfsblatt Kostensätze Umwelt'!F19/100 -> 0 | G19: 0 | H19: Öl, Heizöl | I19: =Eingabevariablen!$C163*'Hilfsblatt Kostensätze Umwelt'!I19 -> 0 | J19: 0 | K19: Erdgas | M19: =Eingabevariablen!$C171*'Hilfsblatt Kostensätze Umwelt'!L19 -> 0 | N19: 0 | O19: Strommix Europa (ohne Kernkraft) | P19: =Eingabevariablen!$C127*'Hilfsblatt Kostensätze Umwelt'!O19/100 -> 0 | R19: Heizöl / Öl | S19: =Eingabevariablen!$C147*'Hilfsblatt Kostensätze Umwelt'!R19/100 -> 0 | U19: Öl, Heizöl | V19: =Eingabevariablen!$C163*'Hilfsblatt Kostensätze Umwelt'!U19 -> 0 | X19: Erdgas | Y19: =Eingabevariablen!$C171*'Hilfsblatt Kostensätze Umwelt'!X19 -> 0 | AA19: Strommix Europa (ohne Kernkraft) | AB19: =Eingabevariablen!$C127*'Hilfsblatt Kostensätze Umwelt'!AA19/100 -> 0 | AD19: Heizöl / Öl | AE19: =Eingabevariablen!$C147*'Hilfsblatt Kostensätze Umwelt'!AD19/100 -> 0 | AG19: Öl, Heizöl | AH19: =Eingabevariablen!$C163*'Hilfsblatt Kostensätze Umwelt'!AG19 -> 0 | AJ19: Erdgas | AK19: =Eingabevariablen!$C171*'Hilfsblatt Kostensätze Umwelt'!AJ19 -> 0 | AM19: Strommix Europa (ohne Kernkraft) | AP19: Heizöl / Öl | AS19: Öl, Heizöl | AV19: Erdgas | AY19: Strommix Europa (ohne Kernkraft) | BB19: Heizöl / Öl | BE19: Öl, Heizöl | BH19: Erdgas | BK19: Strommix Europa (ohne Kernkraft) | BL19: =Eingabevariablen!$C127*'Hilfsblatt Kostensätze Umwelt'!BK19/100 -> 0 | BN19: Heizöl / Öl | BO19: =Eingabevariablen!$C147*'Hilfsblatt Kostensätze Umwelt'!BN19/100 -> 0 | BQ19: Öl, Heizöl | BR19: =Eingabevariablen!$C163*'Hilfsblatt Kostensätze Umwelt'!BQ19 -> 0 | BT19: Erdgas | BU19: =Eingabevariablen!$C171*'Hilfsblatt Kostensätze Umwelt'!BT19 -> 0
B20: Strommix Europa (mit Kernkraft) | C20: 0 | D20: =Eingabevariablen!$C128*'Hilfsblatt Kostensätze Umwelt'!C20/100-C20 -> 0 | E20: Erdgas | F20: =Eingabevariablen!$C148*'Hilfsblatt Kostensätze Umwelt'!F20/100 -> 0 | G20: 0 | H20: Holz (Stück) | I20: =Eingabevariablen!$C164*'Hilfsblatt Kostensätze Umwelt'!I20 -> 0 | J20: 0 | O20: Strommix Europa (mit Kernkraft) | P20: =Eingabevariablen!$C128*'Hilfsblatt Kostensätze Umwelt'!O20/100 -> 0 | R20: Erdgas | S20: =Eingabevariablen!$C148*'Hilfsblatt Kostensätze Umwelt'!R20/100 -> 0 | U20: Holz (Stück) | V20: =Eingabevariablen!$C164*'Hilfsblatt Kostensätze Umwelt'!U20 -> 0 | AA20: Strommix Europa (mit Kernkraft) | AB20: =Eingabevariablen!$C128*'Hilfsblatt Kostensätze Umwelt'!AA20/100 -> 0 | AD20: Erdgas | AE20: =Eingabevariablen!$C148*'Hilfsblatt Kostensätze Umwelt'!AD20/100 -> 0 | AG20: Holz (Stück) | AH20: =Eingabevariablen!$C164*'Hilfsblatt Kostensätze Umwelt'!AG20 -> 0 | AM20: Strommix Europa (mit Kernkraft) | AP20: Erdgas | AS20: Holz (Stück) | AW20: nicht relevant | AY20: Strommix Europa (mit Kernkraft) | BB20: Erdgas | BE20: Holz (Stück) | BI20: nicht relevant | BK20: Strommix Europa (mit Kernkraft) | BL20: =Eingabevariablen!$C128*'Hilfsblatt Kostensätze Umwelt'!BK20/100 -> 0 | BN20: Erdgas | BO20: =Eingabevariablen!$C148*'Hilfsblatt Kostensätze Umwelt'!BN20/100 -> 0 | BQ20: Holz (Stück) | BR20: =Eingabevariablen!$C164*'Hilfsblatt Kostensätze Umwelt'!BQ20 -> 0
B21: Braunkohle | C21: 0 | D21: =Eingabevariablen!$C129*'Hilfsblatt Kostensätze Umwelt'!C21/100-C21 -> 0 | E21: Braunkohle, Steinkohle | F21: =Eingabevariablen!$C149*'Hilfsblatt Kostensätze Umwelt'!F21/100 -> 0 | G21: 0 | H21: Holz (Pellets) | I21: =Eingabevariablen!$C165*'Hilfsblatt Kostensätze Umwelt'!I21 -> 0 | J21: 0 | O21: Braunkohle | P21: =Eingabevariablen!$C129*'Hilfsblatt Kostensätze Umwelt'!O21/100 -> 0 | R21: Braunkohle, Steinkohle | S21: =Eingabevariablen!$C149*'Hilfsblatt Kostensätze Umwelt'!R21/100 -> 0 | U21: Holz (Pellets) | V21: =Eingabevariablen!$C165*'Hilfsblatt Kostensätze Umwelt'!U21 -> 0 | AA21: Braunkohle | AB21: =Eingabevariablen!$C129*'Hilfsblatt Kostensätze Umwelt'!AA21/100 -> 0 | AD21: Braunkohle, Steinkohle | AE21: =Eingabevariablen!$C149*'Hilfsblatt Kostensätze Umwelt'!AD21/100 -> 0 | AG21: Holz (Pellets) | AH21: =Eingabevariablen!$C165*'Hilfsblatt Kostensätze Umwelt'!AG21 -> 0 | AM21: Braunkohle | AP21: Braunkohle, Steinkohle | AS21: Holz (Pellets) | AY21: Braunkohle | BB21: Braunkohle, Steinkohle | BE21: Holz (Pellets) | BK21: Braunkohle | BL21: =Eingabevariablen!$C129*'Hilfsblatt Kostensätze Umwelt'!BK21/100 -> 0 | BN21: Braunkohle, Steinkohle | BO21: =Eingabevariablen!$C149*'Hilfsblatt Kostensätze Umwelt'!BN21/100 -> 0 | BQ21: Holz (Pellets) | BR21: =Eingabevariablen!$C165*'Hilfsblatt Kostensätze Umwelt'!BQ21 -> 0
B22: Steinkohle | C22: 0 | D22: =Eingabevariablen!$C130*'Hilfsblatt Kostensätze Umwelt'!C22/100-C22 -> 0 | E22: Fernwärme | F22: =Eingabevariablen!$C150*'Hilfsblatt Kostensätze Umwelt'!F22/100 -> 0 | G22: 0 | O22: Steinkohle | P22: =Eingabevariablen!$C130*'Hilfsblatt Kostensätze Umwelt'!O22/100 -> 0 | R22: Fernwärme | S22: =Eingabevariablen!$C150*'Hilfsblatt Kostensätze Umwelt'!R22/100 -> 0 | AA22: Steinkohle | AB22: =Eingabevariablen!$C130*'Hilfsblatt Kostensätze Umwelt'!AA22/100 -> 0 | AD22: Fernwärme | AE22: =Eingabevariablen!$C150*'Hilfsblatt Kostensätze Umwelt'!AD22/100 -> 0 | AM22: Steinkohle | AP22: Fernwärme | AT22: nicht relevant | AY22: Steinkohle | BB22: Fernwärme | BF22: nicht relevant | BK22: Steinkohle | BL22: =Eingabevariablen!$C130*'Hilfsblatt Kostensätze Umwelt'!BK22/100 -> 0 | BN22: Fernwärme | BO22: =Eingabevariablen!$C150*'Hilfsblatt Kostensätze Umwelt'!BN22/100 -> 0
B23: Erdgas | C23: 0 | D23: =Eingabevariablen!$C131*'Hilfsblatt Kostensätze Umwelt'!C23/100-C23 -> 0 | E23: Holzpellets, feste Biomasse (Haushalte) | F23: =Eingabevariablen!$C151*'Hilfsblatt Kostensätze Umwelt'!F23/100 -> 0 | G23: 0 | O23: Erdgas | P23: =Eingabevariablen!$C131*'Hilfsblatt Kostensätze Umwelt'!O23/100 -> 0 | R23: Holzpellets, feste Biomasse (Haushalte) | S23: =Eingabevariablen!$C151*'Hilfsblatt Kostensätze Umwelt'!R23/100 -> 0 | AA23: Erdgas | AB23: =Eingabevariablen!$C131*'Hilfsblatt Kostensätze Umwelt'!AA23/100 -> 0 | AD23: Holzpellets, feste Biomasse (Haushalte) | AE23: =Eingabevariablen!$C151*'Hilfsblatt Kostensätze Umwelt'!AD23/100 -> 0 | AM23: Erdgas | AP23: Holzpellets, feste Biomasse (Haushalte) | AY23: Erdgas | BB23: Holzpellets, feste Biomasse (Haushalte) | BK23: Erdgas | BL23: =Eingabevariablen!$C131*'Hilfsblatt Kostensätze Umwelt'!BK23/100 -> 0 | BN23: Holzpellets, feste Biomasse (Haushalte) | BO23: =Eingabevariablen!$C151*'Hilfsblatt Kostensätze Umwelt'!BN23/100 -> 0
B24: Öl | C24: 0 | D24: =Eingabevariablen!$C132*'Hilfsblatt Kostensätze Umwelt'!C24/100-C24 -> 0 | E24: Feste Biomasse / Holz (Industrie) | F24: =Eingabevariablen!$C152*'Hilfsblatt Kostensätze Umwelt'!F24/100 -> 0 | G24: 0 | O24: Öl | P24: =Eingabevariablen!$C132*'Hilfsblatt Kostensätze Umwelt'!O24/100 -> 0 | R24: Feste Biomasse / Holz (Industrie) | S24: =Eingabevariablen!$C152*'Hilfsblatt Kostensätze Umwelt'!R24/100 -> 0 | AA24: Öl | AB24: =Eingabevariablen!$C132*'Hilfsblatt Kostensätze Umwelt'!AA24/100 -> 0 | AD24: Feste Biomasse / Holz (Industrie) | AE24: =Eingabevariablen!$C152*'Hilfsblatt Kostensätze Umwelt'!AD24/100 -> 0 | AM24: Öl | AP24: Feste Biomasse / Holz (Industrie) | AY24: Öl | BB24: Feste Biomasse / Holz (Industrie) | BK24: Öl | BL24: =Eingabevariablen!$C132*'Hilfsblatt Kostensätze Umwelt'!BK24/100 -> 0 | BN24: Feste Biomasse / Holz (Industrie) | BO24: =Eingabevariablen!$C152*'Hilfsblatt Kostensätze Umwelt'!BN24/100 -> 0
B25: Kernenergie | C25: 0 | D25: =Eingabevariablen!$C133*'Hilfsblatt Kostensätze Umwelt'!C25/100-C25 -> 0 | E25: Solarthermie | F25: =Eingabevariablen!$C153*'Hilfsblatt Kostensätze Umwelt'!F25/100 -> 0 | G25: 0 | O25: Kernenergie | P25: =Eingabevariablen!$C133*'Hilfsblatt Kostensätze Umwelt'!O25/100 -> 0 | R25: Solarthermie | S25: =Eingabevariablen!$C153*'Hilfsblatt Kostensätze Umwelt'!R25/100 -> 0 | AA25: Kernenergie | AB25: =Eingabevariablen!$C133*'Hilfsblatt Kostensätze Umwelt'!AA25/100 -> 0 | AD25: Solarthermie | AE25: =Eingabevariablen!$C153*'Hilfsblatt Kostensätze Umwelt'!AD25/100 -> 0 | AM25: Kernenergie | AP25: Solarthermie | AY25: Kernenergie | BB25: Solarthermie | BK25: Kernenergie | BL25: =Eingabevariablen!$C133*'Hilfsblatt Kostensätze Umwelt'!BK25/100 -> 0 | BN25: Solarthermie | BO25: =Eingabevariablen!$C153*'Hilfsblatt Kostensätze Umwelt'!BN25/100 -> 0
B26: Wasserkraft | C26: 0 | D26: =Eingabevariablen!$C134*'Hilfsblatt Kostensätze Umwelt'!C26/100-C26 -> 0 | E26: Geothermie | F26: =Eingabevariablen!$C154*'Hilfsblatt Kostensätze Umwelt'!F26/100 -> 0 | G26: 0 | O26: Wasserkraft | P26: =Eingabevariablen!$C134*'Hilfsblatt Kostensätze Umwelt'!O26/100 -> 0 | R26: Geothermie | S26: =Eingabevariablen!$C154*'Hilfsblatt Kostensätze Umwelt'!R26/100 -> 0 | AA26: Wasserkraft | AB26: =Eingabevariablen!$C134*'Hilfsblatt Kostensätze Umwelt'!AA26/100 -> 0 | AD26: Geothermie | AE26: =Eingabevariablen!$C154*'Hilfsblatt Kostensätze Umwelt'!AD26/100 -> 0 | AM26: Wasserkraft | AP26: Geothermie | AY26: Wasserkraft | BB26: Geothermie | BK26: Wasserkraft | BL26: =Eingabevariablen!$C134*'Hilfsblatt Kostensätze Umwelt'!BK26/100 -> 0 | BN26: Geothermie | BO26: =Eingabevariablen!$C154*'Hilfsblatt Kostensätze Umwelt'!BN26/100 -> 0
B27: Windenergie | C27: 0 | D27: =Eingabevariablen!$C135*'Hilfsblatt Kostensätze Umwelt'!C27/100-C27 -> 0 | E27: Biogas-Mix (v.a. BHKW) | F27: =Eingabevariablen!$C155*'Hilfsblatt Kostensätze Umwelt'!F27/100 -> 0 | G27: 0 | O27: Windenergie | P27: =Eingabevariablen!$C135*'Hilfsblatt Kostensätze Umwelt'!O27/100 -> 0 | R27: Biogas-Mix (v.a. BHKW) | S27: =Eingabevariablen!$C155*'Hilfsblatt Kostensätze Umwelt'!R27/100 -> 0 | AA27: Windenergie | AB27: =Eingabevariablen!$C135*'Hilfsblatt Kostensätze Umwelt'!AA27/100 -> 0 | AD27: Biogas-Mix (v.a. BHKW) | AE27: =Eingabevariablen!$C155*'Hilfsblatt Kostensätze Umwelt'!AD27/100 -> 0 | AM27: Windenergie | AP27: Biogas-Mix (v.a. BHKW) | AY27: Windenergie | BB27: Biogas-Mix (v.a. BHKW) | BK27: Windenergie | BL27: =Eingabevariablen!$C135*'Hilfsblatt Kostensätze Umwelt'!BK27/100 -> 0 | BN27: Biogas-Mix (v.a. BHKW) | BO27: =Eingabevariablen!$C155*'Hilfsblatt Kostensätze Umwelt'!BN27/100 -> 0
B28: Photovoltaik | C28: 0 | D28: =Eingabevariablen!$C136*'Hilfsblatt Kostensätze Umwelt'!C28/100-C28 -> 0 | E28: Flüssige Biomasse (diverse Nutzungen) | F28: =Eingabevariablen!$C156*'Hilfsblatt Kostensätze Umwelt'!F28/100 -> 0 | G28: 0 | O28: Photovoltaik | P28: =Eingabevariablen!$C136*'Hilfsblatt Kostensätze Umwelt'!O28/100 -> 0 | R28: Flüssige Biomasse (diverse Nutzungen) | S28: =Eingabevariablen!$C156*'Hilfsblatt Kostensätze Umwelt'!R28/100 -> 0 | AA28: Photovoltaik | AB28: =Eingabevariablen!$C136*'Hilfsblatt Kostensätze Umwelt'!AA28/100 -> 0 | AD28: Flüssige Biomasse (diverse Nutzungen) | AE28: =Eingabevariablen!$C156*'Hilfsblatt Kostensätze Umwelt'!AD28/100 -> 0 | AM28: Photovoltaik | AP28: Flüssige Biomasse (diverse Nutzungen) | AY28: Photovoltaik | BB28: Flüssige Biomasse (diverse Nutzungen) | BK28: Photovoltaik | BL28: =Eingabevariablen!$C136*'Hilfsblatt Kostensätze Umwelt'!BK28/100 -> 0 | BN28: Flüssige Biomasse (diverse Nutzungen) | BO28: =Eingabevariablen!$C156*'Hilfsblatt Kostensätze Umwelt'!BN28/100 -> 0
B29: Geothermie | C29: 0 | D29: =Eingabevariablen!$C137*'Hilfsblatt Kostensätze Umwelt'!C29/100-C29 -> 0 | E29: Flüssige Biomasse (Industrie) | F29: =Eingabevariablen!$C157*'Hilfsblatt Kostensätze Umwelt'!F29/100 -> 0 | G29: 0 | O29: Geothermie | P29: =Eingabevariablen!$C137*'Hilfsblatt Kostensätze Umwelt'!O29/100 -> 0 | R29: Flüssige Biomasse (Industrie) | S29: =Eingabevariablen!$C157*'Hilfsblatt Kostensätze Umwelt'!R29/100 -> 0 | AA29: Geothermie | AB29: =Eingabevariablen!$C137*'Hilfsblatt Kostensätze Umwelt'!AA29/100 -> 0 | AD29: Flüssige Biomasse (Industrie) | AE29: =Eingabevariablen!$C157*'Hilfsblatt Kostensätze Umwelt'!AD29/100 -> 0 | AM29: Geothermie | AP29: Flüssige Biomasse (Industrie) | AY29: Geothermie | BB29: Flüssige Biomasse (Industrie) | BK29: Geothermie | BL29: =Eingabevariablen!$C137*'Hilfsblatt Kostensätze Umwelt'!BK29/100 -> 0 | BN29: Flüssige Biomasse (Industrie) | BO29: =Eingabevariablen!$C157*'Hilfsblatt Kostensätze Umwelt'!BN29/100 -> 0
B30: Feste Biomasse (v.a. Holz) | C30: 0 | D30: =Eingabevariablen!$C138*'Hilfsblatt Kostensätze Umwelt'!C30/100-C30 -> 0 | O30: Feste Biomasse (v.a. Holz) | P30: =Eingabevariablen!$C138*'Hilfsblatt Kostensätze Umwelt'!O30/100 -> 0 | AA30: Feste Biomasse (v.a. Holz) | AB30: =Eingabevariablen!$C138*'Hilfsblatt Kostensätze Umwelt'!AA30/100 -> 0 | AM30: Feste Biomasse (v.a. Holz) | AQ30: nicht relevant | AY30: Feste Biomasse (v.a. Holz) | BC30: nicht relevant | BK30: Feste Biomasse (v.a. Holz) | BL30: =Eingabevariablen!$C138*'Hilfsblatt Kostensätze Umwelt'!BK30/100 -> 0
B31: Flüssige Biomasse | C31: 0 | D31: =Eingabevariablen!$C139*'Hilfsblatt Kostensätze Umwelt'!C31/100-C31 -> 0 | O31: Flüssige Biomasse | P31: =Eingabevariablen!$C139*'Hilfsblatt Kostensätze Umwelt'!O31/100 -> 0 | AA31: Flüssige Biomasse | AB31: =Eingabevariablen!$C139*'Hilfsblatt Kostensätze Umwelt'!AA31/100 -> 0 | AM31: Flüssige Biomasse | AY31: Flüssige Biomasse | BK31: Flüssige Biomasse | BL31: =Eingabevariablen!$C139*'Hilfsblatt Kostensätze Umwelt'!BK31/100 -> 0
B32: Biogas | C32: 0 | D32: =Eingabevariablen!$C140*'Hilfsblatt Kostensätze Umwelt'!C32/100-C32 -> 0 | O32: Biogas | P32: =Eingabevariablen!$C140*'Hilfsblatt Kostensätze Umwelt'!O32/100 -> 0 | AA32: Biogas | AB32: =Eingabevariablen!$C140*'Hilfsblatt Kostensätze Umwelt'!AA32/100 -> 0 | AM32: Biogas | AY32: Biogas | BK32: Biogas | BL32: =Eingabevariablen!$C140*'Hilfsblatt Kostensätze Umwelt'!BK32/100 -> 0
B33: Klär- / Deponiegas | C33: 0 | D33: =Eingabevariablen!$C141*'Hilfsblatt Kostensätze Umwelt'!C33/100-C33 -> 0 | O33: Klär- / Deponiegas | P33: =Eingabevariablen!$C141*'Hilfsblatt Kostensätze Umwelt'!O33/100 -> 0 | AA33: Klär- / Deponiegas | AB33: =Eingabevariablen!$C141*'Hilfsblatt Kostensätze Umwelt'!AA33/100 -> 0 | AM33: Klär- / Deponiegas | AY33: Klär- / Deponiegas | BK33: Klär- / Deponiegas | BL33: =Eingabevariablen!$C141*'Hilfsblatt Kostensätze Umwelt'!BK33/100 -> 0
AN34: nicht relevant | AZ34: nicht relevant
A36: 2. Verkehr
BW39: "Korrigierte" Verkehrsmengen infolge vermindertem Kraftstoff- bzw. Energieverbrauch in zukünftigen Jahren
C41: Kosten in EUR | P41: Kosten in EUR | AB41: Kosten in EUR | AN41: Kosten in EUR | AZ41: Kosten in EUR | BL41: Kosten in EUR | BX41: i. Verkehr: Fahrzeug-km nach Fahrzeugkategorie | BY41: Verkehrsmenge in Fahrzeug-km nach Ort
C42: Ort unbekannt (Ø alle Strecken) | D42: Innerorts | E42: Außerorts | F42: Autobahn | P42: Ort unbekannt (Ø alle Strecken) | Q42: Innerorts | R42: Außerorts | S42: Autobahn | AB42: Ort unbekannt (Ø alle Strecken) | AC42: Innerorts | AD42: Außerorts | AE42: Autobahn | AN42: Ort unbekannt (Ø alle Strecken) | AO42: Innerorts | AP42: Außerorts | AQ42: Autobahn | AZ42: Ort unbekannt (Ø alle Strecken) | BA42: Innerorts | BB42: Außerorts | BC42: Autobahn | BL42: Ort unbekannt (Ø alle Strecken) | BM42: Innerorts | BN42: Außerorts | BO42: Autobahn | BY42: Ort unbekannt (Ø alle Strecken) | BZ42: Innerorts | CA42: Außerorts | CB42: Autobahn
B43: PKW, Diesel | C43: =P43+AB43+AN43+AZ43+BL43 -> 0 | D43: =Q43+AC43+AO43+BA43+BM43 -> 0 | E43: =R43+AD43+AP43+BB43+BN43 -> 0 | F43: =S43+AE43+AQ43+BC43+BO43 -> 0 | H43: =P43+AB43+AN43+AZ43+BL43-C43 -> 0 | I43: =Q43+AC43+AO43+BA43+BM43-D43 -> 0 | J43: =R43+AD43+AP43+BB43+BN43-E43 -> 0 | K43: =S43+AE43+AQ43+BC43+BO43-F43 -> 0 | O43: PKW, Diesel | P43: =$BY43*'Hilfsblatt Kostensätze Umwelt'!O43/100 -> 0 | Q43: =$BZ43*'Hilfsblatt Kostensätze Umwelt'!P43/100 -> 0 | R43: =$CA43*'Hilfsblatt Kostensätze Umwelt'!Q43/100 -> 0 | S43: =$CB43*'Hilfsblatt Kostensätze Umwelt'!R43/100 -> 0 | AA43: PKW, Diesel | AB43: =$BY43*'Hilfsblatt Kostensätze Umwelt'!AA43/100 -> 0 | AC43: =$BZ43*'Hilfsblatt Kostensätze Umwelt'!AB43/100 -> 0 | AD43: =$CA43*'Hilfsblatt Kostensätze Umwelt'!AC43/100 -> 0 | AE43: =$CB43*'Hilfsblatt Kostensätze Umwelt'!AD43/100 -> 0 | AM43: PKW, Diesel | AN43: =Eingabevariablen!$C55*'Hilfsblatt Kostensätze Umwelt'!AM43/100 -> 0 | AO43: =Eingabevariablen!$D55*'Hilfsblatt Kostensätze Umwelt'!AN43/100 -> 0 | AP43: =Eingabevariablen!$E55*'Hilfsblatt Kostensätze Umwelt'!AO43/100 -> 0 | AQ43: =Eingabevariablen!$F55*'Hilfsblatt Kostensätze Umwelt'!AP43/100 -> 0 | AY43: PKW, Diesel | AZ43: =Eingabevariablen!$C55*'Hilfsblatt Kostensätze Umwelt'!AY43/100 -> 0 | BA43: =Eingabevariablen!$D55*'Hilfsblatt Kostensätze Umwelt'!AZ43/100 -> 0 | BB43: =Eingabevariablen!$E55*'Hilfsblatt Kostensätze Umwelt'!BA43/100 -> 0 | BC43: =Eingabevariablen!$F55*'Hilfsblatt Kostensätze Umwelt'!BB43/100 -> 0 | BK43: PKW, Diesel | BL43: =$BY43*'Hilfsblatt Kostensätze Umwelt'!BK43/100 -> 0 | BM43: =$BZ43*'Hilfsblatt Kostensätze Umwelt'!BL43/100 -> 0 | BN43: =$CA43*'Hilfsblatt Kostensätze Umwelt'!BM43/100 -> 0 | BO43: =$CB43*'Hilfsblatt Kostensätze Umwelt'!BN43/100 -> 0 | BW43: Strassenverkehr: | BX43: PKW, Diesel | BY43: =Eingabevariablen!C55*(1+Eingabevariablen!$C$118) -> 0 | BZ43: =Eingabevariablen!D55*(1+Eingabevariablen!$C$118) -> 0 | CA43: =Eingabevariablen!E55*(1+Eingabevariablen!$C$118) -> 0 | CB43: =Eingabevariablen!F55*(1+Eingabevariablen!$C$118) -> 0
B44: PKW, Benzin | C44: =P44+AB44+AN44+AZ44+BL44 -> 0 | D44: 0 | E44: 0 | F44: 0 | H44: =P44+AB44+AN44+AZ44+BL44-C44 -> 0 | I44: =Q44+AC44+AO44+BA44+BM44-D44 -> 0 | J44: =R44+AD44+AP44+BB44+BN44-E44 -> 0 | K44: =S44+AE44+AQ44+BC44+BO44-F44 -> 0 | O44: PKW, Benzin | P44: =$BY44*'Hilfsblatt Kostensätze Umwelt'!O44/100 -> 0 | Q44: =$BZ44*'Hilfsblatt Kostensätze Umwelt'!P44/100 -> 0 | R44: =$CA44*'Hilfsblatt Kostensätze Umwelt'!Q44/100 -> 0 | S44: =$CB44*'Hilfsblatt Kostensätze Umwelt'!R44/100 -> 0 | AA44: PKW, Benzin | AB44: =$BY44*'Hilfsblatt Kostensätze Umwelt'!AA44/100 -> 0 | AC44: =$BZ44*'Hilfsblatt Kostensätze Umwelt'!AB44/100 -> 0 | AD44: =$CA44*'Hilfsblatt Kostensätze Umwelt'!AC44/100 -> 0 | AE44: =$CB44*'Hilfsblatt Kostensätze Umwelt'!AD44/100 -> 0 | AM44: PKW, Benzin | AN44: =Eingabevariablen!$C56*'Hilfsblatt Kostensätze Umwelt'!AM44/100 -> 0 | AO44: =Eingabevariablen!$D56*'Hilfsblatt Kostensätze Umwelt'!AN44/100 -> 0 | AP44: =Eingabevariablen!$E56*'Hilfsblatt Kostensätze Umwelt'!AO44/100 -> 0 | AQ44: =Eingabevariablen!$F56*'Hilfsblatt Kostensätze Umwelt'!AP44/100 -> 0 | AY44: PKW, Benzin | AZ44: =Eingabevariablen!$C56*'Hilfsblatt Kostensätze Umwelt'!AY44/100 -> 0 | BA44: =Eingabevariablen!$D56*'Hilfsblatt Kostensätze Umwelt'!AZ44/100 -> 0 | BB44: =Eingabevariablen!$E56*'Hilfsblatt Kostensätze Umwelt'!BA44/100 -> 0 | BC44: =Eingabevariablen!$F56*'Hilfsblatt Kostensätze Umwelt'!BB44/100 -> 0 | BK44: PKW, Benzin | BL44: =$BY44*'Hilfsblatt Kostensätze Umwelt'!BK44/100 -> 0 | BM44: =$BZ44*'Hilfsblatt Kostensätze Umwelt'!BL44/100 -> 0 | BN44: =$CA44*'Hilfsblatt Kostensätze Umwelt'!BM44/100 -> 0 | BO44: =$CB44*'Hilfsblatt Kostensätze Umwelt'!BN44/100 -> 0 | BX44: PKW, Benzin | BY44: =Eingabevariablen!C56*(1+Eingabevariablen!$C$118) -> 0 | BZ44: =Eingabevariablen!D56*(1+Eingabevariablen!$C$118) -> 0 | CA44: =Eingabevariablen!E56*(1+Eingabevariablen!$C$118) -> 0 | CB44: =Eingabevariablen!F56*(1+Eingabevariablen!$C$118) -> 0
B45: Leichte Nutzfahrzeuge, Diesel | C45: 0 | D45: 0 | E45: 0 | F45: 0 | H45: 0 | I45: 0 | J45: 0 | K45: 0 | O45: Leichte Nutzfahrzeuge, Diesel | P45: =$BY45*'Hilfsblatt Kostensätze Umwelt'!O45/100 -> 0 | Q45: =$BZ45*'Hilfsblatt Kostensätze Umwelt'!P45/100 -> 0 | R45: =$CA45*'Hilfsblatt Kostensätze Umwelt'!Q45/100 -> 0 | S45: =$CB45*'Hilfsblatt Kostensätze Umwelt'!R45/100 -> 0 | AA45: Leichte Nutzfahrzeuge, Diesel | AB45: =$BY45*'Hilfsblatt Kostensätze Umwelt'!AA45/100 -> 0 | AC45: =$BZ45*'Hilfsblatt Kostensätze Umwelt'!AB45/100 -> 0 | AD45: =$CA45*'Hilfsblatt Kostensätze Umwelt'!AC45/100 -> 0 | AE45: =$CB45*'Hilfsblatt Kostensätze Umwelt'!AD45/100 -> 0 | AM45: Leichte Nutzfahrzeuge, Diesel | AN45: =Eingabevariablen!$C57*'Hilfsblatt Kostensätze Umwelt'!AM45/100 -> 0 | AO45: =Eingabevariablen!$D57*'Hilfsblatt Kostensätze Umwelt'!AN45/100 -> 0 | AP45: =Eingabevariablen!$E57*'Hilfsblatt Kostensätze Umwelt'!AO45/100 -> 0 | AQ45: =Eingabevariablen!$F57*'Hilfsblatt Kostensätze Umwelt'!AP45/100 -> 0 | AY45: Leichte Nutzfahrzeuge, Diesel | AZ45: =Eingabevariablen!$C57*'Hilfsblatt Kostensätze Umwelt'!AY45/100 -> 0 | BA45: =Eingabevariablen!$D57*'Hilfsblatt Kostensätze Umwelt'!AZ45/100 -> 0 | BB45: =Eingabevariablen!$E57*'Hilfsblatt Kostensätze Umwelt'!BA45/100 -> 0 | BC45: =Eingabevariablen!$F57*'Hilfsblatt Kostensätze Umwelt'!BB45/100 -> 0 | BK45: Leichte Nutzfahrzeuge, Diesel | BL45: =$BY45*'Hilfsblatt Kostensätze Umwelt'!BK45/100 -> 0 | BM45: =$BZ45*'Hilfsblatt Kostensätze Umwelt'!BL45/100 -> 0 | BN45: =$CA45*'Hilfsblatt Kostensätze Umwelt'!BM45/100 -> 0 | BO45: =$CB45*'Hilfsblatt Kostensätze Umwelt'!BN45/100 -> 0 | BX45: Leichte Nutzfahrzeuge, Diesel | BY45: =Eingabevariablen!C57*(1+Eingabevariablen!$C$118) -> 0 | BZ45: =Eingabevariablen!D57*(1+Eingabevariablen!$C$118) -> 0 | CA45: =Eingabevariablen!E57*(1+Eingabevariablen!$C$118) -> 0 | CB45: =Eingabevariablen!F57*(1+Eingabevariablen!$C$118) -> 0
B46: Leichte Nutzfahrzeuge, Benzin | C46: 0 | D46: 0 | E46: 0 | F46: 0 | H46: 0 | I46: 0 | J46: 0 | K46: 0 | O46: Leichte Nutzfahrzeuge, Benzin | P46: =$BY46*'Hilfsblatt Kostensätze Umwelt'!O46/100 -> 0 | Q46: =$BZ46*'Hilfsblatt Kostensätze Umwelt'!P46/100 -> 0 | R46: =$CA46*'Hilfsblatt Kostensätze Umwelt'!Q46/100 -> 0 | S46: =$CB46*'Hilfsblatt Kostensätze Umwelt'!R46/100 -> 0 | AA46: Leichte Nutzfahrzeuge, Benzin | AB46: =$BY46*'Hilfsblatt Kostensätze Umwelt'!AA46/100 -> 0 | AC46: =$BZ46*'Hilfsblatt Kostensätze Umwelt'!AB46/100 -> 0 | AD46: =$CA46*'Hilfsblatt Kostensätze Umwelt'!AC46/100 -> 0 | AE46: =$CB46*'Hilfsblatt Kostensätze Umwelt'!AD46/100 -> 0 | AM46: Leichte Nutzfahrzeuge, Benzin | AN46: =Eingabevariablen!$C58*'Hilfsblatt Kostensätze Umwelt'!AM46/100 -> 0 | AO46: =Eingabevariablen!$D58*'Hilfsblatt Kostensätze Umwelt'!AN46/100 -> 0 | AP46: =Eingabevariablen!$E58*'Hilfsblatt Kostensätze Umwelt'!AO46/100 -> 0 | AQ46: =Eingabevariablen!$F58*'Hilfsblatt Kostensätze Umwelt'!AP46/100 -> 0 | AY46: Leichte Nutzfahrzeuge, Benzin | AZ46: =Eingabevariablen!$C58*'Hilfsblatt Kostensätze Umwelt'!AY46/100 -> 0 | BA46: =Eingabevariablen!$D58*'Hilfsblatt Kostensätze Umwelt'!AZ46/100 -> 0 | BB46: =Eingabevariablen!$E58*'Hilfsblatt Kostensätze Umwelt'!BA46/100 -> 0 | BC46: =Eingabevariablen!$F58*'Hilfsblatt Kostensätze Umwelt'!BB46/100 -> 0 | BK46: Leichte Nutzfahrzeuge, Benzin | BL46: =$BY46*'Hilfsblatt Kostensätze Umwelt'!BK46/100 -> 0 | BM46: =$BZ46*'Hilfsblatt Kostensätze Umwelt'!BL46/100 -> 0 | BN46: =$CA46*'Hilfsblatt Kostensätze Umwelt'!BM46/100 -> 0 | BO46: =$CB46*'Hilfsblatt Kostensätze Umwelt'!BN46/100 -> 0 | BX46: Leichte Nutzfahrzeuge, Benzin | BY46: =Eingabevariablen!C58*(1+Eingabevariablen!$C$118) -> 0 | BZ46: =Eingabevariablen!D58*(1+Eingabevariablen!$C$118) -> 0 | CA46: =Eingabevariablen!E58*(1+Eingabevariablen!$C$118) -> 0 | CB46: =Eingabevariablen!F58*(1+Eingabevariablen!$C$118) -> 0
B47: Schwere Nutzfahrzeuge, Diesel | C47: 0 | D47: 0 | E47: 0 | F47: 0 | H47: 0 | I47: 0 | J47: 0 | K47: 0 | O47: Schwere Nutzfahrzeuge, Diesel | P47: =$BY47*'Hilfsblatt Kostensätze Umwelt'!O47/100 -> 0 | Q47: =$BZ47*'Hilfsblatt Kostensätze Umwelt'!P47/100 -> 0 | R47: =$CA47*'Hilfsblatt Kostensätze Umwelt'!Q47/100 -> 0 | S47: =$CB47*'Hilfsblatt Kostensätze Umwelt'!R47/100 -> 0 | AA47: Schwere Nutzfahrzeuge, Diesel | AB47: =$BY47*'Hilfsblatt Kostensätze Umwelt'!AA47/100 -> 0 | AC47: =$BZ47*'Hilfsblatt Kostensätze Umwelt'!AB47/100 -> 0 | AD47: =$CA47*'Hilfsblatt Kostensätze Umwelt'!AC47/100 -> 0 | AE47: =$CB47*'Hilfsblatt Kostensätze Umwelt'!AD47/100 -> 0 | AM47: Schwere Nutzfahrzeuge, Diesel | AN47: =Eingabevariablen!$C59*'Hilfsblatt Kostensätze Umwelt'!AM47/100 -> 0 | AO47: =Eingabevariablen!$D59*'Hilfsblatt Kostensätze Umwelt'!AN47/100 -> 0 | AP47: =Eingabevariablen!$E59*'Hilfsblatt Kostensätze Umwelt'!AO47/100 -> 0 | AQ47: =Eingabevariablen!$F59*'Hilfsblatt Kostensätze Umwelt'!AP47/100 -> 0 | AY47: Schwere Nutzfahrzeuge, Diesel | AZ47: =Eingabevariablen!$C59*'Hilfsblatt Kostensätze Umwelt'!AY47/100 -> 0 | BA47: =Eingabevariablen!$D59*'Hilfsblatt Kostensätze Umwelt'!AZ47/100 -> 0 | BB47: =Eingabevariablen!$E59*'Hilfsblatt Kostensätze Umwelt'!BA47/100 -> 0 | BC47: =Eingabevariablen!$F59*'Hilfsblatt Kostensätze Umwelt'!BB47/100 -> 0 | BK47: Schwere Nutzfahrzeuge, Diesel | BL47: =$BY47*'Hilfsblatt Kostensätze Umwelt'!BK47/100 -> 0 | BM47: =$BZ47*'Hilfsblatt Kostensätze Umwelt'!BL47/100 -> 0 | BN47: =$CA47*'Hilfsblatt Kostensätze Umwelt'!BM47/100 -> 0 | BO47: =$CB47*'Hilfsblatt Kostensätze Umwelt'!BN47/100 -> 0 | BX47: Schwere Nutzfahrzeuge, Diesel | BY47: =Eingabevariablen!C59*(1+Eingabevariablen!$C$118) -> 0 | BZ47: =Eingabevariablen!D59*(1+Eingabevariablen!$C$118) -> 0 | CA47: =Eingabevariablen!E59*(1+Eingabevariablen!$C$118) -> 0 | CB47: =Eingabevariablen!F59*(1+Eingabevariablen!$C$118) -> 0
B48: Bus, Diesel | C48: 0 | D48: 0 | E48: 0 | F48: 0 | H48: 0 | I48: 0 | J48: 0 | K48: 0 | O48: Bus, Diesel | P48: =$BY48*'Hilfsblatt Kostensätze Umwelt'!O48/100 -> 0 | Q48: =$BZ48*'Hilfsblatt Kostensätze Umwelt'!P48/100 -> 0 | R48: =$CA48*'Hilfsblatt Kostensätze Umwelt'!Q48/100 -> 0 | S48: =$CB48*'Hilfsblatt Kostensätze Umwelt'!R48/100 -> 0 | AA48: Bus, Diesel | AB48: =$BY48*'Hilfsblatt Kostensätze Umwelt'!AA48/100 -> 0 | AC48: =$BZ48*'Hilfsblatt Kostensätze Umwelt'!AB48/100 -> 0 | AD48: =$CA48*'Hilfsblatt Kostensätze Umwelt'!AC48/100 -> 0 | AE48: =$CB48*'Hilfsblatt Kostensätze Umwelt'!AD48/100 -> 0 | AM48: Bus, Diesel | AN48: =Eingabevariablen!$C60*'Hilfsblatt Kostensätze Umwelt'!AM48/100 -> 0 | AO48: =Eingabevariablen!$D60*'Hilfsblatt Kostensätze Umwelt'!AN48/100 -> 0 | AP48: =Eingabevariablen!$E60*'Hilfsblatt Kostensätze Umwelt'!AO48/100 -> 0 | AQ48: =Eingabevariablen!$F60*'Hilfsblatt Kostensätze Umwelt'!AP48/100 -> 0 | AY48: Bus, Diesel | AZ48: =Eingabevariablen!$C60*'Hilfsblatt Kostensätze Umwelt'!AY48/100 -> 0 | BA48: =Eingabevariablen!$D60*'Hilfsblatt Kostensätze Umwelt'!AZ48/100 -> 0 | BB48: =Eingabevariablen!$E60*'Hilfsblatt Kostensätze Umwelt'!BA48/100 -> 0 | BC48: =Eingabevariablen!$F60*'Hilfsblatt Kostensätze Umwelt'!BB48/100 -> 0 | BK48: Bus, Diesel | BL48: =$BY48*'Hilfsblatt Kostensätze Umwelt'!BK48/100 -> 0 | BM48: =$BZ48*'Hilfsblatt Kostensätze Umwelt'!BL48/100 -> 0 | BN48: =$CA48*'Hilfsblatt Kostensätze Umwelt'!BM48/100 -> 0 | BO48: =$CB48*'Hilfsblatt Kostensätze Umwelt'!BN48/100 -> 0 | BX48: Bus, Diesel | BY48: =Eingabevariablen!C60*(1+Eingabevariablen!$C$118) -> 0 | BZ48: =Eingabevariablen!D60*(1+Eingabevariablen!$C$118) -> 0 | CA48: =Eingabevariablen!E60*(1+Eingabevariablen!$C$118) -> 0 | CB48: =Eingabevariablen!F60*(1+Eingabevariablen!$C$118) -> 0
B49: Krafträder, Benzin 4-Takt | C49: 0 | D49: 0 | E49: 0 | F49: 0 | H49: 0 | I49: 0 | J49: 0 | K49: 0 | O49: Krafträder, Benzin 4-Takt | P49: =$BY49*'Hilfsblatt Kostensätze Umwelt'!O49/100 -> 0 | Q49: =$BZ49*'Hilfsblatt Kostensätze Umwelt'!P49/100 -> 0 | R49: =$CA49*'Hilfsblatt Kostensätze Umwelt'!Q49/100 -> 0 | S49: =$CB49*'Hilfsblatt Kostensätze Umwelt'!R49/100 -> 0 | AA49: Krafträder, Benzin 4-Takt | AB49: =$BY49*'Hilfsblatt Kostensätze Umwelt'!AA49/100 -> 0 | AC49: =$BZ49*'Hilfsblatt Kostensätze Umwelt'!AB49/100 -> 0 | AD49: =$CA49*'Hilfsblatt Kostensätze Umwelt'!AC49/100 -> 0 | AE49: =$CB49*'Hilfsblatt Kostensätze Umwelt'!AD49/100 -> 0 | AM49: Krafträder, Benzin 4-Takt | AN49: =Eingabevariablen!$C61*'Hilfsblatt Kostensätze Umwelt'!AM49/100 -> 0 | AO49: =Eingabevariablen!$D61*'Hilfsblatt Kostensätze Umwelt'!AN49/100 -> 0 | AP49: =Eingabevariablen!$E61*'Hilfsblatt Kostensätze Umwelt'!AO49/100 -> 0 | AQ49: =Eingabevariablen!$F61*'Hilfsblatt Kostensätze Umwelt'!AP49/100 -> 0 | AY49: Krafträder, Benzin 4-Takt | AZ49: =Eingabevariablen!$C61*'Hilfsblatt Kostensätze Umwelt'!AY49/100 -> 0 | BA49: =Eingabevariablen!$D61*'Hilfsblatt Kostensätze Umwelt'!AZ49/100 -> 0 | BB49: =Eingabevariablen!$E61*'Hilfsblatt Kostensätze Umwelt'!BA49/100 -> 0 | BC49: =Eingabevariablen!$F61*'Hilfsblatt Kostensätze Umwelt'!BB49/100 -> 0 | BK49: Krafträder, Benzin 4-Takt | BL49: =$BY49*'Hilfsblatt Kostensätze Umwelt'!BK49/100 -> 0 | BM49: =$BZ49*'Hilfsblatt Kostensätze Umwelt'!BL49/100 -> 0 | BN49: =$CA49*'Hilfsblatt Kostensätze Umwelt'!BM49/100 -> 0 | BO49: =$CB49*'Hilfsblatt Kostensätze Umwelt'!BN49/100 -> 0 | BX49: Krafträder, Benzin 4-Takt | BY49: =Eingabevariablen!C61*(1+Eingabevariablen!$C$118) -> 0 | BZ49: =Eingabevariablen!D61*(1+Eingabevariablen!$C$118) -> 0 | CA49: =Eingabevariablen!E61*(1+Eingabevariablen!$C$118) -> 0 | CB49: =Eingabevariablen!F61*(1+Eingabevariablen!$C$118) -> 0
B50: Krafträder, Benzin 2-Takt | C50: 0 | D50: 0 | E50: 0 | F50: 0 | H50: 0 | I50: 0 | J50: 0 | K50: 0 | O50: Krafträder, Benzin 2-Takt | P50: =$BY50*'Hilfsblatt Kostensätze Umwelt'!O50/100 -> 0 | Q50: =$BZ50*'Hilfsblatt Kostensätze Umwelt'!P50/100 -> 0 | R50: =$CA50*'Hilfsblatt Kostensätze Umwelt'!Q50/100 -> 0 | S50: =$CB50*'Hilfsblatt Kostensätze Umwelt'!R50/100 -> 0 | AA50: Krafträder, Benzin 2-Takt | AB50: =$BY50*'Hilfsblatt Kostensätze Umwelt'!AA50/100 -> 0 | AC50: =$BZ50*'Hilfsblatt Kostensätze Umwelt'!AB50/100 -> 0 | AD50: =$CA50*'Hilfsblatt Kostensätze Umwelt'!AC50/100 -> 0 | AE50: =$CB50*'Hilfsblatt Kostensätze Umwelt'!AD50/100 -> 0 | AM50: Krafträder, Benzin 2-Takt | AN50: =Eingabevariablen!$C62*'Hilfsblatt Kostensätze Umwelt'!AM50/100 -> 0 | AO50: =Eingabevariablen!$D62*'Hilfsblatt Kostensätze Umwelt'!AN50/100 -> 0 | AP50: =Eingabevariablen!$E62*'Hilfsblatt Kostensätze Umwelt'!AO50/100 -> 0 | AQ50: =Eingabevariablen!$F62*'Hilfsblatt Kostensätze Umwelt'!AP50/100 -> 0 | AY50: Krafträder, Benzin 2-Takt | AZ50: =Eingabevariablen!$C62*'Hilfsblatt Kostensätze Umwelt'!AY50/100 -> 0 | BA50: =Eingabevariablen!$D62*'Hilfsblatt Kostensätze Umwelt'!AZ50/100 -> 0 | BB50: =Eingabevariablen!$E62*'Hilfsblatt Kostensätze Umwelt'!BA50/100 -> 0 | BC50: =Eingabevariablen!$F62*'Hilfsblatt Kostensätze Umwelt'!BB50/100 -> 0 | BK50: Krafträder, Benzin 2-Takt | BL50: =$BY50*'Hilfsblatt Kostensätze Umwelt'!BK50/100 -> 0 | BM50: =$BZ50*'Hilfsblatt Kostensätze Umwelt'!BL50/100 -> 0 | BN50: =$CA50*'Hilfsblatt Kostensätze Umwelt'!BM50/100 -> 0 | BO50: =$CB50*'Hilfsblatt Kostensätze Umwelt'!BN50/100 -> 0 | BX50: Krafträder, Benzin 2-Takt | BY50: =Eingabevariablen!C62*(1+Eingabevariablen!$C$118) -> 0 | BZ50: =Eingabevariablen!D62*(1+Eingabevariablen!$C$118) -> 0 | CA50: =Eingabevariablen!E62*(1+Eingabevariablen!$C$118) -> 0 | CB50: =Eingabevariablen!F62*(1+Eingabevariablen!$C$118) -> 0
B51: Personenzug, Diesel | C51: 0 | D51: 0 | E51: 0 | H51: 0 | I51: 0 | J51: 0 | K51: 0 | O51: Personenzug, Diesel | P51: =$BY51*'Hilfsblatt Kostensätze Umwelt'!O51/100 -> 0 | Q51: =$BZ51*'Hilfsblatt Kostensätze Umwelt'!P51/100 -> 0 | R51: =$CA51*'Hilfsblatt Kostensätze Umwelt'!Q51/100 -> 0 | AA51: Personenzug, Diesel | AB51: =$BY51*'Hilfsblatt Kostensätze Umwelt'!AA51/100 -> 0 | AC51: =$BZ51*'Hilfsblatt Kostensätze Umwelt'!AB51/100 -> 0 | AD51: =$CA51*'Hilfsblatt Kostensätze Umwelt'!AC51/100 -> 0 | AM51: Personenzug, Diesel | AN51: =Eingabevariablen!$C88*'Hilfsblatt Kostensätze Umwelt'!AM51/100 -> 0 | AO51: =Eingabevariablen!$D88*'Hilfsblatt Kostensätze Umwelt'!AN51/100 -> 0 | AP51: =Eingabevariablen!$E88*'Hilfsblatt Kostensätze Umwelt'!AO51/100 -> 0 | AY51: Personenzug, Diesel | AZ51: =Eingabevariablen!$C88*'Hilfsblatt Kostensätze Umwelt'!AY51/100 -> 0 | BA51: =Eingabevariablen!$D88*'Hilfsblatt Kostensätze Umwelt'!AZ51/100 -> 0 | BB51: =Eingabevariablen!$E88*'Hilfsblatt Kostensätze Umwelt'!BA51/100 -> 0 | BK51: Personenzug, Diesel | BL51: =$BY51*'Hilfsblatt Kostensätze Umwelt'!BK51/100 -> 0 | BM51: =$BZ51*'Hilfsblatt Kostensätze Umwelt'!BL51/100 -> 0 | BN51: =$CA51*'Hilfsblatt Kostensätze Umwelt'!BM51/100 -> 0 | BW51: Schienenverkehr: | BX51: Personenzug, Diesel | BY51: =Eingabevariablen!C88*(1+Eingabevariablen!$C$118) -> 0 | BZ51: =Eingabevariablen!D88*(1+Eingabevariablen!$C$118) -> 0 | CA51: =Eingabevariablen!E88*(1+Eingabevariablen!$C$118) -> 0
B52: Personenzug, elektrisch | C52: 0 | D52: 0 | E52: 0 | H52: 0 | I52: 0 | J52: 0 | K52: 0 | O52: Personenzug, elektrisch | P52: =$BY52*'Hilfsblatt Kostensätze Umwelt'!O52/100 -> 0 | Q52: =$BZ52*'Hilfsblatt Kostensätze Umwelt'!P52/100 -> 0 | R52: =$CA52*'Hilfsblatt Kostensätze Umwelt'!Q52/100 -> 0 | AA52: Personenzug, elektrisch | AB52: =$BY52*'Hilfsblatt Kostensätze Umwelt'!AA52/100 -> 0 | AC52: =$BZ52*'Hilfsblatt Kostensätze Umwelt'!AB52/100 -> 0 | AD52: =$CA52*'Hilfsblatt Kostensätze Umwelt'!AC52/100 -> 0 | AM52: Personenzug, elektrisch | AN52: =Eingabevariablen!$C89*'Hilfsblatt Kostensätze Umwelt'!AM52/100 -> 0 | AO52: =Eingabevariablen!$D89*'Hilfsblatt Kostensätze Umwelt'!AN52/100 -> 0 | AP52: =Eingabevariablen!$E89*'Hilfsblatt Kostensätze Umwelt'!AO52/100 -> 0 | AY52: Personenzug, elektrisch | AZ52: =Eingabevariablen!$C89*'Hilfsblatt Kostensätze Umwelt'!AY52/100 -> 0 | BA52: =Eingabevariablen!$D89*'Hilfsblatt Kostensätze Umwelt'!AZ52/100 -> 0 | BB52: =Eingabevariablen!$E89*'Hilfsblatt Kostensätze Umwelt'!BA52/100 -> 0 | BK52: Personenzug, elektrisch | BL52: =$BY52*'Hilfsblatt Kostensätze Umwelt'!BK52/100 -> 0 | BM52: =$BZ52*'Hilfsblatt Kostensätze Umwelt'!BL52/100 -> 0 | BN52: =$CA52*'Hilfsblatt Kostensätze Umwelt'!BM52/100 -> 0 | BX52: Personenzug, elektrisch | BY52: =Eingabevariablen!C89*(1+Eingabevariablen!$C$118) -> 0 | BZ52: =Eingabevariablen!D89*(1+Eingabevariablen!$C$118) -> 0 | CA52: =Eingabevariablen!E89*(1+Eingabevariablen!$C$118) -> 0
B53: Güterzug, Diesel | C53: 0 | D53: 0 | E53: 0 | H53: 0 | I53: 0 | J53: 0 | K53: 0 | O53: Güterzug, Diesel | P53: =$BY53*'Hilfsblatt Kostensätze Umwelt'!O53/100 -> 0 | Q53: =$BZ53*'Hilfsblatt Kostensätze Umwelt'!P53/100 -> 0 | R53: =$CA53*'Hilfsblatt Kostensätze Umwelt'!Q53/100 -> 0 | AA53: Güterzug, Diesel | AB53: =$BY53*'Hilfsblatt Kostensätze Umwelt'!AA53/100 -> 0 | AC53: =$BZ53*'Hilfsblatt Kostensätze Umwelt'!AB53/100 -> 0 | AD53: =$CA53*'Hilfsblatt Kostensätze Umwelt'!AC53/100 -> 0 | AM53: Güterzug, Diesel | AN53: =Eingabevariablen!$C90*'Hilfsblatt Kostensätze Umwelt'!AM53/100 -> 0 | AO53: =Eingabevariablen!$D90*'Hilfsblatt Kostensätze Umwelt'!AN53/100 -> 0 | AP53: =Eingabevariablen!$E90*'Hilfsblatt Kostensätze Umwelt'!AO53/100 -> 0 | AY53: Güterzug, Diesel | AZ53: =Eingabevariablen!$C90*'Hilfsblatt Kostensätze Umwelt'!AY53/100 -> 0 | BA53: =Eingabevariablen!$D90*'Hilfsblatt Kostensätze Umwelt'!AZ53/100 -> 0 | BB53: =Eingabevariablen!$E90*'Hilfsblatt Kostensätze Umwelt'!BA53/100 -> 0 | BK53: Güterzug, Diesel | BL53: =$BY53*'Hilfsblatt Kostensätze Umwelt'!BK53/100 -> 0 | BM53: =$BZ53*'Hilfsblatt Kostensätze Umwelt'!BL53/100 -> 0 | BN53: =$CA53*'Hilfsblatt Kostensätze Umwelt'!BM53/100 -> 0 | BX53: Güterzug, Diesel | BY53: =Eingabevariablen!C90*(1+Eingabevariablen!$C$118) -> 0 | BZ53: =Eingabevariablen!D90*(1+Eingabevariablen!$C$118) -> 0 | CA53: =Eingabevariablen!E90*(1+Eingabevariablen!$C$118) -> 0
B54: Güterzug, elektrisch | C54: 0 | D54: 0 | E54: 0 | H54: 0 | I54: 0 | J54: 0 | K54: 0 | O54: Güterzug, elektrisch | P54: =$BY54*'Hilfsblatt Kostensätze Umwelt'!O54/100 -> 0 | Q54: =$BZ54*'Hilfsblatt Kostensätze Umwelt'!P54/100 -> 0 | R54: =$CA54*'Hilfsblatt Kostensätze Umwelt'!Q54/100 -> 0 | AA54: Güterzug, elektrisch | AB54: =$BY54*'Hilfsblatt Kostensätze Umwelt'!AA54/100 -> 0 | AC54: =$BZ54*'Hilfsblatt Kostensätze Umwelt'!AB54/100 -> 0 | AD54: =$CA54*'Hilfsblatt Kostensätze Umwelt'!AC54/100 -> 0 | AM54: Güterzug, elektrisch | AN54: =Eingabevariablen!$C91*'Hilfsblatt Kostensätze Umwelt'!AM54/100 -> 0 | AO54: =Eingabevariablen!$D91*'Hilfsblatt Kostensätze Umwelt'!AN54/100 -> 0 | AP54: =Eingabevariablen!$E91*'Hilfsblatt Kostensätze Umwelt'!AO54/100 -> 0 | AY54: Güterzug, elektrisch | AZ54: =Eingabevariablen!$C91*'Hilfsblatt Kostensätze Umwelt'!AY54/100 -> 0 | BA54: =Eingabevariablen!$D91*'Hilfsblatt Kostensätze Umwelt'!AZ54/100 -> 0 | BB54: =Eingabevariablen!$E91*'Hilfsblatt Kostensätze Umwelt'!BA54/100 -> 0 | BK54: Güterzug, elektrisch | BL54: =$BY54*'Hilfsblatt Kostensätze Umwelt'!BK54/100 -> 0 | BM54: =$BZ54*'Hilfsblatt Kostensätze Umwelt'!BL54/100 -> 0 | BN54: =$CA54*'Hilfsblatt Kostensätze Umwelt'!BM54/100 -> 0 | BX54: Güterzug, elektrisch | BY54: =Eingabevariablen!C91*(1+Eingabevariablen!$C$118) -> 0 | BZ54: =Eingabevariablen!D91*(1+Eingabevariablen!$C$118) -> 0 | CA54: =Eingabevariablen!E91*(1+Eingabevariablen!$C$118) -> 0
B55: Binnengüterschiff | C55: 0 | H55: 0 | O55: Binnengüterschiff | P55: =$BY55*'Hilfsblatt Kostensätze Umwelt'!O55/100 -> 0 | AA55: Binnengüterschiff | AB55: =$BY55*'Hilfsblatt Kostensätze Umwelt'!AA55/100 -> 0 | AM55: Binnengüterschiff | AN55: =Eingabevariablen!$C109*'Hilfsblatt Kostensätze Umwelt'!AM55/100 -> 0 | AY55: Binnengüterschiff | AZ55: =Eingabevariablen!$C109*'Hilfsblatt Kostensätze Umwelt'!AY55/100 -> 0 | BK55: Binnengüterschiff | BL55: =$BY55*'Hilfsblatt Kostensätze Umwelt'!BK55/100 -> 0 | BW55: Schiffsverkehr: | BX55: Binnengüterschiff | BY55: =Eingabevariablen!C109*(1+Eingabevariablen!$C$118) -> 0
B56: Luftverkehr, Europa-/Kontinentalflug | C56: 0 | H56: 0 | O56: Luftverkehr, Europa-/Kontinentalflug | P56: =$BY56*'Hilfsblatt Kostensätze Umwelt'!O56/100 -> 0 | AA56: Luftverkehr, Europa-/Kontinentalflug | AB56: =$BY56*'Hilfsblatt Kostensätze Umwelt'!AA56/100 -> 0 | AM56: Luftverkehr, Europa-/Kontinentalflug | AN56: =Eingabevariablen!$C113*'Hilfsblatt Kostensätze Umwelt'!AM56/100 -> 0 | AY56: Luftverkehr, Europa-/Kontinentalflug | AZ56: =Eingabevariablen!$C113*'Hilfsblatt Kostensätze Umwelt'!AY56/100 -> 0 | BK56: Luftverkehr, Europa-/Kontinentalflug | BL56: =$BY56*'Hilfsblatt Kostensätze Umwelt'!BK56/100 -> 0 | BW56: Luftverkehr: | BX56: Luftverkehr, Europa-/Kontinentalflug | BY56: =Eingabevariablen!C113*(1+Eingabevariablen!$C$118) -> 0
A60: B. Nach Wirkungskategorien
A62: 1. Luftschadstoffemissionen
B64: in Euro
B65: Quelle: | C65: Quelle unbekannt | D65: Verkehr | F65: Kraftwerk/Energie | G65: Industrie | H65: Kleinfeuerung
B66: Kosten | D66: Innerorts (Durchschnitt) | E66: Außerorts | H66: Innerorts | I66: Außerorts | J66: Total
B67: Partikel (Feinstaub) grob PM10 | C67: =Eingabevariablen!C206*'Hilfsblatt Kostensätze Umwelt'!C69 -> 0 | D67: =Eingabevariablen!D206*'Hilfsblatt Kostensätze Umwelt'!D69 -> 0 | E67: =Eingabevariablen!E206*'Hilfsblatt Kostensätze Umwelt'!E69 -> 0 | F67: =Eingabevariablen!F206*'Hilfsblatt Kostensätze Umwelt'!F69 -> 0 | G67: =Eingabevariablen!G206*'Hilfsblatt Kostensätze Umwelt'!G69 -> 0 | H67: =Eingabevariablen!H206*'Hilfsblatt Kostensätze Umwelt'!H69 -> 0 | I67: =Eingabevariablen!I206*'Hilfsblatt Kostensätze Umwelt'!I69 -> 0 | J67: =SUM(C67:I67) -> 0
B68: Partikel (Feinstaub) fein PM2.5 | C68: =Eingabevariablen!C207*'Hilfsblatt Kostensätze Umwelt'!C70 -> 0 | D68: =Eingabevariablen!D207*'Hilfsblatt Kostensätze Umwelt'!D70 -> 0 | E68: =Eingabevariablen!E207*'Hilfsblatt Kostensätze Umwelt'!E70 -> 0 | F68: =Eingabevariablen!F207*'Hilfsblatt Kostensätze Umwelt'!F70 -> 0 | G68: =Eingabevariablen!G207*'Hilfsblatt Kostensätze Umwelt'!G70 -> 0 | H68: =Eingabevariablen!H207*'Hilfsblatt Kostensätze Umwelt'!H70 -> 0 | I68: =Eingabevariablen!I207*'Hilfsblatt Kostensätze Umwelt'!I70 -> 0 | J68: =SUM(C68:I68) -> 0
B69: Stickoxide NOx | C69: =Eingabevariablen!C208*'Hilfsblatt Kostensätze Umwelt'!C71 -> 0 | D69: =Eingabevariablen!D208*'Hilfsblatt Kostensätze Umwelt'!D71 -> 0 | E69: =Eingabevariablen!E208*'Hilfsblatt Kostensätze Umwelt'!E71 -> 0 | F69: =Eingabevariablen!F208*'Hilfsblatt Kostensätze Umwelt'!F71 -> 0 | G69: =Eingabevariablen!G208*'Hilfsblatt Kostensätze Umwelt'!G71 -> 0 | H69: =Eingabevariablen!H208*'Hilfsblatt Kostensätze Umwelt'!H71 -> 0 | I69: =Eingabevariablen!I208*'Hilfsblatt Kostensätze Umwelt'!I71 -> 0 | J69: 0
B70: Schwefeldioxid SO2 | C70: =Eingabevariablen!C209*'Hilfsblatt Kostensätze Umwelt'!C72 -> 0 | D70: =Eingabevariablen!D209*'Hilfsblatt Kostensätze Umwelt'!D72 -> 0 | E70: =Eingabevariablen!E209*'Hilfsblatt Kostensätze Umwelt'!E72 -> 0 | F70: =Eingabevariablen!F209*'Hilfsblatt Kostensätze Umwelt'!F72 -> 0 | G70: =Eingabevariablen!G209*'Hilfsblatt Kostensätze Umwelt'!G72 -> 0 | H70: =Eingabevariablen!H209*'Hilfsblatt Kostensätze Umwelt'!H72 -> 0 | I70: =Eingabevariablen!I209*'Hilfsblatt Kostensätze Umwelt'!I72 -> 0 | J70: 0
B71: Flüchtige Kohlenwasserstoffe NMVOC | C71: =Eingabevariablen!C210*'Hilfsblatt Kostensätze Umwelt'!C73 -> 0 | D71: =Eingabevariablen!D210*'Hilfsblatt Kostensätze Umwelt'!D73 -> 0 | E71: =Eingabevariablen!E210*'Hilfsblatt Kostensätze Umwelt'!E73 -> 0 | F71: =Eingabevariablen!F210*'Hilfsblatt Kostensätze Umwelt'!F73 -> 0 | G71: =Eingabevariablen!G210*'Hilfsblatt Kostensätze Umwelt'!G73 -> 0 | H71: =Eingabevariablen!H210*'Hilfsblatt Kostensätze Umwelt'!H73 -> 0 | I71: =Eingabevariablen!I210*'Hilfsblatt Kostensätze Umwelt'!I73 -> 0 | J71: 0
B72: Ammoniak NH3 | C72: =Eingabevariablen!C211*'Hilfsblatt Kostensätze Umwelt'!C74 -> 0 | D72: =Eingabevariablen!D211*'Hilfsblatt Kostensätze Umwelt'!D74 -> 0 | E72: =Eingabevariablen!E211*'Hilfsblatt Kostensätze Umwelt'!E74 -> 0 | F72: =Eingabevariablen!F211*'Hilfsblatt Kostensätze Umwelt'!F74 -> 0 | G72: =Eingabevariablen!G211*'Hilfsblatt Kostensätze Umwelt'!G74 -> 0 | H72: =Eingabevariablen!H211*'Hilfsblatt Kostensätze Umwelt'!H74 -> 0 | I72: =Eingabevariablen!I211*'Hilfsblatt Kostensätze Umwelt'!I74 -> 0 | J72: 0
A77: 2. Treibhausgasemissionen
B80: in Euro
B81: Schadstoff | C81: in EUR
B82: Kohlendioxid (CO2) | C82: =Eingabevariablen!C238*'Hilfsblatt Kostensätze Umwelt'!C82 -> 0
B83: Methan (CH4) | C83: =Eingabevariablen!C239*'Hilfsblatt Kostensätze Umwelt'!C83 -> 0
B84: Lachgas (N2O) | C84: =Eingabevariablen!C240*'Hilfsblatt Kostensätze Umwelt'!C84 -> 0
B85: Treibhausgase total (in CO2-Äquivalent) | C85: =Eingabevariablen!C241*'Hilfsblatt Kostensätze Umwelt'!C85 -> 0
A89: 3. Lärmemissionen
B92: in EUR
B93: Kosten pro belastete Personen je Lärmklasse (Dezibel-Klasse) | C93: Quelle: Verkehr | F93: Quelle: unbekannt
B94: Lärmbelastung (Lden (dB(A)) | C94: Strassenverkehr | D94: Schienenverkehr | E94: Luftverkehr
B95: 45 dB | C95: =Eingabevariablen!C250*'Hilfsblatt Kostensätze Umwelt'!C95 -> 0 | D95: =Eingabevariablen!D250*'Hilfsblatt Kostensätze Umwelt'!D95 -> 0 | E95: =Eingabevariablen!E250*'Hilfsblatt Kostensätze Umwelt'!E95 -> 0 | F95: =Eingabevariablen!F250*'Hilfsblatt Kostensätze Umwelt'!F95 -> 0
B96: 50 dB | C96: =Eingabevariablen!C251*'Hilfsblatt Kostensätze Umwelt'!C96 -> 0 | D96: =Eingabevariablen!D251*'Hilfsblatt Kostensätze Umwelt'!D96 -> 0 | E96: =Eingabevariablen!E251*'Hilfsblatt Kostensätze Umwelt'!E96 -> 0 | F96: =Eingabevariablen!F251*'Hilfsblatt Kostensätze Umwelt'!F96 -> 0
B97: 55 dB | C97: =Eingabevariablen!C252*'Hilfsblatt Kostensätze Umwelt'!C97 -> 0 | D97: =Eingabevariablen!D252*'Hilfsblatt Kostensätze Umwelt'!D97 -> 0 | E97: =Eingabevariablen!E252*'Hilfsblatt Kostensätze Umwelt'!E97 -> 0 | F97: =Eingabevariablen!F252*'Hilfsblatt Kostensätze Umwelt'!F97 -> 0
B98: 60 dB | C98: =Eingabevariablen!C253*'Hilfsblatt Kostensätze Umwelt'!C98 -> 0 | D98: =Eingabevariablen!D253*'Hilfsblatt Kostensätze Umwelt'!D98 -> 0 | E98: =Eingabevariablen!E253*'Hilfsblatt Kostensätze Umwelt'!E98 -> 0 | F98: =Eingabevariablen!F253*'Hilfsblatt Kostensätze Umwelt'!F98 -> 0
B99: 65 dB | C99: =Eingabevariablen!C254*'Hilfsblatt Kostensätze Umwelt'!C99 -> 0 | D99: =Eingabevariablen!D254*'Hilfsblatt Kostensätze Umwelt'!D99 -> 0 | E99: =Eingabevariablen!E254*'Hilfsblatt Kostensätze Umwelt'!E99 -> 0 | F99: =Eingabevariablen!F254*'Hilfsblatt Kostensätze Umwelt'!F99 -> 0
B100: 70 dB | C100: =Eingabevariablen!C255*'Hilfsblatt Kostensätze Umwelt'!C100 -> 0 | D100: =Eingabevariablen!D255*'Hilfsblatt Kostensätze Umwelt'!D100 -> 0 | E100: =Eingabevariablen!E255*'Hilfsblatt Kostensätze Umwelt'!E100 -> 0 | F100: =Eingabevariablen!F255*'Hilfsblatt Kostensätze Umwelt'!F100 -> 0
B101: 75 dB | C101: =Eingabevariablen!C256*'Hilfsblatt Kostensätze Umwelt'!C101 -> 0 | D101: =Eingabevariablen!D256*'Hilfsblatt Kostensätze Umwelt'!D101 -> 0 | E101: =Eingabevariablen!E256*'Hilfsblatt Kostensätze Umwelt'!E101 -> 0 | F101: =Eingabevariablen!F256*'Hilfsblatt Kostensätze Umwelt'!F101 -> 0
B102: 80 dB | C102: =Eingabevariablen!C257*'Hilfsblatt Kostensätze Umwelt'!C102 -> 0 | D102: =Eingabevariablen!D257*'Hilfsblatt Kostensätze Umwelt'!D102 -> 0 | E102: =Eingabevariablen!E257*'Hilfsblatt Kostensätze Umwelt'!E102 -> 0 | F102: =Eingabevariablen!F257*'Hilfsblatt Kostensätze Umwelt'!F102 -> 0
B103: ≥81 dB | C103: =Eingabevariablen!C258*'Hilfsblatt Kostensätze Umwelt'!C103 -> 0 | D103: =Eingabevariablen!D258*'Hilfsblatt Kostensätze Umwelt'!D103 -> 0 | E103: =Eingabevariablen!E258*'Hilfsblatt Kostensätze Umwelt'!E103 -> 0 | F103: =Eingabevariablen!F258*'Hilfsblatt Kostensätze Umwelt'!F103 -> 0
A106: 4. Beeinträchtigung von Ökosystemen
A110: a. Flächenumwandlung, Verbauung natürlicher Flächen, Versiegelung
C111: in EUR
B112: Kosten der versiegelten Fläche (total) | C112: =Eingabevariablen!C306*10^6*'Hilfsblatt Kostensätze Umwelt'!C112 -> 0 | D112: in Euro total
B113: Kosten pro Jahr | C113: =Eingabevariablen!C306*10^6*'Hilfsblatt Kostensätze Umwelt'!C114 -> 0 | D113: in Euro, pro Jahr
A116: b. Landnutzungsänderung, Nutzungsintenvisierung
B118: Kosten in Euro: Total bzw. pro Jahr | F118: in EUR | G118: in EUR
E119: Kostensatz Vollverlust, in EUR/m2 2010 | F119: Vollverlust, in EUR 2010 total | G119: Vollverlust, in EUR 2010 pro Jahr
B120: bisherige Nutzungsform | C120: =Eingabevariablen!$C$179:$D$179 -> Durchschnitt Deutschland (alle Biotoptypen) | E120: =VLOOKUP($C120,'Hilfsblatt Kostensätze Umwelt'!$B$119:$C$141,2,FALSE) -> 5.506083202 | F120: =(Eingabevariablen!$C$178)*10^6*'Hilfsblatt Ber. Umweltkosten 1'!$E120 -> 0 | G120: =-PMT('Hilfsblatt Kostensätze Umwelt'!$C$113,100,$F120) -> 0
B121: neue Nutzungsform | C121: =Eingabevariablen!$C$180:$D$180 -> Ackerland | E121: =VLOOKUP($C121,'Hilfsblatt Kostensätze Umwelt'!$B$119:$C$141,2,FALSE) -> 0.6241979764 | F121: =(Eingabevariablen!$C$178)*10^6*'Hilfsblatt Ber. Umweltkosten 1'!$E121 -> 0 | G121: =-PMT('Hilfsblatt Kostensätze Umwelt'!$C$113,100,$F121) -> 0
B122: Delta = Kosten der Nutzungsänderung | E122: =E120-E121 -> 4.881885226 | F122: =F120-F121 -> 0 | G122: =G120-G121 -> 0
A148: c. Nährstoffeintrag
B150: Kosten pro kg Stickstoff (N) | C150: in Euro
B151: Stickstoff-Verbindungen | C151: =Eingabevariablen!$C$184*1000*'Hilfsblatt Kostensätze Umwelt'!$C$151 -> 0 | D151: in Euro
A153: d. Schadstoffeinträge ins Meer
B155: Kosten Schadstoffeinträge ins Meer | C155: in Euro
B156: Stickstoffeintrag ins Meer | C156: =Eingabevariablen!C289*'Hilfsblatt Kostensätze Umwelt'!C156 -> 0 | D156: in Euro
B157: Abfallmenge, ins Meer | C157: =Eingabevariablen!C290*'Hilfsblatt Kostensätze Umwelt'!C157 -> 0 | D157: in Euro
B158: Ölmenge, ins Meer | C158: =Eingabevariablen!C291*IF(Eingabevariablen!$C$293='Hilfsblatt Kostensätze Umwelt'!J158,'Hilfsblatt Kostensätze Umwelt'!C158,'Hilfsblatt Kostensätze Umwelt'!D158) -> 0 | D158: in Euro
A160: e. Zerschneidung der Landschaft durch Verkehrswege
C161: total | D161: pro Jahr
B162: Kosten (zusätzlicher) Verkehrsinfrastrukturen | C162: in Euro, total | D162: in Euro, pro Jahr
B163: Straße: Autobahn, Bundesstraße | C163: =Eingabevariablen!$C297*'Hilfsblatt Kostensätze Umwelt'!C163 -> 0 | D163: =Eingabevariablen!$C297*'Hilfsblatt Kostensätze Umwelt'!D163 -> 0
B164: Straße: Hauptstraße | C164: =Eingabevariablen!$C298*'Hilfsblatt Kostensätze Umwelt'!C164 -> 0 | D164: =Eingabevariablen!$C298*'Hilfsblatt Kostensätze Umwelt'!D164 -> 0
B165: Straße: Nebenstraße | C165: =Eingabevariablen!$C299*'Hilfsblatt Kostensätze Umwelt'!C165 -> 0 | D165: =Eingabevariablen!$C299*'Hilfsblatt Kostensätze Umwelt'!D165 -> 0
B166: Schiene: mehrspurig | C166: =Eingabevariablen!$C300*'Hilfsblatt Kostensätze Umwelt'!C166 -> 0 | D166: =Eingabevariablen!$C300*'Hilfsblatt Kostensätze Umwelt'!D166 -> 0
B167: Schiene: einspurig | C167: =Eingabevariablen!$C301*'Hilfsblatt Kostensätze Umwelt'!C167 -> 0 | D167: =Eingabevariablen!$C301*'Hilfsblatt Kostensätze Umwelt'!D167 -> 0
B168: Flugplatz, Flughafen | C168: =Eingabevariablen!$C302*'Hilfsblatt Kostensätze Umwelt'!C168 -> 0 | D168: =Eingabevariablen!$C302*'Hilfsblatt Kostensätze Umwelt'!D168 -> 0
A171: 5. Emission toxischer Stoffe
B175: Kosten der Emission toxischer Stoffe | C175: in Euro
B176: Schwermetalle:
B177: Arsen (As) | C177: =Eingabevariablen!C313*'Hilfsblatt Kostensätze Umwelt'!C177 -> 0
B178: Cadmium (Cd) | C178: =Eingabevariablen!C314*'Hilfsblatt Kostensätze Umwelt'!C178 -> 0
B179: Chrom (Cr) | C179: =Eingabevariablen!C315*'Hilfsblatt Kostensätze Umwelt'!C179 -> 0
B180: Nickel (Ni) | C180: =Eingabevariablen!C316*'Hilfsblatt Kostensätze Umwelt'!C180 -> 0
B181: Quecksilber (Hg) | C181: =Eingabevariablen!C317*'Hilfsblatt Kostensätze Umwelt'!C181 -> 0
B182: Blei (Pb) | C182: =Eingabevariablen!C318*'Hilfsblatt Kostensätze Umwelt'!C182 -> 0
B183: Langlebige organische Schadstoffe (POPs):
B184: Dioxine | C184: =Eingabevariablen!C320*'Hilfsblatt Kostensätze Umwelt'!C184 -> 0
B185: Furane | C185: =Eingabevariablen!C321*'Hilfsblatt Kostensätze Umwelt'!C185 -> 0
B186: Formaldehyd | C186: =Eingabevariablen!C322*'Hilfsblatt Kostensätze Umwelt'!C186 -> 0
B187: Pflanzenschutzmittel | C187: =Eingabevariablen!C323*'Hilfsblatt Kostensätze Umwelt'!C187 -> 0
B188: Insektizide | C188: =Eingabevariablen!C324*'Hilfsblatt Kostensätze Umwelt'!C188 -> 0
A191: 6. Indirekte Effekte vor- und nachgelagerte Prozesse
B195: Kosten der Schadstoffemissionen | C195: in Euro
B196: Partikel (Feinstaub) PM10 | C196: =Eingabevariablen!C330*'Hilfsblatt Kostensätze Umwelt'!C196 -> 0
B197: Partikel (Feinstaub) fein PM2.5 | C197: =Eingabevariablen!C331*'Hilfsblatt Kostensätze Umwelt'!C197 -> 0
B198: Stickoxide NOx | C198: =Eingabevariablen!C332*'Hilfsblatt Kostensätze Umwelt'!C198 -> 0
B199: Schwefeldioxid SO2 | C199: =Eingabevariablen!C333*'Hilfsblatt Kostensätze Umwelt'!C199 -> 0
B200: Flüchtige Kohlenwasserstoffe NMVOC | C200: =Eingabevariablen!C334*'Hilfsblatt Kostensätze Umwelt'!C200 -> 0
B201: Ammoniak NH3 | C201: =Eingabevariablen!C335*'Hilfsblatt Kostensätze Umwelt'!C201 -> 0
B202: Kohlendioxid (CO2) | C202: =Eingabevariablen!C336*'Hilfsblatt Kostensätze Umwelt'!C202 -> 0
B203: Methan (CH4) | C203: =Eingabevariablen!C337*'Hilfsblatt Kostensätze Umwelt'!C203 -> 0
B204: Lachgas (N2O) | C204: =Eingabevariablen!C338*'Hilfsblatt Kostensätze Umwelt'!C204 -> 0
B205: Treibhausgase total (in CO2-Äquivalent) | C205: =Eingabevariablen!C339*'Hilfsblatt Kostensätze Umwelt'!C205 -> 0
B206: Stickstoff-Verbindungen | C206: =Eingabevariablen!C340*'Hilfsblatt Kostensätze Umwelt'!C206 -> 0
A209: 9. Unfälle
B211: Anzahl Unfallopfer (Verkehrsunfälle) | C211: in Euro
B212: Leichtverletzte | C212: =Eingabevariablen!C346*'Hilfsblatt Kostensätze Umwelt'!D219 -> 0
B213: Schwerverletzte | C213: =Eingabevariablen!C347*'Hilfsblatt Kostensätze Umwelt'!D220 -> 0
B214: Todesopfer | C214: =Eingabevariablen!C348*'Hilfsblatt Kostensätze Umwelt'!D221 -> 0
B216: Anzahl Verkehrsunfälle | C216: in Euro
B217: Strassenverkehrsunfälle generell | C217: =Eingabevariablen!C351*'Hilfsblatt Kostensätze Umwelt'!E225 -> 0
B218: Unfälle mit Personenwagen | C218: =Eingabevariablen!C352*'Hilfsblatt Kostensätze Umwelt'!E226 -> 0
B219: Unfälle mit Motorrädern | C219: =Eingabevariablen!C353*'Hilfsblatt Kostensätze Umwelt'!E227 -> 0
B220: Unfälle mit Güterschwerverkehr | C220: =Eingabevariablen!C354*'Hilfsblatt Kostensätze Umwelt'!E228 -> 0
B221: Unfälle mit öffentl. Personenverkehr | C221: =Eingabevariablen!C355*'Hilfsblatt Kostensätze Umwelt'!E229 -> 0
B222: Unfälle mit Fahrrädern | C222: =Eingabevariablen!C356*'Hilfsblatt Kostensätze Umwelt'!E230 -> 0
B223: Unfälle mit Fussgängern | C223: =Eingabevariablen!C357*'Hilfsblatt Kostensätze Umwelt'!E231 -> 0
B224: Schienenverkehrsunfälle: Personenverkehr | C224: =Eingabevariablen!C358*'Hilfsblatt Kostensätze Umwelt'!E232 -> 0
B225: Schienenverkehrsunfälle: Güterverkehr | C225: =Eingabevariablen!C359*'Hilfsblatt Kostensätze Umwelt'!E233 -> 0
B226: Luftverkehrsunfälle (ohne Grossereignisse) | C226: =Eingabevariablen!C360*'Hilfsblatt Kostensätze Umwelt'!E234 -> 0
A231: Gesamtübersicht: Ergebnis Umweltkosten / Umweltnutzen
A233: a. Nutzen pro Jahr | I233: b. Gesamtnutzen (-kosten) (bei Landnutzungsänderungen oder Versiegelung)
A235: Nutzen/Kosten aus: | B235: Nutzen (Kosten) in 1.000 Euro | C235: Einheit | D235: gerundet
A236: Luftschadstoffemissionen | B236: =-(SUM('Hilfsblatt Ber. Umweltkosten 1'!P16:P33,'Hilfsblatt Ber. Umweltkosten 1'!S16:S29,'Hilfsblatt Ber. Umweltkosten 1'!V16:V21,'Hilfsblatt Ber. Umweltkosten 1'!Y16:Y19,'Hilfsblatt Ber. Umweltkosten 1'!P43:S56,'Hilfsblatt Ber. Umweltkosten 1'!C67:I72)/1000) -> 0 | C236: ="1.000 € pro "&Eingabevariablen!$J$49 -> 1.000 € pro Jahr | D236: =ROUND(B236,-2) -> 0
A237: Treibhausgasemissionen | B237: =-(SUM('Hilfsblatt Ber. Umweltkosten 1'!AB16:AB33,'Hilfsblatt Ber. Umweltkosten 1'!AE16:AE29,'Hilfsblatt Ber. Umweltkosten 1'!AH16:AH21,'Hilfsblatt Ber. Umweltkosten 1'!AK16:AK19,'Hilfsblatt Ber. Umweltkosten 1'!AB43:AE56,'Hilfsblatt Ber. Umweltkosten 1'!C82:C85)/1000) -> 0 | C237: ="1.000 € pro "&Eingabevariablen!$J$49 -> 1.000 € pro Jahr | D237: =ROUND(B237,-2) -> 0
A238: Lärmemissionen | B238: =-(SUM('Hilfsblatt Ber. Umweltkosten 1'!AN43:AQ56,'Hilfsblatt Ber. Umweltkosten 1'!C95:F103)/1000) -> 0 | C238: ="1.000 € pro "&Eingabevariablen!$J$49 -> 1.000 € pro Jahr | D238: 0 | I238: Beeinträchtigung von Ökosystemen: | J238: Nutzen (Kosten) in 1.000 Euro | K238: Einheit
A239: Beeinträchtigung von Ökosystemen | B239: =-(SUM('Hilfsblatt Ber. Umweltkosten 1'!AZ43:BC56,'Hilfsblatt Ber. Umweltkosten 1'!C113,'Hilfsblatt Ber. Umweltkosten 1'!G122,'Hilfsblatt Ber. Umweltkosten 1'!C151,'Hilfsblatt Ber. Umweltkosten 1'!C156:C158,'Hilfsblatt Ber. Umweltkosten 1'!D163:D168)/1000) -> 0 | C239: ="1.000 € pro "&Eingabevariablen!$J$49 -> 1.000 € pro Jahr | D239: 0 | I239: Versiegelung & Landnutzungsänderung | J239: =-ROUND((SUM('Hilfsblatt Ber. Umweltkosten 1'!C112,'Hilfsblatt Ber. Umweltkosten 1'!F122)/1000),-3) -> 0 | K239: 1.000 € total
A240: Emission toxischer Stoffe | B240: =-(SUM('Hilfsblatt Ber. Umweltkosten 1'!C177:C182,'Hilfsblatt Ber. Umweltkosten 1'!C184:C188)/1000) -> 0 | C240: ="1.000 € pro "&Eingabevariablen!$J$49 -> 1.000 € pro Jahr | D240: 0 | J240: nicht Jahreskosten, sondern Gesamtkosten
A241: Indirekte Effekte durch vor- und nachgelagerte Prozesse | B241: =-(SUM('Hilfsblatt Ber. Umweltkosten 1'!BL16:BL33,'Hilfsblatt Ber. Umweltkosten 1'!BO16:BO29,'Hilfsblatt Ber. Umweltkosten 1'!BR16:BR21,'Hilfsblatt Ber. Umweltkosten 1'!BU16:BU19,'Hilfsblatt Ber. Umweltkosten 1'!BL43:BO56,'Hilfsblatt Ber. Umweltkosten 1'!C196:C206)/1000) -> 0 | C241: ="1.000 € pro "&Eingabevariablen!$J$49 -> 1.000 € pro Jahr | D241: 0
A242: Gesamtkosten (-nutzen) Umwelt | B242: =SUM(B236:B241) -> 0 | C242: 1.000 € pro Jahr | D242: =SUM(D236:D241) -> 0
A243: Unfälle | B243: =-(SUM(C212:C214,C217:C226)/1000) -> 0 | C243: ="1.000 € pro "&Eingabevariablen!$J$49 -> 1.000 € pro Jahr | D243: 0
A244: Total Umwelt und Unfälle | B244: =B242+B243 -> 0 | C244: 1.000 € pro Jahr | D244: =D242+D243 -> 0
A245: Bemerkung: positives Vorzeichen = Nutzen = Reduktion von Kosten; negatives Vorzeichen = zusätzliche Kosten
A249: Ermittlung Anteil der Betroffenheit (Kosten/Nutzen) der Wirtschaft: Deckelung, Kompensation
A252: 1. Luftschadstoffemissionen
A254: Folgen, Kostenbereiche | B254: Konkrete Kosten | C254: Betroffenheit Wirtschaft (qual.) | D254: Anteil Gesamtkosten | J254: Quelle | K254: Allokation Anteil Wirtschaft | L254: Anteil Private | M254: Quelle
D255: Partikel grob PM10 | E255: Partikel fein PM2.5 | F255: Stickoxide NOx | G255: Schwefeldioxid SO2 | H255: Flüchtige KW: NMVOC | I255: Ammoniak NH3
A256: Gesundheitsschäden | B256: Medizinische Behandlungs-kosten, Spitalkosten | C256: Grundsätzlich private Kosten, aber durch Wirtschaft mitfinanziert über Arbeitgeberbeiträge Krankenversicherung | D256: 0.012 | E256: =$D256 -> 0.012 | F256: =$D256 -> 0.012 | G256: =$D256 -> 0.012 | H256: 0.012 | I256: 0.012 | J256: Ecoplan, ARE 2014: Ext. Kosten Verkehr Schweiz 2010, Basis Strassen-verkehr | K256: =7.3/(7.3+7.3+0.9) -> 0.4709677419 | L256: =(7.3+0.9)/(7.3+7.3+0.9) -> 0.5290322581 | M256: Aktuelle Beitrags-sätze Arbeitgeber/-nehmer
B257: Produktionsausfälle infolge Krankeiten | C257: Kosten / Nutzen vollständig bei der Wirtschaft | D257: 0.023 | E257: =$D257 -> 0.023 | F257: 0.023 | G257: 0.023 | H257: 0.023 | I257: 0.023 | K257: 1 | L257: 0
B258: Wiederbesetungskosten bei Unternehmen (Invalidität, Tod) | C258: Kosten / Nutzen vollständig bei der Wirtschaft | D258: 0.003 | E258: 0.003 | F258: 0.003 | G258: 0.003 | H258: 0.003 | I258: 0.003 | K258: 1 | L258: 0
B259: Immaterielle Kosten (Schmerz, Leid) | C259: Vollständig bei Privaten | D259: 0.962 | E259: 0.962 | F259: 0.962 | G259: 0.962 | H259: 0.962 | I259: 0.962 | K259: 0 | L259: 1
B260: Total Gesundheitskosten | D260: 1 | E260: 1 | F260: =12600/15400 -> 0.8181818182 | G260: =11900/13200 -> 0.9015151515 | H260: =1600/1900 -> 0.8421052632 | I260: =18200/26900 -> 0.6765799257 | J260: UBA MK 2.0 (basierend auf IER 2012 bzw. NEEDS)
A261: Gebäude- und Materialschäden | B261: Reinigungskosten, Renovations-kosten von Immobilien | C261: Immobilien im Besitz von Unternehmen (d.h. nicht von Privaten od. dem Staat) | D261: 0 | E261: 0 | F261: =100/15400 -> 0.006493506494 | G261: =500/13200 -> 0.03787878788 | H261: 0 | I261: 0 | K261: 0.408 | L261: 0.592 | M261: Immobilienstatistik Destatis / Zensus 2011
A262: Ernteausfälle | B262: Entgangene Ernteerträge | C262: Kosten fallen direkt bei der Landwirtschaft an. | D262: 0 | E262: 0 | F262: =500/15400 -> 0.03246753247 | G262: 0 | H262: =300/1900 -> 0.1578947368 | I262: 0 | K262: 1 | L262: 0
A263: Biodiversitätsverluste | B263: Ökosystemschäden, Beeinträchtigung Ökosystem-schäden | C263: Vor allem Private betroffen. Wirtschaft primär indirekt betroffen (über verminderte Ökosystemleistungen). | D263: 0 | E263: 0 | F263: =2200/15400 -> 0.1428571429 | G263: =800/13200 -> 0.06060606061 | H263: 0 | I263: =8700/26900 -> 0.3234200743 | K263: 0 | L263: 1 | M263: bisher keine Angaben verfügbar für Anteil Wirtsch.
D264: =SUM(D260:D263) -> 1 | E264: =SUM(E260:E263) -> 1 | F264: 1 | G264: 1 | H264: 1 | I264: 1
D265: =SUM(D256:D259) -> 1 | E265: =SUM(E256:E259) -> 1 | F265: 1 | G265: 1 | H265: 1 | I265: 1
A267: Anteil Wirtschaft | D267: =(D256*$K256+D257*$K257+D258*$K258+D259*$K259)*D$260+D261*$K261+D262*$K262+D263*$K263 -> 0.0316516129 | E267: 0.0316516129 | F267: 0.06101365731 | G267: 0.04398895406 | H267: 0.1845487267 | I267: 0.0214148459
A268: Anteil Private | D268: =(D256*$L256+D257*$L257+D258*$L258+D259*$L259)*D$260+D261*$L261+D262*$L262+D263*$L263 -> 0.9683483871 | E268: 0.9683483871 | F268: 0.9389863427 | G268: 0.9560110459 | H268: 0.8154512733 | I268: 0.9785851541
A269: Gesamttotal | D269: =D267+D268 -> 1 | E269: =E267+E268 -> 1 | F269: 1 | G269: 1 | H269: 1 | I269: 1
B270: Mittelwert Energie | C270: Anteil Wirtschaft | D270: =0.5*D267+0.3*E267+0.2*F267 -> 0.03752402178
C271: Anteil Private | D271: =0.5*D268+0.3*E268+0.2*F268 -> 0.9624759782
B272: Mittelwert Verkehr | C272: Anteil Wirtschaft | D272: =0.5*D267+0.1*E267+0.3*F267+0.1*G267 -> 0.04169396034
C273: Anteil Private | D273: =0.5*D268+0.1*E268+0.3*F268+0.1*G268 -> 0.9583060397
A277: 2. Treibhausgasemissionen
A279: Folgen, Kostenbereiche | B279: Konkrete Kosten | C279: Betroffenheit Wirtschaft (qual.) | D279: Anteil Gesamtkosten | E279: Anteil Wirtschaft gerundet | F279: Anteil Private, Staat | G279: Quelle | H279: Anteil Wirtschaft genau
A280: Gesundheitsschäden | B280: Medizinische Behandlungs-kosten, Spitalkosten | C280: Grundsätzlich private Kosten, aber durch Wirtschaft mitfinanziert über Arbeitgeberbeiträge Krankenversicherung | D280: nur gesamthaft zu bestimmen, da Vermeidungskostenansatz. -> Abschätzung des Anteils der Schadenskosten, die die Wirtschaft treffen. Die Klimaschadenskosten- modelle können Wirtschaftsanteil nicht direkt bestimmen. Aus den Ergebnissen von Stern, FUND, PAGE zeigt sich aber, dass Klimakosten Wirtschaft und Private gleichmässig treffen, analog zur Wirtschaftsstruktur. Daher Orientierung an Wirtschaftsanteil an der Verwendung von Gütern (aus IOT Volkswirtsch. Gesamtrechnung D) | E280: 0.5 | F280: =1-E280 -> 0.5 | G280: Anteil Wirtschaft an Güterverwendung in IOT 2011 (Revision 2014) Deutschlands. Quelle: Destatis 2015 | H280: 0.518
B281: Produktionsausfälle infolge Krankeiten | C281: Kosten / Nutzen vollständig bei der Wirtschaft
B282: Wiederbesetungskosten bei Unternehmen (Invalidität, Tod) | C282: Kosten / Nutzen vollständig bei der Wirtschaft
B283: Immaterielle Kosten (Schmerz, Leid) | C283: Vollständig bei Privaten
A284: Biodiversitätsverluste | B284: Ökosystemschäden, Beeinträchtigung Ökosystemleistungen | C284: Vor allem Private betroffen. Wirtschaft eher indirekt betroffen.
A285: Risiken und Gefahren (Schäden an Infrastrukturen) | B285: Schadenskosten an Infrastrukturen, Investitionen durch Adaptionsmaßnahmen | C285: Wirtschaft direkt betroffen, über ihre Infrastrukturen sowie das erhöhte Risiko. Insbesondere spezifische Branchen wie Verkehr, Tourismus, Landwirtschaft.
A286: Einschränkung von Ökosystemleistungen z.B.: - Wasserverfügbarkeit - Nahrungsmittelproduktion | B286: Schäden für Landwirtschaft, Tourismus; etc.
A290: 3. Lärmkosten
A292: Folgen, Kostenbereiche | B292: Konkrete Kosten | C292: Betroffenheit Wirtschaft (qual.) | D292: Anteil Gesamtkosten | J292: Quelle | K292: Allokation Anteil Wirtschaft | L292: Anteil Private & Staat | M292: Quelle
D293: Strassenlärm
A294: Gesundheitsschäden | B294: Medizinische Behandlungs-kosten, Spitalkosten | C294: Grundsätzlich private Kosten, aber durch Wirtschaft mitfinanziert über Arbeitgeberbeiträge Krankenversicherung | D294: 0.045 | J294: Ecoplan, ARE 2014: Ext. Kosten Verkehr Schweiz 2010, Basis Strassen-verkehr | K294: =7.3/(7.3+7.3+0.9) -> 0.4709677419 | L294: =(7.3+0.9)/(7.3+7.3+0.9) -> 0.5290322581 | M294: Aktuelle Beitrags-sätze Arbeitgeber/-nehmer
B295: Produktionsausfälle infolge Krankeiten | C295: Kosten / Nutzen vollständig bei der Wirtschaft | D295: 0.01 | K295: 1 | L295: 0
B296: Wiederbesetungskosten bei Unternehmen (Invalidität, Tod) | C296: Kosten / Nutzen vollständig bei der Wirtschaft | D296: 0.002 | K296: 1 | L296: 0
B297: Immaterielle Kosten (Schmerz, Leid) | C297: Vollständig bei Privaten | D297: 0.943 | K297: 0 | L297: 1
B298: Total Gesundheitskosten | D298: 0.409 | J298: UBA MK 2.0 (basierend auf IER 2012 bzw. NEEDS)
A299: Verminderte Lebensqualität | B299: Wertverluste von Immobilien | C299: Immobilien im Besitz von Unternehmen (d.h. nicht von Privaten od. dem Staat) | D299: 0.591 | K299: 0.408 | L299: 0.592 | M299: Immobilienstatistik Destatis / Zensus 2011
D302: =SUM(D298:D301) -> 1
D303: =SUM(D294:D297) -> 1
... 53 more rows

Sheet Hilfsblatt Ber. Umweltkosten 2
A2: Hilfsblatt: Berechnung Umweltkosten 2 (Umweltwirkung x Kostensatz)
A4: Nicht veränderbar für Anwender. | B4: Jahr: | C4: =Eingabevariablen!$C$7 -> 0
A7: Umweltwirkungen
A9: A. Nach Aktivitäten, Treiber
A12: 1. Energie | B12: i.) Total Umweltkosten | O12: ii.) Kosten Luftschadstoffemissionen | AA12: iii.) Kosten Treibhausgase | AM12: iv.) Kosten Lärm | AY12: v.) Kosten Beeinträchtigung von Ökosystemen | BK12: vi.) Indirekte Kosten aus vor- und nachgelagerte Prozessen
B15: Kosten | C15: in EUR | E15: Kosten | F15: in EUR | H15: Kosten | I15: in EUR | K15: Kosten | M15: in EUR | O15: Kosten | P15: in EUR | R15: Kosten | S15: in EUR | U15: Kosten | V15: in EUR | X15: Kosten | Y15: in EUR | AA15: Kosten | AB15: in EUR | AD15: Kosten | AE15: in EUR | AG15: Kosten | AH15: in EUR | AJ15: Kosten | AK15: in EUR | AM15: Kosten | AN15: in EUR | AP15: Kosten | AQ15: in EUR | AS15: Kosten | AT15: in EUR | AV15: Kosten | AW15: in EUR | AY15: Kosten | AZ15: in EUR | BB15: Kosten | BC15: in EUR | BE15: Kosten | BF15: in EUR | BH15: Kosten | BI15: in EUR | BK15: Kosten | BL15: in EUR | BN15: Kosten | BO15: in EUR | BQ15: Kosten | BR15: in EUR | BT15: Kosten | BU15: in EUR
B16: Strommix Deutschland (ohne Kernkraft) | C16: =P16+AB16+AN16+AZ16+BL16 -> 0 | E16: Wärmemix Haushalte (D) | F16: =Eingabevariablen!$D144*'Hilfsblatt Kostensätze Umwelt'!F16/100 -> 0 | H16: Braunkohle | I16: =Eingabevariablen!$D160*'Hilfsblatt Kostensätze Umwelt'!I16 -> 0 | K16: Mittl. Kraftstoffmix PW (Benzin, Diesel) | M16: =Eingabevariablen!$D168*'Hilfsblatt Kostensätze Umwelt'!L16 -> 0 | O16: Strommix Deutschland (ohne Kernkraft) | P16: =Eingabevariablen!$D124*'Hilfsblatt Kostensätze Umwelt'!O16/100 -> 0 | R16: Wärmemix Haushalte (D) | S16: =Eingabevariablen!$D144*'Hilfsblatt Kostensätze Umwelt'!R16/100 -> 0 | U16: Braunkohle | V16: =Eingabevariablen!$D160*'Hilfsblatt Kostensätze Umwelt'!U16 -> 0 | X16: Mittl. Kraftstoffmix PW (Benzin, Diesel) | Y16: =Eingabevariablen!$D168*'Hilfsblatt Kostensätze Umwelt'!X16 -> 0 | AA16: Strommix Deutschland (ohne Kernkraft) | AB16: =Eingabevariablen!$D124*'Hilfsblatt Kostensätze Umwelt'!AA16*'Hilfsblatt Kostensätze Umwelt'!$J$263/100 -> 0 | AD16: Wärmemix Haushalte (D) | AE16: =Eingabevariablen!$D144*'Hilfsblatt Kostensätze Umwelt'!AD16*'Hilfsblatt Kostensätze Umwelt'!$J$263/100 -> 0 | AG16: Braunkohle | AH16: =Eingabevariablen!$D160*'Hilfsblatt Kostensätze Umwelt'!AG16*'Hilfsblatt Kostensätze Umwelt'!$J$263 -> 0 | AJ16: Mittl. Kraftstoffmix PW (Benzin, Diesel) | AK16: =Eingabevariablen!$D168*'Hilfsblatt Kostensätze Umwelt'!AJ16*'Hilfsblatt Kostensätze Umwelt'!$J$263 -> 0 | AM16: Strommix Deutschland (ohne Kernkraft) | AP16: Wärmemix Haushalte (D) | AS16: Braunkohle | AV16: Mittl. Kraftstoffmix PW (Benzin, Diesel) | AY16: Strommix Deutschland (ohne Kernkraft) | BB16: Wärmemix Haushalte (D) | BE16: Braunkohle | BH16: Mittl. Kraftstoffmix PW (Benzin, Diesel) | BK16: Strommix Deutschland (ohne Kernkraft) | BL16: =Eingabevariablen!$D124*'Hilfsblatt Kostensätze Umwelt'!BK16/100 -> 0 | BN16: Wärmemix Haushalte (D) | BO16: =Eingabevariablen!$D144*'Hilfsblatt Kostensätze Umwelt'!BN16/100 -> 0 | BQ16: Braunkohle | BR16: =Eingabevariablen!$D160*'Hilfsblatt Kostensätze Umwelt'!BQ16 -> 0 | BT16: Mittl. Kraftstoffmix PW (Benzin, Diesel) | BU16: =Eingabevariablen!$D168*'Hilfsblatt Kostensätze Umwelt'!BT16 -> 0
B17: Strommix Deutschland (mit Kernkraft) | C17: =P17+AB17+AN17+AZ17+BL17 -> 0 | E17: Wärmemix Industrie (D) | F17: =Eingabevariablen!$D145*'Hilfsblatt Kostensätze Umwelt'!F17/100 -> 0 | H17: Steinkohle | I17: =Eingabevariablen!$D161*'Hilfsblatt Kostensätze Umwelt'!I17 -> 0 | K17: Benzin | M17: =Eingabevariablen!$D169*'Hilfsblatt Kostensätze Umwelt'!L17 -> 0 | O17: Strommix Deutschland (mit Kernkraft) | P17: =Eingabevariablen!$D125*'Hilfsblatt Kostensätze Umwelt'!O17/100 -> 0 | R17: Wärmemix Industrie (D) | S17: =Eingabevariablen!$D145*'Hilfsblatt Kostensätze Umwelt'!R17/100 -> 0 | U17: Steinkohle | V17: =Eingabevariablen!$D161*'Hilfsblatt Kostensätze Umwelt'!U17 -> 0 | X17: Benzin | Y17: =Eingabevariablen!$D169*'Hilfsblatt Kostensätze Umwelt'!X17 -> 0 | AA17: Strommix Deutschland (mit Kernkraft) | AB17: =Eingabevariablen!$D125*'Hilfsblatt Kostensätze Umwelt'!AA17*'Hilfsblatt Kostensätze Umwelt'!$J$263/100 -> 0 | AD17: Wärmemix Industrie (D) | AE17: =Eingabevariablen!$D145*'Hilfsblatt Kostensätze Umwelt'!AD17*'Hilfsblatt Kostensätze Umwelt'!$J$263/100 -> 0 | AG17: Steinkohle | AH17: =Eingabevariablen!$D161*'Hilfsblatt Kostensätze Umwelt'!AG17*'Hilfsblatt Kostensätze Umwelt'!$J$263 -> 0 | AJ17: Benzin | AK17: =Eingabevariablen!$D169*'Hilfsblatt Kostensätze Umwelt'!AJ17*'Hilfsblatt Kostensätze Umwelt'!$J$263 -> 0 | AM17: Strommix Deutschland (mit Kernkraft) | AP17: Wärmemix Industrie (D) | AS17: Steinkohle | AV17: Benzin | AY17: Strommix Deutschland (mit Kernkraft) | BB17: Wärmemix Industrie (D) | BE17: Steinkohle | BH17: Benzin | BK17: Strommix Deutschland (mit Kernkraft) | BL17: =Eingabevariablen!$D125*'Hilfsblatt Kostensätze Umwelt'!BK17/100 -> 0 | BN17: Wärmemix Industrie (D) | BO17: =Eingabevariablen!$D145*'Hilfsblatt Kostensätze Umwelt'!BN17/100 -> 0 | BQ17: Steinkohle | BR17: =Eingabevariablen!$D161*'Hilfsblatt Kostensätze Umwelt'!BQ17 -> 0 | BT17: Benzin | BU17: =Eingabevariablen!$D169*'Hilfsblatt Kostensätze Umwelt'!BT17 -> 0
B18: Strommix Bahn DB | C18: 0 | H18: Erdgas | I18: =Eingabevariablen!$D162*'Hilfsblatt Kostensätze Umwelt'!I18 -> 0 | K18: Diesel | M18: =Eingabevariablen!$D170*'Hilfsblatt Kostensätze Umwelt'!L18 -> 0 | O18: Strommix Bahn DB | P18: =Eingabevariablen!$D126*'Hilfsblatt Kostensätze Umwelt'!O18/100 -> 0 | U18: Erdgas | V18: =Eingabevariablen!$D162*'Hilfsblatt Kostensätze Umwelt'!U18 -> 0 | X18: Diesel | Y18: =Eingabevariablen!$D170*'Hilfsblatt Kostensätze Umwelt'!X18 -> 0 | AA18: Strommix Bahn DB | AB18: =Eingabevariablen!$D126*'Hilfsblatt Kostensätze Umwelt'!AA18*'Hilfsblatt Kostensätze Umwelt'!$J$263/100 -> 0 | AE18: =Eingabevariablen!$D146*'Hilfsblatt Kostensätze Umwelt'!AD18/100 -> 0 | AG18: Erdgas | AH18: =Eingabevariablen!$D162*'Hilfsblatt Kostensätze Umwelt'!AG18*'Hilfsblatt Kostensätze Umwelt'!$J$263 -> 0 | AJ18: Diesel | AK18: =Eingabevariablen!$D170*'Hilfsblatt Kostensätze Umwelt'!AJ18*'Hilfsblatt Kostensätze Umwelt'!$J$263 -> 0 | AM18: Strommix Bahn DB | AS18: Erdgas | AV18: Diesel | AY18: Strommix Bahn DB | BE18: Erdgas | BH18: Diesel | BK18: Strommix Bahn DB | BL18: =Eingabevariablen!$D126*'Hilfsblatt Kostensätze Umwelt'!BK18/100 -> 0 | BO18: =Eingabevariablen!$D146*'Hilfsblatt Kostensätze Umwelt'!BN18/100 -> 0 | BQ18: Erdgas | BR18: =Eingabevariablen!$D162*'Hilfsblatt Kostensätze Umwelt'!BQ18 -> 0 | BT18: Diesel | BU18: =Eingabevariablen!$D170*'Hilfsblatt Kostensätze Umwelt'!BT18 -> 0
B19: Strommix Europa (ohne Kernkraft) | C19: 0 | E19: Heizöl / Öl | F19: =Eingabevariablen!$D147*'Hilfsblatt Kostensätze Umwelt'!F19/100 -> 0 | H19: Öl, Heizöl | I19: =Eingabevariablen!$D163*'Hilfsblatt Kostensätze Umwelt'!I19 -> 0 | K19: Erdgas | M19: =Eingabevariablen!$D171*'Hilfsblatt Kostensätze Umwelt'!L19 -> 0 | O19: Strommix Europa (ohne Kernkraft) | P19: =Eingabevariablen!$D127*'Hilfsblatt Kostensätze Umwelt'!O19/100 -> 0 | R19: Heizöl / Öl | S19: =Eingabevariablen!$D147*'Hilfsblatt Kostensätze Umwelt'!R19/100 -> 0 | U19: Öl, Heizöl | V19: =Eingabevariablen!$D163*'Hilfsblatt Kostensätze Umwelt'!U19 -> 0 | X19: Erdgas | Y19: =Eingabevariablen!$D171*'Hilfsblatt Kostensätze Umwelt'!X19 -> 0 | AA19: Strommix Europa (ohne Kernkraft) | AB19: =Eingabevariablen!$D127*'Hilfsblatt Kostensätze Umwelt'!AA19*'Hilfsblatt Kostensätze Umwelt'!$J$263/100 -> 0 | AD19: Heizöl / Öl | AE19: =Eingabevariablen!$D147*'Hilfsblatt Kostensätze Umwelt'!AD19*'Hilfsblatt Kostensätze Umwelt'!$J$263/100 -> 0 | AG19: Öl, Heizöl | AH19: =Eingabevariablen!$D163*'Hilfsblatt Kostensätze Umwelt'!AG19*'Hilfsblatt Kostensätze Umwelt'!$J$263 -> 0 | AJ19: Erdgas | AK19: =Eingabevariablen!$D171*'Hilfsblatt Kostensätze Umwelt'!AJ19*'Hilfsblatt Kostensätze Umwelt'!$J$263 -> 0 | AM19: Strommix Europa (ohne Kernkraft) | AP19: Heizöl / Öl | AS19: Öl, Heizöl | AV19: Erdgas | AY19: Strommix Europa (ohne Kernkraft) | BB19: Heizöl / Öl | BE19: Öl, Heizöl | BH19: Erdgas | BK19: Strommix Europa (ohne Kernkraft) | BL19: =Eingabevariablen!$D127*'Hilfsblatt Kostensätze Umwelt'!BK19/100 -> 0 | BN19: Heizöl / Öl | BO19: =Eingabevariablen!$D147*'Hilfsblatt Kostensätze Umwelt'!BN19/100 -> 0 | BQ19: Öl, Heizöl | BR19: =Eingabevariablen!$D163*'Hilfsblatt Kostensätze Umwelt'!BQ19 -> 0 | BT19: Erdgas | BU19: =Eingabevariablen!$D171*'Hilfsblatt Kostensätze Umwelt'!BT19 -> 0
B20: Strommix Europa (mit Kernkraft) | C20: 0 | E20: Erdgas | F20: =Eingabevariablen!$D148*'Hilfsblatt Kostensätze Umwelt'!F20/100 -> 0 | H20: Holz (Stück) | I20: =Eingabevariablen!$D164*'Hilfsblatt Kostensätze Umwelt'!I20 -> 0 | O20: Strommix Europa (mit Kernkraft) | P20: =Eingabevariablen!$D128*'Hilfsblatt Kostensätze Umwelt'!O20/100 -> 0 | R20: Erdgas | S20: =Eingabevariablen!$D148*'Hilfsblatt Kostensätze Umwelt'!R20/100 -> 0 | U20: Holz (Stück) | V20: =Eingabevariablen!$D164*'Hilfsblatt Kostensätze Umwelt'!U20 -> 0 | AA20: Strommix Europa (mit Kernkraft) | AB20: =Eingabevariablen!$D128*'Hilfsblatt Kostensätze Umwelt'!AA20*'Hilfsblatt Kostensätze Umwelt'!$J$263/100 -> 0 | AD20: Erdgas | AE20: =Eingabevariablen!$D148*'Hilfsblatt Kostensätze Umwelt'!AD20*'Hilfsblatt Kostensätze Umwelt'!$J$263/100 -> 0 | AG20: Holz (Stück) | AH20: =Eingabevariablen!$D164*'Hilfsblatt Kostensätze Umwelt'!AG20*'Hilfsblatt Kostensätze Umwelt'!$J$263 -> 0 | AM20: Strommix Europa (mit Kernkraft) | AP20: Erdgas | AS20: Holz (Stück) | AW20: nicht relevant | AY20: Strommix Europa (mit Kernkraft) | BB20: Erdgas | BE20: Holz (Stück) | BI20: nicht relevant | BK20: Strommix Europa (mit Kernkraft) | BL20: =Eingabevariablen!$D128*'Hilfsblatt Kostensätze Umwelt'!BK20/100 -> 0 | BN20: Erdgas | BO20: =Eingabevariablen!$D148*'Hilfsblatt Kostensätze Umwelt'!BN20/100 -> 0 | BQ20: Holz (Stück) | BR20: =Eingabevariablen!$D164*'Hilfsblatt Kostensätze Umwelt'!BQ20 -> 0
B21: Braunkohle | C21: 0 | E21: Braunkohle, Steinkohle | F21: =Eingabevariablen!$D149*'Hilfsblatt Kostensätze Umwelt'!F21/100 -> 0 | H21: Holz (Pellets) | I21: =Eingabevariablen!$D165*'Hilfsblatt Kostensätze Umwelt'!I21 -> 0 | O21: Braunkohle | P21: =Eingabevariablen!$D129*'Hilfsblatt Kostensätze Umwelt'!O21/100 -> 0 | R21: Braunkohle, Steinkohle | S21: =Eingabevariablen!$D149*'Hilfsblatt Kostensätze Umwelt'!R21/100 -> 0 | U21: Holz (Pellets) | V21: =Eingabevariablen!$D165*'Hilfsblatt Kostensätze Umwelt'!U21 -> 0 | AA21: Braunkohle | AB21: =Eingabevariablen!$D129*'Hilfsblatt Kostensätze Umwelt'!AA21*'Hilfsblatt Kostensätze Umwelt'!$J$263/100 -> 0 | AD21: Braunkohle, Steinkohle | AE21: =Eingabevariablen!$D149*'Hilfsblatt Kostensätze Umwelt'!AD21*'Hilfsblatt Kostensätze Umwelt'!$J$263/100 -> 0 | AG21: Holz (Pellets) | AH21: =Eingabevariablen!$D165*'Hilfsblatt Kostensätze Umwelt'!AG21*'Hilfsblatt Kostensätze Umwelt'!$J$263 -> 0 | AM21: Braunkohle | AP21: Braunkohle, Steinkohle | AS21: Holz (Pellets) | AY21: Braunkohle | BB21: Braunkohle, Steinkohle | BE21: Holz (Pellets) | BK21: Braunkohle | BL21: =Eingabevariablen!$D129*'Hilfsblatt Kostensätze Umwelt'!BK21/100 -> 0 | BN21: Braunkohle, Steinkohle | BO21: =Eingabevariablen!$D149*'Hilfsblatt Kostensätze Umwelt'!BN21/100 -> 0 | BQ21: Holz (Pellets) | BR21: =Eingabevariablen!$D165*'Hilfsblatt Kostensätze Umwelt'!BQ21 -> 0
B22: Steinkohle | C22: 0 | E22: Fernwärme | F22: =Eingabevariablen!$D150*'Hilfsblatt Kostensätze Umwelt'!F22/100 -> 0 | O22: Steinkohle | P22: =Eingabevariablen!$D130*'Hilfsblatt Kostensätze Umwelt'!O22/100 -> 0 | R22: Fernwärme | S22: =Eingabevariablen!$D150*'Hilfsblatt Kostensätze Umwelt'!R22/100 -> 0 | AA22: Steinkohle | AB22: =Eingabevariablen!$D130*'Hilfsblatt Kostensätze Umwelt'!AA22*'Hilfsblatt Kostensätze Umwelt'!$J$263/100 -> 0 | AD22: Fernwärme | AE22: =Eingabevariablen!$D150*'Hilfsblatt Kostensätze Umwelt'!AD22*'Hilfsblatt Kostensätze Umwelt'!$J$263/100 -> 0 | AM22: Steinkohle | AP22: Fernwärme | AT22: nicht relevant | AY22: Steinkohle | BB22: Fernwärme | BF22: nicht relevant | BK22: Steinkohle | BL22: =Eingabevariablen!$D130*'Hilfsblatt Kostensätze Umwelt'!BK22/100 -> 0 | BN22: Fernwärme | BO22: =Eingabevariablen!$D150*'Hilfsblatt Kostensätze Umwelt'!BN22/100 -> 0
B23: Erdgas | C23: 0 | E23: Holzpellets, feste Biomasse (Haushalte) | F23: =Eingabevariablen!$D151*'Hilfsblatt Kostensätze Umwelt'!F23/100 -> 0 | O23: Erdgas | P23: =Eingabevariablen!$D131*'Hilfsblatt Kostensätze Umwelt'!O23/100 -> 0 | R23: Holzpellets, feste Biomasse (Haushalte) | S23: =Eingabevariablen!$D151*'Hilfsblatt Kostensätze Umwelt'!R23/100 -> 0 | AA23: Erdgas | AB23: =Eingabevariablen!$D131*'Hilfsblatt Kostensätze Umwelt'!AA23*'Hilfsblatt Kostensätze Umwelt'!$J$263/100 -> 0 | AD23: Holzpellets, feste Biomasse (Haushalte) | AE23: =Eingabevariablen!$D151*'Hilfsblatt Kostensätze Umwelt'!AD23*'Hilfsblatt Kostensätze Umwelt'!$J$263/100 -> 0 | AM23: Erdgas | AP23: Holzpellets, feste Biomasse (Haushalte) | AY23: Erdgas | BB23: Holzpellets, feste Biomasse (Haushalte) | BK23: Erdgas | BL23: =Eingabevariablen!$D131*'Hilfsblatt Kostensätze Umwelt'!BK23/100 -> 0 | BN23: Holzpellets, feste Biomasse (Haushalte) | BO23: =Eingabevariablen!$D151*'Hilfsblatt Kostensätze Umwelt'!BN23/100 -> 0
B24: Öl | C24: 0 | E24: Feste Biomasse / Holz (Industrie) | F24: =Eingabevariablen!$D152*'Hilfsblatt Kostensätze Umwelt'!F24/100 -> 0 | O24: Öl | P24: =Eingabevariablen!$D132*'Hilfsblatt Kostensätze Umwelt'!O24/100 -> 0 | R24: Feste Biomasse / Holz (Industrie) | S24: =Eingabevariablen!$D152*'Hilfsblatt Kostensätze Umwelt'!R24/100 -> 0 | AA24: Öl | AB24: =Eingabevariablen!$D132*'Hilfsblatt Kostensätze Umwelt'!AA24*'Hilfsblatt Kostensätze Umwelt'!$J$263/100 -> 0 | AD24: Feste Biomasse / Holz (Industrie) | AE24: =Eingabevariablen!$D152*'Hilfsblatt Kostensätze Umwelt'!AD24*'Hilfsblatt Kostensätze Umwelt'!$J$263/100 -> 0 | AM24: Öl | AP24: Feste Biomasse / Holz (Industrie) | AY24: Öl | BB24: Feste Biomasse / Holz (Industrie) | BK24: Öl | BL24: =Eingabevariablen!$D132*'Hilfsblatt Kostensätze Umwelt'!BK24/100 -> 0 | BN24: Feste Biomasse / Holz (Industrie) | BO24: =Eingabevariablen!$D152*'Hilfsblatt Kostensätze Umwelt'!BN24/100 -> 0
B25: Kernenergie | C25: 0 | E25: Solarthermie | F25: =Eingabevariablen!$D153*'Hilfsblatt Kostensätze Umwelt'!F25/100 -> 0 | O25: Kernenergie | P25: =Eingabevariablen!$D133*'Hilfsblatt Kostensätze Umwelt'!O25/100 -> 0 | R25: Solarthermie | S25: =Eingabevariablen!$D153*'Hilfsblatt Kostensätze Umwelt'!R25/100 -> 0 | AA25: Kernenergie | AB25: =Eingabevariablen!$D133*'Hilfsblatt Kostensätze Umwelt'!AA25*'Hilfsblatt Kostensätze Umwelt'!$J$263/100 -> 0 | AD25: Solarthermie | AE25: =Eingabevariablen!$D153*'Hilfsblatt Kostensätze Umwelt'!AD25*'Hilfsblatt Kostensätze Umwelt'!$J$263/100 -> 0 | AM25: Kernenergie | AP25: Solarthermie | AY25: Kernenergie | BB25: Solarthermie | BK25: Kernenergie | BL25: =Eingabevariablen!$D133*'Hilfsblatt Kostensätze Umwelt'!BK25/100 -> 0 | BN25: Solarthermie | BO25: =Eingabevariablen!$D153*'Hilfsblatt Kostensätze Umwelt'!BN25/100 -> 0
B26: Wasserkraft | C26: 0 | E26: Geothermie | F26: =Eingabevariablen!$D154*'Hilfsblatt Kostensätze Umwelt'!F26/100 -> 0 | O26: Wasserkraft | P26: =Eingabevariablen!$D134*'Hilfsblatt Kostensätze Umwelt'!O26/100 -> 0 | R26: Geothermie | S26: =Eingabevariablen!$D154*'Hilfsblatt Kostensätze Umwelt'!R26/100 -> 0 | AA26: Wasserkraft | AB26: =Eingabevariablen!$D134*'Hilfsblatt Kostensätze Umwelt'!AA26*'Hilfsblatt Kostensätze Umwelt'!$J$263/100 -> 0 | AD26: Geothermie | AE26: =Eingabevariablen!$D154*'Hilfsblatt Kostensätze Umwelt'!AD26*'Hilfsblatt Kostensätze Umwelt'!$J$263/100 -> 0 | AM26: Wasserkraft | AP26: Geothermie | AY26: Wasserkraft | BB26: Geothermie | BK26: Wasserkraft | BL26: =Eingabevariablen!$D134*'Hilfsblatt Kostensätze Umwelt'!BK26/100 -> 0 | BN26: Geothermie | BO26: =Eingabevariablen!$D154*'Hilfsblatt Kostensätze Umwelt'!BN26/100 -> 0
B27: Windenergie | C27: 0 | E27: Biogas-Mix (v.a. BHKW) | F27: =Eingabevariablen!$D155*'Hilfsblatt Kostensätze Umwelt'!F27/100 -> 0 | O27: Windenergie | P27: =Eingabevariablen!$D135*'Hilfsblatt Kostensätze Umwelt'!O27/100 -> 0 | R27: Biogas-Mix (v.a. BHKW) | S27: =Eingabevariablen!$D155*'Hilfsblatt Kostensätze Umwelt'!R27/100 -> 0 | AA27: Windenergie | AB27: =Eingabevariablen!$D135*'Hilfsblatt Kostensätze Umwelt'!AA27*'Hilfsblatt Kostensätze Umwelt'!$J$263/100 -> 0 | AD27: Biogas-Mix (v.a. BHKW) | AE27: =Eingabevariablen!$D155*'Hilfsblatt Kostensätze Umwelt'!AD27*'Hilfsblatt Kostensätze Umwelt'!$J$263/100 -> 0 | AM27: Windenergie | AP27: Biogas-Mix (v.a. BHKW) | AY27: Windenergie | BB27: Biogas-Mix (v.a. BHKW) | BK27: Windenergie | BL27: =Eingabevariablen!$D135*'Hilfsblatt Kostensätze Umwelt'!BK27/100 -> 0 | BN27: Biogas-Mix (v.a. BHKW) | BO27: =Eingabevariablen!$D155*'Hilfsblatt Kostensätze Umwelt'!BN27/100 -> 0
B28: Photovoltaik | C28: 0 | E28: Flüssige Biomasse (diverse Nutzungen) | F28: =Eingabevariablen!$D156*'Hilfsblatt Kostensätze Umwelt'!F28/100 -> 0 | O28: Photovoltaik | P28: =Eingabevariablen!$D136*'Hilfsblatt Kostensätze Umwelt'!O28/100 -> 0 | R28: Flüssige Biomasse (diverse Nutzungen) | S28: =Eingabevariablen!$D156*'Hilfsblatt Kostensätze Umwelt'!R28/100 -> 0 | AA28: Photovoltaik | AB28: =Eingabevariablen!$D136*'Hilfsblatt Kostensätze Umwelt'!AA28*'Hilfsblatt Kostensätze Umwelt'!$J$263/100 -> 0 | AD28: Flüssige Biomasse (diverse Nutzungen) | AE28: =Eingabevariablen!$D156*'Hilfsblatt Kostensätze Umwelt'!AD28*'Hilfsblatt Kostensätze Umwelt'!$J$263/100 -> 0 | AM28: Photovoltaik | AP28: Flüssige Biomasse (diverse Nutzungen) | AY28: Photovoltaik | BB28: Flüssige Biomasse (diverse Nutzungen) | BK28: Photovoltaik | BL28: =Eingabevariablen!$D136*'Hilfsblatt Kostensätze Umwelt'!BK28/100 -> 0 | BN28: Flüssige Biomasse (diverse Nutzungen) | BO28: =Eingabevariablen!$D156*'Hilfsblatt Kostensätze Umwelt'!BN28/100 -> 0
B29: Geothermie | C29: 0 | E29: Flüssige Biomasse (Industrie) | F29: =Eingabevariablen!$D157*'Hilfsblatt Kostensätze Umwelt'!F29/100 -> 0 | O29: Geothermie | P29: =Eingabevariablen!$D137*'Hilfsblatt Kostensätze Umwelt'!O29/100 -> 0 | R29: Flüssige Biomasse (Industrie) | S29: =Eingabevariablen!$D157*'Hilfsblatt Kostensätze Umwelt'!R29/100 -> 0 | AA29: Geothermie | AB29: =Eingabevariablen!$D137*'Hilfsblatt Kostensätze Umwelt'!AA29*'Hilfsblatt Kostensätze Umwelt'!$J$263/100 -> 0 | AD29: Flüssige Biomasse (Industrie) | AE29: =Eingabevariablen!$D157*'Hilfsblatt Kostensätze Umwelt'!AD29*'Hilfsblatt Kostensätze Umwelt'!$J$263/100 -> 0 | AM29: Geothermie | AP29: Flüssige Biomasse (Industrie) | AY29: Geothermie | BB29: Flüssige Biomasse (Industrie) | BK29: Geothermie | BL29: =Eingabevariablen!$D137*'Hilfsblatt Kostensätze Umwelt'!BK29/100 -> 0 | BN29: Flüssige Biomasse (Industrie) | BO29: =Eingabevariablen!$D157*'Hilfsblatt Kostensätze Umwelt'!BN29/100 -> 0
B30: Feste Biomasse (v.a. Holz) | C30: 0 | O30: Feste Biomasse (v.a. Holz) | P30: =Eingabevariablen!$D138*'Hilfsblatt Kostensätze Umwelt'!O30/100 -> 0 | AA30: Feste Biomasse (v.a. Holz) | AB30: =Eingabevariablen!$D138*'Hilfsblatt Kostensätze Umwelt'!AA30*'Hilfsblatt Kostensätze Umwelt'!$J$263/100 -> 0 | AM30: Feste Biomasse (v.a. Holz) | AQ30: nicht relevant | AY30: Feste Biomasse (v.a. Holz) | BC30: nicht relevant | BK30: Feste Biomasse (v.a. Holz) | BL30: =Eingabevariablen!$D138*'Hilfsblatt Kostensätze Umwelt'!BK30/100 -> 0
B31: Flüssige Biomasse | C31: 0 | O31: Flüssige Biomasse | P31: =Eingabevariablen!$D139*'Hilfsblatt Kostensätze Umwelt'!O31/100 -> 0 | AA31: Flüssige Biomasse | AB31: =Eingabevariablen!$D139*'Hilfsblatt Kostensätze Umwelt'!AA31*'Hilfsblatt Kostensätze Umwelt'!$J$263/100 -> 0 | AM31: Flüssige Biomasse | AY31: Flüssige Biomasse | BK31: Flüssige Biomasse | BL31: =Eingabevariablen!$D139*'Hilfsblatt Kostensätze Umwelt'!BK31/100 -> 0
B32: Biogas | C32: 0 | O32: Biogas | P32: =Eingabevariablen!$D140*'Hilfsblatt Kostensätze Umwelt'!O32/100 -> 0 | AA32: Biogas | AB32: =Eingabevariablen!$D140*'Hilfsblatt Kostensätze Umwelt'!AA32*'Hilfsblatt Kostensätze Umwelt'!$J$263/100 -> 0 | AM32: Biogas | AY32: Biogas | BK32: Biogas | BL32: =Eingabevariablen!$D140*'Hilfsblatt Kostensätze Umwelt'!BK32/100 -> 0
B33: Klär- / Deponiegas | C33: 0 | O33: Klär- / Deponiegas | P33: =Eingabevariablen!$D141*'Hilfsblatt Kostensätze Umwelt'!O33/100 -> 0 | AA33: Klär- / Deponiegas | AB33: =Eingabevariablen!$D141*'Hilfsblatt Kostensätze Umwelt'!AA33*'Hilfsblatt Kostensätze Umwelt'!$J$263/100 -> 0 | AM33: Klär- / Deponiegas | AY33: Klär- / Deponiegas | BK33: Klär- / Deponiegas | BL33: =Eingabevariablen!$D141*'Hilfsblatt Kostensätze Umwelt'!BK33/100 -> 0
AN34: nicht relevant | AZ34: nicht relevant
A36: 2. Verkehr
BW39: "Korrigierte" Verkehrsmengen infolge vermindertem Kraftstoff- bzw. Energieverbrauch in zukünftigen Jahren
C41: Kosten in EUR | P41: Kosten in EUR | AB41: Kosten in EUR | AN41: Kosten in EUR | AZ41: Kosten in EUR | BL41: Kosten in EUR | BX41: i. Verkehr: Fahrzeug-km nach Fahrzeugkategorie | BY41: Verkehrsmenge in Fahrzeug-km nach Ort
C42: Ort unbekannt (Ø alle Strecken) | D42: Innerorts | E42: Außerorts | F42: Autobahn | P42: Ort unbekannt (Ø alle Strecken) | Q42: Innerorts | R42: Außerorts | S42: Autobahn | AB42: Ort unbekannt (Ø alle Strecken) | AC42: Innerorts | AD42: Außerorts | AE42: Autobahn | AN42: Ort unbekannt (Ø alle Strecken) | AO42: Innerorts | AP42: Außerorts | AQ42: Autobahn | AZ42: Ort unbekannt (Ø alle Strecken) | BA42: Innerorts | BB42: Außerorts | BC42: Autobahn | BL42: Ort unbekannt (Ø alle Strecken) | BM42: Innerorts | BN42: Außerorts | BO42: Autobahn | BY42: Ort unbekannt (Ø alle Strecken) | BZ42: Innerorts | CA42: Außerorts | CB42: Autobahn
B43: PKW, Diesel | C43: =P43+AB43+AN43+AZ43+BL43 -> 0 | D43: =Q43+AC43+AO43+BA43+BM43 -> 0 | E43: 0 | F43: 0 | H43: =P43+AB43+AN43+AZ43+BL43-C43 -> 0 | I43: =Q43+AC43+AO43+BA43+BM43-D43 -> 0 | J43: =R43+AD43+AP43+BB43+BN43-E43 -> 0 | K43: =S43+AE43+AQ43+BC43+BO43-F43 -> 0 | O43: PKW, Diesel | P43: =$BY43*'Hilfsblatt Kostensätze Umwelt'!O43/100 -> 0 | Q43: =$BZ43*'Hilfsblatt Kostensätze Umwelt'!P43/100 -> 0 | R43: =$CA43*'Hilfsblatt Kostensätze Umwelt'!Q43/100 -> 0 | S43: =$CB43*'Hilfsblatt Kostensätze Umwelt'!R43/100 -> 0 | AA43: PKW, Diesel | AB43: =$BY43*'Hilfsblatt Kostensätze Umwelt'!AA43/100*'Hilfsblatt Kostensätze Umwelt'!$J$263 -> 0 | AC43: =$BZ43*'Hilfsblatt Kostensätze Umwelt'!AB43/100*'Hilfsblatt Kostensätze Umwelt'!$J$263 -> 0 | AD43: =$CA43*'Hilfsblatt Kostensätze Umwelt'!AC43/100*'Hilfsblatt Kostensätze Umwelt'!$J$263 -> 0 | AE43: =$CB43*'Hilfsblatt Kostensätze Umwelt'!AD43/100*'Hilfsblatt Kostensätze Umwelt'!$J$263 -> 0 | AM43: PKW, Diesel | AN43: =Eingabevariablen!$C66*'Hilfsblatt Kostensätze Umwelt'!AM43/100 -> 0 | AO43: =Eingabevariablen!$D66*'Hilfsblatt Kostensätze Umwelt'!AN43/100 -> 0 | AP43: =Eingabevariablen!$E66*'Hilfsblatt Kostensätze Umwelt'!AO43/100 -> 0 | AQ43: =Eingabevariablen!$F66*'Hilfsblatt Kostensätze Umwelt'!AP43/100 -> 0 | AY43: PKW, Diesel | AZ43: =Eingabevariablen!$C66*'Hilfsblatt Kostensätze Umwelt'!AY43/100 -> 0 | BA43: =Eingabevariablen!$D66*'Hilfsblatt Kostensätze Umwelt'!AZ43/100 -> 0 | BB43: =Eingabevariablen!$E66*'Hilfsblatt Kostensätze Umwelt'!BA43/100 -> 0 | BC43: =Eingabevariablen!$F66*'Hilfsblatt Kostensätze Umwelt'!BB43/100 -> 0 | BK43: PKW, Diesel | BL43: =$BY43*'Hilfsblatt Kostensätze Umwelt'!BK43/100 -> 0 | BM43: =$BZ43*'Hilfsblatt Kostensätze Umwelt'!BL43/100 -> 0 | BN43: =$CA43*'Hilfsblatt Kostensätze Umwelt'!BM43/100 -> 0 | BO43: =$CB43*'Hilfsblatt Kostensätze Umwelt'!BN43/100 -> 0 | BW43: Strassenverkehr: | BX43: PKW, Diesel | BY43: =Eingabevariablen!C66*(1+Eingabevariablen!$D$118) -> 0 | BZ43: =Eingabevariablen!D66*(1+Eingabevariablen!$D$118) -> 0 | CA43: =Eingabevariablen!E66*(1+Eingabevariablen!$D$118) -> 0 | CB43: =Eingabevariablen!F66*(1+Eingabevariablen!$D$118) -> 0
B44: PKW, Benzin | C44: =P44+AB44+AN44+AZ44+BL44 -> 0 | D44: 0 | E44: 0 | F44: 0 | H44: =P44+AB44+AN44+AZ44+BL44-C44 -> 0 | I44: 0 | J44: 0 | K44: 0 | O44: PKW, Benzin | P44: =$BY44*'Hilfsblatt Kostensätze Umwelt'!O44/100 -> 0 | Q44: =$BZ44*'Hilfsblatt Kostensätze Umwelt'!P44/100 -> 0 | R44: =$CA44*'Hilfsblatt Kostensätze Umwelt'!Q44/100 -> 0 | S44: =$CB44*'Hilfsblatt Kostensätze Umwelt'!R44/100 -> 0 | AA44: PKW, Benzin | AB44: =$BY44*'Hilfsblatt Kostensätze Umwelt'!AA44/100*'Hilfsblatt Kostensätze Umwelt'!$J$263 -> 0 | AC44: =$BZ44*'Hilfsblatt Kostensätze Umwelt'!AB44/100*'Hilfsblatt Kostensätze Umwelt'!$J$263 -> 0 | AD44: =$CA44*'Hilfsblatt Kostensätze Umwelt'!AC44/100*'Hilfsblatt Kostensätze Umwelt'!$J$263 -> 0 | AE44: =$CB44*'Hilfsblatt Kostensätze Umwelt'!AD44/100*'Hilfsblatt Kostensätze Umwelt'!$J$263 -> 0 | AM44: PKW, Benzin | AN44: =Eingabevariablen!$C67*'Hilfsblatt Kostensätze Umwelt'!AM44/100 -> 0 | AO44: =Eingabevariablen!$D67*'Hilfsblatt Kostensätze Umwelt'!AN44/100 -> 0 | AP44: =Eingabevariablen!$E67*'Hilfsblatt Kostensätze Umwelt'!AO44/100 -> 0 | AQ44: =Eingabevariablen!$F67*'Hilfsblatt Kostensätze Umwelt'!AP44/100 -> 0 | AY44: PKW, Benzin | AZ44: =Eingabevariablen!$C67*'Hilfsblatt Kostensätze Umwelt'!AY44/100 -> 0 | BA44: =Eingabevariablen!$D67*'Hilfsblatt Kostensätze Umwelt'!AZ44/100 -> 0 | BB44: =Eingabevariablen!$E67*'Hilfsblatt Kostensätze Umwelt'!BA44/100 -> 0 | BC44: =Eingabevariablen!$F67*'Hilfsblatt Kostensätze Umwelt'!BB44/100 -> 0 | BK44: PKW, Benzin | BL44: =$BY44*'Hilfsblatt Kostensätze Umwelt'!BK44/100 -> 0 | BM44: =$BZ44*'Hilfsblatt Kostensätze Umwelt'!BL44/100 -> 0 | BN44: =$CA44*'Hilfsblatt Kostensätze Umwelt'!BM44/100 -> 0 | BO44: =$CB44*'Hilfsblatt Kostensätze Umwelt'!BN44/100 -> 0 | BX44: PKW, Benzin | BY44: =Eingabevariablen!C67*(1+Eingabevariablen!$D$118) -> 0 | BZ44: =Eingabevariablen!D67*(1+Eingabevariablen!$D$118) -> 0 | CA44: =Eingabevariablen!E67*(1+Eingabevariablen!$D$118) -> 0 | CB44: =Eingabevariablen!F67*(1+Eingabevariablen!$D$118) -> 0
B45: Leichte Nutzfahrzeuge, Diesel | C45: 0 | D45: 0 | E45: 0 | F45: 0 | H45: 0 | I45: 0 | J45: 0 | K45: 0 | O45: Leichte Nutzfahrzeuge, Diesel | P45: =$BY45*'Hilfsblatt Kostensätze Umwelt'!O45/100 -> 0 | Q45: =$BZ45*'Hilfsblatt Kostensätze Umwelt'!P45/100 -> 0 | R45: =$CA45*'Hilfsblatt Kostensätze Umwelt'!Q45/100 -> 0 | S45: =$CB45*'Hilfsblatt Kostensätze Umwelt'!R45/100 -> 0 | AA45: Leichte Nutzfahrzeuge, Diesel | AB45: =$BY45*'Hilfsblatt Kostensätze Umwelt'!AA45/100*'Hilfsblatt Kostensätze Umwelt'!$J$263 -> 0 | AC45: =$BZ45*'Hilfsblatt Kostensätze Umwelt'!AB45/100*'Hilfsblatt Kostensätze Umwelt'!$J$263 -> 0 | AD45: =$CA45*'Hilfsblatt Kostensätze Umwelt'!AC45/100*'Hilfsblatt Kostensätze Umwelt'!$J$263 -> 0 | AE45: =$CB45*'Hilfsblatt Kostensätze Umwelt'!AD45/100*'Hilfsblatt Kostensätze Umwelt'!$J$263 -> 0 | AM45: Leichte Nutzfahrzeuge, Diesel | AN45: =Eingabevariablen!$C68*'Hilfsblatt Kostensätze Umwelt'!AM45/100 -> 0 | AO45: =Eingabevariablen!$D68*'Hilfsblatt Kostensätze Umwelt'!AN45/100 -> 0 | AP45: =Eingabevariablen!$E68*'Hilfsblatt Kostensätze Umwelt'!AO45/100 -> 0 | AQ45: =Eingabevariablen!$F68*'Hilfsblatt Kostensätze Umwelt'!AP45/100 -> 0 | AY45: Leichte Nutzfahrzeuge, Diesel | AZ45: =Eingabevariablen!$C68*'Hilfsblatt Kostensätze Umwelt'!AY45/100 -> 0 | BA45: =Eingabevariablen!$D68*'Hilfsblatt Kostensätze Umwelt'!AZ45/100 -> 0 | BB45: =Eingabevariablen!$E68*'Hilfsblatt Kostensätze Umwelt'!BA45/100 -> 0 | BC45: =Eingabevariablen!$F68*'Hilfsblatt Kostensätze Umwelt'!BB45/100 -> 0 | BK45: Leichte Nutzfahrzeuge, Diesel | BL45: =$BY45*'Hilfsblatt Kostensätze Umwelt'!BK45/100 -> 0 | BM45: =$BZ45*'Hilfsblatt Kostensätze Umwelt'!BL45/100 -> 0 | BN45: =$CA45*'Hilfsblatt Kostensätze Umwelt'!BM45/100 -> 0 | BO45: =$CB45*'Hilfsblatt Kostensätze Umwelt'!BN45/100 -> 0 | BX45: Leichte Nutzfahrzeuge, Diesel | BY45: =Eingabevariablen!C68*(1+Eingabevariablen!$D$118) -> 0 | BZ45: =Eingabevariablen!D68*(1+Eingabevariablen!$D$118) -> 0 | CA45: =Eingabevariablen!E68*(1+Eingabevariablen!$D$118) -> 0 | CB45: =Eingabevariablen!F68*(1+Eingabevariablen!$D$118) -> 0
B46: Leichte Nutzfahrzeuge, Benzin | C46: 0 | D46: 0 | E46: 0 | F46: 0 | H46: 0 | I46: 0 | J46: 0 | K46: 0 | O46: Leichte Nutzfahrzeuge, Benzin | P46: =$BY46*'Hilfsblatt Kostensätze Umwelt'!O46/100 -> 0 | Q46: =$BZ46*'Hilfsblatt Kostensätze Umwelt'!P46/100 -> 0 | R46: =$CA46*'Hilfsblatt Kostensätze Umwelt'!Q46/100 -> 0 | S46: =$CB46*'Hilfsblatt Kostensätze Umwelt'!R46/100 -> 0 | AA46: Leichte Nutzfahrzeuge, Benzin | AB46: =$BY46*'Hilfsblatt Kostensätze Umwelt'!AA46/100*'Hilfsblatt Kostensätze Umwelt'!$J$263 -> 0 | AC46: =$BZ46*'Hilfsblatt Kostensätze Umwelt'!AB46/100*'Hilfsblatt Kostensätze Umwelt'!$J$263 -> 0 | AD46: =$CA46*'Hilfsblatt Kostensätze Umwelt'!AC46/100*'Hilfsblatt Kostensätze Umwelt'!$J$263 -> 0 | AE46: =$CB46*'Hilfsblatt Kostensätze Umwelt'!AD46/100*'Hilfsblatt Kostensätze Umwelt'!$J$263 -> 0 | AM46: Leichte Nutzfahrzeuge, Benzin | AN46: =Eingabevariablen!$C69*'Hilfsblatt Kostensätze Umwelt'!AM46/100 -> 0 | AO46: =Eingabevariablen!$D69*'Hilfsblatt Kostensätze Umwelt'!AN46/100 -> 0 | AP46: =Eingabevariablen!$E69*'Hilfsblatt Kostensätze Umwelt'!AO46/100 -> 0 | AQ46: =Eingabevariablen!$F69*'Hilfsblatt Kostensätze Umwelt'!AP46/100 -> 0 | AY46: Leichte Nutzfahrzeuge, Benzin | AZ46: =Eingabevariablen!$C69*'Hilfsblatt Kostensätze Umwelt'!AY46/100 -> 0 | BA46: =Eingabevariablen!$D69*'Hilfsblatt Kostensätze Umwelt'!AZ46/100 -> 0 | BB46: =Eingabevariablen!$E69*'Hilfsblatt Kostensätze Umwelt'!BA46/100 -> 0 | BC46: =Eingabevariablen!$F69*'Hilfsblatt Kostensätze Umwelt'!BB46/100 -> 0 | BK46: Leichte Nutzfahrzeuge, Benzin | BL46: =$BY46*'Hilfsblatt Kostensätze Umwelt'!BK46/100 -> 0 | BM46: =$BZ46*'Hilfsblatt Kostensätze Umwelt'!BL46/100 -> 0 | BN46: =$CA46*'Hilfsblatt Kostensätze Umwelt'!BM46/100 -> 0 | BO46: =$CB46*'Hilfsblatt Kostensätze Umwelt'!BN46/100 -> 0 | BX46: Leichte Nutzfahrzeuge, Benzin | BY46: =Eingabevariablen!C69*(1+Eingabevariablen!$D$118) -> 0 | BZ46: =Eingabevariablen!D69*(1+Eingabevariablen!$D$118) -> 0 | CA46: =Eingabevariablen!E69*(1+Eingabevariablen!$D$118) -> 0 | CB46: =Eingabevariablen!F69*(1+Eingabevariablen!$D$118) -> 0
B47: Schwere Nutzfahrzeuge, Diesel | C47: 0 | D47: 0 | E47: 0 | F47: 0 | H47: 0 | I47: 0 | J47: 0 | K47: 0 | O47: Schwere Nutzfahrzeuge, Diesel | P47: =$BY47*'Hilfsblatt Kostensätze Umwelt'!O47/100 -> 0 | Q47: =$BZ47*'Hilfsblatt Kostensätze Umwelt'!P47/100 -> 0 | R47: =$CA47*'Hilfsblatt Kostensätze Umwelt'!Q47/100 -> 0 | S47: =$CB47*'Hilfsblatt Kostensätze Umwelt'!R47/100 -> 0 | AA47: Schwere Nutzfahrzeuge, Diesel | AB47: =$BY47*'Hilfsblatt Kostensätze Umwelt'!AA47/100*'Hilfsblatt Kostensätze Umwelt'!$J$263 -> 0 | AC47: =$BZ47*'Hilfsblatt Kostensätze Umwelt'!AB47/100*'Hilfsblatt Kostensätze Umwelt'!$J$263 -> 0 | AD47: =$CA47*'Hilfsblatt Kostensätze Umwelt'!AC47/100*'Hilfsblatt Kostensätze Umwelt'!$J$263 -> 0 | AE47: =$CB47*'Hilfsblatt Kostensätze Umwelt'!AD47/100*'Hilfsblatt Kostensätze Umwelt'!$J$263 -> 0 | AM47: Schwere Nutzfahrzeuge, Diesel | AN47: =Eingabevariablen!$C70*'Hilfsblatt Kostensätze Umwelt'!AM47/100 -> 0 | AO47: =Eingabevariablen!$D70*'Hilfsblatt Kostensätze Umwelt'!AN47/100 -> 0 | AP47: =Eingabevariablen!$E70*'Hilfsblatt Kostensätze Umwelt'!AO47/100 -> 0 | AQ47: =Eingabevariablen!$F70*'Hilfsblatt Kostensätze Umwelt'!AP47/100 -> 0 | AY47: Schwere Nutzfahrzeuge, Diesel | AZ47: =Eingabevariablen!$C70*'Hilfsblatt Kostensätze Umwelt'!AY47/100 -> 0 | BA47: =Eingabevariablen!$D70*'Hilfsblatt Kostensätze Umwelt'!AZ47/100 -> 0 | BB47: =Eingabevariablen!$E70*'Hilfsblatt Kostensätze Umwelt'!BA47/100 -> 0 | BC47: =Eingabevariablen!$F70*'Hilfsblatt Kostensätze Umwelt'!BB47/100 -> 0 | BK47: Schwere Nutzfahrzeuge, Diesel | BL47: =$BY47*'Hilfsblatt Kostensätze Umwelt'!BK47/100 -> 0 | BM47: =$BZ47*'Hilfsblatt Kostensätze Umwelt'!BL47/100 -> 0 | BN47: =$CA47*'Hilfsblatt Kostensätze Umwelt'!BM47/100 -> 0 | BO47: =$CB47*'Hilfsblatt Kostensätze Umwelt'!BN47/100 -> 0 | BX47: Schwere Nutzfahrzeuge, Diesel | BY47: =Eingabevariablen!C70*(1+Eingabevariablen!$D$118) -> 0 | BZ47: =Eingabevariablen!D70*(1+Eingabevariablen!$D$118) -> 0 | CA47: =Eingabevariablen!E70*(1+Eingabevariablen!$D$118) -> 0 | CB47: =Eingabevariablen!F70*(1+Eingabevariablen!$D$118) -> 0
B48: Bus, Diesel | C48: 0 | D48: 0 | E48: 0 | F48: 0 | H48: 0 | I48: 0 | J48: 0 | K48: 0 | O48: Bus, Diesel | P48: =$BY48*'Hilfsblatt Kostensätze Umwelt'!O48/100 -> 0 | Q48: =$BZ48*'Hilfsblatt Kostensätze Umwelt'!P48/100 -> 0 | R48: =$CA48*'Hilfsblatt Kostensätze Umwelt'!Q48/100 -> 0 | S48: =$CB48*'Hilfsblatt Kostensätze Umwelt'!R48/100 -> 0 | AA48: Bus, Diesel | AB48: =$BY48*'Hilfsblatt Kostensätze Umwelt'!AA48/100*'Hilfsblatt Kostensätze Umwelt'!$J$263 -> 0 | AC48: =$BZ48*'Hilfsblatt Kostensätze Umwelt'!AB48/100*'Hilfsblatt Kostensätze Umwelt'!$J$263 -> 0 | AD48: =$CA48*'Hilfsblatt Kostensätze Umwelt'!AC48/100*'Hilfsblatt Kostensätze Umwelt'!$J$263 -> 0 | AE48: =$CB48*'Hilfsblatt Kostensätze Umwelt'!AD48/100*'Hilfsblatt Kostensätze Umwelt'!$J$263 -> 0 | AM48: Bus, Diesel | AN48: =Eingabevariablen!$C71*'Hilfsblatt Kostensätze Umwelt'!AM48/100 -> 0 | AO48: =Eingabevariablen!$D71*'Hilfsblatt Kostensätze Umwelt'!AN48/100 -> 0 | AP48: =Eingabevariablen!$E71*'Hilfsblatt Kostensätze Umwelt'!AO48/100 -> 0 | AQ48: =Eingabevariablen!$F71*'Hilfsblatt Kostensätze Umwelt'!AP48/100 -> 0 | AY48: Bus, Diesel | AZ48: =Eingabevariablen!$C71*'Hilfsblatt Kostensätze Umwelt'!AY48/100 -> 0 | BA48: =Eingabevariablen!$D71*'Hilfsblatt Kostensätze Umwelt'!AZ48/100 -> 0 | BB48: =Eingabevariablen!$E71*'Hilfsblatt Kostensätze Umwelt'!BA48/100 -> 0 | BC48: =Eingabevariablen!$F71*'Hilfsblatt Kostensätze Umwelt'!BB48/100 -> 0 | BK48: Bus, Diesel | BL48: =$BY48*'Hilfsblatt Kostensätze Umwelt'!BK48/100 -> 0 | BM48: =$BZ48*'Hilfsblatt Kostensätze Umwelt'!BL48/100 -> 0 | BN48: =$CA48*'Hilfsblatt Kostensätze Umwelt'!BM48/100 -> 0 | BO48: =$CB48*'Hilfsblatt Kostensätze Umwelt'!BN48/100 -> 0 | BX48: Bus, Diesel | BY48: =Eingabevariablen!C71*(1+Eingabevariablen!$D$118) -> 0 | BZ48: =Eingabevariablen!D71*(1+Eingabevariablen!$D$118) -> 0 | CA48: =Eingabevariablen!E71*(1+Eingabevariablen!$D$118) -> 0 | CB48: =Eingabevariablen!F71*(1+Eingabevariablen!$D$118) -> 0
B49: Krafträder, Benzin 4-Takt | C49: 0 | D49: 0 | E49: 0 | F49: 0 | H49: 0 | I49: 0 | J49: 0 | K49: 0 | O49: Krafträder, Benzin 4-Takt | P49: =$BY49*'Hilfsblatt Kostensätze Umwelt'!O49/100 -> 0 | Q49: =$BZ49*'Hilfsblatt Kostensätze Umwelt'!P49/100 -> 0 | R49: =$CA49*'Hilfsblatt Kostensätze Umwelt'!Q49/100 -> 0 | S49: =$CB49*'Hilfsblatt Kostensätze Umwelt'!R49/100 -> 0 | AA49: Krafträder, Benzin 4-Takt | AB49: =$BY49*'Hilfsblatt Kostensätze Umwelt'!AA49/100*'Hilfsblatt Kostensätze Umwelt'!$J$263 -> 0 | AC49: =$BZ49*'Hilfsblatt Kostensätze Umwelt'!AB49/100*'Hilfsblatt Kostensätze Umwelt'!$J$263 -> 0 | AD49: =$CA49*'Hilfsblatt Kostensätze Umwelt'!AC49/100*'Hilfsblatt Kostensätze Umwelt'!$J$263 -> 0 | AE49: =$CB49*'Hilfsblatt Kostensätze Umwelt'!AD49/100*'Hilfsblatt Kostensätze Umwelt'!$J$263 -> 0 | AM49: Krafträder, Benzin 4-Takt | AN49: =Eingabevariablen!$C72*'Hilfsblatt Kostensätze Umwelt'!AM49/100 -> 0 | AO49: =Eingabevariablen!$D72*'Hilfsblatt Kostensätze Umwelt'!AN49/100 -> 0 | AP49: =Eingabevariablen!$E72*'Hilfsblatt Kostensätze Umwelt'!AO49/100 -> 0 | AQ49: =Eingabevariablen!$F72*'Hilfsblatt Kostensätze Umwelt'!AP49/100 -> 0 | AY49: Krafträder, Benzin 4-Takt | AZ49: =Eingabevariablen!$C72*'Hilfsblatt Kostensätze Umwelt'!AY49/100 -> 0 | BA49: =Eingabevariablen!$D72*'Hilfsblatt Kostensätze Umwelt'!AZ49/100 -> 0 | BB49: =Eingabevariablen!$E72*'Hilfsblatt Kostensätze Umwelt'!BA49/100 -> 0 | BC49: =Eingabevariablen!$F72*'Hilfsblatt Kostensätze Umwelt'!BB49/100 -> 0 | BK49: Krafträder, Benzin 4-Takt | BL49: =$BY49*'Hilfsblatt Kostensätze Umwelt'!BK49/100 -> 0 | BM49: =$BZ49*'Hilfsblatt Kostensätze Umwelt'!BL49/100 -> 0 | BN49: =$CA49*'Hilfsblatt Kostensätze Umwelt'!BM49/100 -> 0 | BO49: =$CB49*'Hilfsblatt Kostensätze Umwelt'!BN49/100 -> 0 | BX49: Krafträder, Benzin 4-Takt | BY49: =Eingabevariablen!C72*(1+Eingabevariablen!$D$118) -> 0 | BZ49: =Eingabevariablen!D72*(1+Eingabevariablen!$D$118) -> 0 | CA49: =Eingabevariablen!E72*(1+Eingabevariablen!$D$118) -> 0 | CB49: =Eingabevariablen!F72*(1+Eingabevariablen!$D$118) -> 0
B50: Krafträder, Benzin 2-Takt | C50: 0 | D50: 0 | E50: 0 | F50: 0 | H50: 0 | I50: 0 | J50: 0 | K50: 0 | O50: Krafträder, Benzin 2-Takt | P50: =$BY50*'Hilfsblatt Kostensätze Umwelt'!O50/100 -> 0 | Q50: =$BZ50*'Hilfsblatt Kostensätze Umwelt'!P50/100 -> 0 | R50: =$CA50*'Hilfsblatt Kostensätze Umwelt'!Q50/100 -> 0 | S50: =$CB50*'Hilfsblatt Kostensätze Umwelt'!R50/100 -> 0 | AA50: Krafträder, Benzin 2-Takt | AB50: =$BY50*'Hilfsblatt Kostensätze Umwelt'!AA50/100*'Hilfsblatt Kostensätze Umwelt'!$J$263 -> 0 | AC50: =$BZ50*'Hilfsblatt Kostensätze Umwelt'!AB50/100*'Hilfsblatt Kostensätze Umwelt'!$J$263 -> 0 | AD50: =$CA50*'Hilfsblatt Kostensätze Umwelt'!AC50/100*'Hilfsblatt Kostensätze Umwelt'!$J$263 -> 0 | AE50: =$CB50*'Hilfsblatt Kostensätze Umwelt'!AD50/100*'Hilfsblatt Kostensätze Umwelt'!$J$263 -> 0 | AM50: Krafträder, Benzin 2-Takt | AN50: =Eingabevariablen!$C73*'Hilfsblatt Kostensätze Umwelt'!AM50/100 -> 0 | AO50: =Eingabevariablen!$D73*'Hilfsblatt Kostensätze Umwelt'!AN50/100 -> 0 | AP50: =Eingabevariablen!$E73*'Hilfsblatt Kostensätze Umwelt'!AO50/100 -> 0 | AQ50: =Eingabevariablen!$F73*'Hilfsblatt Kostensätze Umwelt'!AP50/100 -> 0 | AY50: Krafträder, Benzin 2-Takt | AZ50: =Eingabevariablen!$C73*'Hilfsblatt Kostensätze Umwelt'!AY50/100 -> 0 | BA50: =Eingabevariablen!$D73*'Hilfsblatt Kostensätze Umwelt'!AZ50/100 -> 0 | BB50: =Eingabevariablen!$E73*'Hilfsblatt Kostensätze Umwelt'!BA50/100 -> 0 | BC50: =Eingabevariablen!$F73*'Hilfsblatt Kostensätze Umwelt'!BB50/100 -> 0 | BK50: Krafträder, Benzin 2-Takt | BL50: =$BY50*'Hilfsblatt Kostensätze Umwelt'!BK50/100 -> 0 | BM50: =$BZ50*'Hilfsblatt Kostensätze Umwelt'!BL50/100 -> 0 | BN50: =$CA50*'Hilfsblatt Kostensätze Umwelt'!BM50/100 -> 0 | BO50: =$CB50*'Hilfsblatt Kostensätze Umwelt'!BN50/100 -> 0 | BX50: Krafträder, Benzin 2-Takt | BY50: =Eingabevariablen!C73*(1+Eingabevariablen!$D$118) -> 0 | BZ50: =Eingabevariablen!D73*(1+Eingabevariablen!$D$118) -> 0 | CA50: =Eingabevariablen!E73*(1+Eingabevariablen!$D$118) -> 0 | CB50: =Eingabevariablen!F73*(1+Eingabevariablen!$D$118) -> 0
B51: Personenzug, Diesel | C51: 0 | D51: 0 | E51: 0 | H51: 0 | I51: 0 | J51: 0 | K51: 0 | O51: Personenzug, Diesel | P51: =$BY51*'Hilfsblatt Kostensätze Umwelt'!O51/100 -> 0 | Q51: =$BZ51*'Hilfsblatt Kostensätze Umwelt'!P51/100 -> 0 | R51: =$CA51*'Hilfsblatt Kostensätze Umwelt'!Q51/100 -> 0 | AA51: Personenzug, Diesel | AB51: =$BY51*'Hilfsblatt Kostensätze Umwelt'!AA51/100*'Hilfsblatt Kostensätze Umwelt'!$J$263 -> 0 | AC51: =$BZ51*'Hilfsblatt Kostensätze Umwelt'!AB51/100*'Hilfsblatt Kostensätze Umwelt'!$J$263 -> 0 | AD51: =$CA51*'Hilfsblatt Kostensätze Umwelt'!AC51/100*'Hilfsblatt Kostensätze Umwelt'!$J$263 -> 0 | AM51: Personenzug, Diesel | AN51: =Eingabevariablen!$C95*'Hilfsblatt Kostensätze Umwelt'!AM51/100 -> 0 | AO51: =Eingabevariablen!$D95*'Hilfsblatt Kostensätze Umwelt'!AN51/100 -> 0 | AP51: =Eingabevariablen!$E95*'Hilfsblatt Kostensätze Umwelt'!AO51/100 -> 0 | AY51: Personenzug, Diesel | AZ51: =Eingabevariablen!$C95*'Hilfsblatt Kostensätze Umwelt'!AY51/100 -> 0 | BA51: =Eingabevariablen!$D95*'Hilfsblatt Kostensätze Umwelt'!AZ51/100 -> 0 | BB51: =Eingabevariablen!$E95*'Hilfsblatt Kostensätze Umwelt'!BA51/100 -> 0 | BK51: Personenzug, Diesel | BL51: =$BY51*'Hilfsblatt Kostensätze Umwelt'!BK51/100 -> 0 | BM51: =$BZ51*'Hilfsblatt Kostensätze Umwelt'!BL51/100 -> 0 | BN51: =$CA51*'Hilfsblatt Kostensätze Umwelt'!BM51/100 -> 0 | BW51: Schienenverkehr: | BX51: Personenzug, Diesel | BY51: =Eingabevariablen!C95*(1+Eingabevariablen!$D$118) -> 0 | BZ51: =Eingabevariablen!D95*(1+Eingabevariablen!$D$118) -> 0 | CA51: =Eingabevariablen!E95*(1+Eingabevariablen!$D$118) -> 0
B52: Personenzug, elektrisch | C52: 0 | D52: 0 | E52: 0 | H52: 0 | I52: 0 | J52: 0 | K52: 0 | O52: Personenzug, elektrisch | P52: =$BY52*'Hilfsblatt Kostensätze Umwelt'!O52/100 -> 0 | Q52: =$BZ52*'Hilfsblatt Kostensätze Umwelt'!P52/100 -> 0 | R52: =$CA52*'Hilfsblatt Kostensätze Umwelt'!Q52/100 -> 0 | AA52: Personenzug, elektrisch | AB52: =$BY52*'Hilfsblatt Kostensätze Umwelt'!AA52/100*'Hilfsblatt Kostensätze Umwelt'!$J$263 -> 0 | AC52: =$BZ52*'Hilfsblatt Kostensätze Umwelt'!AB52/100*'Hilfsblatt Kostensätze Umwelt'!$J$263 -> 0 | AD52: =$CA52*'Hilfsblatt Kostensätze Umwelt'!AC52/100*'Hilfsblatt Kostensätze Umwelt'!$J$263 -> 0 | AM52: Personenzug, elektrisch | AN52: =Eingabevariablen!$C96*'Hilfsblatt Kostensätze Umwelt'!AM52/100 -> 0 | AO52: =Eingabevariablen!$D96*'Hilfsblatt Kostensätze Umwelt'!AN52/100 -> 0 | AP52: =Eingabevariablen!$E96*'Hilfsblatt Kostensätze Umwelt'!AO52/100 -> 0 | AY52: Personenzug, elektrisch | AZ52: =Eingabevariablen!$C96*'Hilfsblatt Kostensätze Umwelt'!AY52/100 -> 0 | BA52: =Eingabevariablen!$D96*'Hilfsblatt Kostensätze Umwelt'!AZ52/100 -> 0 | BB52: =Eingabevariablen!$E96*'Hilfsblatt Kostensätze Umwelt'!BA52/100 -> 0 | BK52: Personenzug, elektrisch | BL52: =$BY52*'Hilfsblatt Kostensätze Umwelt'!BK52/100 -> 0 | BM52: =$BZ52*'Hilfsblatt Kostensätze Umwelt'!BL52/100 -> 0 | BN52: =$CA52*'Hilfsblatt Kostensätze Umwelt'!BM52/100 -> 0 | BX52: Personenzug, elektrisch | BY52: =Eingabevariablen!C96*(1+Eingabevariablen!$D$118) -> 0 | BZ52: =Eingabevariablen!D96*(1+Eingabevariablen!$D$118) -> 0 | CA52: =Eingabevariablen!E96*(1+Eingabevariablen!$D$118) -> 0
B53: Güterzug, Diesel | C53: 0 | D53: 0 | E53: 0 | H53: 0 | I53: 0 | J53: 0 | K53: 0 | O53: Güterzug, Diesel | P53: =$BY53*'Hilfsblatt Kostensätze Umwelt'!O53/100 -> 0 | Q53: =$BZ53*'Hilfsblatt Kostensätze Umwelt'!P53/100 -> 0 | R53: =$CA53*'Hilfsblatt Kostensätze Umwelt'!Q53/100 -> 0 | AA53: Güterzug, Diesel | AB53: =$BY53*'Hilfsblatt Kostensätze Umwelt'!AA53/100*'Hilfsblatt Kostensätze Umwelt'!$J$263 -> 0 | AC53: =$BZ53*'Hilfsblatt Kostensätze Umwelt'!AB53/100*'Hilfsblatt Kostensätze Umwelt'!$J$263 -> 0 | AD53: =$CA53*'Hilfsblatt Kostensätze Umwelt'!AC53/100*'Hilfsblatt Kostensätze Umwelt'!$J$263 -> 0 | AM53: Güterzug, Diesel | AN53: =Eingabevariablen!$C97*'Hilfsblatt Kostensätze Umwelt'!AM53/100 -> 0 | AO53: =Eingabevariablen!$D97*'Hilfsblatt Kostensätze Umwelt'!AN53/100 -> 0 | AP53: =Eingabevariablen!$E97*'Hilfsblatt Kostensätze Umwelt'!AO53/100 -> 0 | AY53: Güterzug, Diesel | AZ53: =Eingabevariablen!$C97*'Hilfsblatt Kostensätze Umwelt'!AY53/100 -> 0 | BA53: =Eingabevariablen!$D97*'Hilfsblatt Kostensätze Umwelt'!AZ53/100 -> 0 | BB53: =Eingabevariablen!$E97*'Hilfsblatt Kostensätze Umwelt'!BA53/100 -> 0 | BK53: Güterzug, Diesel | BL53: =$BY53*'Hilfsblatt Kostensätze Umwelt'!BK53/100 -> 0 | BM53: =$BZ53*'Hilfsblatt Kostensätze Umwelt'!BL53/100 -> 0 | BN53: =$CA53*'Hilfsblatt Kostensätze Umwelt'!BM53/100 -> 0 | BX53: Güterzug, Diesel | BY53: =Eingabevariablen!C97*(1+Eingabevariablen!$D$118) -> 0 | BZ53: =Eingabevariablen!D97*(1+Eingabevariablen!$D$118) -> 0 | CA53: =Eingabevariablen!E97*(1+Eingabevariablen!$D$118) -> 0
B54: Güterzug, elektrisch | C54: 0 | D54: 0 | E54: 0 | H54: 0 | I54: 0 | J54: 0 | K54: 0 | O54: Güterzug, elektrisch | P54: =$BY54*'Hilfsblatt Kostensätze Umwelt'!O54/100 -> 0 | Q54: =$BZ54*'Hilfsblatt Kostensätze Umwelt'!P54/100 -> 0 | R54: =$CA54*'Hilfsblatt Kostensätze Umwelt'!Q54/100 -> 0 | AA54: Güterzug, elektrisch | AB54: =$BY54*'Hilfsblatt Kostensätze Umwelt'!AA54/100*'Hilfsblatt Kostensätze Umwelt'!$J$263 -> 0 | AC54: =$BZ54*'Hilfsblatt Kostensätze Umwelt'!AB54/100*'Hilfsblatt Kostensätze Umwelt'!$J$263 -> 0 | AD54: =$CA54*'Hilfsblatt Kostensätze Umwelt'!AC54/100*'Hilfsblatt Kostensätze Umwelt'!$J$263 -> 0 | AM54: Güterzug, elektrisch | AN54: =Eingabevariablen!$C98*'Hilfsblatt Kostensätze Umwelt'!AM54/100 -> 0 | AO54: =Eingabevariablen!$D98*'Hilfsblatt Kostensätze Umwelt'!AN54/100 -> 0 | AP54: =Eingabevariablen!$E98*'Hilfsblatt Kostensätze Umwelt'!AO54/100 -> 0 | AY54: Güterzug, elektrisch | AZ54: =Eingabevariablen!$C98*'Hilfsblatt Kostensätze Umwelt'!AY54/100 -> 0 | BA54: =Eingabevariablen!$D98*'Hilfsblatt Kostensätze Umwelt'!AZ54/100 -> 0 | BB54: =Eingabevariablen!$E98*'Hilfsblatt Kostensätze Umwelt'!BA54/100 -> 0 | BK54: Güterzug, elektrisch | BL54: =$BY54*'Hilfsblatt Kostensätze Umwelt'!BK54/100 -> 0 | BM54: =$BZ54*'Hilfsblatt Kostensätze Umwelt'!BL54/100 -> 0 | BN54: =$CA54*'Hilfsblatt Kostensätze Umwelt'!BM54/100 -> 0 | BX54: Güterzug, elektrisch | BY54: =Eingabevariablen!C98*(1+Eingabevariablen!$D$118) -> 0 | BZ54: =Eingabevariablen!D98*(1+Eingabevariablen!$D$118) -> 0 | CA54: =Eingabevariablen!E98*(1+Eingabevariablen!$D$118) -> 0
B55: Binnengüterschiff | C55: 0 | H55: 0 | O55: Binnengüterschiff | P55: =$BY55*'Hilfsblatt Kostensätze Umwelt'!O55/100 -> 0 | AA55: Binnengüterschiff | AB55: =$BY55*'Hilfsblatt Kostensätze Umwelt'!AA55/100*'Hilfsblatt Kostensätze Umwelt'!$J$263 -> 0 | AM55: Binnengüterschiff | AN55: =Eingabevariablen!$D109*'Hilfsblatt Kostensätze Umwelt'!AM55/100 -> 0 | AY55: Binnengüterschiff | AZ55: =Eingabevariablen!$D109*'Hilfsblatt Kostensätze Umwelt'!AY55/100 -> 0 | BK55: Binnengüterschiff | BL55: =$BY55*'Hilfsblatt Kostensätze Umwelt'!BK55/100 -> 0 | BW55: Schiffsverkehr: | BX55: Binnengüterschiff | BY55: =Eingabevariablen!D109*(1+Eingabevariablen!$D$118) -> 0
B56: Luftverkehr, Europa-/Kontinentalflug | C56: 0 | H56: 0 | O56: Luftverkehr, Europa-/Kontinentalflug | P56: =$BY56*'Hilfsblatt Kostensätze Umwelt'!O56/100 -> 0 | AA56: Luftverkehr, Europa-/Kontinentalflug | AB56: =$BY56*'Hilfsblatt Kostensätze Umwelt'!AA56/100*'Hilfsblatt Kostensätze Umwelt'!$J$263 -> 0 | AM56: Luftverkehr, Europa-/Kontinentalflug | AN56: =Eingabevariablen!$D113*'Hilfsblatt Kostensätze Umwelt'!AM56/100 -> 0 | AY56: Luftverkehr, Europa-/Kontinentalflug | AZ56: =Eingabevariablen!$D113*'Hilfsblatt Kostensätze Umwelt'!AY56/100 -> 0 | BK56: Luftverkehr, Europa-/Kontinentalflug | BL56: =$BY56*'Hilfsblatt Kostensätze Umwelt'!BK56/100 -> 0 | BW56: Luftverkehr: | BX56: Luftverkehr, Europa-/Kontinentalflug | BY56: =Eingabevariablen!D113*(1+Eingabevariablen!$D$118) -> 0
A60: B. Nach Wirkungskategorien
A62: 1. Luftschadstoffemissionen
B64: in Euro
B65: Quelle: | C65: Quelle unbekannt | D65: Verkehr | F65: Kraftwerk/Energie | G65: Industrie | H65: Kleinfeuerung
B66: Kosten | D66: Innerorts (Durchschnitt) | E66: Außerorts | H66: Innerorts | I66: Außerorts | J66: Total
B67: Partikel (Feinstaub) grob PM10 | C67: =Eingabevariablen!C216*'Hilfsblatt Kostensätze Umwelt'!C69 -> 0 | D67: =Eingabevariablen!D216*'Hilfsblatt Kostensätze Umwelt'!D69 -> 0 | E67: =Eingabevariablen!E216*'Hilfsblatt Kostensätze Umwelt'!E69 -> 0 | F67: =Eingabevariablen!F216*'Hilfsblatt Kostensätze Umwelt'!F69 -> 0 | G67: =Eingabevariablen!G216*'Hilfsblatt Kostensätze Umwelt'!G69 -> 0 | H67: =Eingabevariablen!H216*'Hilfsblatt Kostensätze Umwelt'!H69 -> 0 | I67: =Eingabevariablen!I216*'Hilfsblatt Kostensätze Umwelt'!I69 -> 0 | J67: =SUM(C67:I67) -> 0
B68: Partikel (Feinstaub) fein PM2.5 | C68: =Eingabevariablen!C217*'Hilfsblatt Kostensätze Umwelt'!C70 -> 0 | D68: =Eingabevariablen!D217*'Hilfsblatt Kostensätze Umwelt'!D70 -> 0 | E68: =Eingabevariablen!E217*'Hilfsblatt Kostensätze Umwelt'!E70 -> 0 | F68: =Eingabevariablen!F217*'Hilfsblatt Kostensätze Umwelt'!F70 -> 0 | G68: =Eingabevariablen!G217*'Hilfsblatt Kostensätze Umwelt'!G70 -> 0 | H68: =Eingabevariablen!H217*'Hilfsblatt Kostensätze Umwelt'!H70 -> 0 | I68: =Eingabevariablen!I217*'Hilfsblatt Kostensätze Umwelt'!I70 -> 0 | J68: =SUM(C68:I68) -> 0
B69: Stickoxide NOx | C69: =Eingabevariablen!C218*'Hilfsblatt Kostensätze Umwelt'!C71 -> 0 | D69: =Eingabevariablen!D218*'Hilfsblatt Kostensätze Umwelt'!D71 -> 0 | E69: =Eingabevariablen!E218*'Hilfsblatt Kostensätze Umwelt'!E71 -> 0 | F69: =Eingabevariablen!F218*'Hilfsblatt Kostensätze Umwelt'!F71 -> 0 | G69: =Eingabevariablen!G218*'Hilfsblatt Kostensätze Umwelt'!G71 -> 0 | H69: =Eingabevariablen!H218*'Hilfsblatt Kostensätze Umwelt'!H71 -> 0 | I69: =Eingabevariablen!I218*'Hilfsblatt Kostensätze Umwelt'!I71 -> 0 | J69: 0
B70: Schwefeldioxid SO2 | C70: =Eingabevariablen!C219*'Hilfsblatt Kostensätze Umwelt'!C72 -> 0 | D70: =Eingabevariablen!D219*'Hilfsblatt Kostensätze Umwelt'!D72 -> 0 | E70: =Eingabevariablen!E219*'Hilfsblatt Kostensätze Umwelt'!E72 -> 0 | F70: =Eingabevariablen!F219*'Hilfsblatt Kostensätze Umwelt'!F72 -> 0 | G70: =Eingabevariablen!G219*'Hilfsblatt Kostensätze Umwelt'!G72 -> 0 | H70: =Eingabevariablen!H219*'Hilfsblatt Kostensätze Umwelt'!H72 -> 0 | I70: =Eingabevariablen!I219*'Hilfsblatt Kostensätze Umwelt'!I72 -> 0 | J70: 0
B71: Flüchtige Kohlenwasserstoffe NMVOC | C71: =Eingabevariablen!C220*'Hilfsblatt Kostensätze Umwelt'!C73 -> 0 | D71: =Eingabevariablen!D220*'Hilfsblatt Kostensätze Umwelt'!D73 -> 0 | E71: =Eingabevariablen!E220*'Hilfsblatt Kostensätze Umwelt'!E73 -> 0 | F71: =Eingabevariablen!F220*'Hilfsblatt Kostensätze Umwelt'!F73 -> 0 | G71: =Eingabevariablen!G220*'Hilfsblatt Kostensätze Umwelt'!G73 -> 0 | H71: =Eingabevariablen!H220*'Hilfsblatt Kostensätze Umwelt'!H73 -> 0 | I71: =Eingabevariablen!I220*'Hilfsblatt Kostensätze Umwelt'!I73 -> 0 | J71: 0
B72: Ammoniak NH3 | C72: =Eingabevariablen!C221*'Hilfsblatt Kostensätze Umwelt'!C74 -> 0 | D72: =Eingabevariablen!D221*'Hilfsblatt Kostensätze Umwelt'!D74 -> 0 | E72: =Eingabevariablen!E221*'Hilfsblatt Kostensätze Umwelt'!E74 -> 0 | F72: =Eingabevariablen!F221*'Hilfsblatt Kostensätze Umwelt'!F74 -> 0 | G72: =Eingabevariablen!G221*'Hilfsblatt Kostensätze Umwelt'!G74 -> 0 | H72: =Eingabevariablen!H221*'Hilfsblatt Kostensätze Umwelt'!H74 -> 0 | I72: =Eingabevariablen!I221*'Hilfsblatt Kostensätze Umwelt'!I74 -> 0 | J72: 0
A77: 2. Treibhausgasemissionen
B80: in Euro
B81: Schadstoff | C81: in EUR
B82: Kohlendioxid (CO2) | C82: =Eingabevariablen!D238*'Hilfsblatt Kostensätze Umwelt'!D82 -> 0
B83: Methan (CH4) | C83: =Eingabevariablen!D239*'Hilfsblatt Kostensätze Umwelt'!D83 -> 0
B84: Lachgas (N2O) | C84: =Eingabevariablen!D240*'Hilfsblatt Kostensätze Umwelt'!D84 -> 0
B85: Treibhausgase total (in CO2-Äquivalent) | C85: =Eingabevariablen!D241*'Hilfsblatt Kostensätze Umwelt'!D85 -> 0
A89: 3. Lärmemissionen
B92: in EUR
B93: Kosten pro belastete Personen je Lärmklasse (Dezibel-Klasse) | C93: Quelle: Verkehr | F93: Quelle: unbekannt
B94: Lärmbelastung (Lden (dB(A)) | C94: Strassenverkehr | D94: Schienenverkehr | E94: Luftverkehr
B95: 45 dB | C95: =Eingabevariablen!C262*'Hilfsblatt Kostensätze Umwelt'!C95 -> 0 | D95: =Eingabevariablen!D262*'Hilfsblatt Kostensätze Umwelt'!D95 -> 0 | E95: =Eingabevariablen!E262*'Hilfsblatt Kostensätze Umwelt'!E95 -> 0 | F95: =Eingabevariablen!F262*'Hilfsblatt Kostensätze Umwelt'!F95 -> 0
B96: 50 dB | C96: =Eingabevariablen!C263*'Hilfsblatt Kostensätze Umwelt'!C96 -> 0 | D96: =Eingabevariablen!D263*'Hilfsblatt Kostensätze Umwelt'!D96 -> 0 | E96: =Eingabevariablen!E263*'Hilfsblatt Kostensätze Umwelt'!E96 -> 0 | F96: =Eingabevariablen!F263*'Hilfsblatt Kostensätze Umwelt'!F96 -> 0
B97: 55 dB | C97: =Eingabevariablen!C264*'Hilfsblatt Kostensätze Umwelt'!C97 -> 0 | D97: =Eingabevariablen!D264*'Hilfsblatt Kostensätze Umwelt'!D97 -> 0 | E97: =Eingabevariablen!E264*'Hilfsblatt Kostensätze Umwelt'!E97 -> 0 | F97: =Eingabevariablen!F264*'Hilfsblatt Kostensätze Umwelt'!F97 -> 0
B98: 60 dB | C98: =Eingabevariablen!C265*'Hilfsblatt Kostensätze Umwelt'!C98 -> 0 | D98: =Eingabevariablen!D265*'Hilfsblatt Kostensätze Umwelt'!D98 -> 0 | E98: =Eingabevariablen!E265*'Hilfsblatt Kostensätze Umwelt'!E98 -> 0 | F98: =Eingabevariablen!F265*'Hilfsblatt Kostensätze Umwelt'!F98 -> 0
B99: 65 dB | C99: =Eingabevariablen!C266*'Hilfsblatt Kostensätze Umwelt'!C99 -> 0 | D99: =Eingabevariablen!D266*'Hilfsblatt Kostensätze Umwelt'!D99 -> 0 | E99: =Eingabevariablen!E266*'Hilfsblatt Kostensätze Umwelt'!E99 -> 0 | F99: =Eingabevariablen!F266*'Hilfsblatt Kostensätze Umwelt'!F99 -> 0
B100: 70 dB | C100: =Eingabevariablen!C267*'Hilfsblatt Kostensätze Umwelt'!C100 -> 0 | D100: =Eingabevariablen!D267*'Hilfsblatt Kostensätze Umwelt'!D100 -> 0 | E100: =Eingabevariablen!E267*'Hilfsblatt Kostensätze Umwelt'!E100 -> 0 | F100: =Eingabevariablen!F267*'Hilfsblatt Kostensätze Umwelt'!F100 -> 0
B101: 75 dB | C101: =Eingabevariablen!C268*'Hilfsblatt Kostensätze Umwelt'!C101 -> 0 | D101: =Eingabevariablen!D268*'Hilfsblatt Kostensätze Umwelt'!D101 -> 0 | E101: =Eingabevariablen!E268*'Hilfsblatt Kostensätze Umwelt'!E101 -> 0 | F101: =Eingabevariablen!F268*'Hilfsblatt Kostensätze Umwelt'!F101 -> 0
B102: 80 dB | C102: =Eingabevariablen!C269*'Hilfsblatt Kostensätze Umwelt'!C102 -> 0 | D102: =Eingabevariablen!D269*'Hilfsblatt Kostensätze Umwelt'!D102 -> 0 | E102: =Eingabevariablen!E269*'Hilfsblatt Kostensätze Umwelt'!E102 -> 0 | F102: =Eingabevariablen!F269*'Hilfsblatt Kostensätze Umwelt'!F102 -> 0
B103: ≥81 dB | C103: =Eingabevariablen!C270*'Hilfsblatt Kostensätze Umwelt'!C103 -> 0 | D103: =Eingabevariablen!D270*'Hilfsblatt Kostensätze Umwelt'!D103 -> 0 | E103: =Eingabevariablen!E270*'Hilfsblatt Kostensätze Umwelt'!E103 -> 0 | F103: =Eingabevariablen!F270*'Hilfsblatt Kostensätze Umwelt'!F103 -> 0
A106: 4. Beeinträchtigung von Ökosystemen
A110: a. Flächenumwandlung, Verbauung natürlicher Flächen, Versiegelung
C111: in EUR
B112: Kosten der versiegelten Fläche (total) | C112: =Eingabevariablen!D306*10^6*'Hilfsblatt Kostensätze Umwelt'!C112 -> 0 | D112: in Euro total
B113: Kosten pro Jahr | C113: =Eingabevariablen!D306*10^6*'Hilfsblatt Kostensätze Umwelt'!C114 -> 0 | D113: in Euro, pro Jahr
A116: b. Landnutzungsänderung, Nutzungsintenvisierung
B118: Kosten in Euro: Total bzw. pro Jahr | F118: in EUR | G118: in EUR
E119: Kostensatz Vollverlust, in EUR/m2 2010 | F119: Vollverlust, in EUR 2010 total | G119: Vollverlust, in EUR 2010 pro Jahr
B120: bisherige Nutzungsform | C120: =Eingabevariablen!$C$179:$D$179 -> Durchschnitt Deutschland (alle Biotoptypen) | E120: =VLOOKUP($C120,'Hilfsblatt Kostensätze Umwelt'!$B$119:$C$141,2,FALSE) -> 5.506083202 | F120: =(Eingabevariablen!$D$178)*10^6*'Hilfsblatt Ber. Umweltkosten 2'!$E120 -> 0 | G120: =-PMT('Hilfsblatt Kostensätze Umwelt'!$C$113,100,$F120) -> 0
B121: neue Nutzungsform | C121: =Eingabevariablen!$C$180:$D$180 -> Ackerland | E121: =VLOOKUP($C121,'Hilfsblatt Kostensätze Umwelt'!$B$119:$C$141,2,FALSE) -> 0.6241979764 | F121: =(Eingabevariablen!$D$178)*10^6*'Hilfsblatt Ber. Umweltkosten 2'!$E121 -> 0 | G121: =-PMT('Hilfsblatt Kostensätze Umwelt'!$C$113,100,$F121) -> 0
B122: Delta = Kosten der Nutzungsänderung | E122: =E120-E121 -> 4.881885226 | F122: =F120-F121 -> 0 | G122: =G120-G121 -> 0
A148: c. Nährstoffeintrag
B150: Kosten pro kg Stickstoff (N) | C150: in Euro
B151: Stickstoff-Verbindungen | C151: =Eingabevariablen!$D$184*1000*'Hilfsblatt Kostensätze Umwelt'!$C$151 -> 0 | D151: in Euro
A153: d. Schadstoffeinträge ins Meer
B155: Kosten Schadstoffeinträge ins Meer | C155: in Euro
B156: Stickstoffeintrag ins Meer | C156: =Eingabevariablen!D289*'Hilfsblatt Kostensätze Umwelt'!C156 -> 0 | D156: in Euro
B157: Abfallmenge, ins Meer | C157: =Eingabevariablen!D290*'Hilfsblatt Kostensätze Umwelt'!C157 -> 0 | D157: in Euro
B158: Ölmenge, ins Meer | C158: =Eingabevariablen!D291*IF(Eingabevariablen!$C$293='Hilfsblatt Kostensätze Umwelt'!J158,'Hilfsblatt Kostensätze Umwelt'!C158,'Hilfsblatt Kostensätze Umwelt'!D158) -> 0 | D158: in Euro
A160: e. Zerschneidung der Landschaft durch Verkehrswege
C161: total | D161: pro Jahr
B162: Kosten (zusätzlicher) Verkehrsinfrastrukturen | C162: in Euro, total | D162: in Euro, pro Jahr
B163: Straße: Autobahn, Bundesstraße | C163: =Eingabevariablen!$D297*'Hilfsblatt Kostensätze Umwelt'!C163 -> 0 | D163: =Eingabevariablen!$D297*'Hilfsblatt Kostensätze Umwelt'!D163 -> 0
B164: Straße: Hauptstraße | C164: =Eingabevariablen!$D298*'Hilfsblatt Kostensätze Umwelt'!C164 -> 0 | D164: =Eingabevariablen!$D298*'Hilfsblatt Kostensätze Umwelt'!D164 -> 0
B165: Straße: Nebenstraße | C165: =Eingabevariablen!$D299*'Hilfsblatt Kostensätze Umwelt'!C165 -> 0 | D165: =Eingabevariablen!$D299*'Hilfsblatt Kostensätze Umwelt'!D165 -> 0
B166: Schiene: mehrspurig | C166: =Eingabevariablen!$D300*'Hilfsblatt Kostensätze Umwelt'!C166 -> 0 | D166: =Eingabevariablen!$D300*'Hilfsblatt Kostensätze Umwelt'!D166 -> 0
B167: Schiene: einspurig | C167: =Eingabevariablen!$D301*'Hilfsblatt Kostensätze Umwelt'!C167 -> 0 | D167: =Eingabevariablen!$D301*'Hilfsblatt Kostensätze Umwelt'!D167 -> 0
B168: Flugplatz, Flughafen | C168: =Eingabevariablen!$D302*'Hilfsblatt Kostensätze Umwelt'!C168 -> 0 | D168: =Eingabevariablen!$D302*'Hilfsblatt Kostensätze Umwelt'!D168 -> 0
A171: 5. Emission toxischer Stoffe
B175: Kosten der Emission toxischer Stoffe | C175: in Euro
B176: Schwermetalle:
B177: Arsen (As) | C177: =Eingabevariablen!D313*'Hilfsblatt Kostensätze Umwelt'!C177 -> 0
B178: Cadmium (Cd) | C178: =Eingabevariablen!D314*'Hilfsblatt Kostensätze Umwelt'!C178 -> 0
B179: Chrom (Cr) | C179: =Eingabevariablen!D315*'Hilfsblatt Kostensätze Umwelt'!C179 -> 0
B180: Nickel (Ni) | C180: =Eingabevariablen!D316*'Hilfsblatt Kostensätze Umwelt'!C180 -> 0
B181: Quecksilber (Hg) | C181: =Eingabevariablen!D317*'Hilfsblatt Kostensätze Umwelt'!C181 -> 0
B182: Blei (Pb) | C182: =Eingabevariablen!D318*'Hilfsblatt Kostensätze Umwelt'!C182 -> 0
B183: Langlebige organische Schadstoffe (POPs):
B184: Dioxine | C184: =Eingabevariablen!D320*'Hilfsblatt Kostensätze Umwelt'!C184 -> 0
B185: Furane | C185: =Eingabevariablen!D321*'Hilfsblatt Kostensätze Umwelt'!C185 -> 0
B186: Formaldehyd | C186: =Eingabevariablen!D322*'Hilfsblatt Kostensätze Umwelt'!C186 -> 0
B187: Pflanzenschutzmittel | C187: =Eingabevariablen!D323*'Hilfsblatt Kostensätze Umwelt'!C187 -> 0
B188: Insektizide | C188: =Eingabevariablen!D324*'Hilfsblatt Kostensätze Umwelt'!C188 -> 0
A191: 6. Indirekte Effekte vor- und nachgelagerte Prozesse
B195: Kosten der Schadstoffemissionen | C195: in Euro
B196: Partikel (Feinstaub) PM10 | C196: =Eingabevariablen!D330*'Hilfsblatt Kostensätze Umwelt'!C196 -> 0
B197: Partikel (Feinstaub) fein PM2.5 | C197: =Eingabevariablen!D331*'Hilfsblatt Kostensätze Umwelt'!C197 -> 0
B198: Stickoxide NOx | C198: =Eingabevariablen!D332*'Hilfsblatt Kostensätze Umwelt'!C198 -> 0
B199: Schwefeldioxid SO2 | C199: =Eingabevariablen!D333*'Hilfsblatt Kostensätze Umwelt'!C199 -> 0
B200: Flüchtige Kohlenwasserstoffe NMVOC | C200: =Eingabevariablen!D334*'Hilfsblatt Kostensätze Umwelt'!C200 -> 0
B201: Ammoniak NH3 | C201: =Eingabevariablen!D335*'Hilfsblatt Kostensätze Umwelt'!C201 -> 0
B202: Kohlendioxid (CO2) | C202: =Eingabevariablen!D336*'Hilfsblatt Kostensätze Umwelt'!D202 -> 0
B203: Methan (CH4) | C203: =Eingabevariablen!D337*'Hilfsblatt Kostensätze Umwelt'!D203 -> 0
B204: Lachgas (N2O) | C204: =Eingabevariablen!D338*'Hilfsblatt Kostensätze Umwelt'!D204 -> 0
B205: Treibhausgase total (in CO2-Äquivalent) | C205: =Eingabevariablen!D339*'Hilfsblatt Kostensätze Umwelt'!D205 -> 0
B206: Stickstoff-Verbindungen | C206: =Eingabevariablen!D340*'Hilfsblatt Kostensätze Umwelt'!C206 -> 0
A209: 9. Unfälle
B211: Anzahl Unfallopfer (Verkehrsunfälle) | C211: in Euro
B212: Leichtverletzte | C212: =Eingabevariablen!D346*'Hilfsblatt Kostensätze Umwelt'!D219 -> 0
B213: Schwerverletzte | C213: =Eingabevariablen!D347*'Hilfsblatt Kostensätze Umwelt'!D220 -> 0
B214: Todesopfer | C214: =Eingabevariablen!D348*'Hilfsblatt Kostensätze Umwelt'!D221 -> 0
B216: Anzahl Verkehrsunfälle | C216: in Euro
B217: Strassenverkehrsunfälle generell | C217: =Eingabevariablen!D351*'Hilfsblatt Kostensätze Umwelt'!E225 -> 0
B218: Unfälle mit Personenwagen | C218: =Eingabevariablen!D352*'Hilfsblatt Kostensätze Umwelt'!E226 -> 0
B219: Unfälle mit Motorrädern | C219: =Eingabevariablen!D353*'Hilfsblatt Kostensätze Umwelt'!E227 -> 0
B220: Unfälle mit Güterschwerverkehr | C220: =Eingabevariablen!D354*'Hilfsblatt Kostensätze Umwelt'!E228 -> 0
B221: Unfälle mit öffentl. Personenverkehr | C221: =Eingabevariablen!D355*'Hilfsblatt Kostensätze Umwelt'!E229 -> 0
B222: Unfälle mit Fahrrädern | C222: =Eingabevariablen!D356*'Hilfsblatt Kostensätze Umwelt'!E230 -> 0
B223: Unfälle mit Fussgängern | C223: =Eingabevariablen!D357*'Hilfsblatt Kostensätze Umwelt'!E231 -> 0
B224: Schienenverkehrsunfälle: Personenverkehr | C224: =Eingabevariablen!D358*'Hilfsblatt Kostensätze Umwelt'!E232 -> 0
B225: Schienenverkehrsunfälle: Güterverkehr | C225: =Eingabevariablen!D359*'Hilfsblatt Kostensätze Umwelt'!E233 -> 0
B226: Luftverkehrsunfälle (ohne Grossereignisse) | C226: =Eingabevariablen!D360*'Hilfsblatt Kostensätze Umwelt'!E234 -> 0
A231: Gesamtübersicht: Ergebnis Umweltkosten / Umweltnutzen
A233: a. Nutzen pro Jahr | I233: b. Gesamtnutzen (-kosten) (bei Landnutzungsänderungen oder Versiegelung)
A235: Nutzen/Kosten aus: | B235: Nutzen (Kosten) in 1.000 Euro | C235: Einheit | D235: gerundet
A236: Luftschadstoffemissionen | B236: =-(SUM('Hilfsblatt Ber. Umweltkosten 2'!P16:P33,'Hilfsblatt Ber. Umweltkosten 2'!S16:S29,'Hilfsblatt Ber. Umweltkosten 2'!V16:V21,'Hilfsblatt Ber. Umweltkosten 2'!Y16:Y19,'Hilfsblatt Ber. Umweltkosten 2'!P43:S56,'Hilfsblatt Ber. Umweltkosten 2'!C67:I72)/1000) -> 0 | C236: ="1.000 € pro "&Eingabevariablen!$J$49 -> 1.000 € pro Jahr | D236: =ROUND(B236,-2) -> 0
A237: Treibhausgasemissionen | B237: =-(SUM('Hilfsblatt Ber. Umweltkosten 2'!AB16:AB33,'Hilfsblatt Ber. Umweltkosten 2'!AE16:AE29,'Hilfsblatt Ber. Umweltkosten 2'!AH16:AH21,'Hilfsblatt Ber. Umweltkosten 2'!AK16:AK19,'Hilfsblatt Ber. Umweltkosten 2'!AB43:AE56,'Hilfsblatt Ber. Umweltkosten 2'!C82:C85)/1000) -> 0 | C237: ="1.000 € pro "&Eingabevariablen!$J$49 -> 1.000 € pro Jahr | D237: =ROUND(B237,-2) -> 0
A238: Lärmemissionen | B238: =-(SUM('Hilfsblatt Ber. Umweltkosten 2'!AN43:AQ56,'Hilfsblatt Ber. Umweltkosten 2'!C95:F103)/1000) -> 0 | C238: ="1.000 € pro "&Eingabevariablen!$J$49 -> 1.000 € pro Jahr | D238: 0 | I238: Beeinträchtigung von Ökosystemen: | J238: Nutzen (Kosten) in 1.000 Euro | K238: Einheit
A239: Beeinträchtigung von Ökosystemen | B239: =-(SUM('Hilfsblatt Ber. Umweltkosten 2'!AZ43:BC56,'Hilfsblatt Ber. Umweltkosten 2'!C113,'Hilfsblatt Ber. Umweltkosten 2'!G122,'Hilfsblatt Ber. Umweltkosten 2'!C151,'Hilfsblatt Ber. Umweltkosten 2'!C156:C158,'Hilfsblatt Ber. Umweltkosten 2'!D163:D168)/1000) -> 0 | C239: ="1.000 € pro "&Eingabevariablen!$J$49 -> 1.000 € pro Jahr | D239: 0 | I239: Versiegelung & Landnutzungsänderung | J239: =-ROUND((SUM('Hilfsblatt Ber. Umweltkosten 2'!C112,'Hilfsblatt Ber. Umweltkosten 2'!F122)/1000),-3) -> 0 | K239: 1.000 € total
A240: Emission toxischer Stoffe | B240: =-(SUM('Hilfsblatt Ber. Umweltkosten 2'!C177:C182,'Hilfsblatt Ber. Umweltkosten 2'!C184:C188)/1000) -> 0 | C240: ="1.000 € pro "&Eingabevariablen!$J$49 -> 1.000 € pro Jahr | D240: 0 | J240: nicht Jahreskosten, sondern Gesamtkosten
A241: Indirekte Effekte durch vor- und nachgelagerte Prozesse | B241: =-(SUM('Hilfsblatt Ber. Umweltkosten 2'!BL16:BL33,'Hilfsblatt Ber. Umweltkosten 2'!BO16:BO29,'Hilfsblatt Ber. Umweltkosten 2'!BR16:BR21,'Hilfsblatt Ber. Umweltkosten 2'!BU16:BU19,'Hilfsblatt Ber. Umweltkosten 2'!BL43:BO56,'Hilfsblatt Ber. Umweltkosten 2'!C196:C206)/1000) -> 0 | C241: ="1.000 € pro "&Eingabevariablen!$J$49 -> 1.000 € pro Jahr | D241: 0
A242: Gesamtkosten (-nutzen) Umwelt | B242: =SUM(B236:B241) -> 0 | C242: 1.000 € pro Jahr | D242: =SUM(D236:D241) -> 0
A243: Unfälle | B243: =-(SUM(C212:C214,C217:C226)/1000) -> 0 | C243: ="1.000 € pro "&Eingabevariablen!$J$49 -> 1.000 € pro Jahr | D243: 0
A244: Total Umwelt und Unfälle | B244: =B242+B243 -> 0 | C244: 1.000 € pro Jahr | D244: =D242+D243 -> 0
A245: Bemerkung: positives Vorzeichen = Nutzen = Reduktion von Kosten; negatives Vorzeichen = zusätzliche Kosten
A249: Ermittlung Anteil der Betroffenheit (Kosten/Nutzen) der Wirtschaft: Deckelung, Kompensation
A252: 1. Luftschadstoffemissionen
A254: Folgen, Kostenbereiche | B254: Konkrete Kosten | C254: Betroffenheit Wirtschaft (qual.) | D254: Anteil Gesamtkosten | J254: Quelle | K254: Allokation Anteil Wirtschaft | L254: Anteil Private | M254: Quelle
D255: Partikel grob PM10 | E255: Partikel fein PM2.5 | F255: Stickoxide NOx | G255: Schwefeldioxid SO2 | H255: Flüchtige KW: NMVOC | I255: Ammoniak NH3
A256: Gesundheitsschäden | B256: Medizinische Behandlungs-kosten, Spitalkosten | C256: Grundsätzlich private Kosten, aber durch Wirtschaft mitfinanziert über Arbeitgeberbeiträge Krankenversicherung | D256: 0.012 | E256: =$D256 -> 0.012 | F256: =$D256 -> 0.012 | G256: =$D256 -> 0.012 | H256: 0.012 | I256: 0.012 | J256: Ecoplan, ARE 2014: Ext. Kosten Verkehr Schweiz 2010, Basis Strassen-verkehr | K256: =7.3/(7.3+7.3+0.9) -> 0.4709677419 | L256: =(7.3+0.9)/(7.3+7.3+0.9) -> 0.5290322581 | M256: Aktuelle Beitrags-sätze Arbeitgeber/-nehmer
B257: Produktionsausfälle infolge Krankeiten | C257: Kosten / Nutzen vollständig bei der Wirtschaft | D257: 0.023 | E257: =$D257 -> 0.023 | F257: 0.023 | G257: 0.023 | H257: 0.023 | I257: 0.023 | K257: 1 | L257: 0
B258: Wiederbesetungskosten bei Unternehmen (Invalidität, Tod) | C258: Kosten / Nutzen vollständig bei der Wirtschaft | D258: 0.003 | E258: 0.003 | F258: 0.003 | G258: 0.003 | H258: 0.003 | I258: 0.003 | K258: 1 | L258: 0
B259: Immaterielle Kosten (Schmerz, Leid) | C259: Vollständig bei Privaten | D259: 0.962 | E259: 0.962 | F259: 0.962 | G259: 0.962 | H259: 0.962 | I259: 0.962 | K259: 0 | L259: 1
B260: Total Gesundheitskosten | D260: 1 | E260: 1 | F260: =12600/15400 -> 0.8181818182 | G260: =11900/13200 -> 0.9015151515 | H260: =1600/1900 -> 0.8421052632 | I260: =18200/26900 -> 0.6765799257 | J260: UBA MK 2.0 (basierend auf IER 2012 bzw. NEEDS)
A261: Gebäude- und Materialschäden | B261: Reinigungskosten, Renovations-kosten von Immobilien | C261: Immobilien im Besitz von Unternehmen (d.h. nicht von Privaten od. dem Staat) | D261: 0 | E261: 0 | F261: =100/15400 -> 0.006493506494 | G261: =500/13200 -> 0.03787878788 | H261: 0 | I261: 0 | K261: 0.408 | L261: 0.592 | M261: Immobilienstatistik Destatis / Zensus 2011
A262: Ernteausfälle | B262: Entgangene Ernteerträge | C262: Kosten fallen direkt bei der Landwirtschaft an. | D262: 0 | E262: 0 | F262: =500/15400 -> 0.03246753247 | G262: 0 | H262: =300/1900 -> 0.1578947368 | I262: 0 | K262: 1 | L262: 0
A263: Biodiversitätsverluste | B263: Ökosystemschäden, Beeinträchtigung Ökosystem-schäden | C263: Vor allem Private betroffen. Wirtschaft primär indirekt betroffen (über verminderte Ökosystemleistungen). | D263: 0 | E263: 0 | F263: =2200/15400 -> 0.1428571429 | G263: =800/13200 -> 0.06060606061 | H263: 0 | I263: =8700/26900 -> 0.3234200743 | K263: 0 | L263: 1 | M263: bisher keine Angaben verfügbar für Anteil Wirtsch.
D264: =SUM(D260:D263) -> 1 | E264: =SUM(E260:E263) -> 1 | F264: 1 | G264: 1 | H264: 1 | I264: 1
D265: =SUM(D256:D259) -> 1 | E265: =SUM(E256:E259) -> 1 | F265: 1 | G265: 1 | H265: 1 | I265: 1
A267: Anteil Wirtschaft | D267: =(D256*$K256+D257*$K257+D258*$K258+D259*$K259)*D$260+D261*$K261+D262*$K262+D263*$K263 -> 0.0316516129 | E267: 0.0316516129 | F267: 0.06101365731 | G267: 0.04398895406 | H267: 0.1845487267 | I267: 0.0214148459
A268: Anteil Private | D268: =(D256*$L256+D257*$L257+D258*$L258+D259*$L259)*D$260+D261*$L261+D262*$L262+D263*$L263 -> 0.9683483871 | E268: 0.9683483871 | F268: 0.9389863427 | G268: 0.9560110459 | H268: 0.8154512733 | I268: 0.9785851541
A269: Gesamttotal | D269: =D267+D268 -> 1 | E269: =E267+E268 -> 1 | F269: 1 | G269: 1 | H269: 1 | I269: 1
B270: Mittelwert Energie | C270: Anteil Wirtschaft | D270: =0.5*D267+0.3*E267+0.2*F267 -> 0.03752402178
C271: Anteil Private | D271: =0.5*D268+0.3*E268+0.2*F268 -> 0.9624759782
B272: Mittelwert Verkehr | C272: Anteil Wirtschaft | D272: =0.5*D267+0.1*E267+0.3*F267+0.1*G267 -> 0.04169396034
C273: Anteil Private | D273: =0.5*D268+0.1*E268+0.3*F268+0.1*G268 -> 0.9583060397
A277: 2. Treibhausgasemissionen
A279: Folgen, Kostenbereiche | B279: Konkrete Kosten | C279: Betroffenheit Wirtschaft (qual.) | D279: Anteil Gesamtkosten | E279: Anteil Wirtschaft gerundet | F279: Anteil Private, Staat | G279: Quelle | H279: Anteil Wirtschaft genau
A280: Gesundheitsschäden | B280: Medizinische Behandlungs-kosten, Spitalkosten | C280: Grundsätzlich private Kosten, aber durch Wirtschaft mitfinanziert über Arbeitgeberbeiträge Krankenversicherung | D280: nur gesamthaft zu bestimmen, da Vermeidungskostenansatz. -> Abschätzung des Anteils der Schadenskosten, die die Wirtschaft treffen. Die Klimaschadenskosten- modelle können Wirtschaftsanteil nicht direkt bestimmen. Aus den Ergebnissen von Stern, FUND, PAGE zeigt sich aber, dass Klimakosten Wirtschaft und Private gleichmässig treffen, analog zur Wirtschaftsstruktur. Daher Orientierung an Wirtschaftsanteil an der Verwendung von Gütern (aus IOT Volkswirtsch. Gesamtrechnung D) | E280: 0.5 | F280: =1-E280 -> 0.5 | G280: Anteil Wirtschaft an Güterverwendung in IOT 2011 (Revision 2014) Deutschlands. Quelle: Destatis 2015 | H280: 0.518
B281: Produktionsausfälle infolge Krankeiten | C281: Kosten / Nutzen vollständig bei der Wirtschaft
B282: Wiederbesetungskosten bei Unternehmen (Invalidität, Tod) | C282: Kosten / Nutzen vollständig bei der Wirtschaft
B283: Immaterielle Kosten (Schmerz, Leid) | C283: Vollständig bei Privaten
A284: Biodiversitätsverluste | B284: Ökosystemschäden, Beeinträchtigung Ökosystemleistungen | C284: Vor allem Private betroffen. Wirtschaft eher indirekt betroffen.
A285: Risiken und Gefahren (Schäden an Infrastrukturen) | B285: Schadenskosten an Infrastrukturen, Investitionen durch Adaptionsmaßnahmen | C285: Wirtschaft direkt betroffen, über ihre Infrastrukturen sowie das erhöhte Risiko. Insbesondere spezifische Branchen wie Verkehr, Tourismus, Landwirtschaft.
A286: Einschränkung von Ökosystemleistungen z.B.: - Wasserverfügbarkeit - Nahrungsmittelproduktion | B286: Schäden für Landwirtschaft, Tourismus; etc.
A290: 3. Lärmkosten
A292: Folgen, Kostenbereiche | B292: Konkrete Kosten | C292: Betroffenheit Wirtschaft (qual.) | D292: Anteil Gesamtkosten | J292: Quelle | K292: Allokation Anteil Wirtschaft | L292: Anteil Private & Staat | M292: Quelle
D293: Strassenlärm
A294: Gesundheitsschäden | B294: Medizinische Behandlungs-kosten, Spitalkosten | C294: Grundsätzlich private Kosten, aber durch Wirtschaft mitfinanziert über Arbeitgeberbeiträge Krankenversicherung | D294: 0.045 | J294: Ecoplan, ARE 2014: Ext. Kosten Verkehr Schweiz 2010, Basis Strassen-verkehr | K294: =7.3/(7.3+7.3+0.9) -> 0.4709677419 | L294: =(7.3+0.9)/(7.3+7.3+0.9) -> 0.5290322581 | M294: Aktuelle Beitrags-sätze Arbeitgeber/-nehmer
B295: Produktionsausfälle infolge Krankeiten | C295: Kosten / Nutzen vollständig bei der Wirtschaft | D295: 0.01 | K295: 1 | L295: 0
B296: Wiederbesetungskosten bei Unternehmen (Invalidität, Tod) | C296: Kosten / Nutzen vollständig bei der Wirtschaft | D296: 0.002 | K296: 1 | L296: 0
B297: Immaterielle Kosten (Schmerz, Leid) | C297: Vollständig bei Privaten | D297: 0.943 | K297: 0 | L297: 1
B298: Total Gesundheitskosten | D298: 0.409 | J298: UBA MK 2.0 (basierend auf IER 2012 bzw. NEEDS)
A299: Verminderte Lebensqualität | B299: Wertverluste von Immobilien | C299: Immobilien im Besitz von Unternehmen (d.h. nicht von Privaten od. dem Staat) | D299: 0.591 | K299: 0.408 | L299: 0.592 | M299: Immobilienstatistik Destatis / Zensus 2011
D302: =SUM(D298:D301) -> 1
D303: =SUM(D294:D297) -> 1
... 53 more rows

Sheet Hilfsblatt Ber. Umweltkosten 3
A2: Hilfsblatt: Berechnung Umweltkosten 3 (Umweltwirkung x Kostensatz)
A4: Nicht veränderbar für Anwender. | B4: Jahr: | C4: =Eingabevariablen!$D$7 -> 0
A7: Umweltwirkungen
A9: A. Nach Aktivitäten, Treiber
A12: 1. Energie | B12: i.) Total Umweltkosten | O12: ii.) Kosten Luftschadstoffemissionen | AA12: iii.) Kosten Treibhausgase | AM12: iv.) Kosten Lärm | AY12: v.) Kosten Beeinträchtigung von Ökosystemen | BK12: vi.) Indirekte Kosten aus vor- und nachgelagerte Prozessen
B15: Kosten | C15: in EUR | E15: Kosten | F15: in EUR | H15: Kosten | I15: in EUR | K15: Kosten | M15: in EUR | O15: Kosten | P15: in EUR | R15: Kosten | S15: in EUR | U15: Kosten | V15: in EUR | X15: Kosten | Y15: in EUR | AA15: Kosten | AB15: in EUR | AD15: Kosten | AE15: in EUR | AG15: Kosten | AH15: in EUR | AJ15: Kosten | AK15: in EUR | AM15: Kosten | AN15: in EUR | AP15: Kosten | AQ15: in EUR | AS15: Kosten | AT15: in EUR | AV15: Kosten | AW15: in EUR | AY15: Kosten | AZ15: in EUR | BB15: Kosten | BC15: in EUR | BE15: Kosten | BF15: in EUR | BH15: Kosten | BI15: in EUR | BK15: Kosten | BL15: in EUR | BN15: Kosten | BO15: in EUR | BQ15: Kosten | BR15: in EUR | BT15: Kosten | BU15: in EUR
B16: Strommix Deutschland (ohne Kernkraft) | C16: =P16+AB16+AN16+AZ16+BL16 -> 0 | E16: Wärmemix Haushalte (D) | F16: =Eingabevariablen!$E144*'Hilfsblatt Kostensätze Umwelt'!F16/100 -> 0 | H16: Braunkohle | I16: =Eingabevariablen!$E160*'Hilfsblatt Kostensätze Umwelt'!I16 -> 0 | K16: Mittl. Kraftstoffmix PW (Benzin, Diesel) | M16: =Eingabevariablen!$E168*'Hilfsblatt Kostensätze Umwelt'!L16 -> 0 | O16: Strommix Deutschland (ohne Kernkraft) | P16: =Eingabevariablen!$E124*'Hilfsblatt Kostensätze Umwelt'!O16/100 -> 0 | R16: Wärmemix Haushalte (D) | S16: =Eingabevariablen!$E144*'Hilfsblatt Kostensätze Umwelt'!R16/100 -> 0 | U16: Braunkohle | V16: =Eingabevariablen!$E160*'Hilfsblatt Kostensätze Umwelt'!U16 -> 0 | X16: Mittl. Kraftstoffmix PW (Benzin, Diesel) | Y16: =Eingabevariablen!$E168*'Hilfsblatt Kostensätze Umwelt'!X16 -> 0 | AA16: Strommix Deutschland (ohne Kernkraft) | AB16: =Eingabevariablen!$E124*'Hilfsblatt Kostensätze Umwelt'!AA16*'Hilfsblatt Kostensätze Umwelt'!$K$263/100 -> 0 | AD16: Wärmemix Haushalte (D) | AE16: =Eingabevariablen!$E144*'Hilfsblatt Kostensätze Umwelt'!AD16*'Hilfsblatt Kostensätze Umwelt'!$K$263/100 -> 0 | AG16: Braunkohle | AH16: =Eingabevariablen!$E160*'Hilfsblatt Kostensätze Umwelt'!AG16*'Hilfsblatt Kostensätze Umwelt'!$K$263 -> 0 | AJ16: Mittl. Kraftstoffmix PW (Benzin, Diesel) | AK16: =Eingabevariablen!$E168*'Hilfsblatt Kostensätze Umwelt'!AJ16*'Hilfsblatt Kostensätze Umwelt'!$K$263 -> 0 | AM16: Strommix Deutschland (ohne Kernkraft) | AP16: Wärmemix Haushalte (D) | AS16: Braunkohle | AV16: Mittl. Kraftstoffmix PW (Benzin, Diesel) | AY16: Strommix Deutschland (ohne Kernkraft) | BB16: Wärmemix Haushalte (D) | BE16: Braunkohle | BH16: Mittl. Kraftstoffmix PW (Benzin, Diesel) | BK16: Strommix Deutschland (ohne Kernkraft) | BL16: =Eingabevariablen!$E124*'Hilfsblatt Kostensätze Umwelt'!BK16/100 -> 0 | BN16: Wärmemix Haushalte (D) | BO16: =Eingabevariablen!$E144*'Hilfsblatt Kostensätze Umwelt'!BN16/100 -> 0 | BQ16: Braunkohle | BR16: =Eingabevariablen!$E160*'Hilfsblatt Kostensätze Umwelt'!BQ16 -> 0 | BT16: Mittl. Kraftstoffmix PW (Benzin, Diesel) | BU16: =Eingabevariablen!$E168*'Hilfsblatt Kostensätze Umwelt'!BT16 -> 0
B17: Strommix Deutschland (mit Kernkraft) | C17: =P17+AB17+AN17+AZ17+BL17 -> 0 | E17: Wärmemix Industrie (D) | F17: =Eingabevariablen!$E145*'Hilfsblatt Kostensätze Umwelt'!F17/100 -> 0 | H17: Steinkohle | I17: =Eingabevariablen!$E161*'Hilfsblatt Kostensätze Umwelt'!I17 -> 0 | K17: Benzin | M17: =Eingabevariablen!$E169*'Hilfsblatt Kostensätze Umwelt'!L17 -> 0 | O17: Strommix Deutschland (mit Kernkraft) | P17: =Eingabevariablen!$E125*'Hilfsblatt Kostensätze Umwelt'!O17/100 -> 0 | R17: Wärmemix Industrie (D) | S17: =Eingabevariablen!$E145*'Hilfsblatt Kostensätze Umwelt'!R17/100 -> 0 | U17: Steinkohle | V17: =Eingabevariablen!$E161*'Hilfsblatt Kostensätze Umwelt'!U17 -> 0 | X17: Benzin | Y17: =Eingabevariablen!$E169*'Hilfsblatt Kostensätze Umwelt'!X17 -> 0 | AA17: Strommix Deutschland (mit Kernkraft) | AB17: =Eingabevariablen!$E125*'Hilfsblatt Kostensätze Umwelt'!AA17*'Hilfsblatt Kostensätze Umwelt'!$K$263/100 -> 0 | AD17: Wärmemix Industrie (D) | AE17: =Eingabevariablen!$E145*'Hilfsblatt Kostensätze Umwelt'!AD17*'Hilfsblatt Kostensätze Umwelt'!$K$263/100 -> 0 | AG17: Steinkohle | AH17: =Eingabevariablen!$E161*'Hilfsblatt Kostensätze Umwelt'!AG17*'Hilfsblatt Kostensätze Umwelt'!$K$263 -> 0 | AJ17: Benzin | AK17: =Eingabevariablen!$E169*'Hilfsblatt Kostensätze Umwelt'!AJ17*'Hilfsblatt Kostensätze Umwelt'!$K$263 -> 0 | AM17: Strommix Deutschland (mit Kernkraft) | AP17: Wärmemix Industrie (D) | AS17: Steinkohle | AV17: Benzin | AY17: Strommix Deutschland (mit Kernkraft) | BB17: Wärmemix Industrie (D) | BE17: Steinkohle | BH17: Benzin | BK17: Strommix Deutschland (mit Kernkraft) | BL17: =Eingabevariablen!$E125*'Hilfsblatt Kostensätze Umwelt'!BK17/100 -> 0 | BN17: Wärmemix Industrie (D) | BO17: =Eingabevariablen!$E145*'Hilfsblatt Kostensätze Umwelt'!BN17/100 -> 0 | BQ17: Steinkohle | BR17: =Eingabevariablen!$E161*'Hilfsblatt Kostensätze Umwelt'!BQ17 -> 0 | BT17: Benzin | BU17: =Eingabevariablen!$E169*'Hilfsblatt Kostensätze Umwelt'!BT17 -> 0
B18: Strommix Bahn DB | C18: 0 | H18: Erdgas | I18: =Eingabevariablen!$E162*'Hilfsblatt Kostensätze Umwelt'!I18 -> 0 | K18: Diesel | M18: =Eingabevariablen!$E170*'Hilfsblatt Kostensätze Umwelt'!L18 -> 0 | O18: Strommix Bahn DB | P18: =Eingabevariablen!$E126*'Hilfsblatt Kostensätze Umwelt'!O18/100 -> 0 | U18: Erdgas | V18: =Eingabevariablen!$E162*'Hilfsblatt Kostensätze Umwelt'!U18 -> 0 | X18: Diesel | Y18: =Eingabevariablen!$E170*'Hilfsblatt Kostensätze Umwelt'!X18 -> 0 | AA18: Strommix Bahn DB | AB18: =Eingabevariablen!$E126*'Hilfsblatt Kostensätze Umwelt'!AA18*'Hilfsblatt Kostensätze Umwelt'!$K$263/100 -> 0 | AG18: Erdgas | AH18: =Eingabevariablen!$E162*'Hilfsblatt Kostensätze Umwelt'!AG18*'Hilfsblatt Kostensätze Umwelt'!$K$263 -> 0 | AJ18: Diesel | AK18: =Eingabevariablen!$E170*'Hilfsblatt Kostensätze Umwelt'!AJ18*'Hilfsblatt Kostensätze Umwelt'!$K$263 -> 0 | AM18: Strommix Bahn DB | AS18: Erdgas | AV18: Diesel | AY18: Strommix Bahn DB | BE18: Erdgas | BH18: Diesel | BK18: Strommix Bahn DB | BL18: =Eingabevariablen!$E126*'Hilfsblatt Kostensätze Umwelt'!BK18/100 -> 0 | BO18: =Eingabevariablen!$E146*'Hilfsblatt Kostensätze Umwelt'!BN18/100 -> 0 | BQ18: Erdgas | BR18: =Eingabevariablen!$E162*'Hilfsblatt Kostensätze Umwelt'!BQ18 -> 0 | BT18: Diesel | BU18: =Eingabevariablen!$E170*'Hilfsblatt Kostensätze Umwelt'!BT18 -> 0
B19: Strommix Europa (ohne Kernkraft) | C19: 0 | E19: Heizöl / Öl | F19: =Eingabevariablen!$E147*'Hilfsblatt Kostensätze Umwelt'!F19/100 -> 0 | H19: Öl, Heizöl | I19: =Eingabevariablen!$E163*'Hilfsblatt Kostensätze Umwelt'!I19 -> 0 | K19: Erdgas | M19: =Eingabevariablen!$E171*'Hilfsblatt Kostensätze Umwelt'!L19 -> 0 | O19: Strommix Europa (ohne Kernkraft) | P19: =Eingabevariablen!$E127*'Hilfsblatt Kostensätze Umwelt'!O19/100 -> 0 | R19: Heizöl / Öl | S19: =Eingabevariablen!$E147*'Hilfsblatt Kostensätze Umwelt'!R19/100 -> 0 | U19: Öl, Heizöl | V19: =Eingabevariablen!$E163*'Hilfsblatt Kostensätze Umwelt'!U19 -> 0 | X19: Erdgas | Y19: =Eingabevariablen!$E171*'Hilfsblatt Kostensätze Umwelt'!X19 -> 0 | AA19: Strommix Europa (ohne Kernkraft) | AB19: =Eingabevariablen!$E127*'Hilfsblatt Kostensätze Umwelt'!AA19*'Hilfsblatt Kostensätze Umwelt'!$K$263/100 -> 0 | AD19: Heizöl / Öl | AE19: =Eingabevariablen!$E147*'Hilfsblatt Kostensätze Umwelt'!AD19*'Hilfsblatt Kostensätze Umwelt'!$K$263/100 -> 0 | AG19: Öl, Heizöl | AH19: =Eingabevariablen!$E163*'Hilfsblatt Kostensätze Umwelt'!AG19*'Hilfsblatt Kostensätze Umwelt'!$K$263 -> 0 | AJ19: Erdgas | AK19: =Eingabevariablen!$E171*'Hilfsblatt Kostensätze Umwelt'!AJ19*'Hilfsblatt Kostensätze Umwelt'!$K$263 -> 0 | AM19: Strommix Europa (ohne Kernkraft) | AP19: Heizöl / Öl | AS19: Öl, Heizöl | AV19: Erdgas | AY19: Strommix Europa (ohne Kernkraft) | BB19: Heizöl / Öl | BE19: Öl, Heizöl | BH19: Erdgas | BK19: Strommix Europa (ohne Kernkraft) | BL19: =Eingabevariablen!$E127*'Hilfsblatt Kostensätze Umwelt'!BK19/100 -> 0 | BN19: Heizöl / Öl | BO19: =Eingabevariablen!$E147*'Hilfsblatt Kostensätze Umwelt'!BN19/100 -> 0 | BQ19: Öl, Heizöl | BR19: =Eingabevariablen!$E163*'Hilfsblatt Kostensätze Umwelt'!BQ19 -> 0 | BT19: Erdgas | BU19: =Eingabevariablen!$E171*'Hilfsblatt Kostensätze Umwelt'!BT19 -> 0
B20: Strommix Europa (mit Kernkraft) | C20: 0 | E20: Erdgas | F20: =Eingabevariablen!$E148*'Hilfsblatt Kostensätze Umwelt'!F20/100 -> 0 | H20: Holz (Stück) | I20: =Eingabevariablen!$E164*'Hilfsblatt Kostensätze Umwelt'!I20 -> 0 | O20: Strommix Europa (mit Kernkraft) | P20: =Eingabevariablen!$E128*'Hilfsblatt Kostensätze Umwelt'!O20/100 -> 0 | R20: Erdgas | S20: =Eingabevariablen!$E148*'Hilfsblatt Kostensätze Umwelt'!R20/100 -> 0 | U20: Holz (Stück) | V20: =Eingabevariablen!$E164*'Hilfsblatt Kostensätze Umwelt'!U20 -> 0 | AA20: Strommix Europa (mit Kernkraft) | AB20: =Eingabevariablen!$E128*'Hilfsblatt Kostensätze Umwelt'!AA20*'Hilfsblatt Kostensätze Umwelt'!$K$263/100 -> 0 | AD20: Erdgas | AE20: =Eingabevariablen!$E148*'Hilfsblatt Kostensätze Umwelt'!AD20*'Hilfsblatt Kostensätze Umwelt'!$K$263/100 -> 0 | AG20: Holz (Stück) | AH20: =Eingabevariablen!$E164*'Hilfsblatt Kostensätze Umwelt'!AG20*'Hilfsblatt Kostensätze Umwelt'!$K$263 -> 0 | AM20: Strommix Europa (mit Kernkraft) | AP20: Erdgas | AS20: Holz (Stück) | AW20: nicht relevant | AY20: Strommix Europa (mit Kernkraft) | BB20: Erdgas | BE20: Holz (Stück) | BI20: nicht relevant | BK20: Strommix Europa (mit Kernkraft) | BL20: =Eingabevariablen!$E128*'Hilfsblatt Kostensätze Umwelt'!BK20/100 -> 0 | BN20: Erdgas | BO20: =Eingabevariablen!$E148*'Hilfsblatt Kostensätze Umwelt'!BN20/100 -> 0 | BQ20: Holz (Stück) | BR20: =Eingabevariablen!$E164*'Hilfsblatt Kostensätze Umwelt'!BQ20 -> 0
B21: Braunkohle | C21: 0 | E21: Braunkohle, Steinkohle | F21: =Eingabevariablen!$E149*'Hilfsblatt Kostensätze Umwelt'!F21/100 -> 0 | H21: Holz (Pellets) | I21: =Eingabevariablen!$E165*'Hilfsblatt Kostensätze Umwelt'!I21 -> 0 | O21: Braunkohle | P21: =Eingabevariablen!$E129*'Hilfsblatt Kostensätze Umwelt'!O21/100 -> 0 | R21: Braunkohle, Steinkohle | S21: =Eingabevariablen!$E149*'Hilfsblatt Kostensätze Umwelt'!R21/100 -> 0 | U21: Holz (Pellets) | V21: =Eingabevariablen!$E165*'Hilfsblatt Kostensätze Umwelt'!U21 -> 0 | AA21: Braunkohle | AB21: =Eingabevariablen!$E129*'Hilfsblatt Kostensätze Umwelt'!AA21*'Hilfsblatt Kostensätze Umwelt'!$K$263/100 -> 0 | AD21: Braunkohle, Steinkohle | AE21: =Eingabevariablen!$E149*'Hilfsblatt Kostensätze Umwelt'!AD21*'Hilfsblatt Kostensätze Umwelt'!$K$263/100 -> 0 | AG21: Holz (Pellets) | AH21: =Eingabevariablen!$E165*'Hilfsblatt Kostensätze Umwelt'!AG21*'Hilfsblatt Kostensätze Umwelt'!$K$263 -> 0 | AM21: Braunkohle | AP21: Braunkohle, Steinkohle | AS21: Holz (Pellets) | AY21: Braunkohle | BB21: Braunkohle, Steinkohle | BE21: Holz (Pellets) | BK21: Braunkohle | BL21: =Eingabevariablen!$E129*'Hilfsblatt Kostensätze Umwelt'!BK21/100 -> 0 | BN21: Braunkohle, Steinkohle | BO21: =Eingabevariablen!$E149*'Hilfsblatt Kostensätze Umwelt'!BN21/100 -> 0 | BQ21: Holz (Pellets) | BR21: =Eingabevariablen!$E165*'Hilfsblatt Kostensätze Umwelt'!BQ21 -> 0
B22: Steinkohle | C22: 0 | E22: Fernwärme | F22: =Eingabevariablen!$E150*'Hilfsblatt Kostensätze Umwelt'!F22/100 -> 0 | O22: Steinkohle | P22: =Eingabevariablen!$E130*'Hilfsblatt Kostensätze Umwelt'!O22/100 -> 0 | R22: Fernwärme | S22: =Eingabevariablen!$E150*'Hilfsblatt Kostensätze Umwelt'!R22/100 -> 0 | AA22: Steinkohle | AB22: =Eingabevariablen!$E130*'Hilfsblatt Kostensätze Umwelt'!AA22*'Hilfsblatt Kostensätze Umwelt'!$K$263/100 -> 0 | AD22: Fernwärme | AE22: =Eingabevariablen!$E150*'Hilfsblatt Kostensätze Umwelt'!AD22*'Hilfsblatt Kostensätze Umwelt'!$K$263/100 -> 0 | AM22: Steinkohle | AP22: Fernwärme | AT22: nicht relevant | AY22: Steinkohle | BB22: Fernwärme | BF22: nicht relevant | BK22: Steinkohle | BL22: =Eingabevariablen!$E130*'Hilfsblatt Kostensätze Umwelt'!BK22/100 -> 0 | BN22: Fernwärme | BO22: =Eingabevariablen!$E150*'Hilfsblatt Kostensätze Umwelt'!BN22/100 -> 0
B23: Erdgas | C23: 0 | E23: Holzpellets, feste Biomasse (Haushalte) | F23: =Eingabevariablen!$E151*'Hilfsblatt Kostensätze Umwelt'!F23/100 -> 0 | O23: Erdgas | P23: =Eingabevariablen!$E131*'Hilfsblatt Kostensätze Umwelt'!O23/100 -> 0 | R23: Holzpellets, feste Biomasse (Haushalte) | S23: =Eingabevariablen!$E151*'Hilfsblatt Kostensätze Umwelt'!R23/100 -> 0 | AA23: Erdgas | AB23: =Eingabevariablen!$E131*'Hilfsblatt Kostensätze Umwelt'!AA23*'Hilfsblatt Kostensätze Umwelt'!$K$263/100 -> 0 | AD23: Holzpellets, feste Biomasse (Haushalte) | AE23: =Eingabevariablen!$E151*'Hilfsblatt Kostensätze Umwelt'!AD23*'Hilfsblatt Kostensätze Umwelt'!$K$263/100 -> 0 | AM23: Erdgas | AP23: Holzpellets, feste Biomasse (Haushalte) | AY23: Erdgas | BB23: Holzpellets, feste Biomasse (Haushalte) | BK23: Erdgas | BL23: =Eingabevariablen!$E131*'Hilfsblatt Kostensätze Umwelt'!BK23/100 -> 0 | BN23: Holzpellets, feste Biomasse (Haushalte) | BO23: =Eingabevariablen!$E151*'Hilfsblatt Kostensätze Umwelt'!BN23/100 -> 0
B24: Öl | C24: 0 | E24: Feste Biomasse / Holz (Industrie) | F24: =Eingabevariablen!$E152*'Hilfsblatt Kostensätze Umwelt'!F24/100 -> 0 | O24: Öl | P24: =Eingabevariablen!$E132*'Hilfsblatt Kostensätze Umwelt'!O24/100 -> 0 | R24: Feste Biomasse / Holz (Industrie) | S24: =Eingabevariablen!$E152*'Hilfsblatt Kostensätze Umwelt'!R24/100 -> 0 | AA24: Öl | AB24: =Eingabevariablen!$E132*'Hilfsblatt Kostensätze Umwelt'!AA24*'Hilfsblatt Kostensätze Umwelt'!$K$263/100 -> 0 | AD24: Feste Biomasse / Holz (Industrie) | AE24: =Eingabevariablen!$E152*'Hilfsblatt Kostensätze Umwelt'!AD24*'Hilfsblatt Kostensätze Umwelt'!$K$263/100 -> 0 | AM24: Öl | AP24: Feste Biomasse / Holz (Industrie) | AY24: Öl | BB24: Feste Biomasse / Holz (Industrie) | BK24: Öl | BL24: =Eingabevariablen!$E132*'Hilfsblatt Kostensätze Umwelt'!BK24/100 -> 0 | BN24: Feste Biomasse / Holz (Industrie) | BO24: =Eingabevariablen!$E152*'Hilfsblatt Kostensätze Umwelt'!BN24/100 -> 0
B25: Kernenergie | C25: 0 | E25: Solarthermie | F25: =Eingabevariablen!$E153*'Hilfsblatt Kostensätze Umwelt'!F25/100 -> 0 | O25: Kernenergie | P25: =Eingabevariablen!$E133*'Hilfsblatt Kostensätze Umwelt'!O25/100 -> 0 | R25: Solarthermie | S25: =Eingabevariablen!$E153*'Hilfsblatt Kostensätze Umwelt'!R25/100 -> 0 | AA25: Kernenergie | AB25: =Eingabevariablen!$E133*'Hilfsblatt Kostensätze Umwelt'!AA25*'Hilfsblatt Kostensätze Umwelt'!$K$263/100 -> 0 | AD25: Solarthermie | AE25: =Eingabevariablen!$E153*'Hilfsblatt Kostensätze Umwelt'!AD25*'Hilfsblatt Kostensätze Umwelt'!$K$263/100 -> 0 | AM25: Kernenergie | AP25: Solarthermie | AY25: Kernenergie | BB25: Solarthermie | BK25: Kernenergie | BL25: =Eingabevariablen!$E133*'Hilfsblatt Kostensätze Umwelt'!BK25/100 -> 0 | BN25: Solarthermie | BO25: =Eingabevariablen!$E153*'Hilfsblatt Kostensätze Umwelt'!BN25/100 -> 0
B26: Wasserkraft | C26: 0 | E26: Geothermie | F26: =Eingabevariablen!$E154*'Hilfsblatt Kostensätze Umwelt'!F26/100 -> 0 | O26: Wasserkraft | P26: =Eingabevariablen!$E134*'Hilfsblatt Kostensätze Umwelt'!O26/100 -> 0 | R26: Geothermie | S26: =Eingabevariablen!$E154*'Hilfsblatt Kostensätze Umwelt'!R26/100 -> 0 | AA26: Wasserkraft | AB26: =Eingabevariablen!$E134*'Hilfsblatt Kostensätze Umwelt'!AA26*'Hilfsblatt Kostensätze Umwelt'!$K$263/100 -> 0 | AD26: Geothermie | AE26: =Eingabevariablen!$E154*'Hilfsblatt Kostensätze Umwelt'!AD26*'Hilfsblatt Kostensätze Umwelt'!$K$263/100 -> 0 | AM26: Wasserkraft | AP26: Geothermie | AY26: Wasserkraft | BB26: Geothermie | BK26: Wasserkraft | BL26: =Eingabevariablen!$E134*'Hilfsblatt Kostensätze Umwelt'!BK26/100 -> 0 | BN26: Geothermie | BO26: =Eingabevariablen!$E154*'Hilfsblatt Kostensätze Umwelt'!BN26/100 -> 0
B27: Windenergie | C27: 0 | E27: Biogas-Mix (v.a. BHKW) | F27: =Eingabevariablen!$E155*'Hilfsblatt Kostensätze Umwelt'!F27/100 -> 0 | O27: Windenergie | P27: =Eingabevariablen!$E135*'Hilfsblatt Kostensätze Umwelt'!O27/100 -> 0 | R27: Biogas-Mix (v.a. BHKW) | S27: =Eingabevariablen!$E155*'Hilfsblatt Kostensätze Umwelt'!R27/100 -> 0 | AA27: Windenergie | AB27: =Eingabevariablen!$E135*'Hilfsblatt Kostensätze Umwelt'!AA27*'Hilfsblatt Kostensätze Umwelt'!$K$263/100 -> 0 | AD27: Biogas-Mix (v.a. BHKW) | AE27: =Eingabevariablen!$E155*'Hilfsblatt Kostensätze Umwelt'!AD27*'Hilfsblatt Kostensätze Umwelt'!$K$263/100 -> 0 | AM27: Windenergie | AP27: Biogas-Mix (v.a. BHKW) | AY27: Windenergie | BB27: Biogas-Mix (v.a. BHKW) | BK27: Windenergie | BL27: =Eingabevariablen!$E135*'Hilfsblatt Kostensätze Umwelt'!BK27/100 -> 0 | BN27: Biogas-Mix (v.a. BHKW) | BO27: =Eingabevariablen!$E155*'Hilfsblatt Kostensätze Umwelt'!BN27/100 -> 0
B28: Photovoltaik | C28: 0 | E28: Flüssige Biomasse (diverse Nutzungen) | F28: =Eingabevariablen!$E156*'Hilfsblatt Kostensätze Umwelt'!F28/100 -> 0 | O28: Photovoltaik | P28: =Eingabevariablen!$E136*'Hilfsblatt Kostensätze Umwelt'!O28/100 -> 0 | R28: Flüssige Biomasse (diverse Nutzungen) | S28: =Eingabevariablen!$E156*'Hilfsblatt Kostensätze Umwelt'!R28/100 -> 0 | AA28: Photovoltaik | AB28: =Eingabevariablen!$E136*'Hilfsblatt Kostensätze Umwelt'!AA28*'Hilfsblatt Kostensätze Umwelt'!$K$263/100 -> 0 | AD28: Flüssige Biomasse (diverse Nutzungen) | AE28: =Eingabevariablen!$E156*'Hilfsblatt Kostensätze Umwelt'!AD28*'Hilfsblatt Kostensätze Umwelt'!$K$263/100 -> 0 | AM28: Photovoltaik | AP28: Flüssige Biomasse (diverse Nutzungen) | AY28: Photovoltaik | BB28: Flüssige Biomasse (diverse Nutzungen) | BK28: Photovoltaik | BL28: =Eingabevariablen!$E136*'Hilfsblatt Kostensätze Umwelt'!BK28/100 -> 0 | BN28: Flüssige Biomasse (diverse Nutzungen) | BO28: =Eingabevariablen!$E156*'Hilfsblatt Kostensätze Umwelt'!BN28/100 -> 0
B29: Geothermie | C29: 0 | E29: Flüssige Biomasse (Industrie) | F29: =Eingabevariablen!$E157*'Hilfsblatt Kostensätze Umwelt'!F29/100 -> 0 | O29: Geothermie | P29: =Eingabevariablen!$E137*'Hilfsblatt Kostensätze Umwelt'!O29/100 -> 0 | R29: Flüssige Biomasse (Industrie) | S29: =Eingabevariablen!$E157*'Hilfsblatt Kostensätze Umwelt'!R29/100 -> 0 | AA29: Geothermie | AB29: =Eingabevariablen!$E137*'Hilfsblatt Kostensätze Umwelt'!AA29*'Hilfsblatt Kostensätze Umwelt'!$K$263/100 -> 0 | AD29: Flüssige Biomasse (Industrie) | AE29: =Eingabevariablen!$E157*'Hilfsblatt Kostensätze Umwelt'!AD29*'Hilfsblatt Kostensätze Umwelt'!$K$263/100 -> 0 | AM29: Geothermie | AP29: Flüssige Biomasse (Industrie) | AY29: Geothermie | BB29: Flüssige Biomasse (Industrie) | BK29: Geothermie | BL29: =Eingabevariablen!$E137*'Hilfsblatt Kostensätze Umwelt'!BK29/100 -> 0 | BN29: Flüssige Biomasse (Industrie) | BO29: =Eingabevariablen!$E157*'Hilfsblatt Kostensätze Umwelt'!BN29/100 -> 0
B30: Feste Biomasse (v.a. Holz) | C30: 0 | O30: Feste Biomasse (v.a. Holz) | P30: =Eingabevariablen!$E138*'Hilfsblatt Kostensätze Umwelt'!O30/100 -> 0 | AA30: Feste Biomasse (v.a. Holz) | AB30: =Eingabevariablen!$E138*'Hilfsblatt Kostensätze Umwelt'!AA30*'Hilfsblatt Kostensätze Umwelt'!$K$263/100 -> 0 | AM30: Feste Biomasse (v.a. Holz) | AQ30: nicht relevant | AY30: Feste Biomasse (v.a. Holz) | BC30: nicht relevant | BK30: Feste Biomasse (v.a. Holz) | BL30: =Eingabevariablen!$E138*'Hilfsblatt Kostensätze Umwelt'!BK30/100 -> 0
B31: Flüssige Biomasse | C31: 0 | O31: Flüssige Biomasse | P31: =Eingabevariablen!$E139*'Hilfsblatt Kostensätze Umwelt'!O31/100 -> 0 | AA31: Flüssige Biomasse | AB31: =Eingabevariablen!$E139*'Hilfsblatt Kostensätze Umwelt'!AA31*'Hilfsblatt Kostensätze Umwelt'!$K$263/100 -> 0 | AM31: Flüssige Biomasse | AY31: Flüssige Biomasse | BK31: Flüssige Biomasse | BL31: =Eingabevariablen!$E139*'Hilfsblatt Kostensätze Umwelt'!BK31/100 -> 0
B32: Biogas | C32: 0 | O32: Biogas | P32: =Eingabevariablen!$E140*'Hilfsblatt Kostensätze Umwelt'!O32/100 -> 0 | AA32: Biogas | AB32: =Eingabevariablen!$E140*'Hilfsblatt Kostensätze Umwelt'!AA32*'Hilfsblatt Kostensätze Umwelt'!$K$263/100 -> 0 | AM32: Biogas | AY32: Biogas | BK32: Biogas | BL32: =Eingabevariablen!$E140*'Hilfsblatt Kostensätze Umwelt'!BK32/100 -> 0
B33: Klär- / Deponiegas | C33: 0 | O33: Klär- / Deponiegas | P33: =Eingabevariablen!$E141*'Hilfsblatt Kostensätze Umwelt'!O33/100 -> 0 | AA33: Klär- / Deponiegas | AB33: =Eingabevariablen!$E141*'Hilfsblatt Kostensätze Umwelt'!AA33*'Hilfsblatt Kostensätze Umwelt'!$K$263/100 -> 0 | AM33: Klär- / Deponiegas | AY33: Klär- / Deponiegas | BK33: Klär- / Deponiegas | BL33: =Eingabevariablen!$E141*'Hilfsblatt Kostensätze Umwelt'!BK33/100 -> 0
AN34: nicht relevant | AZ34: nicht relevant
A36: 2. Verkehr
BW39: "Korrigierte" Verkehrsmengen infolge vermindertem Kraftstoff- bzw. Energieverbrauch in zukünftigen Jahren
C41: Kosten in EUR | P41: Kosten in EUR | AB41: Kosten in EUR | AN41: Kosten in EUR | AZ41: Kosten in EUR | BL41: Kosten in EUR | BX41: i. Verkehr: Fahrzeug-km nach Fahrzeugkategorie | BY41: Verkehrsmenge in Fahrzeug-km nach Ort
C42: Ort unbekannt (Ø alle Strecken) | D42: Innerorts | E42: Außerorts | F42: Autobahn | P42: Ort unbekannt (Ø alle Strecken) | Q42: Innerorts | R42: Außerorts | S42: Autobahn | AB42: Ort unbekannt (Ø alle Strecken) | AC42: Innerorts | AD42: Außerorts | AE42: Autobahn | AN42: Ort unbekannt (Ø alle Strecken) | AO42: Innerorts | AP42: Außerorts | AQ42: Autobahn | AZ42: Ort unbekannt (Ø alle Strecken) | BA42: Innerorts | BB42: Außerorts | BC42: Autobahn | BL42: Ort unbekannt (Ø alle Strecken) | BM42: Innerorts | BN42: Außerorts | BO42: Autobahn | BY42: Ort unbekannt (Ø alle Strecken) | BZ42: Innerorts | CA42: Außerorts | CB42: Autobahn
B43: PKW, Diesel | C43: =P43+AB43+AN43+AZ43+BL43 -> 0 | D43: =Q43+AC43+AO43+BA43+BM43 -> 0 | E43: 0 | F43: 0 | H43: =P43+AB43+AN43+AZ43+BL43-C43 -> 0 | I43: =Q43+AC43+AO43+BA43+BM43-D43 -> 0 | J43: =R43+AD43+AP43+BB43+BN43-E43 -> 0 | K43: =S43+AE43+AQ43+BC43+BO43-F43 -> 0 | O43: PKW, Diesel | P43: =$BY43*'Hilfsblatt Kostensätze Umwelt'!O43/100 -> 0 | Q43: =$BZ43*'Hilfsblatt Kostensätze Umwelt'!P43/100 -> 0 | R43: =$CA43*'Hilfsblatt Kostensätze Umwelt'!Q43/100 -> 0 | S43: =$CB43*'Hilfsblatt Kostensätze Umwelt'!R43/100 -> 0 | AA43: PKW, Diesel | AB43: =$BY43*'Hilfsblatt Kostensätze Umwelt'!AA43/100*'Hilfsblatt Kostensätze Umwelt'!$K$263 -> 0 | AC43: =$BZ43*'Hilfsblatt Kostensätze Umwelt'!AB43/100*'Hilfsblatt Kostensätze Umwelt'!$K$263 -> 0 | AD43: =$CA43*'Hilfsblatt Kostensätze Umwelt'!AC43/100*'Hilfsblatt Kostensätze Umwelt'!$K$263 -> 0 | AE43: =$CB43*'Hilfsblatt Kostensätze Umwelt'!AD43/100*'Hilfsblatt Kostensätze Umwelt'!$K$263 -> 0 | AM43: PKW, Diesel | AN43: =Eingabevariablen!$C77*'Hilfsblatt Kostensätze Umwelt'!AM43/100 -> 0 | AO43: =Eingabevariablen!$D77*'Hilfsblatt Kostensätze Umwelt'!AN43/100 -> 0 | AP43: =Eingabevariablen!$E77*'Hilfsblatt Kostensätze Umwelt'!AO43/100 -> 0 | AQ43: =Eingabevariablen!$F77*'Hilfsblatt Kostensätze Umwelt'!AP43/100 -> 0 | AY43: PKW, Diesel | AZ43: =Eingabevariablen!$C77*'Hilfsblatt Kostensätze Umwelt'!AY43/100 -> 0 | BA43: =Eingabevariablen!$D77*'Hilfsblatt Kostensätze Umwelt'!AZ43/100 -> 0 | BB43: =Eingabevariablen!$E77*'Hilfsblatt Kostensätze Umwelt'!BA43/100 -> 0 | BC43: =Eingabevariablen!$F77*'Hilfsblatt Kostensätze Umwelt'!BB43/100 -> 0 | BK43: PKW, Diesel | BL43: =$BY43*'Hilfsblatt Kostensätze Umwelt'!BK43/100 -> 0 | BM43: =$BZ43*'Hilfsblatt Kostensätze Umwelt'!BL43/100 -> 0 | BN43: =$CA43*'Hilfsblatt Kostensätze Umwelt'!BM43/100 -> 0 | BO43: =$CB43*'Hilfsblatt Kostensätze Umwelt'!BN43/100 -> 0 | BW43: Strassenverkehr: | BX43: PKW, Diesel | BY43: =Eingabevariablen!C77*(1+Eingabevariablen!$E$118) -> 0 | BZ43: =Eingabevariablen!D77*(1+Eingabevariablen!$E$118) -> 0 | CA43: =Eingabevariablen!E77*(1+Eingabevariablen!$E$118) -> 0 | CB43: =Eingabevariablen!F77*(1+Eingabevariablen!$E$118) -> 0
B44: PKW, Benzin | C44: =P44+AB44+AN44+AZ44+BL44 -> 0 | D44: 0 | E44: 0 | F44: 0 | H44: =P44+AB44+AN44+AZ44+BL44-C44 -> 0 | I44: 0 | J44: 0 | K44: 0 | O44: PKW, Benzin | P44: =$BY44*'Hilfsblatt Kostensätze Umwelt'!O44/100 -> 0 | Q44: =$BZ44*'Hilfsblatt Kostensätze Umwelt'!P44/100 -> 0 | R44: =$CA44*'Hilfsblatt Kostensätze Umwelt'!Q44/100 -> 0 | S44: =$CB44*'Hilfsblatt Kostensätze Umwelt'!R44/100 -> 0 | AA44: PKW, Benzin | AB44: =$BY44*'Hilfsblatt Kostensätze Umwelt'!AA44/100*'Hilfsblatt Kostensätze Umwelt'!$K$263 -> 0 | AC44: =$BZ44*'Hilfsblatt Kostensätze Umwelt'!AB44/100*'Hilfsblatt Kostensätze Umwelt'!$K$263 -> 0 | AD44: =$CA44*'Hilfsblatt Kostensätze Umwelt'!AC44/100*'Hilfsblatt Kostensätze Umwelt'!$K$263 -> 0 | AE44: =$CB44*'Hilfsblatt Kostensätze Umwelt'!AD44/100*'Hilfsblatt Kostensätze Umwelt'!$K$263 -> 0 | AM44: PKW, Benzin | AN44: =Eingabevariablen!$C78*'Hilfsblatt Kostensätze Umwelt'!AM44/100 -> 0 | AO44: =Eingabevariablen!$D78*'Hilfsblatt Kostensätze Umwelt'!AN44/100 -> 0 | AP44: =Eingabevariablen!$E78*'Hilfsblatt Kostensätze Umwelt'!AO44/100 -> 0 | AQ44: =Eingabevariablen!$F78*'Hilfsblatt Kostensätze Umwelt'!AP44/100 -> 0 | AY44: PKW, Benzin | AZ44: =Eingabevariablen!$C78*'Hilfsblatt Kostensätze Umwelt'!AY44/100 -> 0 | BA44: =Eingabevariablen!$D78*'Hilfsblatt Kostensätze Umwelt'!AZ44/100 -> 0 | BB44: =Eingabevariablen!$E78*'Hilfsblatt Kostensätze Umwelt'!BA44/100 -> 0 | BC44: =Eingabevariablen!$F78*'Hilfsblatt Kostensätze Umwelt'!BB44/100 -> 0 | BK44: PKW, Benzin | BL44: =$BY44*'Hilfsblatt Kostensätze Umwelt'!BK44/100 -> 0 | BM44: =$BZ44*'Hilfsblatt Kostensätze Umwelt'!BL44/100 -> 0 | BN44: =$CA44*'Hilfsblatt Kostensätze Umwelt'!BM44/100 -> 0 | BO44: =$CB44*'Hilfsblatt Kostensätze Umwelt'!BN44/100 -> 0 | BX44: PKW, Benzin | BY44: =Eingabevariablen!C78*(1+Eingabevariablen!$E$118) -> 0 | BZ44: =Eingabevariablen!D78*(1+Eingabevariablen!$E$118) -> 0 | CA44: =Eingabevariablen!E78*(1+Eingabevariablen!$E$118) -> 0 | CB44: =Eingabevariablen!F78*(1+Eingabevariablen!$E$118) -> 0
B45: Leichte Nutzfahrzeuge, Diesel | C45: 0 | D45: 0 | E45: 0 | F45: 0 | H45: 0 | I45: 0 | J45: 0 | K45: 0 | O45: Leichte Nutzfahrzeuge, Diesel | P45: =$BY45*'Hilfsblatt Kostensätze Umwelt'!O45/100 -> 0 | Q45: =$BZ45*'Hilfsblatt Kostensätze Umwelt'!P45/100 -> 0 | R45: =$CA45*'Hilfsblatt Kostensätze Umwelt'!Q45/100 -> 0 | S45: =$CB45*'Hilfsblatt Kostensätze Umwelt'!R45/100 -> 0 | AA45: Leichte Nutzfahrzeuge, Diesel | AB45: =$BY45*'Hilfsblatt Kostensätze Umwelt'!AA45/100*'Hilfsblatt Kostensätze Umwelt'!$K$263 -> 0 | AC45: =$BZ45*'Hilfsblatt Kostensätze Umwelt'!AB45/100*'Hilfsblatt Kostensätze Umwelt'!$K$263 -> 0 | AD45: =$CA45*'Hilfsblatt Kostensätze Umwelt'!AC45/100*'Hilfsblatt Kostensätze Umwelt'!$K$263 -> 0 | AE45: =$CB45*'Hilfsblatt Kostensätze Umwelt'!AD45/100*'Hilfsblatt Kostensätze Umwelt'!$K$263 -> 0 | AM45: Leichte Nutzfahrzeuge, Diesel | AN45: =Eingabevariablen!$C79*'Hilfsblatt Kostensätze Umwelt'!AM45/100 -> 0 | AO45: =Eingabevariablen!$D79*'Hilfsblatt Kostensätze Umwelt'!AN45/100 -> 0 | AP45: =Eingabevariablen!$E79*'Hilfsblatt Kostensätze Umwelt'!AO45/100 -> 0 | AQ45: =Eingabevariablen!$F79*'Hilfsblatt Kostensätze Umwelt'!AP45/100 -> 0 | AY45: Leichte Nutzfahrzeuge, Diesel | AZ45: =Eingabevariablen!$C79*'Hilfsblatt Kostensätze Umwelt'!AY45/100 -> 0 | BA45: =Eingabevariablen!$D79*'Hilfsblatt Kostensätze Umwelt'!AZ45/100 -> 0 | BB45: =Eingabevariablen!$E79*'Hilfsblatt Kostensätze Umwelt'!BA45/100 -> 0 | BC45: =Eingabevariablen!$F79*'Hilfsblatt Kostensätze Umwelt'!BB45/100 -> 0 | BK45: Leichte Nutzfahrzeuge, Diesel | BL45: =$BY45*'Hilfsblatt Kostensätze Umwelt'!BK45/100 -> 0 | BM45: =$BZ45*'Hilfsblatt Kostensätze Umwelt'!BL45/100 -> 0 | BN45: =$CA45*'Hilfsblatt Kostensätze Umwelt'!BM45/100 -> 0 | BO45: =$CB45*'Hilfsblatt Kostensätze Umwelt'!BN45/100 -> 0 | BX45: Leichte Nutzfahrzeuge, Diesel | BY45: =Eingabevariablen!C79*(1+Eingabevariablen!$E$118) -> 0 | BZ45: =Eingabevariablen!D79*(1+Eingabevariablen!$E$118) -> 0 | CA45: =Eingabevariablen!E79*(1+Eingabevariablen!$E$118) -> 0 | CB45: =Eingabevariablen!F79*(1+Eingabevariablen!$E$118) -> 0
